Workbook

Sheet Forside
B1: Navn på filen: | C1: EU - Gaspriser - forbrugere (2007-2017)
B3: Sidst opdateret | C3: 2016-12-08
B4: Opdateret af | C4: b014318
B6: Datakilder: | C6: =LEFT(B57,34) -> Danmarks Statistik, DNVALA: Valuta
C7: ="Eurostat: "&RIGHT('Baggrundsdata - HICP - deflator'!A60,15) -> Eurostat: [prc_hicp_aind]
C8: ="Eurostat: "&RIGHT('Level 1'!A39,12) -> Eurostat: [nrg_pc_202]
B11: Kode til at låse arkene op: | C11: ens1256
B14: Oversigt over ark:
B15: Forside | C15: Formål, oversigt og smådata
B16: ='Udvalgte lande, 10 års oversigt'!E1 -> Udvalgte lande, 10 års oversigt | C16: Her findes sammenligning af relevante lande for en 10 års periode.
B17: ='Alle lande, valgt år'!F1 -> Alle lande, valgt år | C17: Her findes resultattabellerne for alle EU lande i de enheder du vælger.
B18: ='Baggrundstabeller for alle land'!F1 -> Baggrundstabeller for alle lande, valgt år | C18: Her findes baggrundstabeller for resultattabellerne.
B19: ='Baggrundsdata - HICP - deflator'!C2 -> Baggrundsdata - HICP - deflator | C19: HICP deflatorerne der bruges i til beregning af priser i det valte år for resultattabellerne. Og kontrol af at man har hentet korrekt data
B20: Level 1 | C20: Rådata fra Eurostat og samling af dette
B21: Level 2 | C21: Rådata fra Eurostat og samling af dette
B22: Level 3 | C22: Rådata fra Eurostat og samling af dette
B23: Afgifter og moms | C23: Bearbejelse af rådata fra Eurostat. Dette ark opdateres automatisk når level 1, 2 og 3 er opdateret. Tallene danner baggrund for figurer og tabeller resultatark.
B24: ='Sådan opdateres arket'!B3 -> Sådan foretages opdatering | C24: Her er en beskrivelse af hvordan og hvornår arkene skal opdateres.
B25: Oversættelse af landenavne | C25: Lavpraktisk oversættelses-, hjælpe- og og kontrolark
B28: Arkene har farvekoder, de er opdelt således:
B29: Beskrivelser og forklaringer
B30: Resultattabeller
B31: Baggrundstabeller og rådata
B33: Formålet med dette ark er at give et overblik over gaspriserne for industrielle forbrugere i de europæiske lande. Særligt at kunne sammenligne den danske gaspris med de øvrige gaspriser. For ar gøre det mere overskueligt træffes valg omkring enheder i rullemenuer øverst i de to ark med resultattabeller. Når man vælger tilpasses tabeller og figurer til valgene. Rådata opdateres halvårligt, når eurostat opdaterer deres databank. På forsiden findes også tabeller med grundlæggende oplysninger, der bruges til enhedsomregning. Det drejer sig om de udvalgte sammenligningslande og valutakursomregning. Det er vigigt at hente data 10 år tilbage, dvs. at man skal have hele år, således at 20xx S1 som det første data, for halvårsopdateringer har man således kun data for fx 6,5 år mens man for årsopdateringerne har data for 7 år.
B36: Tabel 1
B37: Sammenligningslande
B38: Disse lande bruges til grundlag for sammenligning over tid. De er taget fra det effektive kronekurs indeks og udgøres af de europæiske lande som danmark har mest samhandel med.
B39: EU-28
B40: Belgien
B41: Danmark
B42: Tyskland
B43: Frankrig
B44: Italien
B45: Holland
B46: Sverige
B47: UK
B48: Norge
B52: Tabel 2
B53: Valutakurser efter opgørelsesmetode, kurstype, valuta og tid
B54: Enhed: DKK pr. 100 enheder valuta og indekstal
E55: 2007 | F55: 2008 | G55: 2009 | H55: 2010 | I55: 2011 | J55: 2012 | K55: 2013 | L55: 2014 | M55: 2015 | N55: 2016 | O55: 2017
B56: Årsgennemsnit | C56: Valutakurser (DKK pr. 100 enheder valuta) | D56: Euro (Jan. 1999-) | E56: 745.5974 | F56: 744.6251 | G56: 744.6251 | H56: 744.7366 | I56: 745.0529 | J56: 744.3751 | K56: 745.7982 | L56: 745.4741 | M56: 745.6103 | N56: 744.7488444
B57: Danmarks Statistik, DNVALA: Valutakurser efter valuta, kurstype og opgørelsesmetode (årsobservationer)
B58: OBS! Årstallene skal være formateret som tal!
B62: Tabel 3
B63: Brændværdier på naturgas
C64: Enhed | E64: 2007 | F64: 2008 | G64: 2009 | H64: 2010 | I64: 2011 | J64: 2012 | K64: 2013 | L64: 2014 | M64: 2015 | N64: 2016 | O64: 2017
B65: - Nedre brændværdi | C65: GJ/1000 Nm3 | E65: =F65 -> 39.48 | F65: 39.48 | G65: 39.46 | H65: 39.46 | I65: 39.51 | J65: 39.55 | K65: 38.988 | L65: 39.532 | M65: =L65 -> 39.532 | N65: =M65 -> 39.532
B66: - Øvre brændværdi | C66: GJ/1000 Nm3 | E66: =F66 -> 43.6644 | F66: 43.6644 | G66: 43.6356 | H66: 43.6356 | I66: =I65/0.9 -> 43.9 | J66: =J65/0.9 -> 43.94444444 | K66: =K65/0.9 -> 43.32 | L66: =L65/0.9 -> 43.92444444 | M66: =L66 -> 43.92444444 | N66: =M66 -> 43.92444444
B67: Kilde: Månedsstatistik for naturgas (ark: Beregningsforudsætninger) | E67: OBS 2007 værdierne er ikke hentet fra statistikken, men blot sat lig 2008. For 2015 er tallene sat lig 2014
B70: Tabel 4
B71: Enhedsomregner
E72: 2007 | F72: 2008 | G72: 2009 | H72: 2010 | I72: 2011 | J72: 2012 | K72: 2013 | L72: 2014 | M72: 2015 | N72: 2016 | O72: 2017
C73: GJ/Nm3 | E73: =IFERROR(E65/1000,"*") -> 0.03948 | F73: 0.03948 | G73: =IFERROR(G65/1000,"*") -> 0.03946 | H73: 0.03946 | I73: 0.03951 | J73: 0.03955 | K73: 0.038988 | L73: 0.039532 | M73: 0.039532 | N73: =IFERROR(N65/1000,"*") -> 0.039532
C74: Nm3/GJ | E74: =IFERROR(1/E73,"*") -> 25.32928065 | F74: 25.32928065 | G74: =IFERROR(1/G73,"*") -> 25.3421186 | H74: 25.3421186 | I74: 25.31004809 | J74: 25.28445006 | K74: 25.64891762 | L74: 25.29596276 | M74: 25.29596276 | N74: =IFERROR(1/N73,"*") -> 25.29596276
B75: Note: I nøgletalskataloget benyttes den nedre brændværdi.

Sheet Udvalgte lande, 10 års oversigt
D1: NAVN PÅ ARK: | E1: Udvalgte lande, 10 års oversigt
D2: Data hentes fra: | E2: 'Forside', 'Level 1' og 'Afgifter og moms'
D4: Sådan bruges arket:
D5: ="Arket 'Udvalgte lande, 10 års oversigt' viser figurer og tabeller (de grå-blå) for gasprisen på level 1, 2 og 3 for hvert interval. Prisen vises for udvalgte lande for årene "&E50&" til "&M50&". Landene er valgt på baggrund af Natinalbankens effektive kronekursindeks og udgøres af de europæiske lande Danmark har mest samhandel med." -> Arket 'Udvalgte lande, 10 års oversigt' viser figurer og tabeller (de grå-blå) for gasprisen på level 1, 2 og 3 for hvert interval. Prisen vises for udvalgte lande for årene 2007 til 2015. Landene er valgt på baggrund af Natinalbankens effektive kronekursindeks og udgøres af de europæiske lande Danmark har mest samhandel med.
D6: Pristypen, basisået, valuta og enhed kan ændres. Dette gøres i de farvede rullemenuer nedenfor. Rent teknisk styrer hver menu en tabel længere nede i tilsvarende farve. Disse tabeller ganges på rådata (arkene level1, 2 og 3) for hvert level, heraf fremkommer resultattabellerne med som følge af de valg man traf i rullemenuerne. Til hver resultattabel er tilkoblet en figur der viser prisudviklingen grafisk.
D11: Vælg | F11: Vises i
D12: År | E12: =E50&" til "&N50 -> 2007 til 2016 | F12: Resultattabeller
D13: Vælg pristype | E13: faste priser | F13: Tabel B
D14: Vælg Basisår (kun ved fast pris) | E14: 2016 | F14: Tabel B
D15: Vælg valuta | E15: DKK øre | F15: Tabel C
D16: Vælg enhed (NM3/GJ) | E16: Kwh | F16: Tabel D
D20: Resultattabeller:
D21: Valgene truffet ovenfor giver tabeller og figurer der er:
D22: ="Oppgjort i "&$E$13&" med basisår "&$E$14 -> Oppgjort i faste priser med basisår 2016
D23: ="Vist i "&E15&" / "&E16&"." -> Vist i DKK øre / Kwh.
D27: Forbrugsinterval < 20 GJ | Q27: Forbrugsinterval 20 GJ < 200 GJ | AD27: Forbrugsinterval >200 GJ
B28: Level 1: Gaspris | D28: ="Figur XX: "&$B$28&" for intervalet "&D27&". Priserne er vist i "&$E$15&" / "&$E$16&" i "&$E$13&" med basisår "&$E$14&". " -> Figur XX: Level 1: Gaspris for intervalet Forbrugsinterval < 20 GJ. Priserne er vist i DKK øre / Kwh i faste priser med basisår 2016. | Q28: ="Figur XX: "&$B$28&" for intervalet "&Q27&". Priserne er vist i "&$E$15&" / "&$E$16&" i "&$E$13&" med basisår "&$E$14&". " -> Figur XX: Level 1: Gaspris for intervalet Forbrugsinterval 20 GJ < 200 GJ. Priserne er vist i DKK øre / Kwh i faste priser med basisår 2016. | AD28: ="Figur XX: "&$B$28&" for intervalet "&AD27&". Priserne er vist i "&$E$15&" / "&$E$16&" i "&$E$13&" med basisår "&$E$14&". " -> Figur XX: Level 1: Gaspris for intervalet Forbrugsinterval >200 GJ. Priserne er vist i DKK øre / Kwh i faste priser med basisår 2016. | AR28: =B28 -> Level 1: Gaspris
D47: Kilde: Eurostat | Q47: Kilde: Eurostat | AD47: Kilde: Eurostat
D49: ="Tabel XX: "&$B$28&" for forbrugsinterval "&D27&". Priserne er vist i "&$E$15&" / "&$E$16&" i "&$E$13&" med basisår "&$E$14&". " -> Tabel XX: Level 1: Gaspris for forbrugsinterval Forbrugsinterval < 20 GJ. Priserne er vist i DKK øre / Kwh i faste priser med basisår 2016. | Q49: ="Tabel XX: "&$B$28&" for forbrugsinterval "&Q27&". Priserne er vist i "&$E$15&" / "&$E$16&" i "&$E$13&" med basisår "&$E$14&". " -> Tabel XX: Level 1: Gaspris for forbrugsinterval Forbrugsinterval 20 GJ < 200 GJ. Priserne er vist i DKK øre / Kwh i faste priser med basisår 2016. | AD49: ="Tabel XX: "&$B$28&" for forbrugsinterval "&AD27&". Priserne er vist i "&$E$15&" / "&$E$16&" i "&$E$13&" med basisår "&$E$14&". " -> Tabel XX: Level 1: Gaspris for forbrugsinterval Forbrugsinterval >200 GJ. Priserne er vist i DKK øre / Kwh i faste priser med basisår 2016.
D50: =$E$15&"/"&$E$16 -> DKK øre/Kwh | E50: ='Level 1'!B5 -> 2007 | F50: ='Level 1'!C5 -> 2008 | G50: ='Level 1'!D5 -> 2009 | H50: ='Level 1'!E5 -> 2010 | I50: ='Level 1'!F5 -> 2011 | J50: ='Level 1'!G5 -> 2012 | K50: ='Level 1'!H5 -> 2013 | L50: ='Level 1'!I5 -> 2014 | M50: ='Level 1'!J5 -> 2015 | N50: ='Level 1'!K5 -> 2016 | O50: ='Level 1'!L5 -> 2017 | Q50: =$E$15&"/"&$E$16 -> DKK øre/Kwh | R50: ='Level 1'!O5 -> 2007 | S50: ='Level 1'!P5 -> 2008 | T50: ='Level 1'!Q5 -> 2009 | U50: ='Level 1'!R5 -> 2010 | V50: ='Level 1'!S5 -> 2011 | W50: ='Level 1'!T5 -> 2012 | X50: ='Level 1'!U5 -> 2013 | Y50: ='Level 1'!V5 -> 2014 | Z50: ='Level 1'!W5 -> 2015 | AA50: ='Level 1'!X5 -> 2016 | AB50: ='Level 1'!Y5 -> 2017 | AD50: =$E$15&"/"&$E$16 -> DKK øre/Kwh | AE50: ='Level 1'!AB5 -> 2007 | AF50: ='Level 1'!AC5 -> 2008 | AG50: ='Level 1'!AD5 -> 2009 | AH50: ='Level 1'!AE5 -> 2010 | AI50: ='Level 1'!AF5 -> 2011 | AJ50: ='Level 1'!AG5 -> 2012 | AK50: ='Level 1'!AH5 -> 2013 | AL50: ='Level 1'!AI5 -> 2014 | AM50: ='Level 1'!AJ5 -> 2015 | AN50: ='Level 1'!AK5 -> 2016 | AO50: ='Level 1'!AL5 -> 2017
D51: ='Oversættelse af landenavne'!$B$6 -> EU-28 | E51: =IFERROR('Level 1'!B$6/E$147*R$147*AE$147,"*") -> 47.13543267 | F51: =IFERROR('Level 1'!C$6/F$147*S$147*AF$147,"*") -> 52.10670149 | G51: =IFERROR('Level 1'!D$6/G$147*T$147*AG$147,"*") -> 51.04010334 | H51: =IFERROR('Level 1'!E$6/H$147*U$147*AH$147,"*") -> 49.58624342 | I51: =IFERROR('Level 1'!F$6/I$147*V$147*AI$147,"*") -> 52.87411129 | J51: =IFERROR('Level 1'!G$6/J$147*W$147*AJ$147,"*") -> 55.87469541 | K51: =IFERROR('Level 1'!H$6/K$147*X$147*AK$147,"*") -> 57.57565258 | L51: =IFERROR('Level 1'!I$6/L$147*Y$147*AL$147,"*") -> 61.59655578 | M51: =IFERROR('Level 1'!J$6/M$147*Z$147*AM$147,"*") -> 60.55466602 | N51: =IFERROR('Level 1'!K$6/N$147*AA$147*AN$147,"*") -> 53.92731741 | O51: =IFERROR('Level 1'!L$6/O$147*AB$147*AO$147,"*") -> * | Q51: ='Oversættelse af landenavne'!$B$6 -> EU-28 | R51: =IFERROR('Level 1'!O$6/E$147*R$147*AE$147,"*") -> 34.13682353 | S51: =IFERROR('Level 1'!P$6/F$147*S$147*AF$147,"*") -> 37.73449542 | T51: =IFERROR('Level 1'!Q$6/G$147*T$147*AG$147,"*") -> 35.47855607 | U51: =IFERROR('Level 1'!R$6/H$147*U$147*AH$147,"*") -> 33.42876562 | V51: =IFERROR('Level 1'!S$6/I$147*V$147*AI$147,"*") -> 36.1009329 | W51: =IFERROR('Level 1'!T$6/J$147*W$147*AJ$147,"*") -> 39.04398031 | X51: =IFERROR('Level 1'!U$6/K$147*X$147*AK$147,"*") -> 39.27819109 | Y51: =IFERROR('Level 1'!V$6/L$147*Y$147*AL$147,"*") -> 39.88025102 | Z51: =IFERROR('Level 1'!W$6/M$147*Z$147*AM$147,"*") -> 39.3149426 | AA51: =IFERROR('Level 1'!X$6/N$147*AA$147*AN$147,"*") -> 34.82638481 | AB51: =IFERROR('Level 1'!Y$6/O$147*AB$147*AO$147,"*") -> * | AD51: ='Oversættelse af landenavne'!$B$6 -> EU-28 | AE51: =IFERROR('Level 1'!AB$6/E$147*R$147*AE$147,"*") -> 30.57768055 | AF51: =IFERROR('Level 1'!AC$6/F$147*S$147*AF$147,"*") -> 34.32035103 | AG51: =IFERROR('Level 1'!AD$6/G$147*T$147*AG$147,"*") -> 31.87607264 | AH51: =IFERROR('Level 1'!AE$6/H$147*U$147*AH$147,"*") -> 29.98608011 | AI51: =IFERROR('Level 1'!AF$6/I$147*V$147*AI$147,"*") -> 32.57786363 | AJ51: =IFERROR('Level 1'!AG$6/J$147*W$147*AJ$147,"*") -> 34.83630154 | AK51: =IFERROR('Level 1'!AH$6/K$147*X$147*AK$147,"*") -> 35.192612 | AL51: =IFERROR('Level 1'!AI$6/L$147*Y$147*AL$147,"*") -> 34.82651837 | AM51: =IFERROR('Level 1'!AJ$6/M$147*Z$147*AM$147,"*") -> 34.3804614 | AN51: =IFERROR('Level 1'!AK$6/N$147*AA$147*AN$147,"*") -> 31.07585106 | AO51: =IFERROR('Level 1'!AL$6/O$147*AB$147*AO$147,"*") -> *
D52: ='Oversættelse af landenavne'!$B$7 -> Belgien | E52: =IFERROR('Level 1'!B$7/E$148*R$147*AE$147,"*") -> 54.64527677 | F52: =IFERROR('Level 1'!C$7/F$148*S$147*AF$147,"*") -> 63.3076739 | G52: =IFERROR('Level 1'!D$7/G$148*T$147*AG$147,"*") -> 56.17158774 | H52: =IFERROR('Level 1'!E$7/H$148*U$147*AH$147,"*") -> 53.08404349 | I52: =IFERROR('Level 1'!F$7/I$148*V$147*AI$147,"*") -> 56.52499345 | J52: =IFERROR('Level 1'!G$7/J$148*W$147*AJ$147,"*") -> 59.08290823 | K52: =IFERROR('Level 1'!H$7/K$148*X$147*AK$147,"*") -> 54.58976775 | L52: =IFERROR('Level 1'!I$7/L$148*Y$147*AL$147,"*") -> 53.56941008 | M52: =IFERROR('Level 1'!J$7/M$148*Z$147*AM$147,"*") -> 50.83159474 | N52: =IFERROR('Level 1'!K$7/N$148*AA$147*AN$147,"*") -> 42.43461042 | O52: =IFERROR('Level 1'!L$7/O$148*AB$147*AO$147,"*") -> * | Q52: ='Oversættelse af landenavne'!$B$7 -> Belgien | R52: =IFERROR('Level 1'!O$7/E$148*R$147*AE$147,"*") -> 34.9052972 | S52: =IFERROR('Level 1'!P$7/F$148*S$147*AF$147,"*") -> 43.99194558 | T52: =IFERROR('Level 1'!Q$7/G$148*T$147*AG$147,"*") -> 37.42276667 | U52: =IFERROR('Level 1'!R$7/H$148*U$147*AH$147,"*") -> 36.66267686 | V52: =IFERROR('Level 1'!S$7/I$148*V$147*AI$147,"*") -> 43.02416168 | W52: =IFERROR('Level 1'!T$7/J$148*W$147*AJ$147,"*") -> 43.36056571 | X52: =IFERROR('Level 1'!U$7/K$148*X$147*AK$147,"*") -> 39.65946627 | Y52: =IFERROR('Level 1'!V$7/L$148*Y$147*AL$147,"*") -> 38.25610685 | Z52: =IFERROR('Level 1'!W$7/M$148*Z$147*AM$147,"*") -> 35.81286234 | AA52: =IFERROR('Level 1'!X$7/N$148*AA$147*AN$147,"*") -> 30.88832438 | AB52: =IFERROR('Level 1'!Y$7/O$148*AB$147*AO$147,"*") -> * | AD52: ='Oversættelse af landenavne'!$B$7 -> Belgien | AE52: =IFERROR('Level 1'!AB$7/E$148*R$147*AE$147,"*") -> 31.239301 | AF52: =IFERROR('Level 1'!AC$7/F$148*S$147*AF$147,"*") -> 41.29672768 | AG52: =IFERROR('Level 1'!AD$7/G$148*T$147*AG$147,"*") -> 34.36784694 | AH52: =IFERROR('Level 1'!AE$7/H$148*U$147*AH$147,"*") -> 32.05240012 | AI52: =IFERROR('Level 1'!AF$7/I$148*V$147*AI$147,"*") -> 38.98666215 | AJ52: =IFERROR('Level 1'!AG$7/J$148*W$147*AJ$147,"*") -> 39.1541495 | AK52: =IFERROR('Level 1'!AH$7/K$148*X$147*AK$147,"*") -> 36.41137509 | AL52: =IFERROR('Level 1'!AI$7/L$148*Y$147*AL$147,"*") -> 33.34173116 | AM52: =IFERROR('Level 1'!AJ$7/M$148*Z$147*AM$147,"*") -> 30.46927022 | AN52: =IFERROR('Level 1'!AK$7/N$148*AA$147*AN$147,"*") -> 28.18258217 | AO52: =IFERROR('Level 1'!AL$7/O$148*AB$147*AO$147,"*") -> *
D53: ='Oversættelse af landenavne'!$B$10 -> Danmark | E53: =IFERROR('Level 1'!B$10/E$149*R$147*AE$147,"*") -> 36.7864121 | F53: =IFERROR('Level 1'!C$10/F$149*S$147*AF$147,"*") -> 42.8307653 | G53: =IFERROR('Level 1'!D$10/G$149*T$147*AG$147,"*") -> 32.95017898 | H53: =IFERROR('Level 1'!E$10/H$149*U$147*AH$147,"*") -> 37.82135147 | I53: =IFERROR('Level 1'!F$10/I$149*V$147*AI$147,"*") -> 40.7587124 | J53: =IFERROR('Level 1'!G$10/J$149*W$147*AJ$147,"*") -> 35.49623726 | K53: =IFERROR('Level 1'!H$10/K$149*X$147*AK$147,"*") -> 32.6442321 | L53: =IFERROR('Level 1'!I$10/L$149*Y$147*AL$147,"*") -> 26.35363992 | M53: =IFERROR('Level 1'!J$10/M$149*Z$147*AM$147,"*") -> 25.49950999 | N53: =IFERROR('Level 1'!K$10/N$149*AA$147*AN$147,"*") -> 21.28802956 | O53: =IFERROR('Level 1'!L$10/O$149*AB$147*AO$147,"*") -> * | Q53: ='Oversættelse af landenavne'!$B$10 -> Danmark | R53: =IFERROR('Level 1'!O$10/E$149*R$147*AE$147,"*") -> 47.24154104 | S53: =IFERROR('Level 1'!P$10/F$149*S$147*AF$147,"*") -> 42.8307653 | T53: =IFERROR('Level 1'!Q$10/G$149*T$147*AG$147,"*") -> 32.95017898 | U53: =IFERROR('Level 1'!R$10/H$149*U$147*AH$147,"*") -> 37.82135147 | V53: =IFERROR('Level 1'!S$10/I$149*V$147*AI$147,"*") -> 40.7587124 | W53: =IFERROR('Level 1'!T$10/J$149*W$147*AJ$147,"*") -> 35.49623726 | X53: =IFERROR('Level 1'!U$10/K$149*X$147*AK$147,"*") -> 32.6442321 | Y53: =IFERROR('Level 1'!V$10/L$149*Y$147*AL$147,"*") -> 26.35363992 | Z53: =IFERROR('Level 1'!W$10/M$149*Z$147*AM$147,"*") -> 25.49950999 | AA53: =IFERROR('Level 1'!X$10/N$149*AA$147*AN$147,"*") -> 21.28802956 | AB53: =IFERROR('Level 1'!Y$10/O$149*AB$147*AO$147,"*") -> * | AD53: ='Oversættelse af landenavne'!$B$10 -> Danmark | AE53: =IFERROR('Level 1'!AB$10/E$149*R$147*AE$147,"*") -> 54.15772671 | AF53: =IFERROR('Level 1'!AC$10/F$149*S$147*AF$147,"*") -> 42.8307653 | AG53: =IFERROR('Level 1'!AD$10/G$149*T$147*AG$147,"*") -> 32.95017898 | AH53: =IFERROR('Level 1'!AE$10/H$149*U$147*AH$147,"*") -> 37.82135147 | AI53: =IFERROR('Level 1'!AF$10/I$149*V$147*AI$147,"*") -> 40.7587124 | AJ53: =IFERROR('Level 1'!AG$10/J$149*W$147*AJ$147,"*") -> 35.49623726 | AK53: =IFERROR('Level 1'!AH$10/K$149*X$147*AK$147,"*") -> 32.6442321 | AL53: =IFERROR('Level 1'!AI$10/L$149*Y$147*AL$147,"*") -> 26.35363992 | AM53: =IFERROR('Level 1'!AJ$10/M$149*Z$147*AM$147,"*") -> 25.49950999 | AN53: =IFERROR('Level 1'!AK$10/N$149*AA$147*AN$147,"*") -> 21.28802956 | AO53: =IFERROR('Level 1'!AL$10/O$149*AB$147*AO$147,"*") -> *
D54: ='Oversættelse af landenavne'!$B$11 -> Tyskland | E54: =IFERROR('Level 1'!B$11/E$150*R$147*AE$147,"*") -> 53.15385692 | F54: =IFERROR('Level 1'!C$11/F$150*S$147*AF$147,"*") -> 62.14289469 | G54: =IFERROR('Level 1'!D$11/G$150*T$147*AG$147,"*") -> 59.34422641 | H54: =IFERROR('Level 1'!E$11/H$150*U$147*AH$147,"*") -> 58.0915307 | I54: =IFERROR('Level 1'!F$11/I$150*V$147*AI$147,"*") -> 61.5061302 | J54: =IFERROR('Level 1'!G$11/J$150*W$147*AJ$147,"*") -> 60.69822713 | K54: =IFERROR('Level 1'!H$11/K$150*X$147*AK$147,"*") -> 62.65059818 | L54: =IFERROR('Level 1'!I$11/L$150*Y$147*AL$147,"*") -> 61.90692916 | M54: =IFERROR('Level 1'!J$11/M$150*Z$147*AM$147,"*") -> 61.0643243 | N54: =IFERROR('Level 1'!K$11/N$150*AA$147*AN$147,"*") -> 62.01775449 | O54: =IFERROR('Level 1'!L$11/O$150*AB$147*AO$147,"*") -> * | Q54: ='Oversættelse af landenavne'!$B$11 -> Tyskland | R54: =IFERROR('Level 1'!O$11/E$150*R$147*AE$147,"*") -> 38.03560416 | S54: =IFERROR('Level 1'!P$11/F$150*S$147*AF$147,"*") -> 42.97487506 | T54: =IFERROR('Level 1'!Q$11/G$150*T$147*AG$147,"*") -> 37.21932473 | U54: =IFERROR('Level 1'!R$11/H$150*U$147*AH$147,"*") -> 33.40478808 | V54: =IFERROR('Level 1'!S$11/I$150*V$147*AI$147,"*") -> 35.61990094 | W54: =IFERROR('Level 1'!T$11/J$150*W$147*AJ$147,"*") -> 36.71308076 | X54: =IFERROR('Level 1'!U$11/K$150*X$147*AK$147,"*") -> 38.20819353 | Y54: =IFERROR('Level 1'!V$11/L$150*Y$147*AL$147,"*") -> 38.20818284 | Z54: =IFERROR('Level 1'!W$11/M$150*Z$147*AM$147,"*") -> 38.10983 | AA54: =IFERROR('Level 1'!X$11/N$150*AA$147*AN$147,"*") -> 36.9159679 | AB54: =IFERROR('Level 1'!Y$11/O$150*AB$147*AO$147,"*") -> * | AD54: ='Oversættelse af landenavne'!$B$11 -> Tyskland | AE54: =IFERROR('Level 1'!AB$11/E$150*R$147*AE$147,"*") -> 35.69587457 | AF54: =IFERROR('Level 1'!AC$11/F$150*S$147*AF$147,"*") -> 38.93412815 | AG54: =IFERROR('Level 1'!AD$11/G$150*T$147*AG$147,"*") -> 33.01268224 | AH54: =IFERROR('Level 1'!AE$11/H$150*U$147*AH$147,"*") -> 31.47703545 | AI54: =IFERROR('Level 1'!AF$11/I$150*V$147*AI$147,"*") -> 33.73777683 | AJ54: =IFERROR('Level 1'!AG$11/J$150*W$147*AJ$147,"*") -> 34.77502596 | AK54: =IFERROR('Level 1'!AH$11/K$150*X$147*AK$147,"*") -> 35.5796866 | AL54: =IFERROR('Level 1'!AI$11/L$150*Y$147*AL$147,"*") -> 35.23912222 | AM54: =IFERROR('Level 1'!AJ$11/M$150*Z$147*AM$147,"*") -> 35.15662021 | AN54: =IFERROR('Level 1'!AK$11/N$150*AA$147*AN$147,"*") -> 33.72801421 | AO54: =IFERROR('Level 1'!AL$11/O$150*AB$147*AO$147,"*") -> *
D55: ='Oversættelse af landenavne'!$B$16 -> Frankrig | E55: =IFERROR('Level 1'!B$16/E$151*R$147*AE$147,"*") -> 68.28001174 | F55: =IFERROR('Level 1'!C$16/F$151*S$147*AF$147,"*") -> 72.3578495 | G55: =IFERROR('Level 1'!D$16/G$151*T$147*AG$147,"*") -> 76.18755781 | H55: =IFERROR('Level 1'!E$16/H$151*U$147*AH$147,"*") -> 73.0841945 | I55: =IFERROR('Level 1'!F$16/I$151*V$147*AI$147,"*") -> 77.6017453 | J55: =IFERROR('Level 1'!G$16/J$151*W$147*AJ$147,"*") -> 77.58240374 | K55: =IFERROR('Level 1'!H$16/K$151*X$147*AK$147,"*") -> 82.88499479 | L55: =IFERROR('Level 1'!I$16/L$151*Y$147*AL$147,"*") -> 87.26753656 | M55: =IFERROR('Level 1'!J$16/M$151*Z$147*AM$147,"*") -> 83.80907409 | N55: =IFERROR('Level 1'!K$16/N$151*AA$147*AN$147,"*") -> 76.56446753 | O55: =IFERROR('Level 1'!L$16/O$151*AB$147*AO$147,"*") -> * | Q55: ='Oversættelse af landenavne'!$B$16 -> Frankrig | R55: =IFERROR('Level 1'!O$16/E$151*R$147*AE$147,"*") -> 36.58393251 | S55: =IFERROR('Level 1'!P$16/F$151*S$147*AF$147,"*") -> 37.74163365 | T55: =IFERROR('Level 1'!Q$16/G$151*T$147*AG$147,"*") -> 38.94933009 | U55: =IFERROR('Level 1'!R$16/H$151*U$147*AH$147,"*") -> 36.54922463 | V55: =IFERROR('Level 1'!S$16/I$151*V$147*AI$147,"*") -> 39.55374621 | W55: =IFERROR('Level 1'!T$16/J$151*W$147*AJ$147,"*") -> 41.55080784 | X55: =IFERROR('Level 1'!U$16/K$151*X$147*AK$147,"*") -> 43.97731007 | Y55: =IFERROR('Level 1'!V$16/L$151*Y$147*AL$147,"*") -> 45.05084156 | Z55: =IFERROR('Level 1'!W$16/M$151*Z$147*AM$147,"*") -> 42.60249858 | AA55: =IFERROR('Level 1'!X$16/N$151*AA$147*AN$147,"*") -> 37.39817938 | AB55: =IFERROR('Level 1'!Y$16/O$151*AB$147*AO$147,"*") -> * | AD55: ='Oversættelse af landenavne'!$B$16 -> Frankrig | AE55: =IFERROR('Level 1'!AB$16/E$151*R$147*AE$147,"*") -> 32.02593436 | AF55: =IFERROR('Level 1'!AC$16/F$151*S$147*AF$147,"*") -> 33.65376718 | AG55: =IFERROR('Level 1'!AD$16/G$151*T$147*AG$147,"*") -> 34.17854468 | AH55: =IFERROR('Level 1'!AE$16/H$151*U$147*AH$147,"*") -> 31.36048915 | AI55: =IFERROR('Level 1'!AF$16/I$151*V$147*AI$147,"*") -> 34.14421025 | AJ55: =IFERROR('Level 1'!AG$16/J$151*W$147*AJ$147,"*") -> 36.57670326 | AK55: =IFERROR('Level 1'!AH$16/K$151*X$147*AK$147,"*") -> 37.2583666 | AL55: =IFERROR('Level 1'!AI$16/L$151*Y$147*AL$147,"*") -> 37.93189522 | AM55: =IFERROR('Level 1'!AJ$16/M$151*Z$147*AM$147,"*") -> 35.16652372 | AN55: =IFERROR('Level 1'!AK$16/N$151*AA$147*AN$147,"*") -> 31.39732538 | AO55: =IFERROR('Level 1'!AL$16/O$151*AB$147*AO$147,"*") -> *
D56: ='Oversættelse af landenavne'!$B$18 -> Italien | E56: =IFERROR('Level 1'!B$18/E$152*R$147*AE$147,"*") -> 42.98271282 | F56: =IFERROR('Level 1'!C$18/F$152*S$147*AF$147,"*") -> 47.01719529 | G56: =IFERROR('Level 1'!D$18/G$152*T$147*AG$147,"*") -> 42.05581398 | H56: =IFERROR('Level 1'!E$18/H$152*U$147*AH$147,"*") -> 47.51569372 | I56: =IFERROR('Level 1'!F$18/I$152*V$147*AI$147,"*") -> 52.88044779 | J56: =IFERROR('Level 1'!G$18/J$152*W$147*AJ$147,"*") -> 59.58466696 | K56: =IFERROR('Level 1'!H$18/K$152*X$147*AK$147,"*") -> 60.73827235 | L56: =IFERROR('Level 1'!I$18/L$152*Y$147*AL$147,"*") -> 67.0389706 | M56: =IFERROR('Level 1'!J$18/M$152*Z$147*AM$147,"*") -> 63.42689213 | N56: =IFERROR('Level 1'!K$18/N$152*AA$147*AN$147,"*") -> 51.19478567 | O56: =IFERROR('Level 1'!L$18/O$152*AB$147*AO$147,"*") -> * | Q56: ='Oversættelse af landenavne'!$B$18 -> Italien | R56: =IFERROR('Level 1'!O$18/E$152*R$147*AE$147,"*") -> 34.90096643 | S56: =IFERROR('Level 1'!P$18/F$152*S$147*AF$147,"*") -> 37.94149003 | T56: =IFERROR('Level 1'!Q$18/G$152*T$147*AG$147,"*") -> 35.09826164 | U56: =IFERROR('Level 1'!R$18/H$152*U$147*AH$147,"*") -> 35.16908474 | V56: =IFERROR('Level 1'!S$18/I$152*V$147*AI$147,"*") -> 39.22752409 | W56: =IFERROR('Level 1'!T$18/J$152*W$147*AJ$147,"*") -> 43.73174071 | X56: =IFERROR('Level 1'!U$18/K$152*X$147*AK$147,"*") -> 44.32143111 | Y56: =IFERROR('Level 1'!V$18/L$152*Y$147*AL$147,"*") -> 43.23274697 | Z56: =IFERROR('Level 1'!W$18/M$152*Z$147*AM$147,"*") -> 40.5663636 | AA56: =IFERROR('Level 1'!X$18/N$152*AA$147*AN$147,"*") -> 35.25501724 | AB56: =IFERROR('Level 1'!Y$18/O$152*AB$147*AO$147,"*") -> * | AD56: ='Oversættelse af landenavne'!$B$18 -> Italien | AE56: =IFERROR('Level 1'!AB$18/E$152*R$147*AE$147,"*") -> 31.86262342 | AF56: =IFERROR('Level 1'!AC$18/F$152*S$147*AF$147,"*") -> 32.91722706 | AG56: =IFERROR('Level 1'!AD$18/G$152*T$147*AG$147,"*") -> 33.47512707 | AH56: =IFERROR('Level 1'!AE$18/H$152*U$147*AH$147,"*") -> 29.93332326 | AI56: =IFERROR('Level 1'!AF$18/I$152*V$147*AI$147,"*") -> 33.41447513 | AJ56: =IFERROR('Level 1'!AG$18/J$152*W$147*AJ$147,"*") -> 36.82672902 | AK56: =IFERROR('Level 1'!AH$18/K$152*X$147*AK$147,"*") -> 37.12980418 | AL56: =IFERROR('Level 1'!AI$18/L$152*Y$147*AL$147,"*") -> 34.56738905 | AM56: =IFERROR('Level 1'!AJ$18/M$152*Z$147*AM$147,"*") -> 32.63296821 | AN56: =IFERROR('Level 1'!AK$18/N$152*AA$147*AN$147,"*") -> 29.68279567 | AO56: =IFERROR('Level 1'!AL$18/O$152*AB$147*AO$147,"*") -> *
D57: ='Oversættelse af landenavne'!$B$23 -> Holland | E57: =IFERROR('Level 1'!B$23/E$153*R$147*AE$147,"*") -> 64.31681779 | F57: =IFERROR('Level 1'!C$23/F$153*S$147*AF$147,"*") -> 61.85835109 | G57: =IFERROR('Level 1'!D$23/G$153*T$147*AG$147,"*") -> 60.20194164 | H57: =IFERROR('Level 1'!E$23/H$153*U$147*AH$147,"*") -> 56.28651958 | I57: =IFERROR('Level 1'!F$23/I$153*V$147*AI$147,"*") -> 59.04124931 | J57: =IFERROR('Level 1'!G$23/J$153*W$147*AJ$147,"*") -> 60.32386374 | K57: =IFERROR('Level 1'!H$23/K$153*X$147*AK$147,"*") -> 60.8782548 | L57: =IFERROR('Level 1'!I$23/L$153*Y$147*AL$147,"*") -> 59.76801984 | M57: =IFERROR('Level 1'!J$23/M$153*Z$147*AM$147,"*") -> 58.99491841 | N57: =IFERROR('Level 1'!K$23/N$153*AA$147*AN$147,"*") -> 46.80130328 | O57: =IFERROR('Level 1'!L$23/O$153*AB$147*AO$147,"*") -> * | Q57: ='Oversættelse af landenavne'!$B$23 -> Holland | R57: =IFERROR('Level 1'!O$23/E$153*R$147*AE$147,"*") -> 37.54982812 | S57: =IFERROR('Level 1'!P$23/F$153*S$147*AF$147,"*") -> 37.25171419 | T57: =IFERROR('Level 1'!Q$23/G$153*T$147*AG$147,"*") -> 37.76049432 | U57: =IFERROR('Level 1'!R$23/H$153*U$147*AH$147,"*") -> 34.13646175 | V57: =IFERROR('Level 1'!S$23/I$153*V$147*AI$147,"*") -> 35.76359254 | W57: =IFERROR('Level 1'!T$23/J$153*W$147*AJ$147,"*") -> 37.70760205 | X57: =IFERROR('Level 1'!U$23/K$153*X$147*AK$147,"*") -> 36.81073609 | Y57: =IFERROR('Level 1'!V$23/L$153*Y$147*AL$147,"*") -> 34.89946101 | Z57: =IFERROR('Level 1'!W$23/M$153*Z$147*AM$147,"*") -> 32.9242711 | AA57: =IFERROR('Level 1'!X$23/N$153*AA$147*AN$147,"*") -> 27.88789738 | AB57: =IFERROR('Level 1'!Y$23/O$153*AB$147*AO$147,"*") -> * | AD57: ='Oversættelse af landenavne'!$B$23 -> Holland | AE57: =IFERROR('Level 1'!AB$23/E$153*R$147*AE$147,"*") -> 33.64123929 | AF57: =IFERROR('Level 1'!AC$23/F$153*S$147*AF$147,"*") -> * | AG57: =IFERROR('Level 1'!AD$23/G$153*T$147*AG$147,"*") -> 33.38993048 | AH57: =IFERROR('Level 1'!AE$23/H$153*U$147*AH$147,"*") -> 29.61604178 | AI57: =IFERROR('Level 1'!AF$23/I$153*V$147*AI$147,"*") -> 32.38940009 | AJ57: =IFERROR('Level 1'!AG$23/J$153*W$147*AJ$147,"*") -> 33.54399669 | AK57: =IFERROR('Level 1'!AH$23/K$153*X$147*AK$147,"*") -> 33.27020274 | AL57: =IFERROR('Level 1'!AI$23/L$153*Y$147*AL$147,"*") -> 30.14656373 | AM57: =IFERROR('Level 1'!AJ$23/M$153*Z$147*AM$147,"*") -> 27.71014163 | AN57: =IFERROR('Level 1'!AK$23/N$153*AA$147*AN$147,"*") -> 23.84267883 | AO57: =IFERROR('Level 1'!AL$23/O$153*AB$147*AO$147,"*") -> *
D58: ='Oversættelse af landenavne'!$B$30 -> Sverige | E58: =IFERROR('Level 1'!B$30/E$154*R$147*AE$147,"*") -> 62.95586354 | F58: =IFERROR('Level 1'!C$30/F$154*S$147*AF$147,"*") -> 64.72455748 | G58: =IFERROR('Level 1'!D$30/G$154*T$147*AG$147,"*") -> 68.20834652 | H58: =IFERROR('Level 1'!E$30/H$154*U$147*AH$147,"*") -> 81.41485492 | I58: =IFERROR('Level 1'!F$30/I$154*V$147*AI$147,"*") -> 87.31212542 | J58: =IFERROR('Level 1'!G$30/J$154*W$147*AJ$147,"*") -> 95.16460959 | K58: =IFERROR('Level 1'!H$30/K$154*X$147*AK$147,"*") -> 81.75306252 | L58: =IFERROR('Level 1'!I$30/L$154*Y$147*AL$147,"*") -> 81.12462663 | M58: =IFERROR('Level 1'!J$30/M$154*Z$147*AM$147,"*") -> 85.33096556 | N58: =IFERROR('Level 1'!K$30/N$154*AA$147*AN$147,"*") -> 76.41632145 | O58: =IFERROR('Level 1'!L$30/O$154*AB$147*AO$147,"*") -> * | Q58: ='Oversættelse af landenavne'!$B$30 -> Sverige | R58: =IFERROR('Level 1'!O$30/E$154*R$147*AE$147,"*") -> 44.49226832 | S58: =IFERROR('Level 1'!P$30/F$154*S$147*AF$147,"*") -> 46.14720776 | T58: =IFERROR('Level 1'!Q$30/G$154*T$147*AG$147,"*") -> 42.04840228 | U58: =IFERROR('Level 1'!R$30/H$154*U$147*AH$147,"*") -> 47.34874634 | V58: =IFERROR('Level 1'!S$30/I$154*V$147*AI$147,"*") -> 50.18162777 | W58: =IFERROR('Level 1'!T$30/J$154*W$147*AJ$147,"*") -> 49.74801902 | X58: =IFERROR('Level 1'!U$30/K$154*X$147*AK$147,"*") -> 51.05811102 | Y58: =IFERROR('Level 1'!V$30/L$154*Y$147*AL$147,"*") -> 48.25496656 | Z58: =IFERROR('Level 1'!W$30/M$154*Z$147*AM$147,"*") -> 47.14711511 | AA58: =IFERROR('Level 1'!X$30/N$154*AA$147*AN$147,"*") -> 45.3343088 | AB58: =IFERROR('Level 1'!Y$30/O$154*AB$147*AO$147,"*") -> * | AD58: ='Oversættelse af landenavne'!$B$30 -> Sverige | AE58: =IFERROR('Level 1'!AB$30/E$154*R$147*AE$147,"*") -> 42.55438993 | AF58: =IFERROR('Level 1'!AC$30/F$154*S$147*AF$147,"*") -> 43.72934972 | AG58: =IFERROR('Level 1'!AD$30/G$154*T$147*AG$147,"*") -> 38.01357768 | AH58: =IFERROR('Level 1'!AE$30/H$154*U$147*AH$147,"*") -> 43.11978836 | AI58: =IFERROR('Level 1'!AF$30/I$154*V$147*AI$147,"*") -> 44.08754781 | AJ58: =IFERROR('Level 1'!AG$30/J$154*W$147*AJ$147,"*") -> 44.32649073 | AK58: =IFERROR('Level 1'!AH$30/K$154*X$147*AK$147,"*") -> 44.43841439 | AL58: =IFERROR('Level 1'!AI$30/L$154*Y$147*AL$147,"*") -> 40.76029301 | AM58: =IFERROR('Level 1'!AJ$30/M$154*Z$147*AM$147,"*") -> 40.45711188 | AN58: =IFERROR('Level 1'!AK$30/N$154*AA$147*AN$147,"*") -> 38.67041401 | AO58: =IFERROR('Level 1'!AL$30/O$154*AB$147*AO$147,"*") -> *
D59: ='Oversættelse af landenavne'!$B$31 -> UK | E59: =IFERROR('Level 1'!B$31/E$155*R$147*AE$147,"*") -> 33.53785002 | F59: =IFERROR('Level 1'!C$31/F$155*S$147*AF$147,"*") -> 39.81552463 | G59: =IFERROR('Level 1'!D$31/G$155*T$147*AG$147,"*") -> 38.95450036 | H59: =IFERROR('Level 1'!E$31/H$155*U$147*AH$147,"*") -> 37.00699522 | I59: =IFERROR('Level 1'!F$31/I$155*V$147*AI$147,"*") -> 41.00011888 | J59: =IFERROR('Level 1'!G$31/J$155*W$147*AJ$147,"*") -> 46.88001703 | K59: =IFERROR('Level 1'!H$31/K$155*X$147*AK$147,"*") -> 49.44892908 | L59: =IFERROR('Level 1'!I$31/L$155*Y$147*AL$147,"*") -> 62.71501983 | M59: =IFERROR('Level 1'!J$31/M$155*Z$147*AM$147,"*") -> 64.2736194 | N59: =IFERROR('Level 1'!K$31/N$155*AA$147*AN$147,"*") -> 53.95249956 | O59: =IFERROR('Level 1'!L$31/O$155*AB$147*AO$147,"*") -> * | Q59: ='Oversættelse af landenavne'!$B$31 -> UK | R59: =IFERROR('Level 1'!O$31/E$155*R$147*AE$147,"*") -> 30.94863317 | S59: =IFERROR('Level 1'!P$31/F$155*S$147*AF$147,"*") -> 36.67784435 | T59: =IFERROR('Level 1'!Q$31/G$155*T$147*AG$147,"*") -> 34.88647835 | U59: =IFERROR('Level 1'!R$31/H$155*U$147*AH$147,"*") -> 32.80224735 | V59: =IFERROR('Level 1'!S$31/I$155*V$147*AI$147,"*") -> 35.97445799 | W59: =IFERROR('Level 1'!T$31/J$155*W$147*AJ$147,"*") -> 40.54208202 | X59: =IFERROR('Level 1'!U$31/K$155*X$147*AK$147,"*") -> 40.28503209 | Y59: =IFERROR('Level 1'!V$31/L$155*Y$147*AL$147,"*") -> 44.17604433 | Z59: =IFERROR('Level 1'!W$31/M$155*Z$147*AM$147,"*") -> 46.26592373 | AA59: =IFERROR('Level 1'!X$31/N$155*AA$147*AN$147,"*") -> 39.19120241 | AB59: =IFERROR('Level 1'!Y$31/O$155*AB$147*AO$147,"*") -> * | AD59: ='Oversættelse af landenavne'!$B$31 -> UK | AE59: =IFERROR('Level 1'!AB$31/E$155*R$147*AE$147,"*") -> 26.77644319 | AF59: =IFERROR('Level 1'!AC$31/F$155*S$147*AF$147,"*") -> 33.94320514 | AG59: =IFERROR('Level 1'!AD$31/G$155*T$147*AG$147,"*") -> 30.78195936 | AH59: =IFERROR('Level 1'!AE$31/H$155*U$147*AH$147,"*") -> 28.92636998 | AI59: =IFERROR('Level 1'!AF$31/I$155*V$147*AI$147,"*") -> 31.39470632 | AJ59: =IFERROR('Level 1'!AG$31/J$155*W$147*AJ$147,"*") -> 35.75707623 | AK59: =IFERROR('Level 1'!AH$31/K$155*X$147*AK$147,"*") -> 36.16125801 | AL59: =IFERROR('Level 1'!AI$31/L$155*Y$147*AL$147,"*") -> 38.53336852 | AM59: =IFERROR('Level 1'!AJ$31/M$155*Z$147*AM$147,"*") -> 41.26993241 | AN59: =IFERROR('Level 1'!AK$31/N$155*AA$147*AN$147,"*") -> 36.09433311 | AO59: =IFERROR('Level 1'!AL$31/O$155*AB$147*AO$147,"*") -> *
D60: Kilde: Eurostat | Q60: Kilde: Eurostat | AD60: Kilde: Eurostat
B65: Level 2: Gaspris inkl. afgifter | D65: ="Figur XX: "&$B$65&" for forbrugsinterval "&D27&". Priserne er vist i "&$E$15&" / "&$E$16&" i "&$E$13&" med basisår "&$E$14&". " -> Figur XX: Level 2: Gaspris inkl. afgifter for forbrugsinterval Forbrugsinterval < 20 GJ. Priserne er vist i DKK øre / Kwh i faste priser med basisår 2016. | Q65: ="Figur XX: "&$B$65&" for forbrugsinterval "&Q27&". Priserne er vist i "&$E$15&" / "&$E$16&" i "&$E$13&" med basisår "&$E$14&". " -> Figur XX: Level 2: Gaspris inkl. afgifter for forbrugsinterval Forbrugsinterval 20 GJ < 200 GJ. Priserne er vist i DKK øre / Kwh i faste priser med basisår 2016. | AD65: ="Figur XX: "&$B$65&" for forbrugsinterval "&AD27&". Priserne er vist i "&$E$15&" / "&$E$16&" i "&$E$13&" med basisår "&$E$14&". " -> Figur XX: Level 2: Gaspris inkl. afgifter for forbrugsinterval Forbrugsinterval >200 GJ. Priserne er vist i DKK øre / Kwh i faste priser med basisår 2016. | AR65: =B65 -> Level 2: Gaspris inkl. afgifter
D84: Kilde: Eurostat | Q84: Kilde: Eurostat | AD84: Kilde: Eurostat
D86: ="Tabel XX: "&$B$65&" for forbrugsinterval "&D27&". Priserne er vist i "&$E$15&" / "&$E$16&" i "&$E$13&" med basisår "&$E$14&". " -> Tabel XX: Level 2: Gaspris inkl. afgifter for forbrugsinterval Forbrugsinterval < 20 GJ. Priserne er vist i DKK øre / Kwh i faste priser med basisår 2016. | Q86: ="Tabel XX: "&$B$65&" for forbrugsinterval "&Q27&". Priserne er vist i "&$E$15&" / "&$E$16&" i "&$E$13&" med basisår "&$E$14&". " -> Tabel XX: Level 2: Gaspris inkl. afgifter for forbrugsinterval Forbrugsinterval 20 GJ < 200 GJ. Priserne er vist i DKK øre / Kwh i faste priser med basisår 2016. | AD86: ="Tabel XX: "&$B$65&" for forbrugsinterval "&AD27&". Priserne er vist i "&$E$15&" / "&$E$16&" i "&$E$13&" med basisår "&$E$14&". " -> Tabel XX: Level 2: Gaspris inkl. afgifter for forbrugsinterval Forbrugsinterval >200 GJ. Priserne er vist i DKK øre / Kwh i faste priser med basisår 2016.
D87: =$E$15&"/"&$E$16 -> DKK øre/Kwh | E87: ='Level 1'!B5 -> 2007 | F87: ='Level 1'!C5 -> 2008 | G87: ='Level 1'!D5 -> 2009 | H87: ='Level 1'!E5 -> 2010 | I87: ='Level 1'!F5 -> 2011 | J87: ='Level 1'!G5 -> 2012 | K87: ='Level 1'!H5 -> 2013 | L87: ='Level 1'!I5 -> 2014 | M87: ='Level 1'!J5 -> 2015 | N87: ='Level 1'!K5 -> 2016 | O87: ='Level 1'!L5 -> 2017 | Q87: =$E$15&"/"&$E$16 -> DKK øre/Kwh | R87: ='Level 1'!O5 -> 2007 | S87: ='Level 1'!P5 -> 2008 | T87: ='Level 1'!Q5 -> 2009 | U87: ='Level 1'!R5 -> 2010 | V87: ='Level 1'!S5 -> 2011 | W87: ='Level 1'!T5 -> 2012 | X87: ='Level 1'!U5 -> 2013 | Y87: ='Level 1'!V5 -> 2014 | Z87: ='Level 1'!W5 -> 2015 | AA87: ='Level 1'!X5 -> 2016 | AB87: ='Level 1'!Y5 -> 2017 | AD87: =$E$15&"/"&$E$16 -> DKK øre/Kwh | AE87: ='Level 1'!AB5 -> 2007 | AF87: ='Level 1'!AC5 -> 2008 | AG87: ='Level 1'!AD5 -> 2009 | AH87: ='Level 1'!AE5 -> 2010 | AI87: ='Level 1'!AF5 -> 2011 | AJ87: ='Level 1'!AG5 -> 2012 | AK87: ='Level 1'!AH5 -> 2013 | AL87: ='Level 1'!AI5 -> 2014 | AM87: ='Level 1'!AJ5 -> 2015 | AN87: ='Level 1'!AK5 -> 2016 | AO87: ='Level 1'!AL5 -> 2017
D88: ='Oversættelse af landenavne'!$B$6 -> EU-28 | E88: =IFERROR('Level 2'!B$6/E$147*R$147*AE$147,"*") -> 52.30392726 | F88: =IFERROR('Level 2'!C$6/F$147*S$147*AF$147,"*") -> 56.28120118 | G88: =IFERROR('Level 2'!D$6/G$147*T$147*AG$147,"*") -> 55.33650776 | H88: =IFERROR('Level 2'!E$6/H$147*U$147*AH$147,"*") -> 54.15720401 | I88: =IFERROR('Level 2'!F$6/I$147*V$147*AI$147,"*") -> 57.95519127 | J88: =IFERROR('Level 2'!G$6/J$147*W$147*AJ$147,"*") -> 60.73811633 | K88: =IFERROR('Level 2'!H$6/K$147*X$147*AK$147,"*") -> 62.65902987 | L88: =IFERROR('Level 2'!I$6/L$147*Y$147*AL$147,"*") -> 66.69050381 | M88: =IFERROR('Level 2'!J$6/M$147*Z$147*AM$147,"*") -> 65.77073446 | N88: =IFERROR('Level 2'!K$6/N$147*AA$147*AN$147,"*") -> 59.41917039 | O88: =IFERROR('Level 2'!L$6/O$147*AB$147*AO$147,"*") -> * | Q88: ='Oversættelse af landenavne'!$B$6 -> EU-28 | R88: =IFERROR('Level 2'!O$6/E$147*R$147*AE$147,"*") -> 37.85071186 | S88: =IFERROR('Level 2'!P$6/F$147*S$147*AF$147,"*") -> 41.2530023 | T88: =IFERROR('Level 2'!Q$6/G$147*T$147*AG$147,"*") -> 39.14009661 | U88: =IFERROR('Level 2'!R$6/H$147*U$147*AH$147,"*") -> 37.68149478 | V88: =IFERROR('Level 2'!S$6/I$147*V$147*AI$147,"*") -> 40.59249531 | W88: =IFERROR('Level 2'!T$6/J$147*W$147*AJ$147,"*") -> 43.42925592 | X88: =IFERROR('Level 2'!U$6/K$147*X$147*AK$147,"*") -> 43.90312056 | Y88: =IFERROR('Level 2'!V$6/L$147*Y$147*AL$147,"*") -> 44.51842476 | Z88: =IFERROR('Level 2'!W$6/M$147*Z$147*AM$147,"*") -> 44.11533464 | AA88: =IFERROR('Level 2'!X$6/N$147*AA$147*AN$147,"*") -> 39.99676348 | AB88: =IFERROR('Level 2'!Y$6/O$147*AB$147*AO$147,"*") -> * | AD88: ='Oversættelse af landenavne'!$B$6 -> EU-28 | AE88: =IFERROR('Level 2'!AB$6/E$147*R$147*AE$147,"*") -> 33.92018005 | AF88: =IFERROR('Level 2'!AC$6/F$147*S$147*AF$147,"*") -> 37.40649901 | AG88: =IFERROR('Level 2'!AD$6/G$147*T$147*AG$147,"*") -> 35.25709193 | AH88: =IFERROR('Level 2'!AE$6/H$147*U$147*AH$147,"*") -> 33.83378744 | AI88: =IFERROR('Level 2'!AF$6/I$147*V$147*AI$147,"*") -> 36.6623782 | AJ88: =IFERROR('Level 2'!AG$6/J$147*W$147*AJ$147,"*") -> 39.3308675 | AK88: =IFERROR('Level 2'!AH$6/K$147*X$147*AK$147,"*") -> 39.80405771 | AL88: =IFERROR('Level 2'!AI$6/L$147*Y$147*AL$147,"*") -> 39.58533824 | AM88: =IFERROR('Level 2'!AJ$6/M$147*Z$147*AM$147,"*") -> 39.27471585 | AN88: =IFERROR('Level 2'!AK$6/N$147*AA$147*AN$147,"*") -> 36.40696689 | AO88: =IFERROR('Level 2'!AL$6/O$147*AB$147*AO$147,"*") -> *
D89: ='Oversættelse af landenavne'!$B$7 -> Belgien | E89: =IFERROR('Level 2'!B$7/E$148*R$147*AE$147,"*") -> 55.6792757 | F89: =IFERROR('Level 2'!C$7/F$148*S$147*AF$147,"*") -> 64.3558142 | G89: =IFERROR('Level 2'!D$7/G$148*T$147*AG$147,"*") -> 57.35462038 | H89: =IFERROR('Level 2'!E$7/H$148*U$147*AH$147,"*") -> 55.55749355 | I89: =IFERROR('Level 2'!F$7/I$148*V$147*AI$147,"*") -> 59.65582642 | J89: =IFERROR('Level 2'!G$7/J$148*W$147*AJ$147,"*") -> 62.0618784 | K89: =IFERROR('Level 2'!H$7/K$148*X$147*AK$147,"*") -> 57.07360218 | L89: =IFERROR('Level 2'!I$7/L$148*Y$147*AL$147,"*") -> 55.86369045 | M89: =IFERROR('Level 2'!J$7/M$148*Z$147*AM$147,"*") -> 52.77471915 | N89: =IFERROR('Level 2'!K$7/N$148*AA$147*AN$147,"*") -> 46.3190918 | O89: =IFERROR('Level 2'!L$7/O$148*AB$147*AO$147,"*") -> * | Q89: ='Oversættelse af landenavne'!$B$7 -> Belgien | R89: =IFERROR('Level 2'!O$7/E$148*R$147*AE$147,"*") -> 35.97062944 | S89: =IFERROR('Level 2'!P$7/F$148*S$147*AF$147,"*") -> 45.24971394 | T89: =IFERROR('Level 2'!Q$7/G$148*T$147*AG$147,"*") -> 38.6207744 | U89: =IFERROR('Level 2'!R$7/H$148*U$147*AH$147,"*") -> 38.17016417 | V89: =IFERROR('Level 2'!S$7/I$148*V$147*AI$147,"*") -> 44.39832819 | W89: =IFERROR('Level 2'!T$7/J$148*W$147*AJ$147,"*") -> 45.04313219 | X89: =IFERROR('Level 2'!U$7/K$148*X$147*AK$147,"*") -> 41.61105046 | Y89: =IFERROR('Level 2'!V$7/L$148*Y$147*AL$147,"*") -> 40.80832405 | Z89: =IFERROR('Level 2'!W$7/M$148*Z$147*AM$147,"*") -> 37.378157 | AA89: =IFERROR('Level 2'!X$7/N$148*AA$147*AN$147,"*") -> 33.75480374 | AB89: =IFERROR('Level 2'!Y$7/O$148*AB$147*AO$147,"*") -> * | AD89: ='Oversættelse af landenavne'!$B$7 -> Belgien | AE89: =IFERROR('Level 2'!AB$7/E$148*R$147*AE$147,"*") -> 32.27329993 | AF89: =IFERROR('Level 2'!AC$7/F$148*S$147*AF$147,"*") -> 42.37481484 | AG89: =IFERROR('Level 2'!AD$7/G$148*T$147*AG$147,"*") -> 35.50595429 | AH89: =IFERROR('Level 2'!AE$7/H$148*U$147*AH$147,"*") -> 34.32094899 | AI89: =IFERROR('Level 2'!AF$7/I$148*V$147*AI$147,"*") -> 40.67249529 | AJ89: =IFERROR('Level 2'!AG$7/J$148*W$147*AJ$147,"*") -> 41.41596018 | AK89: =IFERROR('Level 2'!AH$7/K$148*X$147*AK$147,"*") -> 38.03542068 | AL89: =IFERROR('Level 2'!AI$7/L$148*Y$147*AL$147,"*") -> 35.75819213 | AM89: =IFERROR('Level 2'!AJ$7/M$148*Z$147*AM$147,"*") -> 32.0480588 | AN89: =IFERROR('Level 2'!AK$7/N$148*AA$147*AN$147,"*") -> 30.59363958 | AO89: =IFERROR('Level 2'!AL$7/O$148*AB$147*AO$147,"*") -> *
D90: ='Oversættelse af landenavne'!$B$10 -> Danmark | E90: =IFERROR('Level 2'!B$10/E$149*R$147*AE$147,"*") -> 47.23894528 | F90: =IFERROR('Level 2'!C$10/F$149*S$147*AF$147,"*") -> 63.36903279 | G90: =IFERROR('Level 2'!D$10/G$149*T$147*AG$147,"*") -> 53.54884909 | H90: =IFERROR('Level 2'!E$10/H$149*U$147*AH$147,"*") -> 60.83054193 | I90: =IFERROR('Level 2'!F$10/I$149*V$147*AI$147,"*") -> 63.5725272 | J90: =IFERROR('Level 2'!G$10/J$149*W$147*AJ$147,"*") -> 58.32322067 | K90: =IFERROR('Level 2'!H$10/K$149*X$147*AK$147,"*") -> 59.19817889 | L90: =IFERROR('Level 2'!I$10/L$149*Y$147*AL$147,"*") -> 53.42141772 | M90: =IFERROR('Level 2'!J$10/M$149*Z$147*AM$147,"*") -> 46.77223592 | N90: =IFERROR('Level 2'!K$10/N$149*AA$147*AN$147,"*") -> 42.68375302 | O90: =IFERROR('Level 2'!L$10/O$149*AB$147*AO$147,"*") -> * | Q90: ='Oversættelse af landenavne'!$B$10 -> Danmark | R90: =IFERROR('Level 2'!O$10/E$149*R$147*AE$147,"*") -> 57.69407422 | S90: =IFERROR('Level 2'!P$10/F$149*S$147*AF$147,"*") -> 63.36903279 | T90: =IFERROR('Level 2'!Q$10/G$149*T$147*AG$147,"*") -> 53.54884909 | U90: =IFERROR('Level 2'!R$10/H$149*U$147*AH$147,"*") -> 60.83054193 | V90: =IFERROR('Level 2'!S$10/I$149*V$147*AI$147,"*") -> 63.5725272 | W90: =IFERROR('Level 2'!T$10/J$149*W$147*AJ$147,"*") -> 58.32322067 | X90: =IFERROR('Level 2'!U$10/K$149*X$147*AK$147,"*") -> 59.19817889 | Y90: =IFERROR('Level 2'!V$10/L$149*Y$147*AL$147,"*") -> 53.42141772 | Z90: =IFERROR('Level 2'!W$10/M$149*Z$147*AM$147,"*") -> 46.77223592 | AA90: =IFERROR('Level 2'!X$10/N$149*AA$147*AN$147,"*") -> 42.68375302 | AB90: =IFERROR('Level 2'!Y$10/O$149*AB$147*AO$147,"*") -> * | AD90: ='Oversættelse af landenavne'!$B$10 -> Danmark | AE90: =IFERROR('Level 2'!AB$10/E$149*R$147*AE$147,"*") -> 64.61025989 | AF90: =IFERROR('Level 2'!AC$10/F$149*S$147*AF$147,"*") -> 63.36903279 | AG90: =IFERROR('Level 2'!AD$10/G$149*T$147*AG$147,"*") -> 53.54884909 | AH90: =IFERROR('Level 2'!AE$10/H$149*U$147*AH$147,"*") -> 60.83054193 | AI90: =IFERROR('Level 2'!AF$10/I$149*V$147*AI$147,"*") -> 63.5725272 | AJ90: =IFERROR('Level 2'!AG$10/J$149*W$147*AJ$147,"*") -> 58.32322067 | AK90: =IFERROR('Level 2'!AH$10/K$149*X$147*AK$147,"*") -> 59.19817889 | AL90: =IFERROR('Level 2'!AI$10/L$149*Y$147*AL$147,"*") -> 53.42141772 | AM90: =IFERROR('Level 2'!AJ$10/M$149*Z$147*AM$147,"*") -> 46.77223592 | AN90: =IFERROR('Level 2'!AK$10/N$149*AA$147*AN$147,"*") -> 42.68375302 | AO90: =IFERROR('Level 2'!AL$10/O$149*AB$147*AO$147,"*") -> *
D91: ='Oversættelse af landenavne'!$B$11 -> Tyskland | E91: =IFERROR('Level 2'!B$11/E$150*R$147*AE$147,"*") -> 65.48243208 | F91: =IFERROR('Level 2'!C$11/F$150*S$147*AF$147,"*") -> 69.14491099 | G91: =IFERROR('Level 2'!D$11/G$150*T$147*AG$147,"*") -> 66.21459061 | H91: =IFERROR('Level 2'!E$11/H$150*U$147*AH$147,"*") -> 64.8386649 | I91: =IFERROR('Level 2'!F$11/I$150*V$147*AI$147,"*") -> 68.05142746 | J91: =IFERROR('Level 2'!G$11/J$150*W$147*AJ$147,"*") -> 67.10342954 | K91: =IFERROR('Level 2'!H$11/K$150*X$147*AK$147,"*") -> 68.96443442 | L91: =IFERROR('Level 2'!I$11/L$150*Y$147*AL$147,"*") -> 68.16748233 | M91: =IFERROR('Level 2'!J$11/M$150*Z$147*AM$147,"*") -> 67.31975959 | N91: =IFERROR('Level 2'!K$11/N$150*AA$147*AN$147,"*") -> 68.25971423 | O91: =IFERROR('Level 2'!L$11/O$150*AB$147*AO$147,"*") -> * | Q91: ='Oversættelse af landenavne'!$B$11 -> Tyskland | R91: =IFERROR('Level 2'!O$11/E$150*R$147*AE$147,"*") -> 42.95503561 | S91: =IFERROR('Level 2'!P$11/F$150*S$147*AF$147,"*") -> 47.78876127 | T91: =IFERROR('Level 2'!Q$11/G$150*T$147*AG$147,"*") -> 42.02275733 | U91: =IFERROR('Level 2'!R$11/H$150*U$147*AH$147,"*") -> 38.15223858 | V91: =IFERROR('Level 2'!S$11/I$150*V$147*AI$147,"*") -> 40.25498268 | W91: =IFERROR('Level 2'!T$11/J$150*W$147*AJ$147,"*") -> 41.24895371 | X91: =IFERROR('Level 2'!U$11/K$150*X$147*AK$147,"*") -> 42.67936511 | Y91: =IFERROR('Level 2'!V$11/L$150*Y$147*AL$147,"*") -> 42.64162178 | Z91: =IFERROR('Level 2'!W$11/M$150*Z$147*AM$147,"*") -> 42.53964469 | AA91: =IFERROR('Level 2'!X$11/N$150*AA$147*AN$147,"*") -> 41.33623982 | AB91: =IFERROR('Level 2'!Y$11/O$150*AB$147*AO$147,"*") -> * | AD91: ='Oversættelse af landenavne'!$B$11 -> Tyskland | AE91: =IFERROR('Level 2'!AB$11/E$150*R$147*AE$147,"*") -> 40.58530948 | AF91: =IFERROR('Level 2'!AC$11/F$150*S$147*AF$147,"*") -> 43.74801436 | AG91: =IFERROR('Level 2'!AD$11/G$150*T$147*AG$147,"*") -> 37.81611484 | AH91: =IFERROR('Level 2'!AE$11/H$150*U$147*AH$147,"*") -> 36.22448596 | AI91: =IFERROR('Level 2'!AF$11/I$150*V$147*AI$147,"*") -> 38.37285858 | AJ91: =IFERROR('Level 2'!AG$11/J$150*W$147*AJ$147,"*") -> 39.31089891 | AK91: =IFERROR('Level 2'!AH$11/K$150*X$147*AK$147,"*") -> 40.05085818 | AL91: =IFERROR('Level 2'!AI$11/L$150*Y$147*AL$147,"*") -> 39.67256116 | AM91: =IFERROR('Level 2'!AJ$11/M$150*Z$147*AM$147,"*") -> 39.5864349 | AN91: =IFERROR('Level 2'!AK$11/N$150*AA$147*AN$147,"*") -> 38.14828613 | AO91: =IFERROR('Level 2'!AL$11/O$150*AB$147*AO$147,"*") -> *
D92: ='Oversættelse af landenavne'!$B$16 -> Frankrig | E92: =IFERROR('Level 2'!B$16/E$151*R$147*AE$147,"*") -> 68.28001174 | F92: =IFERROR('Level 2'!C$16/F$151*S$147*AF$147,"*") -> 72.3578495 | G92: =IFERROR('Level 2'!D$16/G$151*T$147*AG$147,"*") -> 76.30356475 | H92: =IFERROR('Level 2'!E$16/H$151*U$147*AH$147,"*") -> 74.7662571 | I92: =IFERROR('Level 2'!F$16/I$151*V$147*AI$147,"*") -> 82.81609183 | J92: =IFERROR('Level 2'!G$16/J$151*W$147*AJ$147,"*") -> 82.57013601 | K92: =IFERROR('Level 2'!H$16/K$151*X$147*AK$147,"*") -> 88.23851917 | L92: =IFERROR('Level 2'!I$16/L$151*Y$147*AL$147,"*") -> 93.56713247 | M92: =IFERROR('Level 2'!J$16/M$151*Z$147*AM$147,"*") -> 91.32558297 | N92: =IFERROR('Level 2'!K$16/N$151*AA$147*AN$147,"*") -> 84.70848367 | O92: =IFERROR('Level 2'!L$16/O$151*AB$147*AO$147,"*") -> * | Q92: ='Oversættelse af landenavne'!$B$16 -> Frankrig | R92: =IFERROR('Level 2'!O$16/E$151*R$147*AE$147,"*") -> 36.58393251 | S92: =IFERROR('Level 2'!P$16/F$151*S$147*AF$147,"*") -> 37.74163365 | T92: =IFERROR('Level 2'!Q$16/G$151*T$147*AG$147,"*") -> 38.94933009 | U92: =IFERROR('Level 2'!R$16/H$151*U$147*AH$147,"*") -> 37.07665104 | V92: =IFERROR('Level 2'!S$16/I$151*V$147*AI$147,"*") -> 40.62728815 | W92: =IFERROR('Level 2'!T$16/J$151*W$147*AJ$147,"*") -> 42.64102254 | X92: =IFERROR('Level 2'!U$16/K$151*X$147*AK$147,"*") -> 45.08586815 | Y92: =IFERROR('Level 2'!V$16/L$151*Y$147*AL$147,"*") -> 46.71640636 | Z92: =IFERROR('Level 2'!W$16/M$151*Z$147*AM$147,"*") -> 45.72990317 | AA92: =IFERROR('Level 2'!X$16/N$151*AA$147*AN$147,"*") -> 41.36302935 | AB92: =IFERROR('Level 2'!Y$16/O$151*AB$147*AO$147,"*") -> * | AD92: ='Oversættelse af landenavne'!$B$16 -> Frankrig | AE92: =IFERROR('Level 2'!AB$16/E$151*R$147*AE$147,"*") -> 32.02593436 | AF92: =IFERROR('Level 2'!AC$16/F$151*S$147*AF$147,"*") -> 33.65376718 | AG92: =IFERROR('Level 2'!AD$16/G$151*T$147*AG$147,"*") -> 34.17854468 | AH92: =IFERROR('Level 2'!AE$16/H$151*U$147*AH$147,"*") -> 31.48878206 | AI92: =IFERROR('Level 2'!AF$16/I$151*V$147*AI$147,"*") -> 34.43699441 | AJ92: =IFERROR('Level 2'!AG$16/J$151*W$147*AJ$147,"*") -> 36.84925693 | AK92: =IFERROR('Level 2'!AH$16/K$151*X$147*AK$147,"*") -> 37.54226562 | AL92: =IFERROR('Level 2'!AI$16/L$151*Y$147*AL$147,"*") -> 38.64378985 | AM92: =IFERROR('Level 2'!AJ$16/M$151*Z$147*AM$147,"*") -> 37.16645198 | AN92: =IFERROR('Level 2'!AK$16/N$151*AA$147*AN$147,"*") -> 34.29059428 | AO92: =IFERROR('Level 2'!AL$16/O$151*AB$147*AO$147,"*") -> *
D93: ='Oversættelse af landenavne'!$B$18 -> Italien | E93: =IFERROR('Level 2'!B$18/E$152*R$147*AE$147,"*") -> 52.38527736 | F93: =IFERROR('Level 2'!C$18/F$152*S$147*AF$147,"*") -> 56.95449937 | G93: =IFERROR('Level 2'!D$18/G$152*T$147*AG$147,"*") -> 51.99033934 | H93: =IFERROR('Level 2'!E$18/H$152*U$147*AH$147,"*") -> 57.99880021 | I93: =IFERROR('Level 2'!F$18/I$152*V$147*AI$147,"*") -> 62.98642637 | J93: =IFERROR('Level 2'!G$18/J$152*W$147*AJ$147,"*") -> 69.30888461 | K93: =IFERROR('Level 2'!H$18/K$152*X$147*AK$147,"*") -> 70.27323839 | L93: =IFERROR('Level 2'!I$18/L$152*Y$147*AL$147,"*") -> 76.16110708 | M93: =IFERROR('Level 2'!J$18/M$152*Z$147*AM$147,"*") -> 72.60868985 | N93: =IFERROR('Level 2'!K$18/N$152*AA$147*AN$147,"*") -> 59.17806465 | O93: =IFERROR('Level 2'!L$18/O$152*AB$147*AO$147,"*") -> * | Q93: ='Oversættelse af landenavne'!$B$18 -> Italien | R93: =IFERROR('Level 2'!O$18/E$152*R$147*AE$147,"*") -> 45.28299681 | S93: =IFERROR('Level 2'!P$18/F$152*S$147*AF$147,"*") -> 46.26978427 | T93: =IFERROR('Level 2'!Q$18/G$152*T$147*AG$147,"*") -> 44.02035129 | U93: =IFERROR('Level 2'!R$18/H$152*U$147*AH$147,"*") -> 48.1093503 | V93: =IFERROR('Level 2'!S$18/I$152*V$147*AI$147,"*") -> 52.07816258 | W93: =IFERROR('Level 2'!T$18/J$152*W$147*AJ$147,"*") -> 55.85296439 | X93: =IFERROR('Level 2'!U$18/K$152*X$147*AK$147,"*") -> 56.42868318 | Y93: =IFERROR('Level 2'!V$18/L$152*Y$147*AL$147,"*") -> 55.16272811 | Z93: =IFERROR('Level 2'!W$18/M$152*Z$147*AM$147,"*") -> 52.63425271 | AA93: =IFERROR('Level 2'!X$18/N$152*AA$147*AN$147,"*") -> 46.66735565 | AB93: =IFERROR('Level 2'!Y$18/O$152*AB$147*AO$147,"*") -> * | AD93: ='Oversættelse af landenavne'!$B$18 -> Italien | AE93: =IFERROR('Level 2'!AB$18/E$152*R$147*AE$147,"*") -> 44.44806753 | AF93: =IFERROR('Level 2'!AC$18/F$152*S$147*AF$147,"*") -> 43.69091966 | AG93: =IFERROR('Level 2'!AD$18/G$152*T$147*AG$147,"*") -> 45.5125167 | AH93: =IFERROR('Level 2'!AE$18/H$152*U$147*AH$147,"*") -> 44.12750737 | AI93: =IFERROR('Level 2'!AF$18/I$152*V$147*AI$147,"*") -> 47.15184991 | AJ93: =IFERROR('Level 2'!AG$18/J$152*W$147*AJ$147,"*") -> 50.0375009 | AK93: =IFERROR('Level 2'!AH$18/K$152*X$147*AK$147,"*") -> 49.8565597 | AL93: =IFERROR('Level 2'!AI$18/L$152*Y$147*AL$147,"*") -> 47.9617485 | AM93: =IFERROR('Level 2'!AJ$18/M$152*Z$147*AM$147,"*") -> 46.12376749 | AN93: =IFERROR('Level 2'!AK$18/N$152*AA$147*AN$147,"*") -> 42.99719048 | AO93: =IFERROR('Level 2'!AL$18/O$152*AB$147*AO$147,"*") -> *
D94: ='Oversættelse af landenavne'!$B$23 -> Holland | E94: =IFERROR('Level 2'!B$23/E$153*R$147*AE$147,"*") -> 77.54822746 | F94: =IFERROR('Level 2'!C$23/F$153*S$147*AF$147,"*") -> 74.65201919 | G94: =IFERROR('Level 2'!D$23/G$153*T$147*AG$147,"*") -> 73.43135878 | H94: =IFERROR('Level 2'!E$23/H$153*U$147*AH$147,"*") -> 69.80403348 | I94: =IFERROR('Level 2'!F$23/I$153*V$147*AI$147,"*") -> 72.31022552 | J94: =IFERROR('Level 2'!G$23/J$153*W$147*AJ$147,"*") -> 73.43714575 | K94: =IFERROR('Level 2'!H$23/K$153*X$147*AK$147,"*") -> 75.36471188 | L94: =IFERROR('Level 2'!I$23/L$153*Y$147*AL$147,"*") -> 74.63260508 | M94: =IFERROR('Level 2'!J$23/M$153*Z$147*AM$147,"*") -> 74.16696007 | N94: =IFERROR('Level 2'!K$23/N$153*AA$147*AN$147,"*") -> 66.83986931 | O94: =IFERROR('Level 2'!L$23/O$153*AB$147*AO$147,"*") -> * | Q94: ='Oversættelse af landenavne'!$B$23 -> Holland | R94: =IFERROR('Level 2'!O$23/E$153*R$147*AE$147,"*") -> 50.78123779 | S94: =IFERROR('Level 2'!P$23/F$153*S$147*AF$147,"*") -> 50.44657746 | T94: =IFERROR('Level 2'!Q$23/G$153*T$147*AG$147,"*") -> 50.97519576 | U94: =IFERROR('Level 2'!R$23/H$153*U$147*AH$147,"*") -> 47.63939365 | V94: =IFERROR('Level 2'!S$23/I$153*V$147*AI$147,"*") -> 49.03256875 | W94: =IFERROR('Level 2'!T$23/J$153*W$147*AJ$147,"*") -> 50.82088406 | X94: =IFERROR('Level 2'!U$23/K$153*X$147*AK$147,"*") -> 51.29719317 | Y94: =IFERROR('Level 2'!V$23/L$153*Y$147*AL$147,"*") -> 49.73711766 | Z94: =IFERROR('Level 2'!W$23/M$153*Z$147*AM$147,"*") -> 48.09631275 | AA94: =IFERROR('Level 2'!X$23/N$153*AA$147*AN$147,"*") -> 47.92646341 | AB94: =IFERROR('Level 2'!Y$23/O$153*AB$147*AO$147,"*") -> * | AD94: ='Oversættelse af landenavne'!$B$23 -> Holland | AE94: =IFERROR('Level 2'!AB$23/E$153*R$147*AE$147,"*") -> 46.10613971 | AF94: =IFERROR('Level 2'!AC$23/F$153*S$147*AF$147,"*") -> * | AG94: =IFERROR('Level 2'!AD$23/G$153*T$147*AG$147,"*") -> 45.47152277 | AH94: =IFERROR('Level 2'!AE$23/H$153*U$147*AH$147,"*") -> 41.85033969 | AI94: =IFERROR('Level 2'!AF$23/I$153*V$147*AI$147,"*") -> 44.69025358 | AJ94: =IFERROR('Level 2'!AG$23/J$153*W$147*AJ$147,"*") -> 45.6198355 | AK94: =IFERROR('Level 2'!AH$23/K$153*X$147*AK$147,"*") -> 47.75665982 | AL94: =IFERROR('Level 2'!AI$23/L$153*Y$147*AL$147,"*") -> 44.99768468 | AM94: =IFERROR('Level 2'!AJ$23/M$153*Z$147*AM$147,"*") -> 42.89562177 | AN94: =IFERROR('Level 2'!AK$23/N$153*AA$147*AN$147,"*") -> 43.85445534 | AO94: =IFERROR('Level 2'!AL$23/O$153*AB$147*AO$147,"*") -> *
D95: ='Oversættelse af landenavne'!$B$30 -> Sverige | E95: =IFERROR('Level 2'!B$30/E$154*R$147*AE$147,"*") -> 79.41151666 | F95: =IFERROR('Level 2'!C$30/F$154*S$147*AF$147,"*") -> 81.35840961 | G95: =IFERROR('Level 2'!D$30/G$154*T$147*AG$147,"*") -> 83.61094384 | H95: =IFERROR('Level 2'!E$30/H$154*U$147*AH$147,"*") -> 98.26242369 | I95: =IFERROR('Level 2'!F$30/I$154*V$147*AI$147,"*") -> 109.2602285 | J95: =IFERROR('Level 2'!G$30/J$154*W$147*AJ$147,"*") -> 119.5666115 | K95: =IFERROR('Level 2'!H$30/K$154*X$147*AK$147,"*") -> 104.9511708 | L95: =IFERROR('Level 2'!I$30/L$154*Y$147*AL$147,"*") -> 103.0612117 | M95: =IFERROR('Level 2'!J$30/M$154*Z$147*AM$147,"*") -> 107.3437744 | N95: =IFERROR('Level 2'!K$30/N$154*AA$147*AN$147,"*") -> 98.27737899 | O95: =IFERROR('Level 2'!L$30/O$154*AB$147*AO$147,"*") -> * | Q95: ='Oversættelse af landenavne'!$B$30 -> Sverige | R95: =IFERROR('Level 2'!O$30/E$154*R$147*AE$147,"*") -> 60.94807179 | S95: =IFERROR('Level 2'!P$30/F$154*S$147*AF$147,"*") -> 62.77960702 | T95: =IFERROR('Level 2'!Q$30/G$154*T$147*AG$147,"*") -> 57.45128464 | U95: =IFERROR('Level 2'!R$30/H$154*U$147*AH$147,"*") -> 64.19617523 | V95: =IFERROR('Level 2'!S$30/I$154*V$147*AI$147,"*") -> 72.12973085 | W95: =IFERROR('Level 2'!T$30/J$154*W$147*AJ$147,"*") -> 74.15316397 | X95: =IFERROR('Level 2'!U$30/K$154*X$147*AK$147,"*") -> 74.25608298 | Y95: =IFERROR('Level 2'!V$30/L$154*Y$147*AL$147,"*") -> 70.19155163 | Z95: =IFERROR('Level 2'!W$30/M$154*Z$147*AM$147,"*") -> 69.16140952 | AA95: =IFERROR('Level 2'!X$30/N$154*AA$147*AN$147,"*") -> 67.19509844 | AB95: =IFERROR('Level 2'!Y$30/O$154*AB$147*AO$147,"*") -> * | AD95: ='Oversættelse af landenavne'!$B$30 -> Sverige | AE95: =IFERROR('Level 2'!AB$30/E$154*R$147*AE$147,"*") -> 59.01019341 | AF95: =IFERROR('Level 2'!AC$30/F$154*S$147*AF$147,"*") -> 60.3648 | AG95: =IFERROR('Level 2'!AD$30/G$154*T$147*AG$147,"*") -> 53.41760022 | AH95: =IFERROR('Level 2'!AE$30/H$154*U$147*AH$147,"*") -> 59.96721725 | AI95: =IFERROR('Level 2'!AF$30/I$154*V$147*AI$147,"*") -> 66.03565089 | AJ95: =IFERROR('Level 2'!AG$30/J$154*W$147*AJ$147,"*") -> 68.72835595 | AK95: =IFERROR('Level 2'!AH$30/K$154*X$147*AK$147,"*") -> 67.63802205 | AL95: =IFERROR('Level 2'!AI$30/L$154*Y$147*AL$147,"*") -> 62.69701405 | AM95: =IFERROR('Level 2'!AJ$30/M$154*Z$147*AM$147,"*") -> 62.47140629 | AN95: =IFERROR('Level 2'!AK$30/N$154*AA$147*AN$147,"*") -> 60.53120365 | AO95: =IFERROR('Level 2'!AL$30/O$154*AB$147*AO$147,"*") -> *
D96: ='Oversættelse af landenavne'!$B$31 -> UK | E96: =IFERROR('Level 2'!B$31/E$155*R$147*AE$147,"*") -> 33.53785002 | F96: =IFERROR('Level 2'!C$31/F$155*S$147*AF$147,"*") -> 39.81552463 | G96: =IFERROR('Level 2'!D$31/G$155*T$147*AG$147,"*") -> 38.95450036 | H96: =IFERROR('Level 2'!E$31/H$155*U$147*AH$147,"*") -> 37.00699522 | I96: =IFERROR('Level 2'!F$31/I$155*V$147*AI$147,"*") -> 41.00011888 | J96: =IFERROR('Level 2'!G$31/J$155*W$147*AJ$147,"*") -> 46.88001703 | K96: =IFERROR('Level 2'!H$31/K$155*X$147*AK$147,"*") -> 49.44892908 | L96: =IFERROR('Level 2'!I$31/L$155*Y$147*AL$147,"*") -> 62.71501983 | M96: =IFERROR('Level 2'!J$31/M$155*Z$147*AM$147,"*") -> 64.2736194 | N96: =IFERROR('Level 2'!K$31/N$155*AA$147*AN$147,"*") -> 53.95249956 | O96: =IFERROR('Level 2'!L$31/O$155*AB$147*AO$147,"*") -> * | Q96: ='Oversættelse af landenavne'!$B$31 -> UK | R96: =IFERROR('Level 2'!O$31/E$155*R$147*AE$147,"*") -> 30.94863317 | S96: =IFERROR('Level 2'!P$31/F$155*S$147*AF$147,"*") -> 36.67784435 | T96: =IFERROR('Level 2'!Q$31/G$155*T$147*AG$147,"*") -> 34.88647835 | U96: =IFERROR('Level 2'!R$31/H$155*U$147*AH$147,"*") -> 32.80224735 | V96: =IFERROR('Level 2'!S$31/I$155*V$147*AI$147,"*") -> 35.97445799 | W96: =IFERROR('Level 2'!T$31/J$155*W$147*AJ$147,"*") -> 40.54208202 | X96: =IFERROR('Level 2'!U$31/K$155*X$147*AK$147,"*") -> 40.28503209 | Y96: =IFERROR('Level 2'!V$31/L$155*Y$147*AL$147,"*") -> 44.17604433 | Z96: =IFERROR('Level 2'!W$31/M$155*Z$147*AM$147,"*") -> 46.26592373 | AA96: =IFERROR('Level 2'!X$31/N$155*AA$147*AN$147,"*") -> 39.19120241 | AB96: =IFERROR('Level 2'!Y$31/O$155*AB$147*AO$147,"*") -> * | AD96: ='Oversættelse af landenavne'!$B$31 -> UK | AE96: =IFERROR('Level 2'!AB$31/E$155*R$147*AE$147,"*") -> 26.77644319 | AF96: =IFERROR('Level 2'!AC$31/F$155*S$147*AF$147,"*") -> 33.94320514 | AG96: =IFERROR('Level 2'!AD$31/G$155*T$147*AG$147,"*") -> 30.78195936 | AH96: =IFERROR('Level 2'!AE$31/H$155*U$147*AH$147,"*") -> 28.92636998 | AI96: =IFERROR('Level 2'!AF$31/I$155*V$147*AI$147,"*") -> 31.39470632 | AJ96: =IFERROR('Level 2'!AG$31/J$155*W$147*AJ$147,"*") -> 35.75707623 | AK96: =IFERROR('Level 2'!AH$31/K$155*X$147*AK$147,"*") -> 36.16125801 | AL96: =IFERROR('Level 2'!AI$31/L$155*Y$147*AL$147,"*") -> 38.53336852 | AM96: =IFERROR('Level 2'!AJ$31/M$155*Z$147*AM$147,"*") -> 41.26993241 | AN96: =IFERROR('Level 2'!AK$31/N$155*AA$147*AN$147,"*") -> 36.09433311 | AO96: =IFERROR('Level 2'!AL$31/O$155*AB$147*AO$147,"*") -> *
D97: Kilde: Eurostat | Q97: Kilde: Eurostat | AD97: Kilde: Eurostat
B102: Level 3: Gaspris inkl. afgifter og moms | D102: ="Figur XX: "&$B$102&" for forbrugsinterval "&D27&". Priserne er vist i "&$E$15&" / "&$E$16&" i "&$E$13&" med basisår "&$E$14&". " -> Figur XX: Level 3: Gaspris inkl. afgifter og moms for forbrugsinterval Forbrugsinterval < 20 GJ. Priserne er vist i DKK øre / Kwh i faste priser med basisår 2016. | Q102: ="Figur XX: "&$B$102&" for forbrugsinterval "&Q27&". Priserne er vist i "&$E$15&" / "&$E$16&" i "&$E$13&" med basisår "&$E$14&". " -> Figur XX: Level 3: Gaspris inkl. afgifter og moms for forbrugsinterval Forbrugsinterval 20 GJ < 200 GJ. Priserne er vist i DKK øre / Kwh i faste priser med basisår 2016. | AD102: ="Figur XX: "&$B$102&" for forbrugsinterval "&AD27&". Priserne er vist i "&$E$15&" / "&$E$16&" i "&$E$13&" med basisår "&$E$14&". " -> Figur XX: Level 3: Gaspris inkl. afgifter og moms for forbrugsinterval Forbrugsinterval >200 GJ. Priserne er vist i DKK øre / Kwh i faste priser med basisår 2016. | AR102: =B102 -> Level 3: Gaspris inkl. afgifter og moms
D121: Kilde: Eurostat | Q121: Kilde: Eurostat | AD121: Kilde: Eurostat
D122: ="Tabel XX: "&$B$102&" for forbrugsinterval "&D27&". Priserne er vist i "&$E$15&" / "&$E$16&" i "&$E$13&" med basisår "&$E$14&". " -> Tabel XX: Level 3: Gaspris inkl. afgifter og moms for forbrugsinterval Forbrugsinterval < 20 GJ. Priserne er vist i DKK øre / Kwh i faste priser med basisår 2016. | Q122: ="Tabel XX: "&$B$102&" for forbrugsinterval "&Q27&". Priserne er vist i "&$E$15&" / "&$E$16&" i "&$E$13&" med basisår "&$E$14&". " -> Tabel XX: Level 3: Gaspris inkl. afgifter og moms for forbrugsinterval Forbrugsinterval 20 GJ < 200 GJ. Priserne er vist i DKK øre / Kwh i faste priser med basisår 2016. | AD122: ="Tabel XX: "&$B$102&" for forbrugsinterval "&AD27&". Priserne er vist i "&$E$15&" / "&$E$16&" i "&$E$13&" med basisår "&$E$14&". " -> Tabel XX: Level 3: Gaspris inkl. afgifter og moms for forbrugsinterval Forbrugsinterval >200 GJ. Priserne er vist i DKK øre / Kwh i faste priser med basisår 2016.
D123: =$E$15&"/"&$E$16 -> DKK øre/Kwh | E123: ='Level 1'!B5 -> 2007 | F123: ='Level 1'!C5 -> 2008 | G123: ='Level 1'!D5 -> 2009 | H123: ='Level 1'!E5 -> 2010 | I123: ='Level 1'!F5 -> 2011 | J123: ='Level 1'!G5 -> 2012 | K123: ='Level 1'!H5 -> 2013 | L123: ='Level 1'!I5 -> 2014 | M123: ='Level 1'!J5 -> 2015 | N123: ='Level 1'!K5 -> 2016 | O123: ='Level 1'!L5 -> 2017 | Q123: =$E$15&"/"&$E$16 -> DKK øre/Kwh | R123: ='Level 1'!O5 -> 2007 | S123: ='Level 1'!P5 -> 2008 | T123: ='Level 1'!Q5 -> 2009 | U123: ='Level 1'!R5 -> 2010 | V123: ='Level 1'!S5 -> 2011 | W123: ='Level 1'!T5 -> 2012 | X123: ='Level 1'!U5 -> 2013 | Y123: ='Level 1'!V5 -> 2014 | Z123: ='Level 1'!W5 -> 2015 | AA123: ='Level 1'!X5 -> 2016 | AB123: ='Level 1'!Y5 -> 2017 | AD123: =$E$15&"/"&$E$16 -> DKK øre/Kwh | AE123: ='Level 1'!AB5 -> 2007 | AF123: ='Level 1'!AC5 -> 2008 | AG123: ='Level 1'!AD5 -> 2009 | AH123: ='Level 1'!AE5 -> 2010 | AI123: ='Level 1'!AF5 -> 2011 | AJ123: ='Level 1'!AG5 -> 2012 | AK123: ='Level 1'!AH5 -> 2013 | AL123: ='Level 1'!AI5 -> 2014 | AM123: ='Level 1'!AJ5 -> 2015 | AN123: ='Level 1'!AK5 -> 2016 | AO123: ='Level 1'!AL5 -> 2017
D124: ='Oversættelse af landenavne'!$B$6 -> EU-28 | E124: =IFERROR('Level 3'!B$6/E$147*R$147*AE$147,"*") -> 60.01024554 | F124: =IFERROR('Level 3'!C$6/F$147*S$147*AF$147,"*") -> 64.33202202 | G124: =IFERROR('Level 3'!D$6/G$147*T$147*AG$147,"*") -> 63.27968844 | H124: =IFERROR('Level 3'!E$6/H$147*U$147*AH$147,"*") -> 62.46015142 | I124: =IFERROR('Level 3'!F$6/I$147*V$147*AI$147,"*") -> 66.82602704 | J124: =IFERROR('Level 3'!G$6/J$147*W$147*AJ$147,"*") -> 69.90484508 | K124: =IFERROR('Level 3'!H$6/K$147*X$147*AK$147,"*") -> 72.16508023 | L124: =IFERROR('Level 3'!I$6/L$147*Y$147*AL$147,"*") -> 76.52986659 | M124: =IFERROR('Level 3'!J$6/M$147*Z$147*AM$147,"*") -> 75.38492745 | N124: =IFERROR('Level 3'!K$6/N$147*AA$147*AN$147,"*") -> 68.17934565 | O124: =IFERROR('Level 3'!L$6/O$147*AB$147*AO$147,"*") -> * | Q124: ='Oversættelse af landenavne'!$B$6 -> EU-28 | R124: =IFERROR('Level 3'!O$6/E$147*R$147*AE$147,"*") -> 43.9786276 | S124: =IFERROR('Level 3'!P$6/F$147*S$147*AF$147,"*") -> 47.82783931 | T124: =IFERROR('Level 3'!Q$6/G$147*T$147*AG$147,"*") -> 45.42967833 | U124: =IFERROR('Level 3'!R$6/H$147*U$147*AH$147,"*") -> 43.59770644 | V124: =IFERROR('Level 3'!S$6/I$147*V$147*AI$147,"*") -> 47.10526081 | W124: =IFERROR('Level 3'!T$6/J$147*W$147*AJ$147,"*") -> 50.27356457 | X124: =IFERROR('Level 3'!U$6/K$147*X$147*AK$147,"*") -> 50.96861048 | Y124: =IFERROR('Level 3'!V$6/L$147*Y$147*AL$147,"*") -> 51.56952124 | Z124: =IFERROR('Level 3'!W$6/M$147*Z$147*AM$147,"*") -> 51.02092653 | AA124: =IFERROR('Level 3'!X$6/N$147*AA$147*AN$147,"*") -> 46.23872322 | AB124: =IFERROR('Level 3'!Y$6/O$147*AB$147*AO$147,"*") -> * | AD124: ='Oversættelse af landenavne'!$B$6 -> EU-28 | AE124: =IFERROR('Level 3'!AB$6/E$147*R$147*AE$147,"*") -> 39.46006347 | AF124: =IFERROR('Level 3'!AC$6/F$147*S$147*AF$147,"*") -> 43.31043429 | AG124: =IFERROR('Level 3'!AD$6/G$147*T$147*AG$147,"*") -> 40.97086687 | AH124: =IFERROR('Level 3'!AE$6/H$147*U$147*AH$147,"*") -> 39.30158208 | AI124: =IFERROR('Level 3'!AF$6/I$147*V$147*AI$147,"*") -> 42.74002359 | AJ124: =IFERROR('Level 3'!AG$6/J$147*W$147*AJ$147,"*") -> 45.87462767 | AK124: =IFERROR('Level 3'!AH$6/K$147*X$147*AK$147,"*") -> 46.53245364 | AL124: =IFERROR('Level 3'!AI$6/L$147*Y$147*AL$147,"*") -> 46.24768606 | AM124: =IFERROR('Level 3'!AJ$6/M$147*Z$147*AM$147,"*") -> 45.77804026 | AN124: =IFERROR('Level 3'!AK$6/N$147*AA$147*AN$147,"*") -> 42.48818947 | AO124: =IFERROR('Level 3'!AL$6/O$147*AB$147*AO$147,"*") -> *
D125: ='Oversættelse af landenavne'!$B$7 -> Belgien | E125: =IFERROR('Level 3'!B$7/E$148*R$147*AE$147,"*") -> 67.30393034 | F125: =IFERROR('Level 3'!C$7/F$148*S$147*AF$147,"*") -> 77.87682402 | G125: =IFERROR('Level 3'!D$7/G$148*T$147*AG$147,"*") -> 69.42454832 | H125: =IFERROR('Level 3'!E$7/H$148*U$147*AH$147,"*") -> 67.16368227 | I125: =IFERROR('Level 3'!F$7/I$148*V$147*AI$147,"*") -> 72.20749164 | J125: =IFERROR('Level 3'!G$7/J$148*W$147*AJ$147,"*") -> 75.24657967 | K125: =IFERROR('Level 3'!H$7/K$148*X$147*AK$147,"*") -> 68.94687666 | L125: =IFERROR('Level 3'!I$7/L$148*Y$147*AL$147,"*") -> 67.55230223 | M125: =IFERROR('Level 3'!J$7/M$148*Z$147*AM$147,"*") -> 63.77226353 | N125: =IFERROR('Level 3'!K$7/N$148*AA$147*AN$147,"*") -> 55.90974239 | O125: =IFERROR('Level 3'!L$7/O$148*AB$147*AO$147,"*") -> * | Q125: ='Oversættelse af landenavne'!$B$7 -> Belgien | R125: =IFERROR('Level 3'!O$7/E$148*R$147*AE$147,"*") -> 43.52195495 | S125: =IFERROR('Level 3'!P$7/F$148*S$147*AF$147,"*") -> 54.65302974 | T125: =IFERROR('Level 3'!Q$7/G$148*T$147*AG$147,"*") -> 46.64742624 | U125: =IFERROR('Level 3'!R$7/H$148*U$147*AH$147,"*") -> 46.0734957 | V125: =IFERROR('Level 3'!S$7/I$148*V$147*AI$147,"*") -> 53.70582711 | W125: =IFERROR('Level 3'!T$7/J$148*W$147*AJ$147,"*") -> 54.50412076 | X125: =IFERROR('Level 3'!U$7/K$148*X$147*AK$147,"*") -> 50.31811842 | Y125: =IFERROR('Level 3'!V$7/L$148*Y$147*AL$147,"*") -> 49.32023995 | Z125: =IFERROR('Level 3'!W$7/M$148*Z$147*AM$147,"*") -> 45.16414855 | AA125: =IFERROR('Level 3'!X$7/N$148*AA$147*AN$147,"*") -> 40.69329118 | AB125: =IFERROR('Level 3'!Y$7/O$148*AB$147*AO$147,"*") -> * | AD125: ='Oversættelse af landenavne'!$B$7 -> Belgien | AE125: =IFERROR('Level 3'!AB$7/E$148*R$147*AE$147,"*") -> 39.10395953 | AF125: =IFERROR('Level 3'!AC$7/F$148*S$147*AF$147,"*") -> 51.28400736 | AG125: =IFERROR('Level 3'!AD$7/G$148*T$147*AG$147,"*") -> 42.97852754 | AH125: =IFERROR('Level 3'!AE$7/H$148*U$147*AH$147,"*") -> 41.52176217 | AI125: =IFERROR('Level 3'!AF$7/I$148*V$147*AI$147,"*") -> 49.1724943 | AJ125: =IFERROR('Level 3'!AG$7/J$148*W$147*AJ$147,"*") -> 50.3666622 | AK125: =IFERROR('Level 3'!AH$7/K$148*X$147*AK$147,"*") -> 46.00552677 | AL125: =IFERROR('Level 3'!AI$7/L$148*Y$147*AL$147,"*") -> 43.17048253 | AM125: =IFERROR('Level 3'!AJ$7/M$148*Z$147*AM$147,"*") -> 38.78152463 | AN125: =IFERROR('Level 3'!AK$7/N$148*AA$147*AN$147,"*") -> 36.75523074 | AO125: =IFERROR('Level 3'!AL$7/O$148*AB$147*AO$147,"*") -> *
D126: ='Oversættelse af landenavne'!$B$10 -> Danmark | E126: =IFERROR('Level 3'!B$10/E$149*R$147*AE$147,"*") -> 54.75246219 | F126: =IFERROR('Level 3'!C$10/F$149*S$147*AF$147,"*") -> 79.21419704 | G126: =IFERROR('Level 3'!D$10/G$149*T$147*AG$147,"*") -> 66.93515071 | H126: =IFERROR('Level 3'!E$10/H$149*U$147*AH$147,"*") -> 76.03921147 | I126: =IFERROR('Level 3'!F$10/I$149*V$147*AI$147,"*") -> 79.5492308 | J126: =IFERROR('Level 3'!G$10/J$149*W$147*AJ$147,"*") -> 72.90311026 | K126: =IFERROR('Level 3'!H$10/K$149*X$147*AK$147,"*") -> 73.99816307 | L126: =IFERROR('Level 3'!I$10/L$149*Y$147*AL$147,"*") -> 66.77465194 | M126: =IFERROR('Level 3'!J$10/M$149*Z$147*AM$147,"*") -> 58.46442148 | N126: =IFERROR('Level 3'!K$10/N$149*AA$147*AN$147,"*") -> 53.35294995 | O126: =IFERROR('Level 3'!L$10/O$149*AB$147*AO$147,"*") -> * | Q126: ='Oversættelse af landenavne'!$B$10 -> Danmark | R126: =IFERROR('Level 3'!O$10/E$149*R$147*AE$147,"*") -> 65.20759113 | S126: =IFERROR('Level 3'!P$10/F$149*S$147*AF$147,"*") -> 79.21419704 | T126: =IFERROR('Level 3'!Q$10/G$149*T$147*AG$147,"*") -> 66.93515071 | U126: =IFERROR('Level 3'!R$10/H$149*U$147*AH$147,"*") -> 76.03921147 | V126: =IFERROR('Level 3'!S$10/I$149*V$147*AI$147,"*") -> 79.5492308 | W126: =IFERROR('Level 3'!T$10/J$149*W$147*AJ$147,"*") -> 72.90311026 | X126: =IFERROR('Level 3'!U$10/K$149*X$147*AK$147,"*") -> 73.99816307 | Y126: =IFERROR('Level 3'!V$10/L$149*Y$147*AL$147,"*") -> 66.77465194 | Z126: =IFERROR('Level 3'!W$10/M$149*Z$147*AM$147,"*") -> 58.46442148 | AA126: =IFERROR('Level 3'!X$10/N$149*AA$147*AN$147,"*") -> 53.35294995 | AB126: =IFERROR('Level 3'!Y$10/O$149*AB$147*AO$147,"*") -> * | AD126: ='Oversættelse af landenavne'!$B$10 -> Danmark | AE126: =IFERROR('Level 3'!AB$10/E$149*R$147*AE$147,"*") -> 72.1237768 | AF126: =IFERROR('Level 3'!AC$10/F$149*S$147*AF$147,"*") -> 79.21419704 | AG126: =IFERROR('Level 3'!AD$10/G$149*T$147*AG$147,"*") -> 66.93515071 | AH126: =IFERROR('Level 3'!AE$10/H$149*U$147*AH$147,"*") -> 76.03921147 | AI126: =IFERROR('Level 3'!AF$10/I$149*V$147*AI$147,"*") -> 79.5492308 | AJ126: =IFERROR('Level 3'!AG$10/J$149*W$147*AJ$147,"*") -> 72.90311026 | AK126: =IFERROR('Level 3'!AH$10/K$149*X$147*AK$147,"*") -> 73.99816307 | AL126: =IFERROR('Level 3'!AI$10/L$149*Y$147*AL$147,"*") -> 66.77465194 | AM126: =IFERROR('Level 3'!AJ$10/M$149*Z$147*AM$147,"*") -> 58.46442148 | AN126: =IFERROR('Level 3'!AK$10/N$149*AA$147*AN$147,"*") -> 53.35294995 | AO126: =IFERROR('Level 3'!AL$10/O$149*AB$147*AO$147,"*") -> *
D127: ='Oversættelse af landenavne'!$B$11 -> Tyskland | E127: =IFERROR('Level 3'!B$11/E$150*R$147*AE$147,"*") -> 77.93099338 | F127: =IFERROR('Level 3'!C$11/F$150*S$147*AF$147,"*") -> 82.28827909 | G127: =IFERROR('Level 3'!D$11/G$150*T$147*AG$147,"*") -> 78.79085051 | H127: =IFERROR('Level 3'!E$11/H$150*U$147*AH$147,"*") -> 77.15326377 | I127: =IFERROR('Level 3'!F$11/I$150*V$147*AI$147,"*") -> 80.97347354 | J127: =IFERROR('Level 3'!G$11/J$150*W$147*AJ$147,"*") -> 79.85885408 | K127: =IFERROR('Level 3'!H$11/K$150*X$147*AK$147,"*") -> 82.03922405 | L127: =IFERROR('Level 3'!I$11/L$150*Y$147*AL$147,"*") -> 81.13193255 | M127: =IFERROR('Level 3'!J$11/M$150*Z$147*AM$147,"*") -> 80.09910378 | N127: =IFERROR('Level 3'!K$11/N$150*AA$147*AN$147,"*") -> 81.22584519 | O127: =IFERROR('Level 3'!L$11/O$150*AB$147*AO$147,"*") -> * | Q127: ='Oversættelse af landenavne'!$B$11 -> Tyskland | R127: =IFERROR('Level 3'!O$11/E$150*R$147*AE$147,"*") -> 51.11409265 | S127: =IFERROR('Level 3'!P$11/F$150*S$147*AF$147,"*") -> 56.86220739 | T127: =IFERROR('Level 3'!Q$11/G$150*T$147*AG$147,"*") -> 49.99936662 | U127: =IFERROR('Level 3'!R$11/H$150*U$147*AH$147,"*") -> 45.40289026 | V127: =IFERROR('Level 3'!S$11/I$150*V$147*AI$147,"*") -> 47.90989042 | W127: =IFERROR('Level 3'!T$11/J$150*W$147*AJ$147,"*") -> 49.08364336 | X127: =IFERROR('Level 3'!U$11/K$150*X$147*AK$147,"*") -> 50.78166998 | Y127: =IFERROR('Level 3'!V$11/L$150*Y$147*AL$147,"*") -> 50.74272384 | Z127: =IFERROR('Level 3'!W$11/M$150*Z$147*AM$147,"*") -> 50.62070058 | AA127: =IFERROR('Level 3'!X$11/N$150*AA$147*AN$147,"*") -> 49.18557117 | AB127: =IFERROR('Level 3'!Y$11/O$150*AB$147*AO$147,"*") -> * | AD127: ='Oversættelse af landenavne'!$B$11 -> Tyskland | AE127: =IFERROR('Level 3'!AB$11/E$150*R$147*AE$147,"*") -> 48.29441853 | AF127: =IFERROR('Level 3'!AC$11/F$150*S$147*AF$147,"*") -> 52.06290872 | AG127: =IFERROR('Level 3'!AD$11/G$150*T$147*AG$147,"*") -> 45.00670789 | AH127: =IFERROR('Level 3'!AE$11/H$150*U$147*AH$147,"*") -> 43.11548229 | AI127: =IFERROR('Level 3'!AF$11/I$150*V$147*AI$147,"*") -> 45.66257805 | AJ127: =IFERROR('Level 3'!AG$11/J$150*W$147*AJ$147,"*") -> 46.77447167 | AK127: =IFERROR('Level 3'!AH$11/K$150*X$147*AK$147,"*") -> 47.65184987 | AL127: =IFERROR('Level 3'!AI$11/L$150*Y$147*AL$147,"*") -> 47.20940735 | AM127: =IFERROR('Level 3'!AJ$11/M$150*Z$147*AM$147,"*") -> 47.10369619 | AN127: =IFERROR('Level 3'!AK$11/N$150*AA$147*AN$147,"*") -> 45.40824789 | AO127: =IFERROR('Level 3'!AL$11/O$150*AB$147*AO$147,"*") -> *
D128: ='Oversættelse af landenavne'!$B$16 -> Frankrig | E128: =IFERROR('Level 3'!B$16/E$151*R$147*AE$147,"*") -> 78.29561293 | F128: =IFERROR('Level 3'!C$16/F$151*S$147*AF$147,"*") -> 81.86039705 | G128: =IFERROR('Level 3'!D$16/G$151*T$147*AG$147,"*") -> 86.20765725 | H128: =IFERROR('Level 3'!E$16/H$151*U$147*AH$147,"*") -> 84.55928258 | I128: =IFERROR('Level 3'!F$16/I$151*V$147*AI$147,"*") -> 93.32843749 | J128: =IFERROR('Level 3'!G$16/J$151*W$147*AJ$147,"*") -> 93.14521862 | K128: =IFERROR('Level 3'!H$16/K$151*X$147*AK$147,"*") -> 99.64855597 | L128: =IFERROR('Level 3'!I$16/L$151*Y$147*AL$147,"*") -> 105.5484535 | M128: =IFERROR('Level 3'!J$16/M$151*Z$147*AM$147,"*") -> 102.9090601 | N128: =IFERROR('Level 3'!K$16/N$151*AA$147*AN$147,"*") -> 95.39750486 | O128: =IFERROR('Level 3'!L$16/O$151*AB$147*AO$147,"*") -> * | Q128: ='Oversættelse af landenavne'!$B$16 -> Frankrig | R128: =IFERROR('Level 3'!O$16/E$151*R$147*AE$147,"*") -> 42.94114045 | S128: =IFERROR('Level 3'!P$16/F$151*S$147*AF$147,"*") -> 44.29731723 | T128: =IFERROR('Level 3'!Q$16/G$151*T$147*AG$147,"*") -> 45.66323174 | U128: =IFERROR('Level 3'!R$16/H$151*U$147*AH$147,"*") -> 43.39151318 | V128: =IFERROR('Level 3'!S$16/I$151*V$147*AI$147,"*") -> 47.48680282 | W128: =IFERROR('Level 3'!T$16/J$151*W$147*AJ$147,"*") -> 49.85006726 | X128: =IFERROR('Level 3'!U$16/K$151*X$147*AK$147,"*") -> 52.81873669 | Y128: =IFERROR('Level 3'!V$16/L$151*Y$147*AL$147,"*") -> 54.57411129 | Z128: =IFERROR('Level 3'!W$16/M$151*Z$147*AM$147,"*") -> 53.43432478 | AA128: =IFERROR('Level 3'!X$16/N$151*AA$147*AN$147,"*") -> 48.35509584 | AB128: =IFERROR('Level 3'!Y$16/O$151*AB$147*AO$147,"*") -> * | AD128: ='Oversættelse af landenavne'!$B$16 -> Frankrig | AE128: =IFERROR('Level 3'!AB$16/E$151*R$147*AE$147,"*") -> 38.02330034 | AF128: =IFERROR('Level 3'!AC$16/F$151*S$147*AF$147,"*") -> 39.96847568 | AG128: =IFERROR('Level 3'!AD$16/G$151*T$147*AG$147,"*") -> 40.63143072 | AH128: =IFERROR('Level 3'!AE$16/H$151*U$147*AH$147,"*") -> 37.43302024 | AI128: =IFERROR('Level 3'!AF$16/I$151*V$147*AI$147,"*") -> 40.878246 | AJ128: =IFERROR('Level 3'!AG$16/J$151*W$147*AJ$147,"*") -> 43.69035419 | AK128: =IFERROR('Level 3'!AH$16/K$151*X$147*AK$147,"*") -> 44.66677912 | AL128: =IFERROR('Level 3'!AI$16/L$151*Y$147*AL$147,"*") -> 45.91048791 | AM128: =IFERROR('Level 3'!AJ$16/M$151*Z$147*AM$147,"*") -> 44.15948971 | AN128: =IFERROR('Level 3'!AK$16/N$151*AA$147*AN$147,"*") -> 40.82723881 | AO128: =IFERROR('Level 3'!AL$16/O$151*AB$147*AO$147,"*") -> *
D129: ='Oversættelse af landenavne'!$B$18 -> Italien | E129: =IFERROR('Level 3'!B$18/E$152*R$147*AE$147,"*") -> 57.63318459 | F129: =IFERROR('Level 3'!C$18/F$152*S$147*AF$147,"*") -> 62.67723574 | G129: =IFERROR('Level 3'!D$18/G$152*T$147*AG$147,"*") -> 57.20997516 | H129: =IFERROR('Level 3'!E$18/H$152*U$147*AH$147,"*") -> 66.98328581 | I129: =IFERROR('Level 3'!F$18/I$152*V$147*AI$147,"*") -> 72.59977368 | J129: =IFERROR('Level 3'!G$18/J$152*W$147*AJ$147,"*") -> 79.86388276 | K129: =IFERROR('Level 3'!H$18/K$152*X$147*AK$147,"*") -> 80.76439452 | L129: =IFERROR('Level 3'!I$18/L$152*Y$147*AL$147,"*") -> 88.25230418 | M129: =IFERROR('Level 3'!J$18/M$152*Z$147*AM$147,"*") -> 84.04566596 | N129: =IFERROR('Level 3'!K$18/N$152*AA$147*AN$147,"*") -> 67.99181896 | O129: =IFERROR('Level 3'!L$18/O$152*AB$147*AO$147,"*") -> * | Q129: ='Oversættelse af landenavne'!$B$18 -> Italien | R129: =IFERROR('Level 3'!O$18/E$152*R$147*AE$147,"*") -> 54.32883281 | S129: =IFERROR('Level 3'!P$18/F$152*S$147*AF$147,"*") -> 55.54865483 | T129: =IFERROR('Level 3'!Q$18/G$152*T$147*AG$147,"*") -> 52.80264241 | U129: =IFERROR('Level 3'!R$18/H$152*U$147*AH$147,"*") -> 56.48135606 | V129: =IFERROR('Level 3'!S$18/I$152*V$147*AI$147,"*") -> 61.3537056 | W129: =IFERROR('Level 3'!T$18/J$152*W$147*AJ$147,"*") -> 65.71337557 | X129: =IFERROR('Level 3'!U$18/K$152*X$147*AK$147,"*") -> 66.61008759 | Y129: =IFERROR('Level 3'!V$18/L$152*Y$147*AL$147,"*") -> 65.22529103 | Z129: =IFERROR('Level 3'!W$18/M$152*Z$147*AM$147,"*") -> 62.28587926 | AA129: =IFERROR('Level 3'!X$18/N$152*AA$147*AN$147,"*") -> 54.43631841 | AB129: =IFERROR('Level 3'!Y$18/O$152*AB$147*AO$147,"*") -> * | AD129: ='Oversættelse af landenavne'!$B$18 -> Italien | AE129: =IFERROR('Level 3'!AB$18/E$152*R$147*AE$147,"*") -> 53.35397984 | AF129: =IFERROR('Level 3'!AC$18/F$152*S$147*AF$147,"*") -> 52.43295928 | AG129: =IFERROR('Level 3'!AD$18/G$152*T$147*AG$147,"*") -> 54.62002336 | AH129: =IFERROR('Level 3'!AE$18/H$152*U$147*AH$147,"*") -> 52.75145519 | AI129: =IFERROR('Level 3'!AF$18/I$152*V$147*AI$147,"*") -> 56.25849077 | AJ129: =IFERROR('Level 3'!AG$18/J$152*W$147*AJ$147,"*") -> 60.27925394 | AK129: =IFERROR('Level 3'!AH$18/K$152*X$147*AK$147,"*") -> 60.33424836 | AL129: =IFERROR('Level 3'!AI$18/L$152*Y$147*AL$147,"*") -> 58.31987402 | AM129: =IFERROR('Level 3'!AJ$18/M$152*Z$147*AM$147,"*") -> 56.11098606 | AN129: =IFERROR('Level 3'!AK$18/N$152*AA$147*AN$147,"*") -> 52.21278769 | AO129: =IFERROR('Level 3'!AL$18/O$152*AB$147*AO$147,"*") -> *
D130: ='Oversættelse af landenavne'!$B$23 -> Holland | E130: =IFERROR('Level 3'!B$23/E$153*R$147*AE$147,"*") -> 92.30048881 | F130: =IFERROR('Level 3'!C$23/F$153*S$147*AF$147,"*") -> 88.84244083 | G130: =IFERROR('Level 3'!D$23/G$153*T$147*AG$147,"*") -> 87.38184538 | H130: =IFERROR('Level 3'!E$23/H$153*U$147*AH$147,"*") -> 83.05907138 | I130: =IFERROR('Level 3'!F$23/I$153*V$147*AI$147,"*") -> 86.049026 | J130: =IFERROR('Level 3'!G$23/J$153*W$147*AJ$147,"*") -> 87.93368535 | K130: =IFERROR('Level 3'!H$23/K$153*X$147*AK$147,"*") -> 91.20251757 | L130: =IFERROR('Level 3'!I$23/L$153*Y$147*AL$147,"*") -> 90.30504822 | M130: =IFERROR('Level 3'!J$23/M$153*Z$147*AM$147,"*") -> 89.75559455 | N130: =IFERROR('Level 3'!K$23/N$153*AA$147*AN$147,"*") -> 80.87758134 | O130: =IFERROR('Level 3'!L$23/O$153*AB$147*AO$147,"*") -> * | Q130: ='Oversættelse af landenavne'!$B$23 -> Holland | R130: =IFERROR('Level 3'!O$23/E$153*R$147*AE$147,"*") -> 60.42343748 | S130: =IFERROR('Level 3'!P$23/F$153*S$147*AF$147,"*") -> 60.0455433 | T130: =IFERROR('Level 3'!Q$23/G$153*T$147*AG$147,"*") -> 60.65812844 | U130: =IFERROR('Level 3'!R$23/H$153*U$147*AH$147,"*") -> 56.69481558 | V130: =IFERROR('Level 3'!S$23/I$153*V$147*AI$147,"*") -> 58.35786856 | W130: =IFERROR('Level 3'!T$23/J$153*W$147*AJ$147,"*") -> 60.89099936 | X130: =IFERROR('Level 3'!U$23/K$153*X$147*AK$147,"*") -> 62.06744158 | Y130: =IFERROR('Level 3'!V$23/L$153*Y$147*AL$147,"*") -> 60.18541308 | Z130: =IFERROR('Level 3'!W$23/M$153*Z$147*AM$147,"*") -> 58.18860973 | AA130: =IFERROR('Level 3'!X$23/N$153*AA$147*AN$147,"*") -> 57.99932548 | AB130: =IFERROR('Level 3'!Y$23/O$153*AB$147*AO$147,"*") -> * | AD130: ='Oversættelse af landenavne'!$B$23 -> Holland | AE130: =IFERROR('Level 3'!AB$23/E$153*R$147*AE$147,"*") -> 54.86624542 | AF130: =IFERROR('Level 3'!AC$23/F$153*S$147*AF$147,"*") -> * | AG130: =IFERROR('Level 3'!AD$23/G$153*T$147*AG$147,"*") -> 54.12435623 | AH130: =IFERROR('Level 3'!AE$23/H$153*U$147*AH$147,"*") -> 49.81211163 | AI130: =IFERROR('Level 3'!AF$23/I$153*V$147*AI$147,"*") -> 53.18980164 | AJ130: =IFERROR('Level 3'!AG$23/J$153*W$147*AJ$147,"*") -> 54.6525076 | AK130: =IFERROR('Level 3'!AH$23/K$153*X$147*AK$147,"*") -> 57.78366649 | AL130: =IFERROR('Level 3'!AI$23/L$153*Y$147*AL$147,"*") -> 54.46308634 | AM130: =IFERROR('Level 3'!AJ$23/M$153*Z$147*AM$147,"*") -> 51.89940203 | AN130: =IFERROR('Level 3'!AK$23/N$153*AA$147*AN$147,"*") -> 53.07005255 | AO130: =IFERROR('Level 3'!AL$23/O$153*AB$147*AO$147,"*") -> *
D131: ='Oversættelse af landenavne'!$B$30 -> Sverige | E131: =IFERROR('Level 3'!B$30/E$154*R$147*AE$147,"*") -> 99.26586175 | F131: =IFERROR('Level 3'!C$30/F$154*S$147*AF$147,"*") -> 101.6988111 | G131: =IFERROR('Level 3'!D$30/G$154*T$147*AG$147,"*") -> 104.5133591 | H131: =IFERROR('Level 3'!E$30/H$154*U$147*AH$147,"*") -> 122.8296033 | I131: =IFERROR('Level 3'!F$30/I$154*V$147*AI$147,"*") -> 136.5756998 | J131: =IFERROR('Level 3'!G$30/J$154*W$147*AJ$147,"*") -> 149.458606 | K131: =IFERROR('Level 3'!H$30/K$154*X$147*AK$147,"*") -> 131.189645 | L131: =IFERROR('Level 3'!I$30/L$154*Y$147*AL$147,"*") -> 128.8253588 | M131: =IFERROR('Level 3'!J$30/M$154*Z$147*AM$147,"*") -> 134.1806296 | N131: =IFERROR('Level 3'!K$30/N$154*AA$147*AN$147,"*") -> 122.8452503 | O131: =IFERROR('Level 3'!L$30/O$154*AB$147*AO$147,"*") -> * | Q131: ='Oversættelse af landenavne'!$B$30 -> Sverige | R131: =IFERROR('Level 3'!O$30/E$154*R$147*AE$147,"*") -> 76.18708189 | S131: =IFERROR('Level 3'!P$30/F$154*S$147*AF$147,"*") -> 78.4760706 | T131: =IFERROR('Level 3'!Q$30/G$154*T$147*AG$147,"*") -> 71.81560229 | U131: =IFERROR('Level 3'!R$30/H$154*U$147*AH$147,"*") -> 80.24389014 | V131: =IFERROR('Level 3'!S$30/I$154*V$147*AI$147,"*") -> 90.16292286 | W131: =IFERROR('Level 3'!T$30/J$154*W$147*AJ$147,"*") -> 92.68950762 | X131: =IFERROR('Level 3'!U$30/K$154*X$147*AK$147,"*") -> 92.82173942 | Y131: =IFERROR('Level 3'!V$30/L$154*Y$147*AL$147,"*") -> 87.73872567 | Z131: =IFERROR('Level 3'!W$30/M$154*Z$147*AM$147,"*") -> 86.45213329 | AA131: =IFERROR('Level 3'!X$30/N$154*AA$147*AN$147,"*") -> 83.99615016 | AB131: =IFERROR('Level 3'!Y$30/O$154*AB$147*AO$147,"*") -> * | AD131: ='Oversættelse af landenavne'!$B$30 -> Sverige | AE131: =IFERROR('Level 3'!AB$30/E$154*R$147*AE$147,"*") -> 73.76386939 | AF131: =IFERROR('Level 3'!AC$30/F$154*S$147*AF$147,"*") -> 75.45599999 | AG131: =IFERROR('Level 3'!AD$30/G$154*T$147*AG$147,"*") -> 66.77171523 | AH131: =IFERROR('Level 3'!AE$30/H$154*U$147*AH$147,"*") -> 74.95769267 | AI131: =IFERROR('Level 3'!AF$30/I$154*V$147*AI$147,"*") -> 82.54570255 | AJ131: =IFERROR('Level 3'!AG$30/J$154*W$147*AJ$147,"*") -> 85.9120848 | AK131: =IFERROR('Level 3'!AH$30/K$154*X$147*AK$147,"*") -> 84.54752757 | AL131: =IFERROR('Level 3'!AI$30/L$154*Y$147*AL$147,"*") -> 78.37113159 | AM131: =IFERROR('Level 3'!AJ$30/M$154*Z$147*AM$147,"*") -> 78.08888648 | AN131: =IFERROR('Level 3'!AK$30/N$154*AA$147*AN$147,"*") -> 75.66487522 | AO131: =IFERROR('Level 3'!AL$30/O$154*AB$147*AO$147,"*") -> *
D132: ='Oversættelse af landenavne'!$B$31 -> UK | E132: =IFERROR('Level 3'!B$31/E$155*R$147*AE$147,"*") -> 35.21525072 | F132: =IFERROR('Level 3'!C$31/F$155*S$147*AF$147,"*") -> 41.75388496 | G132: =IFERROR('Level 3'!D$31/G$155*T$147*AG$147,"*") -> 40.91049133 | H132: =IFERROR('Level 3'!E$31/H$155*U$147*AH$147,"*") -> 38.85301498 | I132: =IFERROR('Level 3'!F$31/I$155*V$147*AI$147,"*") -> 43.03353952 | J132: =IFERROR('Level 3'!G$31/J$155*W$147*AJ$147,"*") -> 49.20167893 | K132: =IFERROR('Level 3'!H$31/K$155*X$147*AK$147,"*") -> 51.91894474 | L132: =IFERROR('Level 3'!I$31/L$155*Y$147*AL$147,"*") -> 65.83018984 | M132: =IFERROR('Level 3'!J$31/M$155*Z$147*AM$147,"*") -> 67.49006959 | N132: =IFERROR('Level 3'!K$31/N$155*AA$147*AN$147,"*") -> 56.67056495 | O132: =IFERROR('Level 3'!L$31/O$155*AB$147*AO$147,"*") -> * | Q132: ='Oversættelse af landenavne'!$B$31 -> UK | R132: =IFERROR('Level 3'!O$31/E$155*R$147*AE$147,"*") -> 32.49357299 | S132: =IFERROR('Level 3'!P$31/F$155*S$147*AF$147,"*") -> 38.37887057 | T132: =IFERROR('Level 3'!Q$31/G$155*T$147*AG$147,"*") -> 36.62039444 | U132: =IFERROR('Level 3'!R$31/H$155*U$147*AH$147,"*") -> 34.43701089 | V132: =IFERROR('Level 3'!S$31/I$155*V$147*AI$147,"*") -> 37.77645921 | W132: =IFERROR('Level 3'!T$31/J$155*W$147*AJ$147,"*") -> 42.55391038 | X132: =IFERROR('Level 3'!U$31/K$155*X$147*AK$147,"*") -> 42.30579305 | Y132: =IFERROR('Level 3'!V$31/L$155*Y$147*AL$147,"*") -> 46.38913704 | Z132: =IFERROR('Level 3'!W$31/M$155*Z$147*AM$147,"*") -> 48.55693207 | AA132: =IFERROR('Level 3'!X$31/N$155*AA$147*AN$147,"*") -> 41.15246367 | AB132: =IFERROR('Level 3'!Y$31/O$155*AB$147*AO$147,"*") -> * | AD132: ='Oversættelse af landenavne'!$B$31 -> UK | AE132: =IFERROR('Level 3'!AB$31/E$155*R$147*AE$147,"*") -> 28.11351122 | AF132: =IFERROR('Level 3'!AC$31/F$155*S$147*AF$147,"*") -> 35.5487285 | AG132: =IFERROR('Level 3'!AD$31/G$155*T$147*AG$147,"*") -> 32.31436879 | AH132: =IFERROR('Level 3'!AE$31/H$155*U$147*AH$147,"*") -> 30.36500984 | AI132: =IFERROR('Level 3'!AF$31/I$155*V$147*AI$147,"*") -> 32.9487889 | AJ132: =IFERROR('Level 3'!AG$31/J$155*W$147*AJ$147,"*") -> 37.54530619 | AK132: =IFERROR('Level 3'!AH$31/K$155*X$147*AK$147,"*") -> 37.95718736 | AL132: =IFERROR('Level 3'!AI$31/L$155*Y$147*AL$147,"*") -> 40.4463945 | AM132: =IFERROR('Level 3'!AJ$31/M$155*Z$147*AM$147,"*") -> 43.35737305 | AN132: =IFERROR('Level 3'!AK$31/N$155*AA$147*AN$147,"*") -> 37.9181641 | AO132: =IFERROR('Level 3'!AL$31/O$155*AB$147*AO$147,"*") -> *
D133: Kilde: Eurostat | Q133: Kilde: Eurostat | AD133: Kilde: Eurostat
D138: Baggrundstabeller
D139: Herunder vises de tabeller, der framkoller som resultatet er valgene truffet øverst i valgmenuen. De ganges på rådata for at få resultattabellerne som kan ses længere oppe.
D142: Tabel B - BVT Deflatoren | Q142: Tabel C - Valutakurs | AD142: Tabel D - Omregningsfaktor for valgt enhed
D143: Tabel B fremkommer som resultat af valgene truffet for faste/løbende priser og basisår. BVT deflatoren vises for samtlige lande for det valgte år. Væles løbende priser deflaterer man ikke, hvorfor der vil stå et 1-tal i alle celler. Formlen gør at "fejlværdien" svarer til at man har valgt løbende priser (gælder både for overskrift og formler). Med denne metode kan indeksværdien ganges direkte på rådata uanset hvilken valuta der vælges. | Q143: Tabel C viser hvilken kurs der ganges på rådata (opgivet i euro) for at få priserne vist i den valuta der er valgt i valgmenuen øverst. Kursen ændres efter valgt år og valuta. | AD143: Tabel D viser hvilken faktor der ganges på den oprindelige (opgivet i GJ), for at få vist priserne i den enhed der er valgt i valgmenuen øverst. Formlen gør så "fejlværdien" svarer til at man har valgt GJ (gælder både for overskrift og formler). Med denne metode kan omregningsfaktoren ganges direkte på rådata uanset hvilken enhed der vælges.
D145: =IF($E$13="faste priser","HICP deflatoren med basisåret "&$E$14&"","Prisindeks for løbende priser år "&$E$12) -> HICP deflatoren med basisåret 2016 | Q145: ="Valutakursen for "&E15&" i fht. Euro" -> Valutakursen for DKK øre i fht. Euro | AD145: ="Omregningsfaktoren for "&$E$16&" i fht. GJ" -> Omregningsfaktoren for Kwh i fht. GJ
E146: ='Baggrundsdata - HICP - deflator'!C22 -> 2007 | F146: ='Baggrundsdata - HICP - deflator'!D22 -> 2008 | G146: ='Baggrundsdata - HICP - deflator'!E22 -> 2009 | H146: ='Baggrundsdata - HICP - deflator'!F22 -> 2010 | I146: ='Baggrundsdata - HICP - deflator'!G22 -> 2011 | J146: ='Baggrundsdata - HICP - deflator'!H22 -> 2012 | K146: ='Baggrundsdata - HICP - deflator'!I22 -> 2013 | L146: ='Baggrundsdata - HICP - deflator'!J22 -> 2014 | M146: ='Baggrundsdata - HICP - deflator'!K22 -> 2015 | N146: ='Baggrundsdata - HICP - deflator'!L22 -> 2016 | O146: ='Baggrundsdata - HICP - deflator'!M22 -> 2017 | R146: =Forside!E55 -> 2007 | S146: =Forside!F55 -> 2008 | T146: =Forside!G55 -> 2009 | U146: =Forside!H55 -> 2010 | V146: =Forside!I55 -> 2011 | W146: =Forside!J55 -> 2012 | X146: =Forside!K55 -> 2013 | Y146: =Forside!L55 -> 2014 | Z146: =Forside!M55 -> 2015 | AA146: =Forside!N55 -> 2016 | AB146: =Forside!O55 -> 2017 | AE146: =Forside!E72 -> 2007 | AF146: =Forside!F72 -> 2008 | AG146: =Forside!G72 -> 2009 | AH146: =Forside!H72 -> 2010 | AI146: =Forside!I72 -> 2011 | AJ146: =Forside!J72 -> 2012 | AK146: =Forside!K72 -> 2013 | AL146: =Forside!L72 -> 2014 | AM146: =Forside!M72 -> 2015 | AN146: =Forside!N72 -> 2016 | AO146: =Forside!O72 -> 2017
D147: ='Oversættelse af landenavne'!B6 -> EU-28 | E147: =IF($E$13="faste priser",HLOOKUP(E$146,'Baggrundsdata - HICP - deflator'!$R$22:$AC$32,2,FALSE),1) -> 0.86658665 | F147: =IF($E$13="faste priser",HLOOKUP(F$146,'Baggrundsdata - HICP - deflator'!$R$22:$AC$32,2,FALSE),1) -> 0.89828982 | G147: =IF($E$13="faste priser",HLOOKUP(G$146,'Baggrundsdata - HICP - deflator'!$R$22:$AC$32,2,FALSE),1) -> 0.9070907 | H147: =IF($E$13="faste priser",HLOOKUP(H$146,'Baggrundsdata - HICP - deflator'!$R$22:$AC$32,2,FALSE),1) -> 0.92599259 | I147: =IF($E$13="faste priser",HLOOKUP(I$146,'Baggrundsdata - HICP - deflator'!$R$22:$AC$32,2,FALSE),1) -> 0.95469546 | J147: =IF($E$13="faste priser",HLOOKUP(J$146,'Baggrundsdata - HICP - deflator'!$R$22:$AC$32,2,FALSE),1) -> 0.97999799 | K147: =IF($E$13="faste priser",HLOOKUP(K$146,'Baggrundsdata - HICP - deflator'!$R$22:$AC$32,2,FALSE),1) -> 0.99479947 | L147: =IF($E$13="faste priser",HLOOKUP(L$146,'Baggrundsdata - HICP - deflator'!$R$22:$AC$32,2,FALSE),1) -> 1.00020001 | M147: =IF($E$13="faste priser",HLOOKUP(M$146,'Baggrundsdata - HICP - deflator'!$R$22:$AC$32,2,FALSE),1) -> 1.0001 | N147: =IF($E$13="faste priser",HLOOKUP(N$146,'Baggrundsdata - HICP - deflator'!$R$22:$AC$32,2,FALSE),1) -> 1 | O147: =IF($E$13="faste priser",HLOOKUP(O$146,'Baggrundsdata - HICP - deflator'!$R$22:$AC$32,2,FALSE),1) -> 0 | Q147: Alle lande | R147: =IF($E$15="Euro",1,IF($E$15="eurocent",100,IF($E$15="DKK øre",HLOOKUP(R146,Forside!$E$55:$O$56,2,FALSE),IF($E$15="DKK",((HLOOKUP(R146,Forside!$E$55:$O$56,2,FALSE))/100),"F")))) -> 745.5974 | S147: =IF($E$15="Euro",1,IF($E$15="eurocent",100,IF($E$15="DKK øre",HLOOKUP(S146,Forside!$E$55:$O$56,2,FALSE),IF($E$15="DKK",((HLOOKUP(S146,Forside!$E$55:$O$56,2,FALSE))/100),"F")))) -> 744.6251 | T147: =IF($E$15="Euro",1,IF($E$15="eurocent",100,IF($E$15="DKK øre",HLOOKUP(T146,Forside!$E$55:$O$56,2,FALSE),IF($E$15="DKK",((HLOOKUP(T146,Forside!$E$55:$O$56,2,FALSE))/100),"F")))) -> 744.6251 | U147: =IF($E$15="Euro",1,IF($E$15="eurocent",100,IF($E$15="DKK øre",HLOOKUP(U146,Forside!$E$55:$O$56,2,FALSE),IF($E$15="DKK",((HLOOKUP(U146,Forside!$E$55:$O$56,2,FALSE))/100),"F")))) -> 744.7366 | V147: =IF($E$15="Euro",1,IF($E$15="eurocent",100,IF($E$15="DKK øre",HLOOKUP(V146,Forside!$E$55:$O$56,2,FALSE),IF($E$15="DKK",((HLOOKUP(V146,Forside!$E$55:$O$56,2,FALSE))/100),"F")))) -> 745.0529 | W147: =IF($E$15="Euro",1,IF($E$15="eurocent",100,IF($E$15="DKK øre",HLOOKUP(W146,Forside!$E$55:$O$56,2,FALSE),IF($E$15="DKK",((HLOOKUP(W146,Forside!$E$55:$O$56,2,FALSE))/100),"F")))) -> 744.3751 | X147: =IF($E$15="Euro",1,IF($E$15="eurocent",100,IF($E$15="DKK øre",HLOOKUP(X146,Forside!$E$55:$O$56,2,FALSE),IF($E$15="DKK",((HLOOKUP(X146,Forside!$E$55:$O$56,2,FALSE))/100),"F")))) -> 745.7982 | Y147: =IF($E$15="Euro",1,IF($E$15="eurocent",100,IF($E$15="DKK øre",HLOOKUP(Y146,Forside!$E$55:$O$56,2,FALSE),IF($E$15="DKK",((HLOOKUP(Y146,Forside!$E$55:$O$56,2,FALSE))/100),"F")))) -> 745.4741 | Z147: =IF($E$15="Euro",1,IF($E$15="eurocent",100,IF($E$15="DKK øre",HLOOKUP(Z146,Forside!$E$55:$O$56,2,FALSE),IF($E$15="DKK",((HLOOKUP(Z146,Forside!$E$55:$O$56,2,FALSE))/100),"F")))) -> 745.6103 | AA147: =IF($E$15="Euro",1,IF($E$15="eurocent",100,IF($E$15="DKK øre",HLOOKUP(AA146,Forside!$E$55:$O$56,2,FALSE),IF($E$15="DKK",((HLOOKUP(AA146,Forside!$E$55:$O$56,2,FALSE))/100),"F")))) -> 744.7488444 | AB147: =IF($E$15="Euro",1,IF($E$15="eurocent",100,IF($E$15="DKK øre",HLOOKUP(AB146,Forside!$E$55:$O$56,2,FALSE),IF($E$15="DKK",((HLOOKUP(AB146,Forside!$E$55:$O$56,2,FALSE))/100),"F")))) -> 0 | AD147: Alle lande | AE147: =IF($E$16="Nm3",HLOOKUP(AE146,Forside!E72:K74,2,FALSE),IF($E$16="kwh",1/278,1)) -> 0.003597122302 | AF147: =IF($E$16="Nm3",HLOOKUP(AF146,Forside!F72:L74,2,FALSE),IF($E$16="kwh",1/278,1)) -> 0.003597122302 | AG147: =IF($E$16="Nm3",HLOOKUP(AG146,Forside!G72:M74,2,FALSE),IF($E$16="kwh",1/278,1)) -> 0.003597122302 | AH147: =IF($E$16="Nm3",HLOOKUP(AH146,Forside!H72:N74,2,FALSE),IF($E$16="kwh",1/278,1)) -> 0.003597122302 | AI147: =IF($E$16="Nm3",HLOOKUP(AI146,Forside!I72:O74,2,FALSE),IF($E$16="kwh",1/278,1)) -> 0.003597122302 | AJ147: =IF($E$16="Nm3",HLOOKUP(AJ146,Forside!J72:P74,2,FALSE),IF($E$16="kwh",1/278,1)) -> 0.003597122302 | AK147: =IF($E$16="Nm3",HLOOKUP(AK146,Forside!K72:Q74,2,FALSE),IF($E$16="kwh",1/278,1)) -> 0.003597122302 | AL147: =IF($E$16="Nm3",HLOOKUP(AL146,Forside!L72:R74,2,FALSE),IF($E$16="kwh",1/278,1)) -> 0.003597122302 | AM147: =IF($E$16="Nm3",HLOOKUP(AM146,Forside!M72:S74,2,FALSE),IF($E$16="kwh",1/278,1)) -> 0.003597122302 | AN147: =IF($E$16="Nm3",HLOOKUP(AN146,Forside!N72:T74,2,FALSE),IF($E$16="kwh",1/278,1)) -> 0.003597122302 | AO147: =IF($E$16="Nm3",HLOOKUP(AO146,Forside!O72:U74,2,FALSE),IF($E$16="kwh",1/278,1)) -> 0.003597122302
D148: ='Oversættelse af landenavne'!B7 -> Belgien | E148: =IF($E$13="faste priser",HLOOKUP(E$146,'Baggrundsdata - HICP - deflator'!$R$22:$AC$32,3,FALSE),1) -> 0.85595994 | F148: =IF($E$13="faste priser",HLOOKUP(F$146,'Baggrundsdata - HICP - deflator'!$R$22:$AC$32,3,FALSE),1) -> 0.89442 | G148: =IF($E$13="faste priser",HLOOKUP(G$146,'Baggrundsdata - HICP - deflator'!$R$22:$AC$32,3,FALSE),1) -> 0.89432062 | H148: =IF($E$13="faste priser",HLOOKUP(H$146,'Baggrundsdata - HICP - deflator'!$R$22:$AC$32,3,FALSE),1) -> 0.91519042 | I148: =IF($E$13="faste priser",HLOOKUP(I$146,'Baggrundsdata - HICP - deflator'!$R$22:$AC$32,3,FALSE),1) -> 0.94589884 | J148: =IF($E$13="faste priser",HLOOKUP(J$146,'Baggrundsdata - HICP - deflator'!$R$22:$AC$32,3,FALSE),1) -> 0.97074384 | K148: =IF($E$13="faste priser",HLOOKUP(K$146,'Baggrundsdata - HICP - deflator'!$R$22:$AC$32,3,FALSE),1) -> 0.9828682 | L148: =IF($E$13="faste priser",HLOOKUP(L$146,'Baggrundsdata - HICP - deflator'!$R$22:$AC$32,3,FALSE),1) -> 0.98763844 | M148: =IF($E$13="faste priser",HLOOKUP(M$146,'Baggrundsdata - HICP - deflator'!$R$22:$AC$32,3,FALSE),1) -> 0.9938 | N148: =IF($E$13="faste priser",HLOOKUP(N$146,'Baggrundsdata - HICP - deflator'!$R$22:$AC$32,3,FALSE),1) -> 1 | O148: =IF($E$13="faste priser",HLOOKUP(O$146,'Baggrundsdata - HICP - deflator'!$R$22:$AC$32,3,FALSE),1) -> 0
D149: ='Oversættelse af landenavne'!B10 -> Danmark | E149: =IF($E$13="faste priser",HLOOKUP(E$146,'Baggrundsdata - HICP - deflator'!$R$22:$AC$32,4,FALSE),1) -> 0.87824 | F149: =IF($E$13="faste priser",HLOOKUP(F$146,'Baggrundsdata - HICP - deflator'!$R$22:$AC$32,4,FALSE),1) -> 0.910176 | G149: =IF($E$13="faste priser",HLOOKUP(G$146,'Baggrundsdata - HICP - deflator'!$R$22:$AC$32,4,FALSE),1) -> 0.919158 | H149: =IF($E$13="faste priser",HLOOKUP(H$146,'Baggrundsdata - HICP - deflator'!$R$22:$AC$32,4,FALSE),1) -> 0.939118 | I149: =IF($E$13="faste priser",HLOOKUP(I$146,'Baggrundsdata - HICP - deflator'!$R$22:$AC$32,4,FALSE),1) -> 0.964068 | J149: =IF($E$13="faste priser",HLOOKUP(J$146,'Baggrundsdata - HICP - deflator'!$R$22:$AC$32,4,FALSE),1) -> 0.987022 | K149: =IF($E$13="faste priser",HLOOKUP(K$146,'Baggrundsdata - HICP - deflator'!$R$22:$AC$32,4,FALSE),1) -> 0.992012 | L149: =IF($E$13="faste priser",HLOOKUP(L$146,'Baggrundsdata - HICP - deflator'!$R$22:$AC$32,4,FALSE),1) -> 0.996004 | M149: =IF($E$13="faste priser",HLOOKUP(M$146,'Baggrundsdata - HICP - deflator'!$R$22:$AC$32,4,FALSE),1) -> 0.998 | N149: =IF($E$13="faste priser",HLOOKUP(N$146,'Baggrundsdata - HICP - deflator'!$R$22:$AC$32,4,FALSE),1) -> 1 | O149: =IF($E$13="faste priser",HLOOKUP(O$146,'Baggrundsdata - HICP - deflator'!$R$22:$AC$32,4,FALSE),1) -> 0
D150: ='Oversættelse af landenavne'!B11 -> Tyskland | E150: =IF($E$13="faste priser",HLOOKUP(E$146,'Baggrundsdata - HICP - deflator'!$R$22:$AC$32,5,FALSE),1) -> 0.894105 | F150: =IF($E$13="faste priser",HLOOKUP(F$146,'Baggrundsdata - HICP - deflator'!$R$22:$AC$32,5,FALSE),1) -> 0.918081 | G150: =IF($E$13="faste priser",HLOOKUP(G$146,'Baggrundsdata - HICP - deflator'!$R$22:$AC$32,5,FALSE),1) -> 0.920079 | H150: =IF($E$13="faste priser",HLOOKUP(H$146,'Baggrundsdata - HICP - deflator'!$R$22:$AC$32,5,FALSE),1) -> 0.931068 | I150: =IF($E$13="faste priser",HLOOKUP(I$146,'Baggrundsdata - HICP - deflator'!$R$22:$AC$32,5,FALSE),1) -> 0.954045 | J150: =IF($E$13="faste priser",HLOOKUP(J$146,'Baggrundsdata - HICP - deflator'!$R$22:$AC$32,5,FALSE),1) -> 0.974025 | K150: =IF($E$13="faste priser",HLOOKUP(K$146,'Baggrundsdata - HICP - deflator'!$R$22:$AC$32,5,FALSE),1) -> 0.990009 | L150: =IF($E$13="faste priser",HLOOKUP(L$146,'Baggrundsdata - HICP - deflator'!$R$22:$AC$32,5,FALSE),1) -> 0.998001 | M150: =IF($E$13="faste priser",HLOOKUP(M$146,'Baggrundsdata - HICP - deflator'!$R$22:$AC$32,5,FALSE),1) -> 0.999 | N150: =IF($E$13="faste priser",HLOOKUP(N$146,'Baggrundsdata - HICP - deflator'!$R$22:$AC$32,5,FALSE),1) -> 1 | O150: =IF($E$13="faste priser",HLOOKUP(O$146,'Baggrundsdata - HICP - deflator'!$R$22:$AC$32,5,FALSE),1) -> 0
D151: ='Oversættelse af landenavne'!B16 -> Frankrig | E151: =IF($E$13="faste priser",HLOOKUP(E$146,'Baggrundsdata - HICP - deflator'!$R$22:$AC$32,6,FALSE),1) -> 0.89439432 | F151: =IF($E$13="faste priser",HLOOKUP(F$146,'Baggrundsdata - HICP - deflator'!$R$22:$AC$32,6,FALSE),1) -> 0.92256894 | G151: =IF($E$13="faste priser",HLOOKUP(G$146,'Baggrundsdata - HICP - deflator'!$R$22:$AC$32,6,FALSE),1) -> 0.92356804 | H151: =IF($E$13="faste priser",HLOOKUP(H$146,'Baggrundsdata - HICP - deflator'!$R$22:$AC$32,6,FALSE),1) -> 0.93965355 | I151: =IF($E$13="faste priser",HLOOKUP(I$146,'Baggrundsdata - HICP - deflator'!$R$22:$AC$32,6,FALSE),1) -> 0.9611342 | J151: =IF($E$13="faste priser",HLOOKUP(J$146,'Baggrundsdata - HICP - deflator'!$R$22:$AC$32,6,FALSE),1) -> 0.98241503 | K151: =IF($E$13="faste priser",HLOOKUP(K$146,'Baggrundsdata - HICP - deflator'!$R$22:$AC$32,6,FALSE),1) -> 0.99220621 | L151: =IF($E$13="faste priser",HLOOKUP(L$146,'Baggrundsdata - HICP - deflator'!$R$22:$AC$32,6,FALSE),1) -> 0.99820081 | M151: =IF($E$13="faste priser",HLOOKUP(M$146,'Baggrundsdata - HICP - deflator'!$R$22:$AC$32,6,FALSE),1) -> 0.9991 | N151: =IF($E$13="faste priser",HLOOKUP(N$146,'Baggrundsdata - HICP - deflator'!$R$22:$AC$32,6,FALSE),1) -> 1 | O151: =IF($E$13="faste priser",HLOOKUP(O$146,'Baggrundsdata - HICP - deflator'!$R$22:$AC$32,6,FALSE),1) -> 0
D152: ='Oversættelse af landenavne'!B18 -> Italien | E152: =IF($E$13="faste priser",HLOOKUP(E$146,'Baggrundsdata - HICP - deflator'!$R$22:$AC$32,7,FALSE),1) -> 0.872127 | F152: =IF($E$13="faste priser",HLOOKUP(F$146,'Baggrundsdata - HICP - deflator'!$R$22:$AC$32,7,FALSE),1) -> 0.903096 | G152: =IF($E$13="faste priser",HLOOKUP(G$146,'Baggrundsdata - HICP - deflator'!$R$22:$AC$32,7,FALSE),1) -> 0.910089 | H152: =IF($E$13="faste priser",HLOOKUP(H$146,'Baggrundsdata - HICP - deflator'!$R$22:$AC$32,7,FALSE),1) -> 0.925074 | I152: =IF($E$13="faste priser",HLOOKUP(I$146,'Baggrundsdata - HICP - deflator'!$R$22:$AC$32,7,FALSE),1) -> 0.952047 | J152: =IF($E$13="faste priser",HLOOKUP(J$146,'Baggrundsdata - HICP - deflator'!$R$22:$AC$32,7,FALSE),1) -> 0.983016 | K152: =IF($E$13="faste priser",HLOOKUP(K$146,'Baggrundsdata - HICP - deflator'!$R$22:$AC$32,7,FALSE),1) -> 0.996003 | L152: =IF($E$13="faste priser",HLOOKUP(L$146,'Baggrundsdata - HICP - deflator'!$R$22:$AC$32,7,FALSE),1) -> 0.998001 | M152: =IF($E$13="faste priser",HLOOKUP(M$146,'Baggrundsdata - HICP - deflator'!$R$22:$AC$32,7,FALSE),1) -> 0.999 | N152: =IF($E$13="faste priser",HLOOKUP(N$146,'Baggrundsdata - HICP - deflator'!$R$22:$AC$32,7,FALSE),1) -> 1 | O152: =IF($E$13="faste priser",HLOOKUP(O$146,'Baggrundsdata - HICP - deflator'!$R$22:$AC$32,7,FALSE),1) -> 0
D153: ='Oversættelse af landenavne'!B23 -> Holland | E153: =IF($E$13="faste priser",HLOOKUP(E$146,'Baggrundsdata - HICP - deflator'!$R$22:$AC$32,8,FALSE),1) -> 0.88174444 | F153: =IF($E$13="faste priser",HLOOKUP(F$146,'Baggrundsdata - HICP - deflator'!$R$22:$AC$32,8,FALSE),1) -> 0.90130328 | G153: =IF($E$13="faste priser",HLOOKUP(G$146,'Baggrundsdata - HICP - deflator'!$R$22:$AC$32,8,FALSE),1) -> 0.9100848 | H153: =IF($E$13="faste priser",HLOOKUP(H$146,'Baggrundsdata - HICP - deflator'!$R$22:$AC$32,8,FALSE),1) -> 0.91856695 | I153: =IF($E$13="faste priser",HLOOKUP(I$146,'Baggrundsdata - HICP - deflator'!$R$22:$AC$32,8,FALSE),1) -> 0.94121928 | J153: =IF($E$13="faste priser",HLOOKUP(J$146,'Baggrundsdata - HICP - deflator'!$R$22:$AC$32,8,FALSE),1) -> 0.96786321 | K153: =IF($E$13="faste priser",HLOOKUP(K$146,'Baggrundsdata - HICP - deflator'!$R$22:$AC$32,8,FALSE),1) -> 0.99261113 | L153: =IF($E$13="faste priser",HLOOKUP(L$146,'Baggrundsdata - HICP - deflator'!$R$22:$AC$32,8,FALSE),1) -> 0.99580441 | M153: =IF($E$13="faste priser",HLOOKUP(M$146,'Baggrundsdata - HICP - deflator'!$R$22:$AC$32,8,FALSE),1) -> 0.9979 | N153: =IF($E$13="faste priser",HLOOKUP(N$146,'Baggrundsdata - HICP - deflator'!$R$22:$AC$32,8,FALSE),1) -> 1 | O153: =IF($E$13="faste priser",HLOOKUP(O$146,'Baggrundsdata - HICP - deflator'!$R$22:$AC$32,8,FALSE),1) -> 0
D154: ='Oversættelse af landenavne'!B30 -> Sverige | E154: =IF($E$13="faste priser",HLOOKUP(E$146,'Baggrundsdata - HICP - deflator'!$R$22:$AC$32,9,FALSE),1) -> 0.8919126 | F154: =IF($E$13="faste priser",HLOOKUP(F$146,'Baggrundsdata - HICP - deflator'!$R$22:$AC$32,9,FALSE),1) -> 0.9218019 | G154: =IF($E$13="faste priser",HLOOKUP(G$146,'Baggrundsdata - HICP - deflator'!$R$22:$AC$32,9,FALSE),1) -> 0.9396759 | H154: =IF($E$13="faste priser",HLOOKUP(H$146,'Baggrundsdata - HICP - deflator'!$R$22:$AC$32,9,FALSE),1) -> 0.9575499 | I154: =IF($E$13="faste priser",HLOOKUP(I$146,'Baggrundsdata - HICP - deflator'!$R$22:$AC$32,9,FALSE),1) -> 0.9706575 | J154: =IF($E$13="faste priser",HLOOKUP(J$146,'Baggrundsdata - HICP - deflator'!$R$22:$AC$32,9,FALSE),1) -> 0.9796938 | K154: =IF($E$13="faste priser",HLOOKUP(K$146,'Baggrundsdata - HICP - deflator'!$R$22:$AC$32,9,FALSE),1) -> 0.984063 | L154: =IF($E$13="faste priser",HLOOKUP(L$146,'Baggrundsdata - HICP - deflator'!$R$22:$AC$32,9,FALSE),1) -> 0.986049 | M154: =IF($E$13="faste priser",HLOOKUP(M$146,'Baggrundsdata - HICP - deflator'!$R$22:$AC$32,9,FALSE),1) -> 0.993 | N154: =IF($E$13="faste priser",HLOOKUP(N$146,'Baggrundsdata - HICP - deflator'!$R$22:$AC$32,9,FALSE),1) -> 1 | O154: =IF($E$13="faste priser",HLOOKUP(O$146,'Baggrundsdata - HICP - deflator'!$R$22:$AC$32,9,FALSE),1) -> 0
D155: ='Oversættelse af landenavne'!B31 -> UK | E155: =IF($E$13="faste priser",HLOOKUP(E$146,'Baggrundsdata - HICP - deflator'!$R$22:$AC$32,10,FALSE),1) -> 0.818 | F155: =IF($E$13="faste priser",HLOOKUP(F$146,'Baggrundsdata - HICP - deflator'!$R$22:$AC$32,10,FALSE),1) -> 0.847 | G155: =IF($E$13="faste priser",HLOOKUP(G$146,'Baggrundsdata - HICP - deflator'!$R$22:$AC$32,10,FALSE),1) -> 0.866 | H155: =IF($E$13="faste priser",HLOOKUP(H$146,'Baggrundsdata - HICP - deflator'!$R$22:$AC$32,10,FALSE),1) -> 0.894 | I155: =IF($E$13="faste priser",HLOOKUP(I$146,'Baggrundsdata - HICP - deflator'!$R$22:$AC$32,10,FALSE),1) -> 0.934 | J155: =IF($E$13="faste priser",HLOOKUP(J$146,'Baggrundsdata - HICP - deflator'!$R$22:$AC$32,10,FALSE),1) -> 0.961 | K155: =IF($E$13="faste priser",HLOOKUP(K$146,'Baggrundsdata - HICP - deflator'!$R$22:$AC$32,10,FALSE),1) -> 0.985 | L155: =IF($E$13="faste priser",HLOOKUP(L$146,'Baggrundsdata - HICP - deflator'!$R$22:$AC$32,10,FALSE),1) -> 1 | M155: =IF($E$13="faste priser",HLOOKUP(M$146,'Baggrundsdata - HICP - deflator'!$R$22:$AC$32,10,FALSE),1) -> 1 | N155: =IF($E$13="faste priser",HLOOKUP(N$146,'Baggrundsdata - HICP - deflator'!$R$22:$AC$32,10,FALSE),1) -> 1 | O155: =IF($E$13="faste priser",HLOOKUP(O$146,'Baggrundsdata - HICP - deflator'!$R$22:$AC$32,10,FALSE),1) -> 0

Sheet Alle lande, valgt år
D1: NAVN PÅ ARK: | F1: Alle lande, valgt år
D2: Data hentes fra: | F2: 'Baggrundstabeller for alle lande'
D4: Sådan bruges arket:
D5: Arket 'alle lande, udvalgt år' viser figurer og tabeller (de grå-blå) for gasprisen for industrielle forbrugere opdelt på level 1, 2 og 3 for hvert interval. Prisen vises for alle lande i det valgte år.
D6: Året, pristypen, basisået, valuta og enhed kan ændres. Dette gøres i de farvede rullemenuer nedenfor. Til hver resultattabel hører tre figurer. En for hvert level. I resultattabellen er totalprisen for hvert level opgjort i hver sin totalprissøjle. Hvis man ønsker at sortere figurerne efter stigende priser kan man kopiere de ønskede tabeller og figurer over i et seperat ark.
D7: ="Rent teknisk styrer hver menu styrer en tabel i tilsvarende farve i arket '"&'Baggrundstabeller for alle land'!F1&"'. Disse tabeller ganges sammen og heraf fremkommer resultattabellen som følge af de valg der træffes i rullemenuerne." -> Rent teknisk styrer hver menu styrer en tabel i tilsvarende farve i arket 'Baggrundstabeller for alle lande, valgt år'. Disse tabeller ganges sammen og heraf fremkommer resultattabellen som følge af de valg der træffes i rullemenuerne.
D11: Vælg | G11: Resultater vises i
D12: Vælg år | F12: 2016 | G12: Tabel A
D13: Vælg pristype | F13: faste priser | G13: Tabel B
D14: Vælg Basisår (kun ved fast pris) | F14: 2016 | G14: Tabel B
D15: Vælg valuta | F15: DKK øre | G15: Tabel C
D16: Vælg enhed (NM3/GJ) | F16: kwh | G16: Tabel D
D19: Resultatfigurer og -tabeller
D20: Valgene truffet ovenfor giver tabeller og figurer der er:
D21: ="Oppgjort for året "&F12&" i "&$F$13&" med basisår "&$F$14 -> Oppgjort for året 2016 i faste priser med basisår 2016
D22: ="Vist i "&F15&" / "&F16&"." -> Vist i DKK øre / kwh.
D24: IA: < 20 GJ | M24: IB: 20 GJ < 200 GJ | V24: IC: >200 GJ
B26: Level 1: Gaspris | D26: ="Figur XX: "&RIGHT($B$26,8)&". Priserne er vist for år "&$F$12&" i "&$F$13&" med basisår "&$F$14&". Priserne er vist i "&$F$15&" / "&$F$16&". " -> Figur XX: Gaspris. Priserne er vist for år 2016 i faste priser med basisår 2016. Priserne er vist i DKK øre / kwh. | M26: ="Figur XX: "&RIGHT($B$26,8)&". Priserne er vist for år "&$F$12&" i "&$F$13&" med basisår "&$F$14&". Priserne er vist i "&$F$15&" / "&$F$16&". " -> Figur XX: Gaspris. Priserne er vist for år 2016 i faste priser med basisår 2016. Priserne er vist i DKK øre / kwh. | V26: ="Figur XX: "&RIGHT($B$26,8)&". Priserne er vist for år "&$F$12&" i "&$F$13&" med basisår "&$F$14&". Priserne er vist i "&$F$15&" / "&$F$16&". " -> Figur XX: Gaspris. Priserne er vist for år 2016 i faste priser med basisår 2016. Priserne er vist i DKK øre / kwh. | AE26: =B26 -> Level 1: Gaspris
D45: Kilde:Eurostat | M45: Kilde:Eurostat | V45: Kilde:Eurostat
B49: Level 2: Gaspris inkl. afgifter | D49: ="Figur XX: "&RIGHT($B$49,31)&". Priserne er vist for år "&$F$12&" i "&$F$13&" med basisår "&$F$14&". Priserne er vist i "&$F$15&" / "&$F$16&". " -> Figur XX: evel 2: Gaspris inkl. afgifter. Priserne er vist for år 2016 i faste priser med basisår 2016. Priserne er vist i DKK øre / kwh. | M49: ="Figur XX: "&RIGHT($B$49,31)&". Priserne er vist for år "&$F$12&" i "&$F$13&" med basisår "&$F$14&". Priserne er vist i "&$F$15&" / "&$F$16&". " -> Figur XX: evel 2: Gaspris inkl. afgifter. Priserne er vist for år 2016 i faste priser med basisår 2016. Priserne er vist i DKK øre / kwh. | V49: ="Figur XX: "&RIGHT($B$49,31)&". Priserne er vist for år "&$F$12&" i "&$F$13&" med basisår "&$F$14&". Priserne er vist i "&$F$15&" / "&$F$16&". " -> Figur XX: evel 2: Gaspris inkl. afgifter. Priserne er vist for år 2016 i faste priser med basisår 2016. Priserne er vist i DKK øre / kwh. | AE49: =B49 -> Level 2: Gaspris inkl. afgifter
D68: Kilde:Eurostat | M68: Kilde:Eurostat | V68: Kilde:Eurostat
B72: Level 3: Gaspris inkl. afgifter og moms | D72: ="Figur XX: "&RIGHT($B$72,35)&". Priserne er vist for år "&$F$12&" i "&$F$13&" med basisår "&$F$14&". Priserne er vist i "&$F$15&" / "&$F$16&". " -> Figur XX: 3: Gaspris inkl. afgifter og moms. Priserne er vist for år 2016 i faste priser med basisår 2016. Priserne er vist i DKK øre / kwh. | M72: ="Figur XX: "&RIGHT($B$72,35)&". Priserne er vist for år "&$F$12&" i "&$F$13&" med basisår "&$F$14&". Priserne er vist i "&$F$15&" / "&$F$16&". " -> Figur XX: 3: Gaspris inkl. afgifter og moms. Priserne er vist for år 2016 i faste priser med basisår 2016. Priserne er vist i DKK øre / kwh. | V72: ="Figur XX: "&RIGHT($B$72,35)&". Priserne er vist for år "&$F$12&" i "&$F$13&" med basisår "&$F$14&". Priserne er vist i "&$F$15&" / "&$F$16&". " -> Figur XX: 3: Gaspris inkl. afgifter og moms. Priserne er vist for år 2016 i faste priser med basisår 2016. Priserne er vist i DKK øre / kwh. | AE72: =B72 -> Level 3: Gaspris inkl. afgifter og moms
D92: Kilde:Eurostat | M92: Kilde:Eurostat | V92: Kilde:Eurostat
D99: =D24 -> IA: < 20 GJ | M99: =M24 -> IB: 20 GJ < 200 GJ | V99: =V24 -> IC: >200 GJ
D101: ='Alle lande, valgt år'!$F$15 &" / "& 'Alle lande, valgt år'!$F$16&" år "&'Alle lande, valgt år'!$F$12 -> DKK øre / kwh år 2016 | M101: ='Alle lande, valgt år'!$F$15 &" / "& 'Alle lande, valgt år'!$F$16&" år "&'Alle lande, valgt år'!$F$12 -> DKK øre / kwh år 2016 | V101: ='Alle lande, valgt år'!$F$15 &" / "& 'Alle lande, valgt år'!$F$16&" år "&'Alle lande, valgt år'!$F$12 -> DKK øre / kwh år 2016
E102: original rækkefølge | F102: Gaspris | G102: Afgifter | H102: Moms | I102: Total pris (level 1) | J102: Total pris (level 2) | K102: Total pris (level 3) | N102: original rækkefølge | O102: Gaspris | P102: Afgifter | Q102: Moms | R102: Total pris (level 1) | S102: Total pris (level 2) | T102: Total pris (level 3) | W102: original rækkefølge | X102: Gaspris | Y102: Afgifter | Z102: Moms | AA102: Total pris (level 1) | AB102: Total pris (level 2) | AC102: Total pris (level 3)
D103: ='Baggrundstabeller for alle land'!D52 -> Rumænien | E103: 24 | F103: ='Baggrundstabeller for alle land'!F52 -> 13.29483845 | G103: ='Baggrundstabeller for alle land'!G52 -> 6.888926811 | H103: ='Baggrundstabeller for alle land'!H52 -> 4.844885918 | I103: =F103 -> 13.29483845 | J103: =SUM(F103:G103) -> 20.18376527 | K103: =SUM(F103:H103) -> 25.02865118 | M103: ='Baggrundstabeller for alle land'!M31 -> EU-28 | N103: 1 | O103: ='Baggrundstabeller for alle land'!O31 -> 34.82638481 | P103: ='Baggrundstabeller for alle land'!P31 -> 5.170378668 | Q103: ='Baggrundstabeller for alle land'!Q31 -> 6.241959739 | R103: =O103 -> 34.82638481 | S103: =SUM(O103:P103) -> 39.99676348 | T103: =SUM(O103:Q103) -> 46.23872322 | V103: ='Baggrundstabeller for alle land'!V31 -> EU-28 | W103: 1 | X103: ='Baggrundstabeller for alle land'!X31 -> 31.07585106 | Y103: ='Baggrundstabeller for alle land'!Y31 -> 5.331115829 | Z103: ='Baggrundstabeller for alle land'!Z31 -> 6.081222579 | AA103: =X103 -> 31.07585106 | AB103: =SUM(X103:Y103) -> 36.40696689 | AC103: =SUM(X103:Z103) -> 42.48818947
D104: ='Baggrundstabeller for alle land'!D47 -> Ungarn | E104: 19 | F104: ='Baggrundstabeller for alle land'!F47 -> 20.71741264 | G104: ='Baggrundstabeller for alle land'!G47 -> 0 | H104: ='Baggrundstabeller for alle land'!H47 -> 5.593653191 | I104: 20.71741264 | J104: 20.71741264 | K104: 26.31106583 | M104: ='Baggrundstabeller for alle land'!M32 -> Belgien | N104: 4 | O104: ='Baggrundstabeller for alle land'!O32 -> 30.88832438 | P104: ='Baggrundstabeller for alle land'!P32 -> 2.866479365 | Q104: ='Baggrundstabeller for alle land'!Q32 -> 6.938487436 | R104: 30.88832438 | S104: 33.75480374 | T104: 40.69329118 | V104: ='Baggrundstabeller for alle land'!V32 -> Belgien | W104: 4 | X104: ='Baggrundstabeller for alle land'!X32 -> 28.18258217 | Y104: ='Baggrundstabeller for alle land'!Y32 -> 2.41105741 | Z104: ='Baggrundstabeller for alle land'!Z32 -> 6.161591159 | AA104: 28.18258217 | AB104: 30.59363958 | AC104: 36.75523074
D105: ='Baggrundstabeller for alle land'!D33 -> Bulgarien | E105: 5 | F105: ='Baggrundstabeller for alle land'!F33 -> 24.14861523 | G105: ='Baggrundstabeller for alle land'!G33 -> 0 | H105: ='Baggrundstabeller for alle land'!H33 -> 4.835241688 | I105: 24.14861523 | J105: 24.14861523 | K105: 28.98385692 | M105: ='Baggrundstabeller for alle land'!M33 -> Bulgarien | N105: 5 | O105: ='Baggrundstabeller for alle land'!O33 -> 22.8201226 | P105: ='Baggrundstabeller for alle land'!P33 -> 0 | Q105: ='Baggrundstabeller for alle land'!Q33 -> 4.574847488 | R105: 22.8201226 | S105: 22.8201226 | T105: 27.39497008 | V105: ='Baggrundstabeller for alle land'!V33 -> Bulgarien | W105: 5 | X105: ='Baggrundstabeller for alle land'!X33 -> 22.64197224 | Y105: ='Baggrundstabeller for alle land'!Y33 -> 0 | Z105: ='Baggrundstabeller for alle land'!Z33 -> 4.533859512 | AA105: 22.64197224 | AB105: 22.64197224 | AC105: 27.17583175
D106: ='Baggrundstabeller for alle land'!D37 -> Estland | E106: 9 | F106: ='Baggrundstabeller for alle land'!F37 -> 26.52163151 | G106: ='Baggrundstabeller for alle land'!G37 -> 2.652163151 | H106: ='Baggrundstabeller for alle land'!H37 -> 5.840116838 | I106: 26.52163151 | J106: 29.17379466 | K106: 35.0139115 | M106: ='Baggrundstabeller for alle land'!M34 -> Tjekkiet | N106: 6 | O106: ='Baggrundstabeller for alle land'!O34 -> 35.83983261 | P106: ='Baggrundstabeller for alle land'!P34 -> 0 | Q106: ='Baggrundstabeller for alle land'!Q34 -> 7.526785444 | R106: 35.83983261 | S106: 35.83983261 | T106: 43.36661805 | V106: ='Baggrundstabeller for alle land'!V34 -> Tjekkiet | W106: 6 | X106: ='Baggrundstabeller for alle land'!X34 -> 33.43038257 | Y106: ='Baggrundstabeller for alle land'!Y34 -> 0 | Z106: ='Baggrundstabeller for alle land'!Z34 -> 7.020463388 | AA106: 33.43038257 | AB106: 33.43038257 | AC106: 40.45084596
D107: ='Baggrundstabeller for alle land'!D42 -> Kroatien | E107: 14 | F107: ='Baggrundstabeller for alle land'!F42 -> 30.61346383 | G107: ='Baggrundstabeller for alle land'!G42 -> 0 | H107: ='Baggrundstabeller for alle land'!H42 -> 7.653499905 | I107: 30.61346383 | J107: 30.61346383 | K107: 38.26696374 | M107: ='Baggrundstabeller for alle land'!M35 -> Danmark | N107: 7 | O107: ='Baggrundstabeller for alle land'!O35 -> 21.28802956 | P107: ='Baggrundstabeller for alle land'!P35 -> 21.39572346 | Q107: ='Baggrundstabeller for alle land'!Q35 -> 10.66919693 | R107: 21.28802956 | S107: 42.68375302 | T107: 53.35294995 | V107: ='Baggrundstabeller for alle land'!V35 -> Danmark | W107: 7 | X107: ='Baggrundstabeller for alle land'!X35 -> 21.28802956 | Y107: ='Baggrundstabeller for alle land'!Y35 -> 21.39572346 | Z107: ='Baggrundstabeller for alle land'!Z35 -> 10.66919693 | AA107: 21.28802956 | AB107: 42.68375302 | AC107: 53.35294995
D108: ='Baggrundstabeller for alle land'!D46 -> luxembourg | E108: 18 | F108: ='Baggrundstabeller for alle land'!F46 -> 34.55848954 | G108: ='Baggrundstabeller for alle land'!G46 -> 1.419844919 | H108: ='Baggrundstabeller for alle land'!H46 -> 3.134374633 | I108: 34.55848954 | J108: 35.97833446 | K108: 39.1127091 | M108: ='Baggrundstabeller for alle land'!M36 -> Tyskland | N108: 8 | O108: ='Baggrundstabeller for alle land'!O36 -> 36.9159679 | P108: ='Baggrundstabeller for alle land'!P36 -> 4.420271918 | Q108: ='Baggrundstabeller for alle land'!Q36 -> 7.849331346 | R108: 36.9159679 | S108: 41.33623982 | T108: 49.18557117 | V108: ='Baggrundstabeller for alle land'!V36 -> Tyskland | W108: 8 | X108: ='Baggrundstabeller for alle land'!X36 -> 33.72801421 | Y108: ='Baggrundstabeller for alle land'!Y36 -> 4.420271918 | Z108: ='Baggrundstabeller for alle land'!Z36 -> 7.259961757 | AA108: 33.72801421 | AB108: 38.14828613 | AC108: 45.40824789
D109: ='Baggrundstabeller for alle land'!D50 -> Polen | E109: 22 | F109: ='Baggrundstabeller for alle land'!F50 -> 34.38248235 | G109: ='Baggrundstabeller for alle land'!G50 -> 0 | H109: ='Baggrundstabeller for alle land'!H50 -> 7.910411467 | I109: 34.38248235 | J109: 34.38248235 | K109: 42.29289382 | M109: ='Baggrundstabeller for alle land'!M37 -> Estland | N109: 9 | O109: ='Baggrundstabeller for alle land'!O37 -> 24.75352274 | P109: ='Baggrundstabeller for alle land'!P37 -> 2.652163151 | Q109: ='Baggrundstabeller for alle land'!Q37 -> 5.49185299 | R109: 24.75352274 | S109: 27.40568589 | T109: 32.89753888 | V109: ='Baggrundstabeller for alle land'!V37 -> Estland | W109: 9 | X109: ='Baggrundstabeller for alle land'!X37 -> 22.98541398 | Y109: ='Baggrundstabeller for alle land'!Y37 -> 2.652163151 | Z109: ='Baggrundstabeller for alle land'!Z37 -> 5.116799615 | AA109: 22.98541398 | AB109: 25.63757713 | AC109: 30.75437674
D110: ='Baggrundstabeller for alle land'!D53 -> Slovenien | E110: 25 | F110: ='Baggrundstabeller for alle land'!F53 -> 37.37138986 | G110: ='Baggrundstabeller for alle land'!G53 -> 4.848904347 | H110: ='Baggrundstabeller for alle land'!H53 -> 9.269176265 | I110: 37.37138986 | J110: 42.2202942 | K110: 51.48947047 | M110: ='Baggrundstabeller for alle land'!M38 -> Irland | N110: 10 | O110: ='Baggrundstabeller for alle land'!O38 -> 40.02355301 | P110: ='Baggrundstabeller for alle land'!P38 -> 2.732531731 | Q110: ='Baggrundstabeller for alle land'!Q38 -> 5.786537784 | R110: 40.02355301 | S110: 42.75608474 | T110: 48.54262252 | V110: ='Baggrundstabeller for alle land'!V38 -> Irland | W110: 10 | X110: ='Baggrundstabeller for alle land'!X38 -> 37.15707364 | Y110: ='Baggrundstabeller for alle land'!Y38 -> 2.759321258 | Z110: ='Baggrundstabeller for alle land'!Z38 -> 5.384694882 | AA110: 37.15707364 | AB110: 39.9163949 | AC110: 45.30108978
D111: ='Baggrundstabeller for alle land'!D44 -> Letland | E111: 16 | F111: ='Baggrundstabeller for alle land'!F44 -> 41.65771414 | G111: ='Baggrundstabeller for alle land'!G44 -> 1.285897285 | H111: ='Baggrundstabeller for alle land'!H44 -> 9.028070524 | I111: 41.65771414 | J111: 42.94361143 | K111: 51.97168195 | M111: ='Baggrundstabeller for alle land'!M39 -> Grækenland | N111: 11 | O111: ='Baggrundstabeller for alle land'!O39 -> 32.89753888 | P111: ='Baggrundstabeller for alle land'!P39 -> 4.286324285 | Q111: ='Baggrundstabeller for alle land'!Q39 -> 4.82211482 | R111: 32.89753888 | S111: 37.18386317 | T111: 42.00597799 | V111: ='Baggrundstabeller for alle land'!V39 -> Grækenland | W111: 11 | X111: ='Baggrundstabeller for alle land'!X39 -> 31.93311592 | Y111: ='Baggrundstabeller for alle land'!Y39 -> 4.393482392 | Z111: ='Baggrundstabeller for alle land'!Z39 -> 4.688167186 | AA111: 31.93311592 | AB111: 36.32659831 | AC111: 41.0147655
D112: ='Baggrundstabeller for alle land'!D45 -> Litaun | E112: 17 | F112: ='Baggrundstabeller for alle land'!F45 -> 45.9172489 | G112: ='Baggrundstabeller for alle land'!G45 -> 0 | H112: ='Baggrundstabeller for alle land'!H45 -> 9.64422964 | I112: 45.9172489 | J112: 45.9172489 | K112: 55.56147854 | M112: ='Baggrundstabeller for alle land'!M40 -> Spanien | N112: 12 | O112: ='Baggrundstabeller for alle land'!O40 -> 39.9163949 | P112: ='Baggrundstabeller for alle land'!P40 -> 1.741319241 | Q112: ='Baggrundstabeller for alle land'!Q40 -> 8.760175257 | R112: 39.9163949 | S112: 41.65771414 | T112: 50.4178894 | V112: ='Baggrundstabeller for alle land'!V40 -> Spanien | W112: 12 | X112: ='Baggrundstabeller for alle land'!X40 -> 32.79038078 | Y112: ='Baggrundstabeller for alle land'!Y40 -> 1.741319241 | Z112: ='Baggrundstabeller for alle land'!Z40 -> 7.259961757 | AA112: 32.79038078 | AB112: 34.53170002 | AC112: 41.79166177
D113: ='Baggrundstabeller for alle land'!D35 -> Danmark | E113: 7 | F113: ='Baggrundstabeller for alle land'!F35 -> 21.28802956 | G113: ='Baggrundstabeller for alle land'!G35 -> 21.39572346 | H113: ='Baggrundstabeller for alle land'!H35 -> 10.66919693 | I113: 21.28802956 | J113: 42.68375302 | K113: 53.35294995 | M113: ='Baggrundstabeller for alle land'!M41 -> Frankrig | N113: 13 | O113: ='Baggrundstabeller for alle land'!O41 -> 37.39817938 | P113: ='Baggrundstabeller for alle land'!P41 -> 3.964849963 | Q113: ='Baggrundstabeller for alle land'!Q41 -> 6.992066489 | R113: 37.39817938 | S113: 41.36302935 | T113: 48.35509584 | V113: ='Baggrundstabeller for alle land'!V41 -> Frankrig | W113: 13 | X113: ='Baggrundstabeller for alle land'!X41 -> 31.39732538 | Y113: ='Baggrundstabeller for alle land'!Y41 -> 2.893268892 | Z113: ='Baggrundstabeller for alle land'!Z41 -> 6.536644534 | AA113: 31.39732538 | AB113: 34.29059428 | AC113: 40.82723881
D114: ='Baggrundstabeller for alle land'!D38 -> Irland | E114: 10 | F114: ='Baggrundstabeller for alle land'!F38 -> 45.08677357 | G114: ='Baggrundstabeller for alle land'!G38 -> 2.759321258 | H114: ='Baggrundstabeller for alle land'!H38 -> 6.456275954 | I114: 45.08677357 | J114: 47.84609483 | K114: 54.30237078 | M114: ='Baggrundstabeller for alle land'!M42 -> Kroatien | N114: 14 | O114: ='Baggrundstabeller for alle land'!O42 -> 25.51139846 | P114: ='Baggrundstabeller for alle land'!P42 -> 0 | Q114: ='Baggrundstabeller for alle land'!Q42 -> 6.37778264 | R114: 25.51139846 | S114: 25.51139846 | T114: 31.8891811 | V114: ='Baggrundstabeller for alle land'!V42 -> Kroatien | W114: 14 | X114: ='Baggrundstabeller for alle land'!X42 -> 24.15424103 | Y114: ='Baggrundstabeller for alle land'!Y42 -> 0 | Z114: ='Baggrundstabeller for alle land'!Z42 -> 6.041306184 | AA114: 24.15424103 | AB114: 24.15424103 | AC114: 30.19554721
D115: ='Baggrundstabeller for alle land'!D32 -> Belgien | E115: 4 | F115: ='Baggrundstabeller for alle land'!F32 -> 42.43461042 | G115: ='Baggrundstabeller for alle land'!G32 -> 3.884481383 | H115: ='Baggrundstabeller for alle land'!H32 -> 9.590650587 | I115: 42.43461042 | J115: 46.3190918 | K115: 55.90974239 | M115: ='Baggrundstabeller for alle land'!M43 -> Italien | N115: 15 | O115: ='Baggrundstabeller for alle land'!O43 -> 35.25501724 | P115: ='Baggrundstabeller for alle land'!P43 -> 11.41233841 | Q115: ='Baggrundstabeller for alle land'!Q43 -> 7.768962766 | R115: 35.25501724 | S115: 46.66735565 | T115: 54.43631841 | V115: ='Baggrundstabeller for alle land'!V43 -> Italien | W115: 15 | X115: ='Baggrundstabeller for alle land'!X43 -> 29.68279567 | Y115: ='Baggrundstabeller for alle land'!Y43 -> 13.31439481 | Z115: ='Baggrundstabeller for alle land'!Z43 -> 9.215597212 | AA115: 29.68279567 | AB115: 42.99719048 | AC115: 52.21278769
D116: ='Baggrundstabeller for alle land'!D49 -> Østrig | E116: 21 | F116: ='Baggrundstabeller for alle land'!F49 -> 47.63177861 | G116: ='Baggrundstabeller for alle land'!G49 -> 5.277536775 | H116: ='Baggrundstabeller for alle land'!H49 -> 10.63544213 | I116: 47.63177861 | J116: 52.90931539 | K116: 63.54475752 | M116: ='Baggrundstabeller for alle land'!M44 -> Letland | N116: 16 | O116: ='Baggrundstabeller for alle land'!O44 -> 24.78031227 | P116: ='Baggrundstabeller for alle land'!P44 -> 1.285897285 | Q116: ='Baggrundstabeller for alle land'!Q44 -> 5.49185299 | R116: 24.78031227 | S116: 26.06620956 | T116: 31.55806255 | V116: ='Baggrundstabeller for alle land'!V44 -> Letland | W116: 16 | X116: ='Baggrundstabeller for alle land'!X44 -> 24.78031227 | Y116: ='Baggrundstabeller for alle land'!Y44 -> 1.285897285 | Z116: ='Baggrundstabeller for alle land'!Z44 -> 5.465063463 | AA116: 24.78031227 | AB116: 26.06620956 | AC116: 31.53127302
D117: ='Baggrundstabeller for alle land'!D56 -> UK | E117: 28 | F117: ='Baggrundstabeller for alle land'!F56 -> 53.95249956 | G117: ='Baggrundstabeller for alle land'!G56 -> 0 | H117: ='Baggrundstabeller for alle land'!H56 -> 2.718065387 | I117: 53.95249956 | J117: 53.95249956 | K117: 56.67056495 | M117: ='Baggrundstabeller for alle land'!M45 -> Litaun | N117: 17 | O117: ='Baggrundstabeller for alle land'!O45 -> 25.39647139 | P117: ='Baggrundstabeller for alle land'!P45 -> 0 | Q117: ='Baggrundstabeller for alle land'!Q45 -> 5.331115829 | R117: 25.39647139 | S117: 25.39647139 | T117: 30.72758722 | V117: ='Baggrundstabeller for alle land'!V45 -> Litaun | W117: 17 | X117: ='Baggrundstabeller for alle land'!X45 -> 25.39647139 | Y117: ='Baggrundstabeller for alle land'!Y45 -> 0 | Z117: ='Baggrundstabeller for alle land'!Z45 -> 5.331115829 | AA117: 25.39647139 | AB117: 25.39647139 | AC117: 30.72758722
D118: ='Baggrundstabeller for alle land'!D34 -> Tjekkiet | E118: 6 | F118: ='Baggrundstabeller for alle land'!F34 -> 56.77611568 | G118: ='Baggrundstabeller for alle land'!G34 -> 0 | H118: ='Baggrundstabeller for alle land'!H34 -> 11.92267889 | I118: 56.77611568 | J118: 56.77611568 | K118: 68.69879458 | M118: ='Baggrundstabeller for alle land'!M46 -> luxembourg | N118: 18 | O118: ='Baggrundstabeller for alle land'!O46 -> 29.25416324 | P118: ='Baggrundstabeller for alle land'!P46 -> 1.687740187 | Q118: ='Baggrundstabeller for alle land'!Q46 -> 2.866479365 | R118: 29.25416324 | S118: 30.94190343 | T118: 33.80838279 | V118: ='Baggrundstabeller for alle land'!V46 -> luxembourg | W118: 18 | X118: ='Baggrundstabeller for alle land'!X46 -> 29.36132135 | Y118: ='Baggrundstabeller for alle land'!Y46 -> 1.741319241 | Z118: ='Baggrundstabeller for alle land'!Z46 -> 2.920058419 | AA118: 29.36132135 | AB118: 31.10264059 | AC118: 34.02269901
D119: ='Baggrundstabeller for alle land'!D39 -> Grækenland | E119: 11 | F119: ='Baggrundstabeller for alle land'!F39 -> 40.3182378 | G119: ='Baggrundstabeller for alle land'!G39 -> 4.232745231 | H119: ='Baggrundstabeller for alle land'!H39 -> 5.759748257 | I119: 40.3182378 | J119: 44.55098303 | K119: 50.31073129 | M119: ='Baggrundstabeller for alle land'!M47 -> Ungarn | N119: 19 | O119: ='Baggrundstabeller for alle land'!O47 -> 20.16876313 | P119: ='Baggrundstabeller for alle land'!P47 -> 0 | Q119: ='Baggrundstabeller for alle land'!Q47 -> 5.445507108 | R119: 20.16876313 | S119: 20.16876313 | T119: 25.61427024 | V119: ='Baggrundstabeller for alle land'!V47 -> Ungarn | W119: 19 | X119: ='Baggrundstabeller for alle land'!X47 -> 20.1762642 | Y119: ='Baggrundstabeller for alle land'!Y47 -> 0 | Z119: ='Baggrundstabeller for alle land'!Z47 -> 5.44765027 | AA119: 20.1762642 | AB119: 20.1762642 | AC119: 25.62391447
D120: ='Baggrundstabeller for alle land'!D31 -> EU-28 | E120: 1 | F120: ='Baggrundstabeller for alle land'!F31 -> 53.92731741 | G120: ='Baggrundstabeller for alle land'!G31 -> 5.49185299 | H120: ='Baggrundstabeller for alle land'!H31 -> 8.760175257 | I120: 53.92731741 | J120: 59.41917039 | K120: 68.17934565 | M120: ='Baggrundstabeller for alle land'!M48 -> Holland | N120: 20 | O120: ='Baggrundstabeller for alle land'!O48 -> 27.88789738 | P120: ='Baggrundstabeller for alle land'!P48 -> 20.03856603 | Q120: ='Baggrundstabeller for alle land'!Q48 -> 10.07286207 | R120: 27.88789738 | S120: 47.92646341 | T120: 57.99932548 | V120: ='Baggrundstabeller for alle land'!V48 -> Holland | W120: 20 | X120: ='Baggrundstabeller for alle land'!X48 -> 23.84267883 | Y120: ='Baggrundstabeller for alle land'!Y48 -> 20.0117765 | Z120: ='Baggrundstabeller for alle land'!Z48 -> 9.215597212 | AA120: 23.84267883 | AB120: 43.85445534 | AC120: 53.07005255
D121: ='Baggrundstabeller for alle land'!D54 -> Slovakiet | E121: 26 | F121: ='Baggrundstabeller for alle land'!F54 -> 62.71428219 | G121: ='Baggrundstabeller for alle land'!G54 -> 0 | H121: ='Baggrundstabeller for alle land'!H54 -> 12.53749853 | I121: 62.71428219 | J121: 62.71428219 | K121: 75.25178072 | M121: ='Baggrundstabeller for alle land'!M49 -> Østrig | N121: 21 | O121: ='Baggrundstabeller for alle land'!O49 -> 37.66607465 | P121: ='Baggrundstabeller for alle land'!P49 -> 5.116799615 | Q121: ='Baggrundstabeller for alle land'!Q49 -> 8.572648569 | R121: 37.66607465 | S121: 42.78287427 | T121: 51.35552283 | V121: ='Baggrundstabeller for alle land'!V49 -> Østrig | W121: 21 | X121: ='Baggrundstabeller for alle land'!X49 -> 31.98669497 | Y121: ='Baggrundstabeller for alle land'!Y49 -> 5.009641508 | Z121: ='Baggrundstabeller for alle land'!Z49 -> 7.420698918 | AA121: 31.98669497 | AB121: 36.99633648 | AC121: 44.4170354
D122: ='Baggrundstabeller for alle land'!D36 -> Tyskland | E122: 8 | F122: ='Baggrundstabeller for alle land'!F36 -> 62.01775449 | G122: ='Baggrundstabeller for alle land'!G36 -> 6.241959739 | H122: ='Baggrundstabeller for alle land'!H36 -> 12.96613096 | I122: 62.01775449 | J122: 68.25971423 | K122: 81.22584519 | M122: ='Baggrundstabeller for alle land'!M50 -> Polen | N122: 22 | O122: ='Baggrundstabeller for alle land'!O50 -> 23.68810326 | P122: ='Baggrundstabeller for alle land'!P50 -> 0.006161591159 | Q122: ='Baggrundstabeller for alle land'!Q50 -> 5.451400804 | R122: 23.68810326 | S122: 23.69426485 | T122: 29.14566566 | V122: ='Baggrundstabeller for alle land'!V50 -> Polen | W122: 22 | X122: ='Baggrundstabeller for alle land'!X50 -> 21.93446084 | Y122: ='Baggrundstabeller for alle land'!Y50 -> 0.2269072918 | Z122: ='Baggrundstabeller for alle land'!Z50 -> 5.10179748 | AA122: 21.93446084 | AB122: 22.16136813 | AC122: 27.26316561
D123: ='Baggrundstabeller for alle land'!D40 -> Spanien | E123: 12 | F123: ='Baggrundstabeller for alle land'!F40 -> 51.19478567 | G123: ='Baggrundstabeller for alle land'!G40 -> 1.741319241 | H123: ='Baggrundstabeller for alle land'!H40 -> 11.11765361 | I123: 51.19478567 | J123: 52.93610491 | K123: 64.05375853 | M123: ='Baggrundstabeller for alle land'!M51 -> Portugal | N123: 23 | O123: ='Baggrundstabeller for alle land'!O51 -> 51.9181029 | P123: ='Baggrundstabeller for alle land'!P51 -> 3.295111794 | Q123: ='Baggrundstabeller for alle land'!Q51 -> 12.69823569 | R123: 51.9181029 | S123: 55.21321469 | T123: 67.91145038 | V123: ='Baggrundstabeller for alle land'!V51 -> Portugal | W123: 23 | X123: ='Baggrundstabeller for alle land'!X51 -> 50.49825798 | Y123: ='Baggrundstabeller for alle land'!Y51 -> 3.268322267 | Z123: ='Baggrundstabeller for alle land'!Z51 -> 12.37676137 | AA123: 50.49825798 | AB123: 53.76658024 | AC123: 66.14334162
D124: ='Baggrundstabeller for alle land'!D43 -> Italien | E124: 15 | F124: ='Baggrundstabeller for alle land'!F43 -> 51.19478567 | G124: ='Baggrundstabeller for alle land'!G43 -> 7.98327898 | H124: ='Baggrundstabeller for alle land'!H43 -> 8.81375431 | I124: 51.19478567 | J124: 59.17806465 | K124: 67.99181896 | M124: ='Baggrundstabeller for alle land'!M52 -> Rumænien | N124: 24 | O124: ='Baggrundstabeller for alle land'!O52 -> 13.16973136 | P124: ='Baggrundstabeller for alle land'!P52 -> 6.799449792 | Q124: ='Baggrundstabeller for alle land'!Q52 -> 4.791306864 | R124: 13.16973136 | S124: 19.96918116 | T124: 24.76048802 | V124: ='Baggrundstabeller for alle land'!V52 -> Rumænien | W124: 24 | X124: ='Baggrundstabeller for alle land'!X52 -> 12.81235908 | Y124: ='Baggrundstabeller for alle land'!Y52 -> 6.203382821 | Z124: ='Baggrundstabeller for alle land'!Z52 -> 4.564667468 | AA124: 12.81235908 | AB124: 19.0157419 | AC124: 23.58040937
D125: ='Baggrundstabeller for alle land'!D48 -> Holland | E125: 20 | F125: ='Baggrundstabeller for alle land'!F48 -> 46.80130328 | G125: ='Baggrundstabeller for alle land'!G48 -> 20.03856603 | H125: ='Baggrundstabeller for alle land'!H48 -> 14.03771203 | I125: 46.80130328 | J125: 66.83986931 | K125: 80.87758134 | M125: ='Baggrundstabeller for alle land'!M53 -> Slovenien | N125: 25 | O125: ='Baggrundstabeller for alle land'!O53 -> 31.71879971 | P125: ='Baggrundstabeller for alle land'!P53 -> 4.848904347 | Q125: ='Baggrundstabeller for alle land'!Q53 -> 8.036858034 | R125: 31.71879971 | S125: 36.56770405 | T125: 44.60456209 | V125: ='Baggrundstabeller for alle land'!V53 -> Slovenien | W125: 25 | X125: ='Baggrundstabeller for alle land'!X53 -> 28.74516223 | Y125: ='Baggrundstabeller for alle land'!Y53 -> 4.848904347 | Z125: ='Baggrundstabeller for alle land'!Z53 -> 7.393909391 | AA125: 28.74516223 | AB125: 33.59406658 | AC125: 40.98797597
D126: ='Baggrundstabeller for alle land'!D51 -> Portugal | E126: 23 | F126: ='Baggrundstabeller for alle land'!F51 -> 62.95538793 | G126: ='Baggrundstabeller for alle land'!G51 -> 3.670165169 | H126: ='Baggrundstabeller for alle land'!H51 -> 15.32360932 | I126: 62.95538793 | J126: 66.6255531 | K126: 81.94916242 | M126: ='Baggrundstabeller for alle land'!M54 -> Slovakiet | N126: 26 | O126: ='Baggrundstabeller for alle land'!O54 -> 28.53084602 | P126: ='Baggrundstabeller for alle land'!P54 -> 0 | Q126: ='Baggrundstabeller for alle land'!Q54 -> 5.706169204 | R126: 28.53084602 | S126: 28.53084602 | T126: 34.23701522 | V126: ='Baggrundstabeller for alle land'!V54 -> Slovakiet | W126: 26 | X126: ='Baggrundstabeller for alle land'!X54 -> 30.00426999 | Y126: ='Baggrundstabeller for alle land'!Y54 -> 0 | Z126: ='Baggrundstabeller for alle land'!Z54 -> 6.000853998 | AA126: 30.00426999 | AB126: 30.00426999 | AC126: 36.00512399
D127: ='Baggrundstabeller for alle land'!D41 -> Frankrig | E127: 13 | F127: ='Baggrundstabeller for alle land'!F41 -> 76.56446753 | G127: ='Baggrundstabeller for alle land'!G41 -> 8.144016141 | H127: ='Baggrundstabeller for alle land'!H41 -> 10.68902118 | I127: 76.56446753 | J127: 84.70848367 | K127: 95.39750486 | M127: ='Baggrundstabeller for alle land'!M55 -> Sverige | N127: 27 | O127: ='Baggrundstabeller for alle land'!O55 -> 45.3343088 | P127: ='Baggrundstabeller for alle land'!P55 -> 21.86078964 | Q127: ='Baggrundstabeller for alle land'!Q55 -> 16.80105172 | R127: 45.3343088 | S127: 67.19509844 | T127: 83.99615016 | V127: ='Baggrundstabeller for alle land'!V55 -> Sverige | W127: 27 | X127: ='Baggrundstabeller for alle land'!X55 -> 38.67041401 | Y127: ='Baggrundstabeller for alle land'!Y55 -> 21.86078964 | Z127: ='Baggrundstabeller for alle land'!Z55 -> 15.13367157 | AA127: 38.67041401 | AB127: 60.53120365 | AC127: 75.66487522
D128: ='Baggrundstabeller for alle land'!D55 -> Sverige | E128: 27 | F128: ='Baggrundstabeller for alle land'!F55 -> 76.41632145 | G128: ='Baggrundstabeller for alle land'!G55 -> 21.86105754 | H128: ='Baggrundstabeller for alle land'!H55 -> 24.56787132 | I128: 76.41632145 | J128: 98.27737899 | K128: 122.8452503 | M128: ='Baggrundstabeller for alle land'!M56 -> UK | N128: 28 | O128: ='Baggrundstabeller for alle land'!O56 -> 39.19120241 | P128: ='Baggrundstabeller for alle land'!P56 -> 0 | Q128: ='Baggrundstabeller for alle land'!Q56 -> 1.961261255 | R128: 39.19120241 | S128: 39.19120241 | T128: 41.15246367 | V128: ='Baggrundstabeller for alle land'!V56 -> UK | W128: 28 | X128: ='Baggrundstabeller for alle land'!X56 -> 36.09433311 | Y128: ='Baggrundstabeller for alle land'!Y56 -> 0 | Z128: ='Baggrundstabeller for alle land'!Z56 -> 1.823830983 | AA128: 36.09433311 | AB128: 36.09433311 | AC128: 37.9181641
D129: Level 1 | M129: Level 1 | V129: Level 1
D130: Level 2 | M130: Level 2 | V130: Level 2
D131: Level 3 | M131: Level 3 | V131: Level 3

Sheet Baggrundstabeller for alle land
D1: NAVN PÅ ARK: | F1: Baggrundstabeller for alle lande, valgt år
D2: Data hentes fra: | F2: 'Level 1', 'Level 2', Level 3', 'Afgifter og moms' og 'Baggrundsdata -HICP-deflator'
D4: Sådan bruges arket:
D5: Arket 'Baggrundstabeller for alle lande, valgt år' skal give et indblik i hvordan de grå-blå resultatfigurer og -tabeller i arket 'Alle lande, valgt år' fremkommer. Værdierne i resultattabellerne er ens for de to ark, men i dette ark ses udregningen. Nedenstående resultattabeller (de grå-blå) viser gasprisen for industrielle forbrugere opdelt på level 1, 2 og 3 for hvert forbrugsintervalinterval. Prisen vises for alle lande i det valgte år. Resultattabellerne er fremkommet ved at gange tabel A, B, C og D sammen. Disse tabeller ses under resultattabellerne. Taballerne A, B, C og D er et resultat af valgene truffet i rullemenuerne i arket 'Alle lande, valgt år', disse valg kan ses i de farvede kasser nedenfor. Hvis år, pristype, basiså, valuta eller enhed ønskes ændret, gøres det i arket 'Alle lande, valgt år'.
D11: ="Valg truffet i arket: "&'Baggrundstabeller for alle land'!F1 -> Valg truffet i arket: Baggrundstabeller for alle lande, valgt år
D12: Valgt år | F12: ='Alle lande, valgt år'!F12 -> 2016
D13: Valgt pristype | F13: ='Alle lande, valgt år'!F13 -> faste priser
D14: Valgt basisår | F14: ='Alle lande, valgt år'!F14 -> 2016
D15: Valgt valuta | F15: ='Alle lande, valgt år'!F15 -> DKK øre
D16: Valgt enhed | F16: ='Alle lande, valgt år'!F16 -> kwh
D21: Resultattabeller:
D22: Valgene truffet ovenfor giver tabeller og figurer der er:
D23: ="Oppgjort for året "&F12&" i "&$F$13&" med basisår "&$F$14 -> Oppgjort for året 2016 i faste priser med basisår 2016
D24: ="Vist i "&F15&" / "&F16&"." -> Vist i DKK øre / kwh.
D27: ="Tal hentet for år "&'Alle lande, valgt år'!F12 -> Tal hentet for år 2016
D28: IA: < 20 GJ | M28: IB: 20 < 200 GJ | V28: IC: > 200 GJ
D30: ='Alle lande, valgt år'!$F$15&" / "&'Alle lande, valgt år'!$F$16&" år "&'Alle lande, valgt år'!$F$12 -> DKK øre / kwh år 2016 | F30: Gaspris | G30: Afgifter | H30: Moms | M30: ='Alle lande, valgt år'!$F$15&" / "&'Alle lande, valgt år'!$F$16&" år "&'Alle lande, valgt år'!$F$12 -> DKK øre / kwh år 2016 | O30: Gaspris | P30: Afgifter | Q30: Moms | V30: ='Alle lande, valgt år'!$F$15&" / "&'Alle lande, valgt år'!$F$16&" år "&'Alle lande, valgt år'!$F$12 -> DKK øre / kwh år 2016 | X30: Gaspris | Y30: Afgifter | Z30: Moms
D31: =D75 -> EU-28 | F31: =IFERROR(F75/$F117*$H$117*$M$117,"*") -> 53.92731741 | G31: =IFERROR(G75/$F117*$H$117*$M$117,"*") -> 5.49185299 | H31: 8.760175257 | K31: =SUM(F31:H31) -> 68.17934565 | M31: =M75 -> EU-28 | O31: =IFERROR(O75/$F117*$H$117*$M$117,"*") -> 34.82638481 | P31: =IFERROR(P75/$F117*$H$117*$M$117,"*") -> 5.170378668 | Q31: 6.241959739 | T31: =SUM(O31:Q31) -> 46.23872322 | V31: =V75 -> EU-28 | X31: =IFERROR(X75/$F117*$H$117*$M$117,"*") -> 31.07585106 | Y31: =IFERROR(Y75/$F117*$H$117*$M$117,"*") -> 5.331115829 | Z31: 6.081222579 | AC31: =SUM(X31:Z31) -> 42.48818947
D32: Belgien | F32: =IFERROR(F76/$F118*$H$117*$M$117,"*") -> 42.43461042 | G32: 3.884481383 | H32: 9.590650587 | K32: 55.90974239 | M32: Belgien | O32: =IFERROR(O76/$F118*$H$117*$M$117,"*") -> 30.88832438 | P32: 2.866479365 | Q32: 6.938487436 | T32: 40.69329118 | V32: Belgien | X32: =IFERROR(X76/$F118*$H$117*$M$117,"*") -> 28.18258217 | Y32: 2.41105741 | Z32: 6.161591159 | AC32: 36.75523074
D33: Bulgarien | F33: =IFERROR(F77/$F119*$H$117*$M$117,"*") -> 24.14861523 | G33: 0 | H33: 4.835241688 | K33: 28.98385692 | M33: Bulgarien | O33: =IFERROR(O77/$F119*$H$117*$M$117,"*") -> 22.8201226 | P33: 0 | Q33: 4.574847488 | T33: 27.39497008 | V33: Bulgarien | X33: =IFERROR(X77/$F119*$H$117*$M$117,"*") -> 22.64197224 | Y33: 0 | Z33: 4.533859512 | AC33: 27.17583175
D34: Tjekkiet | F34: =IFERROR(F78/$F120*$H$117*$M$117,"*") -> 56.77611568 | G34: 0 | H34: 11.92267889 | K34: 68.69879458 | M34: Tjekkiet | O34: =IFERROR(O78/$F120*$H$117*$M$117,"*") -> 35.83983261 | P34: 0 | Q34: 7.526785444 | T34: 43.36661805 | V34: Tjekkiet | X34: =IFERROR(X78/$F120*$H$117*$M$117,"*") -> 33.43038257 | Y34: 0 | Z34: 7.020463388 | AC34: 40.45084596
D35: Danmark | F35: =IFERROR(F79/$F121*$H$117*$M$117,"*") -> 21.28802956 | G35: 21.39572346 | H35: 10.66919693 | K35: 53.35294995 | M35: Danmark | O35: =IFERROR(O79/$F121*$H$117*$M$117,"*") -> 21.28802956 | P35: 21.39572346 | Q35: 10.66919693 | T35: 53.35294995 | V35: Danmark | X35: =IFERROR(X79/$F121*$H$117*$M$117,"*") -> 21.28802956 | Y35: 21.39572346 | Z35: 10.66919693 | AC35: 53.35294995
D36: Tyskland | F36: =IFERROR(F80/$F122*$H$117*$M$117,"*") -> 62.01775449 | G36: 6.241959739 | H36: 12.96613096 | K36: 81.22584519 | M36: Tyskland | O36: =IFERROR(O80/$F122*$H$117*$M$117,"*") -> 36.9159679 | P36: 4.420271918 | Q36: 7.849331346 | T36: 49.18557117 | V36: Tyskland | X36: =IFERROR(X80/$F122*$H$117*$M$117,"*") -> 33.72801421 | Y36: 4.420271918 | Z36: 7.259961757 | AC36: 45.40824789
D37: Estland | F37: =IFERROR(F81/$F123*$H$117*$M$117,"*") -> 26.52163151 | G37: 2.652163151 | H37: 5.840116838 | K37: 35.0139115 | M37: Estland | O37: =IFERROR(O81/$F123*$H$117*$M$117,"*") -> 24.75352274 | P37: 2.652163151 | Q37: 5.49185299 | T37: 32.89753888 | V37: Estland | X37: =IFERROR(X81/$F123*$H$117*$M$117,"*") -> 22.98541398 | Y37: 2.652163151 | Z37: 5.116799615 | AC37: 30.75437674
D38: Irland | F38: =IFERROR(F82/$F124*$H$117*$M$117,"*") -> 45.08677357 | G38: 2.759321258 | H38: 6.456275954 | K38: 54.30237078 | M38: Irland | O38: =IFERROR(O82/$F124*$H$117*$M$117,"*") -> 40.02355301 | P38: 2.732531731 | Q38: 5.786537784 | T38: 48.54262252 | V38: Irland | X38: =IFERROR(X82/$F124*$H$117*$M$117,"*") -> 37.15707364 | Y38: 2.759321258 | Z38: 5.384694882 | AC38: 45.30108978
D39: Grækenland | F39: =IFERROR(F83/$F125*$H$117*$M$117,"*") -> 40.3182378 | G39: 4.232745231 | H39: 5.759748257 | K39: 50.31073129 | M39: Grækenland | O39: =IFERROR(O83/$F125*$H$117*$M$117,"*") -> 32.89753888 | P39: 4.286324285 | Q39: 4.82211482 | T39: 42.00597799 | V39: Grækenland | X39: =IFERROR(X83/$F125*$H$117*$M$117,"*") -> 31.93311592 | Y39: 4.393482392 | Z39: 4.688167186 | AC39: 41.0147655
D40: Spanien | F40: =IFERROR(F84/$F126*$H$117*$M$117,"*") -> 51.19478567 | G40: 1.741319241 | H40: 11.11765361 | K40: 64.05375853 | M40: Spanien | O40: =IFERROR(O84/$F126*$H$117*$M$117,"*") -> 39.9163949 | P40: 1.741319241 | Q40: 8.760175257 | T40: 50.4178894 | V40: Spanien | X40: =IFERROR(X84/$F126*$H$117*$M$117,"*") -> 32.79038078 | Y40: 1.741319241 | Z40: 7.259961757 | AC40: 41.79166177
D41: Frankrig | F41: =IFERROR(F85/$F127*$H$117*$M$117,"*") -> 76.56446753 | G41: 8.144016141 | H41: 10.68902118 | K41: 95.39750486 | M41: Frankrig | O41: =IFERROR(O85/$F127*$H$117*$M$117,"*") -> 37.39817938 | P41: 3.964849963 | Q41: 6.992066489 | T41: 48.35509584 | V41: Frankrig | X41: =IFERROR(X85/$F127*$H$117*$M$117,"*") -> 31.39732538 | Y41: 2.893268892 | Z41: 6.536644534 | AC41: 40.82723881
D42: Kroatien | F42: =IFERROR(F86/$F128*$H$117*$M$117,"*") -> 30.61346383 | G42: 0 | H42: 7.653499905 | K42: 38.26696374 | M42: Kroatien | O42: =IFERROR(O86/$F128*$H$117*$M$117,"*") -> 25.51139846 | P42: 0 | Q42: 6.37778264 | T42: 31.8891811 | V42: Kroatien | X42: =IFERROR(X86/$F128*$H$117*$M$117,"*") -> 24.15424103 | Y42: 0 | Z42: 6.041306184 | AC42: 30.19554721
D43: Italien | F43: =IFERROR(F87/$F129*$H$117*$M$117,"*") -> 51.19478567 | G43: 7.98327898 | H43: 8.81375431 | K43: 67.99181896 | M43: Italien | O43: =IFERROR(O87/$F129*$H$117*$M$117,"*") -> 35.25501724 | P43: 11.41233841 | Q43: 7.768962766 | T43: 54.43631841 | V43: Italien | X43: =IFERROR(X87/$F129*$H$117*$M$117,"*") -> 29.68279567 | Y43: 13.31439481 | Z43: 9.215597212 | AC43: 52.21278769
D44: Letland | F44: =IFERROR(F88/$F130*$H$117*$M$117,"*") -> 41.65771414 | G44: 1.285897285 | H44: 9.028070524 | K44: 51.97168195 | M44: Letland | O44: =IFERROR(O88/$F130*$H$117*$M$117,"*") -> 24.78031227 | P44: 1.285897285 | Q44: 5.49185299 | T44: 31.55806255 | V44: Letland | X44: =IFERROR(X88/$F130*$H$117*$M$117,"*") -> 24.78031227 | Y44: 1.285897285 | Z44: 5.465063463 | AC44: 31.53127302
D45: Litaun | F45: =IFERROR(F89/$F131*$H$117*$M$117,"*") -> 45.9172489 | G45: 0 | H45: 9.64422964 | K45: 55.56147854 | M45: Litaun | O45: =IFERROR(O89/$F131*$H$117*$M$117,"*") -> 25.39647139 | P45: 0 | Q45: 5.331115829 | T45: 30.72758722 | V45: Litaun | X45: =IFERROR(X89/$F131*$H$117*$M$117,"*") -> 25.39647139 | Y45: 0 | Z45: 5.331115829 | AC45: 30.72758722
D46: luxembourg | F46: =IFERROR(F90/$F132*$H$117*$M$117,"*") -> 34.55848954 | G46: 1.419844919 | H46: 3.134374633 | K46: 39.1127091 | M46: luxembourg | O46: =IFERROR(O90/$F132*$H$117*$M$117,"*") -> 29.25416324 | P46: 1.687740187 | Q46: 2.866479365 | T46: 33.80838279 | V46: luxembourg | X46: =IFERROR(X90/$F132*$H$117*$M$117,"*") -> 29.36132135 | Y46: 1.741319241 | Z46: 2.920058419 | AC46: 34.02269901
D47: Ungarn | F47: =IFERROR(F91/$F133*$H$117*$M$117,"*") -> 20.71741264 | G47: 0 | H47: 5.593653191 | K47: 26.31106583 | M47: Ungarn | O47: =IFERROR(O91/$F133*$H$117*$M$117,"*") -> 20.16876313 | P47: 0 | Q47: 5.445507108 | T47: 25.61427024 | V47: Ungarn | X47: =IFERROR(X91/$F133*$H$117*$M$117,"*") -> 20.1762642 | Y47: 0 | Z47: 5.44765027 | AC47: 25.62391447
D48: Holland | F48: =IFERROR(F92/$F134*$H$117*$M$117,"*") -> 46.80130328 | G48: 20.03856603 | H48: 14.03771203 | K48: 80.87758134 | M48: Holland | O48: =IFERROR(O92/$F134*$H$117*$M$117,"*") -> 27.88789738 | P48: 20.03856603 | Q48: 10.07286207 | T48: 57.99932548 | V48: Holland | X48: =IFERROR(X92/$F134*$H$117*$M$117,"*") -> 23.84267883 | Y48: 20.0117765 | Z48: 9.215597212 | AC48: 53.07005255
D49: Østrig | F49: =IFERROR(F93/$F135*$H$117*$M$117,"*") -> 47.63177861 | G49: 5.277536775 | H49: 10.63544213 | K49: 63.54475752 | M49: Østrig | O49: =IFERROR(O93/$F135*$H$117*$M$117,"*") -> 37.66607465 | P49: 5.116799615 | Q49: 8.572648569 | T49: 51.35552283 | V49: Østrig | X49: =IFERROR(X93/$F135*$H$117*$M$117,"*") -> 31.98669497 | Y49: 5.009641508 | Z49: 7.420698918 | AC49: 44.4170354
D50: Polen | F50: =IFERROR(F94/$F136*$H$117*$M$117,"*") -> 34.38248235 | G50: 0 | H50: 7.910411467 | K50: 42.29289382 | M50: Polen | O50: =IFERROR(O94/$F136*$H$117*$M$117,"*") -> 23.68810326 | P50: 0.006161591159 | Q50: 5.451400804 | T50: 29.14566566 | V50: Polen | X50: =IFERROR(X94/$F136*$H$117*$M$117,"*") -> 21.93446084 | Y50: 0.2269072918 | Z50: 5.10179748 | AC50: 27.26316561
D51: Portugal | F51: =IFERROR(F95/$F137*$H$117*$M$117,"*") -> 62.95538793 | G51: 3.670165169 | H51: 15.32360932 | K51: 81.94916242 | M51: Portugal | O51: =IFERROR(O95/$F137*$H$117*$M$117,"*") -> 51.9181029 | P51: 3.295111794 | Q51: 12.69823569 | T51: 67.91145038 | V51: Portugal | X51: =IFERROR(X95/$F137*$H$117*$M$117,"*") -> 50.49825798 | Y51: 3.268322267 | Z51: 12.37676137 | AC51: 66.14334162
D52: Rumænien | F52: =IFERROR(F96/$F138*$H$117*$M$117,"*") -> 13.29483845 | G52: 6.888926811 | H52: 4.844885918 | K52: 25.02865118 | M52: Rumænien | O52: =IFERROR(O96/$F138*$H$117*$M$117,"*") -> 13.16973136 | P52: 6.799449792 | Q52: 4.791306864 | T52: 24.76048802 | V52: Rumænien | X52: =IFERROR(X96/$F138*$H$117*$M$117,"*") -> 12.81235908 | Y52: 6.203382821 | Z52: 4.564667468 | AC52: 23.58040937
D53: Slovenien | F53: =IFERROR(F97/$F139*$H$117*$M$117,"*") -> 37.37138986 | G53: 4.848904347 | H53: 9.269176265 | K53: 51.48947047 | M53: Slovenien | O53: =IFERROR(O97/$F139*$H$117*$M$117,"*") -> 31.71879971 | P53: 4.848904347 | Q53: 8.036858034 | T53: 44.60456209 | V53: Slovenien | X53: =IFERROR(X97/$F139*$H$117*$M$117,"*") -> 28.74516223 | Y53: 4.848904347 | Z53: 7.393909391 | AC53: 40.98797597
D54: Slovakiet | F54: =IFERROR(F98/$F140*$H$117*$M$117,"*") -> 62.71428219 | G54: 0 | H54: 12.53749853 | K54: 75.25178072 | M54: Slovakiet | O54: =IFERROR(O98/$F140*$H$117*$M$117,"*") -> 28.53084602 | P54: 0 | Q54: 5.706169204 | T54: 34.23701522 | V54: Slovakiet | X54: =IFERROR(X98/$F140*$H$117*$M$117,"*") -> 30.00426999 | Y54: 0 | Z54: 6.000853998 | AC54: 36.00512399
D55: Sverige | F55: =IFERROR(F99/$F141*$H$117*$M$117,"*") -> 76.41632145 | G55: 21.86105754 | H55: 24.56787132 | K55: 122.8452503 | M55: Sverige | O55: =IFERROR(O99/$F141*$H$117*$M$117,"*") -> 45.3343088 | P55: 21.86078964 | Q55: 16.80105172 | T55: 83.99615016 | V55: Sverige | X55: =IFERROR(X99/$F141*$H$117*$M$117,"*") -> 38.67041401 | Y55: 21.86078964 | Z55: 15.13367157 | AC55: 75.66487522
D56: UK | F56: =IFERROR(F100/$F142*$H$117*$M$117,"*") -> 53.95249956 | G56: 0 | H56: 2.718065387 | K56: 56.67056495 | M56: UK | O56: =IFERROR(O100/$F142*$H$117*$M$117,"*") -> 39.19120241 | P56: 0 | Q56: 1.961261255 | T56: 41.15246367 | V56: UK | X56: =IFERROR(X100/$F142*$H$117*$M$117,"*") -> 36.09433311 | Y56: 0 | Z56: 1.823830983 | AC56: 37.9181641
D58: Level 1 | M58: Level 1 | V58: Level 1
D59: Level 2 | M59: Level 2 | V59: Level 2
D60: Level 3 | M60: Level 3 | V60: Level 3
D65: Baggrundstabeller
D67: Tabel A
D68: Nedenstående tabeller (de orange) henter data fra 'Level 1' og 'Afgifter og moms', der hentes data fra det år der er valgt i valgmenuen øverst. Priserne vises i original enheden i Eurostat EURO / GJ.
D69: 'Gaspris inkl. PSO, eksl. afgifter' udgør level 1 prisen. 'Ikke refundrebare afgifter' svarer til level 2 prisen fratrukket level 1 prisen. 'Ikke refunderbare afgifter' er level 3 prisen fratrukket level 2 prisen. Beregningen er foretaget i arket "Afgifter og moms".
D71: ="Data er hentet for år "&'Alle lande, valgt år'!F12 -> Data er hentet for år 2016
D72: =D28 -> IA: < 20 GJ | M72: =M28 -> IB: 20 < 200 GJ | V72: =V28 -> IC: > 200 GJ
D74: ="Euro/GJ år "&'Alle lande, valgt år'!$F$12 -> Euro/GJ år 2016 | F74: Gaspris | G74: Afgifter | H74: Moms | M74: ='Alle lande, valgt år'!$F$15&" / "&'Alle lande, valgt år'!$F$16&" år "&'Alle lande, valgt år'!$F$12 -> DKK øre / kwh år 2016 | O74: Gaspris | P74: Afgifter | Q74: Moms | V74: ="Euro/GJ år "&'Alle lande, valgt år'!$F$12 -> Euro/GJ år 2016 | X74: Gaspris | Y74: Afgifter | Z74: Moms
D75: ='Oversættelse af landenavne'!$B6 -> EU-28 | F75: =HLOOKUP('Alle lande, valgt år'!$F$12,'Level 1'!$A$5:$L$32,'Oversættelse af landenavne'!$C6,FALSE) -> 20.13 | G75: =HLOOKUP('Alle lande, valgt år'!$F$12,'Afgifter og moms'!$A$5:$L$31,'Oversættelse af landenavne'!$C6,FALSE) -> 2.05 | H75: =HLOOKUP('Alle lande, valgt år'!$F$12,'Afgifter og moms'!$A$38:$L$64,'Oversættelse af landenavne'!$C6,FALSE) -> 3.27 | M75: ='Oversættelse af landenavne'!$B6 -> EU-28 | O75: =HLOOKUP('Alle lande, valgt år'!$F$12,'Level 1'!$O$5:$Y$32,'Oversættelse af landenavne'!$C6,FALSE) -> 13 | P75: =HLOOKUP('Alle lande, valgt år'!$F$12,'Afgifter og moms'!$O$5:$Y$31,'Oversættelse af landenavne'!$C6,FALSE) -> 1.93 | Q75: =HLOOKUP('Alle lande, valgt år'!$F$12,'Afgifter og moms'!$O$38:$Y$64,'Oversættelse af landenavne'!$C6,FALSE) -> 2.33 | V75: ='Oversættelse af landenavne'!$B6 -> EU-28 | X75: =HLOOKUP('Alle lande, valgt år'!$F$12,'Level 1'!$AA$5:$AL$32,'Oversættelse af landenavne'!$C6,FALSE) -> 11.6 | Y75: =HLOOKUP('Alle lande, valgt år'!$F$12,'Afgifter og moms'!$AB$5:$AL$31,'Oversættelse af landenavne'!$C6,FALSE) -> 1.99 | Z75: =HLOOKUP('Alle lande, valgt år'!$F$12,'Afgifter og moms'!$AB$38:$AL$64,'Oversættelse af landenavne'!$C6,FALSE) -> 2.27
D76: ='Oversættelse af landenavne'!$B7 -> Belgien | F76: =HLOOKUP('Alle lande, valgt år'!$F$12,'Level 1'!$A$5:$L$32,'Oversættelse af landenavne'!$C7,FALSE) -> 15.84 | G76: =HLOOKUP('Alle lande, valgt år'!$F$12,'Afgifter og moms'!$A$5:$L$31,'Oversættelse af landenavne'!$C7,FALSE) -> 1.45 | H76: =HLOOKUP('Alle lande, valgt år'!$F$12,'Afgifter og moms'!$A$38:$L$64,'Oversættelse af landenavne'!$C7,FALSE) -> 3.58 | M76: ='Oversættelse af landenavne'!$B7 -> Belgien | O76: =HLOOKUP('Alle lande, valgt år'!$F$12,'Level 1'!$O$5:$Y$32,'Oversættelse af landenavne'!$C7,FALSE) -> 11.53 | P76: =HLOOKUP('Alle lande, valgt år'!$F$12,'Afgifter og moms'!$O$5:$Y$31,'Oversættelse af landenavne'!$C7,FALSE) -> 1.07 | Q76: =HLOOKUP('Alle lande, valgt år'!$F$12,'Afgifter og moms'!$O$38:$Y$64,'Oversættelse af landenavne'!$C7,FALSE) -> 2.59 | V76: ='Oversættelse af landenavne'!$B7 -> Belgien | X76: =HLOOKUP('Alle lande, valgt år'!$F$12,'Level 1'!$AA$5:$AL$32,'Oversættelse af landenavne'!$C7,FALSE) -> 10.52 | Y76: =HLOOKUP('Alle lande, valgt år'!$F$12,'Afgifter og moms'!$AB$5:$AL$31,'Oversættelse af landenavne'!$C7,FALSE) -> 0.9 | Z76: =HLOOKUP('Alle lande, valgt år'!$F$12,'Afgifter og moms'!$AB$38:$AL$64,'Oversættelse af landenavne'!$C7,FALSE) -> 2.3
D77: ='Oversættelse af landenavne'!$B8 -> Bulgarien | F77: =HLOOKUP('Alle lande, valgt år'!$F$12,'Level 1'!$A$5:$L$32,'Oversættelse af landenavne'!$C8,FALSE) -> 9.0142 | G77: =HLOOKUP('Alle lande, valgt år'!$F$12,'Afgifter og moms'!$A$5:$L$31,'Oversættelse af landenavne'!$C8,FALSE) -> 0 | H77: =HLOOKUP('Alle lande, valgt år'!$F$12,'Afgifter og moms'!$A$38:$L$64,'Oversættelse af landenavne'!$C8,FALSE) -> 1.8049 | M77: ='Oversættelse af landenavne'!$B8 -> Bulgarien | O77: =HLOOKUP('Alle lande, valgt år'!$F$12,'Level 1'!$O$5:$Y$32,'Oversættelse af landenavne'!$C8,FALSE) -> 8.5183 | P77: =HLOOKUP('Alle lande, valgt år'!$F$12,'Afgifter og moms'!$O$5:$Y$31,'Oversættelse af landenavne'!$C8,FALSE) -> 0 | Q77: =HLOOKUP('Alle lande, valgt år'!$F$12,'Afgifter og moms'!$O$38:$Y$64,'Oversættelse af landenavne'!$C8,FALSE) -> 1.7077 | V77: ='Oversættelse af landenavne'!$B8 -> Bulgarien | X77: =HLOOKUP('Alle lande, valgt år'!$F$12,'Level 1'!$AA$5:$AL$32,'Oversættelse af landenavne'!$C8,FALSE) -> 8.4518 | Y77: =HLOOKUP('Alle lande, valgt år'!$F$12,'Afgifter og moms'!$AB$5:$AL$31,'Oversættelse af landenavne'!$C8,FALSE) -> 0 | Z77: =HLOOKUP('Alle lande, valgt år'!$F$12,'Afgifter og moms'!$AB$38:$AL$64,'Oversættelse af landenavne'!$C8,FALSE) -> 1.6924
D78: ='Oversættelse af landenavne'!$B9 -> Tjekkiet | F78: =HLOOKUP('Alle lande, valgt år'!$F$12,'Level 1'!$A$5:$L$32,'Oversættelse af landenavne'!$C9,FALSE) -> 21.1934 | G78: =HLOOKUP('Alle lande, valgt år'!$F$12,'Afgifter og moms'!$A$5:$L$31,'Oversættelse af landenavne'!$C9,FALSE) -> 0 | H78: =HLOOKUP('Alle lande, valgt år'!$F$12,'Afgifter og moms'!$A$38:$L$64,'Oversættelse af landenavne'!$C9,FALSE) -> 4.4505 | M78: ='Oversættelse af landenavne'!$B9 -> Tjekkiet | O78: =HLOOKUP('Alle lande, valgt år'!$F$12,'Level 1'!$O$5:$Y$32,'Oversættelse af landenavne'!$C9,FALSE) -> 13.3783 | P78: =HLOOKUP('Alle lande, valgt år'!$F$12,'Afgifter og moms'!$O$5:$Y$31,'Oversættelse af landenavne'!$C9,FALSE) -> 0 | Q78: =HLOOKUP('Alle lande, valgt år'!$F$12,'Afgifter og moms'!$O$38:$Y$64,'Oversættelse af landenavne'!$C9,FALSE) -> 2.8096 | V78: ='Oversættelse af landenavne'!$B9 -> Tjekkiet | X78: =HLOOKUP('Alle lande, valgt år'!$F$12,'Level 1'!$AA$5:$AL$32,'Oversættelse af landenavne'!$C9,FALSE) -> 12.4789 | Y78: =HLOOKUP('Alle lande, valgt år'!$F$12,'Afgifter og moms'!$AB$5:$AL$31,'Oversættelse af landenavne'!$C9,FALSE) -> 0 | Z78: =HLOOKUP('Alle lande, valgt år'!$F$12,'Afgifter og moms'!$AB$38:$AL$64,'Oversættelse af landenavne'!$C9,FALSE) -> 2.6206
D79: ='Oversættelse af landenavne'!$B10 -> Danmark | F79: =HLOOKUP('Alle lande, valgt år'!$F$12,'Level 1'!$A$5:$L$32,'Oversættelse af landenavne'!$C10,FALSE) -> 7.9464 | G79: =HLOOKUP('Alle lande, valgt år'!$F$12,'Afgifter og moms'!$A$5:$L$31,'Oversættelse af landenavne'!$C10,FALSE) -> 7.9866 | H79: =HLOOKUP('Alle lande, valgt år'!$F$12,'Afgifter og moms'!$A$38:$L$64,'Oversættelse af landenavne'!$C10,FALSE) -> 3.9826 | M79: ='Oversættelse af landenavne'!$B10 -> Danmark | O79: =HLOOKUP('Alle lande, valgt år'!$F$12,'Level 1'!$O$5:$Y$32,'Oversættelse af landenavne'!$C10,FALSE) -> 7.9464 | P79: =HLOOKUP('Alle lande, valgt år'!$F$12,'Afgifter og moms'!$O$5:$Y$31,'Oversættelse af landenavne'!$C10,FALSE) -> 7.9866 | Q79: =HLOOKUP('Alle lande, valgt år'!$F$12,'Afgifter og moms'!$O$38:$Y$64,'Oversættelse af landenavne'!$C10,FALSE) -> 3.9826 | V79: ='Oversættelse af landenavne'!$B10 -> Danmark | X79: =HLOOKUP('Alle lande, valgt år'!$F$12,'Level 1'!$AA$5:$AL$32,'Oversættelse af landenavne'!$C10,FALSE) -> 7.9464 | Y79: =HLOOKUP('Alle lande, valgt år'!$F$12,'Afgifter og moms'!$AB$5:$AL$31,'Oversættelse af landenavne'!$C10,FALSE) -> 7.9866 | Z79: =HLOOKUP('Alle lande, valgt år'!$F$12,'Afgifter og moms'!$AB$38:$AL$64,'Oversættelse af landenavne'!$C10,FALSE) -> 3.9826
D80: ='Oversættelse af landenavne'!$B11 -> Tyskland | F80: =HLOOKUP('Alle lande, valgt år'!$F$12,'Level 1'!$A$5:$L$32,'Oversættelse af landenavne'!$C11,FALSE) -> 23.15 | G80: =HLOOKUP('Alle lande, valgt år'!$F$12,'Afgifter og moms'!$A$5:$L$31,'Oversættelse af landenavne'!$C11,FALSE) -> 2.33 | H80: =HLOOKUP('Alle lande, valgt år'!$F$12,'Afgifter og moms'!$A$38:$L$64,'Oversættelse af landenavne'!$C11,FALSE) -> 4.84 | M80: ='Oversættelse af landenavne'!$B11 -> Tyskland | O80: =HLOOKUP('Alle lande, valgt år'!$F$12,'Level 1'!$O$5:$Y$32,'Oversættelse af landenavne'!$C11,FALSE) -> 13.78 | P80: =HLOOKUP('Alle lande, valgt år'!$F$12,'Afgifter og moms'!$O$5:$Y$31,'Oversættelse af landenavne'!$C11,FALSE) -> 1.65 | Q80: =HLOOKUP('Alle lande, valgt år'!$F$12,'Afgifter og moms'!$O$38:$Y$64,'Oversættelse af landenavne'!$C11,FALSE) -> 2.93 | V80: ='Oversættelse af landenavne'!$B11 -> Tyskland | X80: =HLOOKUP('Alle lande, valgt år'!$F$12,'Level 1'!$AA$5:$AL$32,'Oversættelse af landenavne'!$C11,FALSE) -> 12.59 | Y80: =HLOOKUP('Alle lande, valgt år'!$F$12,'Afgifter og moms'!$AB$5:$AL$31,'Oversættelse af landenavne'!$C11,FALSE) -> 1.65 | Z80: =HLOOKUP('Alle lande, valgt år'!$F$12,'Afgifter og moms'!$AB$38:$AL$64,'Oversættelse af landenavne'!$C11,FALSE) -> 2.71
D81: ='Oversættelse af landenavne'!$B12 -> Estland | F81: =HLOOKUP('Alle lande, valgt år'!$F$12,'Level 1'!$A$5:$L$32,'Oversættelse af landenavne'!$C12,FALSE) -> 9.9 | G81: =HLOOKUP('Alle lande, valgt år'!$F$12,'Afgifter og moms'!$A$5:$L$31,'Oversættelse af landenavne'!$C12,FALSE) -> 0.99 | H81: =HLOOKUP('Alle lande, valgt år'!$F$12,'Afgifter og moms'!$A$38:$L$64,'Oversættelse af landenavne'!$C12,FALSE) -> 2.18 | M81: ='Oversættelse af landenavne'!$B12 -> Estland | O81: =HLOOKUP('Alle lande, valgt år'!$F$12,'Level 1'!$O$5:$Y$32,'Oversættelse af landenavne'!$C12,FALSE) -> 9.24 | P81: =HLOOKUP('Alle lande, valgt år'!$F$12,'Afgifter og moms'!$O$5:$Y$31,'Oversættelse af landenavne'!$C12,FALSE) -> 0.99 | Q81: =HLOOKUP('Alle lande, valgt år'!$F$12,'Afgifter og moms'!$O$38:$Y$64,'Oversættelse af landenavne'!$C12,FALSE) -> 2.05 | V81: ='Oversættelse af landenavne'!$B12 -> Estland | X81: =HLOOKUP('Alle lande, valgt år'!$F$12,'Level 1'!$AA$5:$AL$32,'Oversættelse af landenavne'!$C12,FALSE) -> 8.58 | Y81: =HLOOKUP('Alle lande, valgt år'!$F$12,'Afgifter og moms'!$AB$5:$AL$31,'Oversættelse af landenavne'!$C12,FALSE) -> 0.99 | Z81: =HLOOKUP('Alle lande, valgt år'!$F$12,'Afgifter og moms'!$AB$38:$AL$64,'Oversættelse af landenavne'!$C12,FALSE) -> 1.91
D82: ='Oversættelse af landenavne'!$B13 -> Irland | F82: =HLOOKUP('Alle lande, valgt år'!$F$12,'Level 1'!$A$5:$L$32,'Oversættelse af landenavne'!$C13,FALSE) -> 16.83 | G82: =HLOOKUP('Alle lande, valgt år'!$F$12,'Afgifter og moms'!$A$5:$L$31,'Oversættelse af landenavne'!$C13,FALSE) -> 1.03 | H82: =HLOOKUP('Alle lande, valgt år'!$F$12,'Afgifter og moms'!$A$38:$L$64,'Oversættelse af landenavne'!$C13,FALSE) -> 2.41 | M82: ='Oversættelse af landenavne'!$B13 -> Irland | O82: =HLOOKUP('Alle lande, valgt år'!$F$12,'Level 1'!$O$5:$Y$32,'Oversættelse af landenavne'!$C13,FALSE) -> 14.94 | P82: =HLOOKUP('Alle lande, valgt år'!$F$12,'Afgifter og moms'!$O$5:$Y$31,'Oversættelse af landenavne'!$C13,FALSE) -> 1.02 | Q82: =HLOOKUP('Alle lande, valgt år'!$F$12,'Afgifter og moms'!$O$38:$Y$64,'Oversættelse af landenavne'!$C13,FALSE) -> 2.16 | V82: ='Oversættelse af landenavne'!$B13 -> Irland | X82: =HLOOKUP('Alle lande, valgt år'!$F$12,'Level 1'!$AA$5:$AL$32,'Oversættelse af landenavne'!$C13,FALSE) -> 13.87 | Y82: =HLOOKUP('Alle lande, valgt år'!$F$12,'Afgifter og moms'!$AB$5:$AL$31,'Oversættelse af landenavne'!$C13,FALSE) -> 1.03 | Z82: =HLOOKUP('Alle lande, valgt år'!$F$12,'Afgifter og moms'!$AB$38:$AL$64,'Oversættelse af landenavne'!$C13,FALSE) -> 2.01
D83: ='Oversættelse af landenavne'!$B14 -> Grækenland | F83: =HLOOKUP('Alle lande, valgt år'!$F$12,'Level 1'!$A$5:$L$32,'Oversættelse af landenavne'!$C14,FALSE) -> 15.05 | G83: =HLOOKUP('Alle lande, valgt år'!$F$12,'Afgifter og moms'!$A$5:$L$31,'Oversættelse af landenavne'!$C14,FALSE) -> 1.58 | H83: =HLOOKUP('Alle lande, valgt år'!$F$12,'Afgifter og moms'!$A$38:$L$64,'Oversættelse af landenavne'!$C14,FALSE) -> 2.15 | M83: ='Oversættelse af landenavne'!$B14 -> Grækenland | O83: =HLOOKUP('Alle lande, valgt år'!$F$12,'Level 1'!$O$5:$Y$32,'Oversættelse af landenavne'!$C14,FALSE) -> 12.28 | P83: =HLOOKUP('Alle lande, valgt år'!$F$12,'Afgifter og moms'!$O$5:$Y$31,'Oversættelse af landenavne'!$C14,FALSE) -> 1.6 | Q83: =HLOOKUP('Alle lande, valgt år'!$F$12,'Afgifter og moms'!$O$38:$Y$64,'Oversættelse af landenavne'!$C14,FALSE) -> 1.8 | V83: ='Oversættelse af landenavne'!$B14 -> Grækenland | X83: =HLOOKUP('Alle lande, valgt år'!$F$12,'Level 1'!$AA$5:$AL$32,'Oversættelse af landenavne'!$C14,FALSE) -> 11.92 | Y83: =HLOOKUP('Alle lande, valgt år'!$F$12,'Afgifter og moms'!$AB$5:$AL$31,'Oversættelse af landenavne'!$C14,FALSE) -> 1.64 | Z83: =HLOOKUP('Alle lande, valgt år'!$F$12,'Afgifter og moms'!$AB$38:$AL$64,'Oversættelse af landenavne'!$C14,FALSE) -> 1.75
D84: ='Oversættelse af landenavne'!$B15 -> Spanien | F84: =HLOOKUP('Alle lande, valgt år'!$F$12,'Level 1'!$A$5:$L$32,'Oversættelse af landenavne'!$C15,FALSE) -> 19.11 | G84: =HLOOKUP('Alle lande, valgt år'!$F$12,'Afgifter og moms'!$A$5:$L$31,'Oversættelse af landenavne'!$C15,FALSE) -> 0.65 | H84: =HLOOKUP('Alle lande, valgt år'!$F$12,'Afgifter og moms'!$A$38:$L$64,'Oversættelse af landenavne'!$C15,FALSE) -> 4.15 | M84: ='Oversættelse af landenavne'!$B15 -> Spanien | O84: =HLOOKUP('Alle lande, valgt år'!$F$12,'Level 1'!$O$5:$Y$32,'Oversættelse af landenavne'!$C15,FALSE) -> 14.9 | P84: =HLOOKUP('Alle lande, valgt år'!$F$12,'Afgifter og moms'!$O$5:$Y$31,'Oversættelse af landenavne'!$C15,FALSE) -> 0.65 | Q84: =HLOOKUP('Alle lande, valgt år'!$F$12,'Afgifter og moms'!$O$38:$Y$64,'Oversættelse af landenavne'!$C15,FALSE) -> 3.27 | V84: ='Oversættelse af landenavne'!$B15 -> Spanien | X84: =HLOOKUP('Alle lande, valgt år'!$F$12,'Level 1'!$AA$5:$AL$32,'Oversættelse af landenavne'!$C15,FALSE) -> 12.24 | Y84: =HLOOKUP('Alle lande, valgt år'!$F$12,'Afgifter og moms'!$AB$5:$AL$31,'Oversættelse af landenavne'!$C15,FALSE) -> 0.65 | Z84: =HLOOKUP('Alle lande, valgt år'!$F$12,'Afgifter og moms'!$AB$38:$AL$64,'Oversættelse af landenavne'!$C15,FALSE) -> 2.71
D85: ='Oversættelse af landenavne'!$B16 -> Frankrig | F85: =HLOOKUP('Alle lande, valgt år'!$F$12,'Level 1'!$A$5:$L$32,'Oversættelse af landenavne'!$C16,FALSE) -> 28.58 | G85: =HLOOKUP('Alle lande, valgt år'!$F$12,'Afgifter og moms'!$A$5:$L$31,'Oversættelse af landenavne'!$C16,FALSE) -> 3.04 | H85: =HLOOKUP('Alle lande, valgt år'!$F$12,'Afgifter og moms'!$A$38:$L$64,'Oversættelse af landenavne'!$C16,FALSE) -> 3.99 | M85: ='Oversættelse af landenavne'!$B16 -> Frankrig | O85: =HLOOKUP('Alle lande, valgt år'!$F$12,'Level 1'!$O$5:$Y$32,'Oversættelse af landenavne'!$C16,FALSE) -> 13.96 | P85: =HLOOKUP('Alle lande, valgt år'!$F$12,'Afgifter og moms'!$O$5:$Y$31,'Oversættelse af landenavne'!$C16,FALSE) -> 1.48 | Q85: =HLOOKUP('Alle lande, valgt år'!$F$12,'Afgifter og moms'!$O$38:$Y$64,'Oversættelse af landenavne'!$C16,FALSE) -> 2.61 | V85: ='Oversættelse af landenavne'!$B16 -> Frankrig | X85: =HLOOKUP('Alle lande, valgt år'!$F$12,'Level 1'!$AA$5:$AL$32,'Oversættelse af landenavne'!$C16,FALSE) -> 11.72 | Y85: =HLOOKUP('Alle lande, valgt år'!$F$12,'Afgifter og moms'!$AB$5:$AL$31,'Oversættelse af landenavne'!$C16,FALSE) -> 1.08 | Z85: =HLOOKUP('Alle lande, valgt år'!$F$12,'Afgifter og moms'!$AB$38:$AL$64,'Oversættelse af landenavne'!$C16,FALSE) -> 2.44
D86: ='Oversættelse af landenavne'!$B17 -> Kroatien | F86: =HLOOKUP('Alle lande, valgt år'!$F$12,'Level 1'!$A$5:$L$32,'Oversættelse af landenavne'!$C17,FALSE) -> 11.4274 | G86: =HLOOKUP('Alle lande, valgt år'!$F$12,'Afgifter og moms'!$A$5:$L$31,'Oversættelse af landenavne'!$C17,FALSE) -> 0 | H86: =HLOOKUP('Alle lande, valgt år'!$F$12,'Afgifter og moms'!$A$38:$L$64,'Oversættelse af landenavne'!$C17,FALSE) -> 2.8569 | M86: ='Oversættelse af landenavne'!$B17 -> Kroatien | O86: =HLOOKUP('Alle lande, valgt år'!$F$12,'Level 1'!$O$5:$Y$32,'Oversættelse af landenavne'!$C17,FALSE) -> 9.5229 | P86: =HLOOKUP('Alle lande, valgt år'!$F$12,'Afgifter og moms'!$O$5:$Y$31,'Oversættelse af landenavne'!$C17,FALSE) -> 0 | Q86: =HLOOKUP('Alle lande, valgt år'!$F$12,'Afgifter og moms'!$O$38:$Y$64,'Oversættelse af landenavne'!$C17,FALSE) -> 2.3807 | V86: ='Oversættelse af landenavne'!$B17 -> Kroatien | X86: =HLOOKUP('Alle lande, valgt år'!$F$12,'Level 1'!$AA$5:$AL$32,'Oversættelse af landenavne'!$C17,FALSE) -> 9.0163 | Y86: =HLOOKUP('Alle lande, valgt år'!$F$12,'Afgifter og moms'!$AB$5:$AL$31,'Oversættelse af landenavne'!$C17,FALSE) -> 0 | Z86: =HLOOKUP('Alle lande, valgt år'!$F$12,'Afgifter og moms'!$AB$38:$AL$64,'Oversættelse af landenavne'!$C17,FALSE) -> 2.2551
D87: ='Oversættelse af landenavne'!$B18 -> Italien | F87: =HLOOKUP('Alle lande, valgt år'!$F$12,'Level 1'!$A$5:$L$32,'Oversættelse af landenavne'!$C18,FALSE) -> 19.11 | G87: =HLOOKUP('Alle lande, valgt år'!$F$12,'Afgifter og moms'!$A$5:$L$31,'Oversættelse af landenavne'!$C18,FALSE) -> 2.98 | H87: =HLOOKUP('Alle lande, valgt år'!$F$12,'Afgifter og moms'!$A$38:$L$64,'Oversættelse af landenavne'!$C18,FALSE) -> 3.29 | M87: ='Oversættelse af landenavne'!$B18 -> Italien | O87: =HLOOKUP('Alle lande, valgt år'!$F$12,'Level 1'!$O$5:$Y$32,'Oversættelse af landenavne'!$C18,FALSE) -> 13.16 | P87: =HLOOKUP('Alle lande, valgt år'!$F$12,'Afgifter og moms'!$O$5:$Y$31,'Oversættelse af landenavne'!$C18,FALSE) -> 4.26 | Q87: =HLOOKUP('Alle lande, valgt år'!$F$12,'Afgifter og moms'!$O$38:$Y$64,'Oversættelse af landenavne'!$C18,FALSE) -> 2.9 | V87: ='Oversættelse af landenavne'!$B18 -> Italien | X87: =HLOOKUP('Alle lande, valgt år'!$F$12,'Level 1'!$AA$5:$AL$32,'Oversættelse af landenavne'!$C18,FALSE) -> 11.08 | Y87: =HLOOKUP('Alle lande, valgt år'!$F$12,'Afgifter og moms'!$AB$5:$AL$31,'Oversættelse af landenavne'!$C18,FALSE) -> 4.97 | Z87: =HLOOKUP('Alle lande, valgt år'!$F$12,'Afgifter og moms'!$AB$38:$AL$64,'Oversættelse af landenavne'!$C18,FALSE) -> 3.44
D88: ='Oversættelse af landenavne'!$B19 -> Letland | F88: =HLOOKUP('Alle lande, valgt år'!$F$12,'Level 1'!$A$5:$L$32,'Oversættelse af landenavne'!$C19,FALSE) -> 15.55 | G88: =HLOOKUP('Alle lande, valgt år'!$F$12,'Afgifter og moms'!$A$5:$L$31,'Oversættelse af landenavne'!$C19,FALSE) -> 0.48 | H88: =HLOOKUP('Alle lande, valgt år'!$F$12,'Afgifter og moms'!$A$38:$L$64,'Oversættelse af landenavne'!$C19,FALSE) -> 3.37 | M88: ='Oversættelse af landenavne'!$B19 -> Letland | O88: =HLOOKUP('Alle lande, valgt år'!$F$12,'Level 1'!$O$5:$Y$32,'Oversættelse af landenavne'!$C19,FALSE) -> 9.25 | P88: =HLOOKUP('Alle lande, valgt år'!$F$12,'Afgifter og moms'!$O$5:$Y$31,'Oversættelse af landenavne'!$C19,FALSE) -> 0.48 | Q88: =HLOOKUP('Alle lande, valgt år'!$F$12,'Afgifter og moms'!$O$38:$Y$64,'Oversættelse af landenavne'!$C19,FALSE) -> 2.05 | V88: ='Oversættelse af landenavne'!$B19 -> Letland | X88: =HLOOKUP('Alle lande, valgt år'!$F$12,'Level 1'!$AA$5:$AL$32,'Oversættelse af landenavne'!$C19,FALSE) -> 9.25 | Y88: =HLOOKUP('Alle lande, valgt år'!$F$12,'Afgifter og moms'!$AB$5:$AL$31,'Oversættelse af landenavne'!$C19,FALSE) -> 0.48 | Z88: =HLOOKUP('Alle lande, valgt år'!$F$12,'Afgifter og moms'!$AB$38:$AL$64,'Oversættelse af landenavne'!$C19,FALSE) -> 2.04
D89: ='Oversættelse af landenavne'!$B20 -> Litaun | F89: =HLOOKUP('Alle lande, valgt år'!$F$12,'Level 1'!$A$5:$L$32,'Oversættelse af landenavne'!$C20,FALSE) -> 17.14 | G89: =HLOOKUP('Alle lande, valgt år'!$F$12,'Afgifter og moms'!$A$5:$L$31,'Oversættelse af landenavne'!$C20,FALSE) -> 0 | H89: =HLOOKUP('Alle lande, valgt år'!$F$12,'Afgifter og moms'!$A$38:$L$64,'Oversættelse af landenavne'!$C20,FALSE) -> 3.6 | M89: ='Oversættelse af landenavne'!$B20 -> Litaun | O89: =HLOOKUP('Alle lande, valgt år'!$F$12,'Level 1'!$O$5:$Y$32,'Oversættelse af landenavne'!$C20,FALSE) -> 9.48 | P89: =HLOOKUP('Alle lande, valgt år'!$F$12,'Afgifter og moms'!$O$5:$Y$31,'Oversættelse af landenavne'!$C20,FALSE) -> 0 | Q89: =HLOOKUP('Alle lande, valgt år'!$F$12,'Afgifter og moms'!$O$38:$Y$64,'Oversættelse af landenavne'!$C20,FALSE) -> 1.99 | V89: ='Oversættelse af landenavne'!$B20 -> Litaun | X89: =HLOOKUP('Alle lande, valgt år'!$F$12,'Level 1'!$AA$5:$AL$32,'Oversættelse af landenavne'!$C20,FALSE) -> 9.48 | Y89: =HLOOKUP('Alle lande, valgt år'!$F$12,'Afgifter og moms'!$AB$5:$AL$31,'Oversættelse af landenavne'!$C20,FALSE) -> 0 | Z89: =HLOOKUP('Alle lande, valgt år'!$F$12,'Afgifter og moms'!$AB$38:$AL$64,'Oversættelse af landenavne'!$C20,FALSE) -> 1.99
D90: ='Oversættelse af landenavne'!$B21 -> luxembourg | F90: =HLOOKUP('Alle lande, valgt år'!$F$12,'Level 1'!$A$5:$L$32,'Oversættelse af landenavne'!$C21,FALSE) -> 12.9 | G90: =HLOOKUP('Alle lande, valgt år'!$F$12,'Afgifter og moms'!$A$5:$L$31,'Oversættelse af landenavne'!$C21,FALSE) -> 0.53 | H90: =HLOOKUP('Alle lande, valgt år'!$F$12,'Afgifter og moms'!$A$38:$L$64,'Oversættelse af landenavne'!$C21,FALSE) -> 1.17 | M90: ='Oversættelse af landenavne'!$B21 -> luxembourg | O90: =HLOOKUP('Alle lande, valgt år'!$F$12,'Level 1'!$O$5:$Y$32,'Oversættelse af landenavne'!$C21,FALSE) -> 10.92 | P90: =HLOOKUP('Alle lande, valgt år'!$F$12,'Afgifter og moms'!$O$5:$Y$31,'Oversættelse af landenavne'!$C21,FALSE) -> 0.63 | Q90: =HLOOKUP('Alle lande, valgt år'!$F$12,'Afgifter og moms'!$O$38:$Y$64,'Oversættelse af landenavne'!$C21,FALSE) -> 1.07 | V90: ='Oversættelse af landenavne'!$B21 -> luxembourg | X90: =HLOOKUP('Alle lande, valgt år'!$F$12,'Level 1'!$AA$5:$AL$32,'Oversættelse af landenavne'!$C21,FALSE) -> 10.96 | Y90: =HLOOKUP('Alle lande, valgt år'!$F$12,'Afgifter og moms'!$AB$5:$AL$31,'Oversættelse af landenavne'!$C21,FALSE) -> 0.65 | Z90: =HLOOKUP('Alle lande, valgt år'!$F$12,'Afgifter og moms'!$AB$38:$AL$64,'Oversættelse af landenavne'!$C21,FALSE) -> 1.09
D91: ='Oversættelse af landenavne'!$B22 -> Ungarn | F91: =HLOOKUP('Alle lande, valgt år'!$F$12,'Level 1'!$A$5:$L$32,'Oversættelse af landenavne'!$C22,FALSE) -> 7.7334 | G91: =HLOOKUP('Alle lande, valgt år'!$F$12,'Afgifter og moms'!$A$5:$L$31,'Oversættelse af landenavne'!$C22,FALSE) -> 0 | H91: =HLOOKUP('Alle lande, valgt år'!$F$12,'Afgifter og moms'!$A$38:$L$64,'Oversættelse af landenavne'!$C22,FALSE) -> 2.088 | M91: ='Oversættelse af landenavne'!$B22 -> Ungarn | O91: =HLOOKUP('Alle lande, valgt år'!$F$12,'Level 1'!$O$5:$Y$32,'Oversættelse af landenavne'!$C22,FALSE) -> 7.5286 | P91: =HLOOKUP('Alle lande, valgt år'!$F$12,'Afgifter og moms'!$O$5:$Y$31,'Oversættelse af landenavne'!$C22,FALSE) -> 0 | Q91: =HLOOKUP('Alle lande, valgt år'!$F$12,'Afgifter og moms'!$O$38:$Y$64,'Oversættelse af landenavne'!$C22,FALSE) -> 2.0327 | V91: ='Oversættelse af landenavne'!$B22 -> Ungarn | X91: =HLOOKUP('Alle lande, valgt år'!$F$12,'Level 1'!$AA$5:$AL$32,'Oversættelse af landenavne'!$C22,FALSE) -> 7.5314 | Y91: =HLOOKUP('Alle lande, valgt år'!$F$12,'Afgifter og moms'!$AB$5:$AL$31,'Oversættelse af landenavne'!$C22,FALSE) -> 0 | Z91: =HLOOKUP('Alle lande, valgt år'!$F$12,'Afgifter og moms'!$AB$38:$AL$64,'Oversættelse af landenavne'!$C22,FALSE) -> 2.0335
D92: ='Oversættelse af landenavne'!$B23 -> Holland | F92: =HLOOKUP('Alle lande, valgt år'!$F$12,'Level 1'!$A$5:$L$32,'Oversættelse af landenavne'!$C23,FALSE) -> 17.47 | G92: =HLOOKUP('Alle lande, valgt år'!$F$12,'Afgifter og moms'!$A$5:$L$31,'Oversættelse af landenavne'!$C23,FALSE) -> 7.48 | H92: =HLOOKUP('Alle lande, valgt år'!$F$12,'Afgifter og moms'!$A$38:$L$64,'Oversættelse af landenavne'!$C23,FALSE) -> 5.24 | M92: ='Oversættelse af landenavne'!$B23 -> Holland | O92: =HLOOKUP('Alle lande, valgt år'!$F$12,'Level 1'!$O$5:$Y$32,'Oversættelse af landenavne'!$C23,FALSE) -> 10.41 | P92: =HLOOKUP('Alle lande, valgt år'!$F$12,'Afgifter og moms'!$O$5:$Y$31,'Oversættelse af landenavne'!$C23,FALSE) -> 7.48 | Q92: =HLOOKUP('Alle lande, valgt år'!$F$12,'Afgifter og moms'!$O$38:$Y$64,'Oversættelse af landenavne'!$C23,FALSE) -> 3.76 | V92: ='Oversættelse af landenavne'!$B23 -> Holland | X92: =HLOOKUP('Alle lande, valgt år'!$F$12,'Level 1'!$AA$5:$AL$32,'Oversættelse af landenavne'!$C23,FALSE) -> 8.9 | Y92: =HLOOKUP('Alle lande, valgt år'!$F$12,'Afgifter og moms'!$AB$5:$AL$31,'Oversættelse af landenavne'!$C23,FALSE) -> 7.47 | Z92: =HLOOKUP('Alle lande, valgt år'!$F$12,'Afgifter og moms'!$AB$38:$AL$64,'Oversættelse af landenavne'!$C23,FALSE) -> 3.44
D93: ='Oversættelse af landenavne'!$B24 -> Østrig | F93: =HLOOKUP('Alle lande, valgt år'!$F$12,'Level 1'!$A$5:$L$32,'Oversættelse af landenavne'!$C24,FALSE) -> 17.78 | G93: =HLOOKUP('Alle lande, valgt år'!$F$12,'Afgifter og moms'!$A$5:$L$31,'Oversættelse af landenavne'!$C24,FALSE) -> 1.97 | H93: =HLOOKUP('Alle lande, valgt år'!$F$12,'Afgifter og moms'!$A$38:$L$64,'Oversættelse af landenavne'!$C24,FALSE) -> 3.97 | M93: ='Oversættelse af landenavne'!$B24 -> Østrig | O93: =HLOOKUP('Alle lande, valgt år'!$F$12,'Level 1'!$O$5:$Y$32,'Oversættelse af landenavne'!$C24,FALSE) -> 14.06 | P93: =HLOOKUP('Alle lande, valgt år'!$F$12,'Afgifter og moms'!$O$5:$Y$31,'Oversættelse af landenavne'!$C24,FALSE) -> 1.91 | Q93: =HLOOKUP('Alle lande, valgt år'!$F$12,'Afgifter og moms'!$O$38:$Y$64,'Oversættelse af landenavne'!$C24,FALSE) -> 3.2 | V93: ='Oversættelse af landenavne'!$B24 -> Østrig | X93: =HLOOKUP('Alle lande, valgt år'!$F$12,'Level 1'!$AA$5:$AL$32,'Oversættelse af landenavne'!$C24,FALSE) -> 11.94 | Y93: =HLOOKUP('Alle lande, valgt år'!$F$12,'Afgifter og moms'!$AB$5:$AL$31,'Oversættelse af landenavne'!$C24,FALSE) -> 1.87 | Z93: =HLOOKUP('Alle lande, valgt år'!$F$12,'Afgifter og moms'!$AB$38:$AL$64,'Oversættelse af landenavne'!$C24,FALSE) -> 2.77
D94: ='Oversættelse af landenavne'!$B25 -> Polen | F94: =HLOOKUP('Alle lande, valgt år'!$F$12,'Level 1'!$A$5:$L$32,'Oversættelse af landenavne'!$C25,FALSE) -> 12.8343 | G94: =HLOOKUP('Alle lande, valgt år'!$F$12,'Afgifter og moms'!$A$5:$L$31,'Oversættelse af landenavne'!$C25,FALSE) -> 0 | H94: =HLOOKUP('Alle lande, valgt år'!$F$12,'Afgifter og moms'!$A$38:$L$64,'Oversættelse af landenavne'!$C25,FALSE) -> 2.9528 | M94: ='Oversættelse af landenavne'!$B25 -> Polen | O94: =HLOOKUP('Alle lande, valgt år'!$F$12,'Level 1'!$O$5:$Y$32,'Oversættelse af landenavne'!$C25,FALSE) -> 8.8423 | P94: =HLOOKUP('Alle lande, valgt år'!$F$12,'Afgifter og moms'!$O$5:$Y$31,'Oversættelse af landenavne'!$C25,FALSE) -> 0.0023 | Q94: =HLOOKUP('Alle lande, valgt år'!$F$12,'Afgifter og moms'!$O$38:$Y$64,'Oversættelse af landenavne'!$C25,FALSE) -> 2.0349 | V94: ='Oversættelse af landenavne'!$B25 -> Polen | X94: =HLOOKUP('Alle lande, valgt år'!$F$12,'Level 1'!$AA$5:$AL$32,'Oversættelse af landenavne'!$C25,FALSE) -> 8.1877 | Y94: =HLOOKUP('Alle lande, valgt år'!$F$12,'Afgifter og moms'!$AB$5:$AL$31,'Oversættelse af landenavne'!$C25,FALSE) -> 0.0847 | Z94: =HLOOKUP('Alle lande, valgt år'!$F$12,'Afgifter og moms'!$AB$38:$AL$64,'Oversættelse af landenavne'!$C25,FALSE) -> 1.9044
D95: ='Oversættelse af landenavne'!$B26 -> Portugal | F95: =HLOOKUP('Alle lande, valgt år'!$F$12,'Level 1'!$A$5:$L$32,'Oversættelse af landenavne'!$C26,FALSE) -> 23.5 | G95: =HLOOKUP('Alle lande, valgt år'!$F$12,'Afgifter og moms'!$A$5:$L$31,'Oversættelse af landenavne'!$C26,FALSE) -> 1.37 | H95: =HLOOKUP('Alle lande, valgt år'!$F$12,'Afgifter og moms'!$A$38:$L$64,'Oversættelse af landenavne'!$C26,FALSE) -> 5.72 | M95: ='Oversættelse af landenavne'!$B26 -> Portugal | O95: =HLOOKUP('Alle lande, valgt år'!$F$12,'Level 1'!$O$5:$Y$32,'Oversættelse af landenavne'!$C26,FALSE) -> 19.38 | P95: =HLOOKUP('Alle lande, valgt år'!$F$12,'Afgifter og moms'!$O$5:$Y$31,'Oversættelse af landenavne'!$C26,FALSE) -> 1.23 | Q95: =HLOOKUP('Alle lande, valgt år'!$F$12,'Afgifter og moms'!$O$38:$Y$64,'Oversættelse af landenavne'!$C26,FALSE) -> 4.74 | V95: ='Oversættelse af landenavne'!$B26 -> Portugal | X95: =HLOOKUP('Alle lande, valgt år'!$F$12,'Level 1'!$AA$5:$AL$32,'Oversættelse af landenavne'!$C26,FALSE) -> 18.85 | Y95: =HLOOKUP('Alle lande, valgt år'!$F$12,'Afgifter og moms'!$AB$5:$AL$31,'Oversættelse af landenavne'!$C26,FALSE) -> 1.22 | Z95: =HLOOKUP('Alle lande, valgt år'!$F$12,'Afgifter og moms'!$AB$38:$AL$64,'Oversættelse af landenavne'!$C26,FALSE) -> 4.62
D96: ='Oversættelse af landenavne'!$B27 -> Rumænien | F96: =HLOOKUP('Alle lande, valgt år'!$F$12,'Level 1'!$A$5:$L$32,'Oversættelse af landenavne'!$C27,FALSE) -> 4.9627 | G96: =HLOOKUP('Alle lande, valgt år'!$F$12,'Afgifter og moms'!$A$5:$L$31,'Oversættelse af landenavne'!$C27,FALSE) -> 2.5715 | H96: =HLOOKUP('Alle lande, valgt år'!$F$12,'Afgifter og moms'!$A$38:$L$64,'Oversættelse af landenavne'!$C27,FALSE) -> 1.8085 | M96: ='Oversættelse af landenavne'!$B27 -> Rumænien | O96: =HLOOKUP('Alle lande, valgt år'!$F$12,'Level 1'!$O$5:$Y$32,'Oversættelse af landenavne'!$C27,FALSE) -> 4.916 | P96: =HLOOKUP('Alle lande, valgt år'!$F$12,'Afgifter og moms'!$O$5:$Y$31,'Oversættelse af landenavne'!$C27,FALSE) -> 2.5381 | Q96: =HLOOKUP('Alle lande, valgt år'!$F$12,'Afgifter og moms'!$O$38:$Y$64,'Oversættelse af landenavne'!$C27,FALSE) -> 1.7885 | V96: ='Oversættelse af landenavne'!$B27 -> Rumænien | X96: =HLOOKUP('Alle lande, valgt år'!$F$12,'Level 1'!$AA$5:$AL$32,'Oversættelse af landenavne'!$C27,FALSE) -> 4.7826 | Y96: =HLOOKUP('Alle lande, valgt år'!$F$12,'Afgifter og moms'!$AB$5:$AL$31,'Oversættelse af landenavne'!$C27,FALSE) -> 2.3156 | Z96: =HLOOKUP('Alle lande, valgt år'!$F$12,'Afgifter og moms'!$AB$38:$AL$64,'Oversættelse af landenavne'!$C27,FALSE) -> 1.7039
D97: ='Oversættelse af landenavne'!$B28 -> Slovenien | F97: =HLOOKUP('Alle lande, valgt år'!$F$12,'Level 1'!$A$5:$L$32,'Oversættelse af landenavne'!$C28,FALSE) -> 13.95 | G97: =HLOOKUP('Alle lande, valgt år'!$F$12,'Afgifter og moms'!$A$5:$L$31,'Oversættelse af landenavne'!$C28,FALSE) -> 1.81 | H97: =HLOOKUP('Alle lande, valgt år'!$F$12,'Afgifter og moms'!$A$38:$L$64,'Oversættelse af landenavne'!$C28,FALSE) -> 3.46 | M97: ='Oversættelse af landenavne'!$B28 -> Slovenien | O97: =HLOOKUP('Alle lande, valgt år'!$F$12,'Level 1'!$O$5:$Y$32,'Oversættelse af landenavne'!$C28,FALSE) -> 11.84 | P97: =HLOOKUP('Alle lande, valgt år'!$F$12,'Afgifter og moms'!$O$5:$Y$31,'Oversættelse af landenavne'!$C28,FALSE) -> 1.81 | Q97: =HLOOKUP('Alle lande, valgt år'!$F$12,'Afgifter og moms'!$O$38:$Y$64,'Oversættelse af landenavne'!$C28,FALSE) -> 3 | V97: ='Oversættelse af landenavne'!$B28 -> Slovenien | X97: =HLOOKUP('Alle lande, valgt år'!$F$12,'Level 1'!$AA$5:$AL$32,'Oversættelse af landenavne'!$C28,FALSE) -> 10.73 | Y97: =HLOOKUP('Alle lande, valgt år'!$F$12,'Afgifter og moms'!$AB$5:$AL$31,'Oversættelse af landenavne'!$C28,FALSE) -> 1.81 | Z97: =HLOOKUP('Alle lande, valgt år'!$F$12,'Afgifter og moms'!$AB$38:$AL$64,'Oversættelse af landenavne'!$C28,FALSE) -> 2.76
D98: ='Oversættelse af landenavne'!$B29 -> Slovakiet | F98: =HLOOKUP('Alle lande, valgt år'!$F$12,'Level 1'!$A$5:$L$32,'Oversættelse af landenavne'!$C29,FALSE) -> 23.41 | G98: =HLOOKUP('Alle lande, valgt år'!$F$12,'Afgifter og moms'!$A$5:$L$31,'Oversættelse af landenavne'!$C29,FALSE) -> 0 | H98: =HLOOKUP('Alle lande, valgt år'!$F$12,'Afgifter og moms'!$A$38:$L$64,'Oversættelse af landenavne'!$C29,FALSE) -> 4.68 | M98: ='Oversættelse af landenavne'!$B29 -> Slovakiet | O98: =HLOOKUP('Alle lande, valgt år'!$F$12,'Level 1'!$O$5:$Y$32,'Oversættelse af landenavne'!$C29,FALSE) -> 10.65 | P98: =HLOOKUP('Alle lande, valgt år'!$F$12,'Afgifter og moms'!$O$5:$Y$31,'Oversættelse af landenavne'!$C29,FALSE) -> 0 | Q98: =HLOOKUP('Alle lande, valgt år'!$F$12,'Afgifter og moms'!$O$38:$Y$64,'Oversættelse af landenavne'!$C29,FALSE) -> 2.13 | V98: ='Oversættelse af landenavne'!$B29 -> Slovakiet | X98: =HLOOKUP('Alle lande, valgt år'!$F$12,'Level 1'!$AA$5:$AL$32,'Oversættelse af landenavne'!$C29,FALSE) -> 11.2 | Y98: =HLOOKUP('Alle lande, valgt år'!$F$12,'Afgifter og moms'!$AB$5:$AL$31,'Oversættelse af landenavne'!$C29,FALSE) -> 0 | Z98: =HLOOKUP('Alle lande, valgt år'!$F$12,'Afgifter og moms'!$AB$38:$AL$64,'Oversættelse af landenavne'!$C29,FALSE) -> 2.24
D99: ='Oversættelse af landenavne'!$B30 -> Sverige | F99: =HLOOKUP('Alle lande, valgt år'!$F$12,'Level 1'!$A$5:$L$32,'Oversættelse af landenavne'!$C30,FALSE) -> 28.5247 | G99: =HLOOKUP('Alle lande, valgt år'!$F$12,'Afgifter og moms'!$A$5:$L$31,'Oversættelse af landenavne'!$C30,FALSE) -> 8.1603 | H99: =HLOOKUP('Alle lande, valgt år'!$F$12,'Afgifter og moms'!$A$38:$L$64,'Oversættelse af landenavne'!$C30,FALSE) -> 9.1707 | M99: ='Oversættelse af landenavne'!$B30 -> Sverige | O99: =HLOOKUP('Alle lande, valgt år'!$F$12,'Level 1'!$O$5:$Y$32,'Oversættelse af landenavne'!$C30,FALSE) -> 16.9224 | P99: =HLOOKUP('Alle lande, valgt år'!$F$12,'Afgifter og moms'!$O$5:$Y$31,'Oversættelse af landenavne'!$C30,FALSE) -> 8.1602 | Q99: =HLOOKUP('Alle lande, valgt år'!$F$12,'Afgifter og moms'!$O$38:$Y$64,'Oversættelse af landenavne'!$C30,FALSE) -> 6.2715 | V99: ='Oversættelse af landenavne'!$B30 -> Sverige | X99: =HLOOKUP('Alle lande, valgt år'!$F$12,'Level 1'!$AA$5:$AL$32,'Oversættelse af landenavne'!$C30,FALSE) -> 14.4349 | Y99: =HLOOKUP('Alle lande, valgt år'!$F$12,'Afgifter og moms'!$AB$5:$AL$31,'Oversættelse af landenavne'!$C30,FALSE) -> 8.1602 | Z99: =HLOOKUP('Alle lande, valgt år'!$F$12,'Afgifter og moms'!$AB$38:$AL$64,'Oversættelse af landenavne'!$C30,FALSE) -> 5.6491
D100: ='Oversættelse af landenavne'!$B31 -> UK | F100: =HLOOKUP('Alle lande, valgt år'!$F$12,'Level 1'!$A$5:$L$32,'Oversættelse af landenavne'!$C31,FALSE) -> 20.1394 | G100: =HLOOKUP('Alle lande, valgt år'!$F$12,'Afgifter og moms'!$A$5:$L$31,'Oversættelse af landenavne'!$C31,FALSE) -> 0 | H100: =HLOOKUP('Alle lande, valgt år'!$F$12,'Afgifter og moms'!$A$38:$L$64,'Oversættelse af landenavne'!$C31,FALSE) -> 1.0146 | M100: ='Oversættelse af landenavne'!$B31 -> UK | O100: =HLOOKUP('Alle lande, valgt år'!$F$12,'Level 1'!$O$5:$Y$32,'Oversættelse af landenavne'!$C31,FALSE) -> 14.6293 | P100: =HLOOKUP('Alle lande, valgt år'!$F$12,'Afgifter og moms'!$O$5:$Y$31,'Oversættelse af landenavne'!$C31,FALSE) -> 0 | Q100: =HLOOKUP('Alle lande, valgt år'!$F$12,'Afgifter og moms'!$O$38:$Y$64,'Oversættelse af landenavne'!$C31,FALSE) -> 0.7321 | V100: ='Oversættelse af landenavne'!$B31 -> UK | X100: =HLOOKUP('Alle lande, valgt år'!$F$12,'Level 1'!$AA$5:$AL$32,'Oversættelse af landenavne'!$C31,FALSE) -> 13.4733 | Y100: =HLOOKUP('Alle lande, valgt år'!$F$12,'Afgifter og moms'!$AB$5:$AL$31,'Oversættelse af landenavne'!$C31,FALSE) -> 0 | Z100: =HLOOKUP('Alle lande, valgt år'!$F$12,'Afgifter og moms'!$AB$38:$AL$64,'Oversættelse af landenavne'!$C31,FALSE) -> 0.6808
D102: Level 1 | M102: Level 1 | V102: Level 1
D103: Level 2 | M103: Level 2 | V103: Level 2
D104: Level 3 | M104: Level 3 | V104: Level 3
D110: Herunder vises de tabeller der er resultatet er valgene truffet øverst i valgmenuen
D111: Man kunne have valgt at vise tallene for alle år, men jeg synes at formlen er overskuelig nok til at vi lavder årstalsvalgt indgå direkte
D113: Tabel B - BVT Deflatoren | H113: Tabel C | M113: Tabel D
D114: Tabel B fremkommer som resultat af valgene truffet for faste/løbende priser og basisår. BVT deflatoren vises for samtlige lande for det valgte år. Væles løbende priser deflaterer man ikke, hvorfor der vil stå et 1-tal i alle celler. Formlen gør at "fejlværdien" svarer til at man har valgt løbende priser (gælder både for overskrift og formler). Med denne metode kan indeksværdien ganges direkte på rådata uanset hvilken valuta der vælges. | H114: Tabel C viser hvilken kurs der ganges på rådata (opgivet i euro) for at få priserne vist i den valuta der er valgt i valgmenuen øverst. Kursen ændres efter valgt år og valuta. | M114: Tabel D viser hvilken faktor der ganges på den oprindelige (opgivet i GJ), for at få vist priserne i den enhed der er valgt i valgmenuen øverst. Formlen gør så "fejlværdien" svarer til at man har valgt GJ (gælder både for overskrift og formler). Med denne metode kan omregningsfaktoren ganges direkte på rådata uanset hvilken enhed der vælges.
F116: =IF('Alle lande, valgt år'!F13="faste priser","BVT deflatoenfor år "&'Alle lande, valgt år'!F12&" med basisåret "&'Alle lande, valgt år'!F14&"","Prisindeks for løbende priser år "&'Alle lande, valgt år'!F12) -> BVT deflatoenfor år 2016 med basisåret 2016 | H116: ="Valutakursen for "&'Alle lande, valgt år'!F15&" i fht. Euro år "&'Alle lande, valgt år'!F12 -> Valutakursen for DKK øre i fht. Euro år 2016 | M116: ="Omregningsfaktoren for "&'Alle lande, valgt år'!F16&" i fht. GJ år "&'Alle lande, valgt år'!F12 -> Omregningsfaktoren for kwh i fht. GJ år 2016
D117: ='Baggrundsdata - HICP - deflator'!B23 -> EU-28 | F117: =IF('Alle lande, valgt år'!$F$13="faste priser",HLOOKUP('Alle lande, valgt år'!$F$12,'Baggrundsdata - HICP - deflator'!$C$22:$M$48,'Oversættelse af landenavne'!C6,FALSE),1) -> 1 | H117: =IF($F$15="Euro",1,IF($F$15="eurocent",100,IF($F$15="DKK øre",HLOOKUP(F12,Forside!$E$55:$O$56,2,FALSE),IF($F$15="DKK",((HLOOKUP(F12,Forside!$E$55:$O$56,2,FALSE))/100),"F")))) -> 744.7488444 | M117: =IF('Alle lande, valgt år'!$F$16="Nm3",HLOOKUP('Alle lande, valgt år'!F12,Forside!E72:K74,2,FALSE),IF('Alle lande, valgt år'!$F$16="kwh",1/278,1)) -> 0.003597122302
D118: ='Baggrundsdata - HICP - deflator'!B24 -> Belgien | F118: =IF('Alle lande, valgt år'!$F$13="faste priser",HLOOKUP('Alle lande, valgt år'!$F$12,'Baggrundsdata - HICP - deflator'!$C$22:$M$48,'Oversættelse af landenavne'!C7,FALSE),1) -> 1
D119: ='Baggrundsdata - HICP - deflator'!B25 -> Bulgarien | F119: =IF('Alle lande, valgt år'!$F$13="faste priser",HLOOKUP('Alle lande, valgt år'!$F$12,'Baggrundsdata - HICP - deflator'!$C$22:$M$48,'Oversættelse af landenavne'!C8,FALSE),1) -> 1
D120: ='Baggrundsdata - HICP - deflator'!B26 -> Tjekkiet | F120: =IF('Alle lande, valgt år'!$F$13="faste priser",HLOOKUP('Alle lande, valgt år'!$F$12,'Baggrundsdata - HICP - deflator'!$C$22:$M$48,'Oversættelse af landenavne'!C9,FALSE),1) -> 1
D121: ='Baggrundsdata - HICP - deflator'!B27 -> Danmark | F121: =IF('Alle lande, valgt år'!$F$13="faste priser",HLOOKUP('Alle lande, valgt år'!$F$12,'Baggrundsdata - HICP - deflator'!$C$22:$M$48,'Oversættelse af landenavne'!C10,FALSE),1) -> 1
D122: ='Baggrundsdata - HICP - deflator'!B28 -> Tyskland | F122: =IF('Alle lande, valgt år'!$F$13="faste priser",HLOOKUP('Alle lande, valgt år'!$F$12,'Baggrundsdata - HICP - deflator'!$C$22:$M$48,'Oversættelse af landenavne'!C11,FALSE),1) -> 1
D123: ='Baggrundsdata - HICP - deflator'!B29 -> Estland | F123: =IF('Alle lande, valgt år'!$F$13="faste priser",HLOOKUP('Alle lande, valgt år'!$F$12,'Baggrundsdata - HICP - deflator'!$C$22:$M$48,'Oversættelse af landenavne'!C12,FALSE),1) -> 1
D124: ='Baggrundsdata - HICP - deflator'!B30 -> Irland | F124: =IF('Alle lande, valgt år'!$F$13="faste priser",HLOOKUP('Alle lande, valgt år'!$F$12,'Baggrundsdata - HICP - deflator'!$C$22:$M$48,'Oversættelse af landenavne'!C13,FALSE),1) -> 1
D125: ='Baggrundsdata - HICP - deflator'!B31 -> Grækenland | F125: =IF('Alle lande, valgt år'!$F$13="faste priser",HLOOKUP('Alle lande, valgt år'!$F$12,'Baggrundsdata - HICP - deflator'!$C$22:$M$48,'Oversættelse af landenavne'!C14,FALSE),1) -> 1
D126: ='Baggrundsdata - HICP - deflator'!B32 -> Spanien | F126: =IF('Alle lande, valgt år'!$F$13="faste priser",HLOOKUP('Alle lande, valgt år'!$F$12,'Baggrundsdata - HICP - deflator'!$C$22:$M$48,'Oversættelse af landenavne'!C15,FALSE),1) -> 1
D127: ='Baggrundsdata - HICP - deflator'!B33 -> Frankrig | F127: =IF('Alle lande, valgt år'!$F$13="faste priser",HLOOKUP('Alle lande, valgt år'!$F$12,'Baggrundsdata - HICP - deflator'!$C$22:$M$48,'Oversættelse af landenavne'!C16,FALSE),1) -> 1
D128: ='Baggrundsdata - HICP - deflator'!B34 -> Kroatien | F128: =IF('Alle lande, valgt år'!$F$13="faste priser",HLOOKUP('Alle lande, valgt år'!$F$12,'Baggrundsdata - HICP - deflator'!$C$22:$M$48,'Oversættelse af landenavne'!C17,FALSE),1) -> 1
D129: ='Baggrundsdata - HICP - deflator'!B35 -> Italien | F129: =IF('Alle lande, valgt år'!$F$13="faste priser",HLOOKUP('Alle lande, valgt år'!$F$12,'Baggrundsdata - HICP - deflator'!$C$22:$M$48,'Oversættelse af landenavne'!C18,FALSE),1) -> 1
D130: ='Baggrundsdata - HICP - deflator'!B36 -> Letland | F130: =IF('Alle lande, valgt år'!$F$13="faste priser",HLOOKUP('Alle lande, valgt år'!$F$12,'Baggrundsdata - HICP - deflator'!$C$22:$M$48,'Oversættelse af landenavne'!C19,FALSE),1) -> 1
D131: ='Baggrundsdata - HICP - deflator'!B37 -> Litaun | F131: =IF('Alle lande, valgt år'!$F$13="faste priser",HLOOKUP('Alle lande, valgt år'!$F$12,'Baggrundsdata - HICP - deflator'!$C$22:$M$48,'Oversættelse af landenavne'!C20,FALSE),1) -> 1
D132: ='Baggrundsdata - HICP - deflator'!B38 -> luxembourg | F132: =IF('Alle lande, valgt år'!$F$13="faste priser",HLOOKUP('Alle lande, valgt år'!$F$12,'Baggrundsdata - HICP - deflator'!$C$22:$M$48,'Oversættelse af landenavne'!C21,FALSE),1) -> 1
D133: ='Baggrundsdata - HICP - deflator'!B39 -> Ungarn | F133: =IF('Alle lande, valgt år'!$F$13="faste priser",HLOOKUP('Alle lande, valgt år'!$F$12,'Baggrundsdata - HICP - deflator'!$C$22:$M$48,'Oversættelse af landenavne'!C22,FALSE),1) -> 1
D134: ='Baggrundsdata - HICP - deflator'!B40 -> Holland | F134: =IF('Alle lande, valgt år'!$F$13="faste priser",HLOOKUP('Alle lande, valgt år'!$F$12,'Baggrundsdata - HICP - deflator'!$C$22:$M$48,'Oversættelse af landenavne'!C23,FALSE),1) -> 1
D135: ='Baggrundsdata - HICP - deflator'!B41 -> Østrig | F135: =IF('Alle lande, valgt år'!$F$13="faste priser",HLOOKUP('Alle lande, valgt år'!$F$12,'Baggrundsdata - HICP - deflator'!$C$22:$M$48,'Oversættelse af landenavne'!C24,FALSE),1) -> 1
D136: ='Baggrundsdata - HICP - deflator'!B42 -> Polen | F136: =IF('Alle lande, valgt år'!$F$13="faste priser",HLOOKUP('Alle lande, valgt år'!$F$12,'Baggrundsdata - HICP - deflator'!$C$22:$M$48,'Oversættelse af landenavne'!C25,FALSE),1) -> 1
D137: ='Baggrundsdata - HICP - deflator'!B43 -> Portugal | F137: =IF('Alle lande, valgt år'!$F$13="faste priser",HLOOKUP('Alle lande, valgt år'!$F$12,'Baggrundsdata - HICP - deflator'!$C$22:$M$48,'Oversættelse af landenavne'!C26,FALSE),1) -> 1
D138: ='Baggrundsdata - HICP - deflator'!B44 -> Rumænien | F138: =IF('Alle lande, valgt år'!$F$13="faste priser",HLOOKUP('Alle lande, valgt år'!$F$12,'Baggrundsdata - HICP - deflator'!$C$22:$M$48,'Oversættelse af landenavne'!C27,FALSE),1) -> 1
D139: ='Baggrundsdata - HICP - deflator'!B45 -> Slovenien | F139: =IF('Alle lande, valgt år'!$F$13="faste priser",HLOOKUP('Alle lande, valgt år'!$F$12,'Baggrundsdata - HICP - deflator'!$C$22:$M$48,'Oversættelse af landenavne'!C28,FALSE),1) -> 1
D140: ='Baggrundsdata - HICP - deflator'!B46 -> Slovakiet | F140: =IF('Alle lande, valgt år'!$F$13="faste priser",HLOOKUP('Alle lande, valgt år'!$F$12,'Baggrundsdata - HICP - deflator'!$C$22:$M$48,'Oversættelse af landenavne'!C29,FALSE),1) -> 1
D141: ='Baggrundsdata - HICP - deflator'!B47 -> Sverige | F141: =IF('Alle lande, valgt år'!$F$13="faste priser",HLOOKUP('Alle lande, valgt år'!$F$12,'Baggrundsdata - HICP - deflator'!$C$22:$M$48,'Oversættelse af landenavne'!C30,FALSE),1) -> 1
D142: ='Baggrundsdata - HICP - deflator'!B48 -> UK | F142: =IF('Alle lande, valgt år'!$F$13="faste priser",HLOOKUP('Alle lande, valgt år'!$F$12,'Baggrundsdata - HICP - deflator'!$C$22:$M$48,'Oversættelse af landenavne'!C31,FALSE),1) -> 1

Sheet Level 1
A1: Gaspriser, forbrugere. Level 1 gaspriser for forskellige forbrugsintervaller
A3: Forbrugsinterval < 20 GJ | N3: Forbrugsinterval 20 GJ < 200 GJ | AA3: Forbrugsinterval >200 GJ
A5: EURO/GJ | B5: =+LEFT(B51,4)+0 -> 2007 | C5: =B5+1 -> 2008 | D5: =+C5+1 -> 2009 | E5: 2010 | F5: 2011 | G5: 2012 | H5: 2013 | I5: =+H5+1 -> 2014 | J5: =+I5+1 -> 2015 | K5: =+J5+1 -> 2016 | L5: =+K5+1 -> 2017 | N5: EURO/GJ | O5: =LEFT(B88,4)+0 -> 2007 | P5: =+O5+1 -> 2008 | Q5: =+P5+1 -> 2009 | R5: =+Q5+1 -> 2010 | S5: =+R5+1 -> 2011 | T5: =+S5+1 -> 2012 | U5: =+T5+1 -> 2013 | V5: =+U5+1 -> 2014 | W5: =+V5+1 -> 2015 | X5: =+W5+1 -> 2016 | Y5: =+X5+1 -> 2017 | AA5: EURO/GJ | AB5: =LEFT(B125,4)+0 -> 2007 | AC5: =+AB5+1 -> 2008 | AD5: =+AC5+1 -> 2009 | AE5: =+AD5+1 -> 2010 | AF5: =+AE5+1 -> 2011 | AG5: =+AF5+1 -> 2012 | AH5: =+AG5+1 -> 2013 | AI5: =+AH5+1 -> 2014 | AJ5: =+AI5+1 -> 2015 | AK5: =+AJ5+1 -> 2016 | AL5: =+AK5+1 -> 2017
A6: =A52 -> European Union (28 countries) | B6: =IFERROR(AVERAGE(B52,C52),"*") -> 15.23 | C6: =IFERROR(AVERAGE(D52,E52),"*") -> 17.475 | D6: =IFERROR(AVERAGE(F52,G52),"*") -> 17.285 | E6: =IFERROR(AVERAGE(H52,I52),"*") -> 17.14 | F6: =IFERROR(AVERAGE(J52,K52),"*") -> 18.835 | G6: =IFERROR(AVERAGE(L52,M52),"*") -> 20.45 | H6: =IFERROR(AVERAGE(N52,O52),"*") -> 21.35 | I6: =IFERROR(AVERAGE(P52,Q52),"*") -> 22.975 | J6: =IFERROR(AVERAGE(R52,S52),"*") -> 22.58 | K6: =IFERROR(AVERAGE(T52,U52),"*") -> 20.13 | L6: =IFERROR(AVERAGE(V52,W52),"*") -> * | N6: =A89 -> European Union (28 countries) | O6: =IFERROR(AVERAGE(B89,C89),"*") -> 11.03 | P6: =IFERROR(AVERAGE(D89,E89),"*") -> 12.655 | Q6: =IFERROR(AVERAGE(F89,G89),"*") -> 12.015 | R6: =IFERROR(AVERAGE(H89,I89),"*") -> 11.555 | S6: =IFERROR(AVERAGE(J89,K89),"*") -> 12.86 | T6: =IFERROR(AVERAGE(L89,M89),"*") -> 14.29 | U6: =IFERROR(AVERAGE(N89,O89),"*") -> 14.565 | V6: =IFERROR(AVERAGE(P89,Q89),"*") -> 14.875 | W6: =IFERROR(AVERAGE(R89,S89),"*") -> 14.66 | X6: =IFERROR(AVERAGE(T89,U89),"*") -> 13 | Y6: =IFERROR(AVERAGE(V89,W89),"*") -> * | AA6: =A126 -> European Union (28 countries) | AB6: =IFERROR(AVERAGE(B126,C126),"*") -> 9.88 | AC6: =IFERROR(AVERAGE(D126,E126),"*") -> 11.51 | AD6: =IFERROR(AVERAGE(F126,G126),"*") -> 10.795 | AE6: =IFERROR(AVERAGE(H126,I126),"*") -> 10.365 | AF6: =IFERROR(AVERAGE(J126,K126),"*") -> 11.605 | AG6: =IFERROR(AVERAGE(L126,M126),"*") -> 12.75 | AH6: =IFERROR(AVERAGE(N126,O126),"*") -> 13.05 | AI6: =IFERROR(AVERAGE(P126,Q126),"*") -> 12.99 | AJ6: =IFERROR(AVERAGE(R126,S126),"*") -> 12.82 | AK6: =IFERROR(AVERAGE(T126,U126),"*") -> 11.6 | AL6: =IFERROR(AVERAGE(V126,W126),"*") -> *
A7: =A53 -> Belgium | B7: =IFERROR(AVERAGE(B53,C53),"*") -> 17.44 | C7: =IFERROR(AVERAGE(D53,E53),"*") -> 21.14 | D7: =IFERROR(AVERAGE(F53,G53),"*") -> 18.755 | E7: =IFERROR(AVERAGE(H53,I53),"*") -> 18.135 | F7: =IFERROR(AVERAGE(J53,K53),"*") -> 19.95 | G7: =IFERROR(AVERAGE(L53,M53),"*") -> 21.42 | H7: =IFERROR(AVERAGE(N53,O53),"*") -> 20 | I7: 19.73 | J7: 18.835 | K7: 15.84 | L7: * | N7: =A90 -> Belgium | O7: =IFERROR(AVERAGE(B90,C90),"*") -> 11.14 | P7: =IFERROR(AVERAGE(D90,E90),"*") -> 14.69 | Q7: =IFERROR(AVERAGE(F90,G90),"*") -> 12.495 | R7: =IFERROR(AVERAGE(H90,I90),"*") -> 12.525 | S7: =IFERROR(AVERAGE(J90,K90),"*") -> 15.185 | T7: =IFERROR(AVERAGE(L90,M90),"*") -> 15.72 | U7: =IFERROR(AVERAGE(N90,O90),"*") -> 14.53 | V7: 14.09 | W7: 13.27 | X7: 11.53 | Y7: * | AA7: =A127 -> Belgium | AB7: =IFERROR(AVERAGE(B127,C127),"*") -> 9.97 | AC7: =IFERROR(AVERAGE(D127,E127),"*") -> 13.79 | AD7: =IFERROR(AVERAGE(F127,G127),"*") -> 11.475 | AE7: =IFERROR(AVERAGE(H127,I127),"*") -> 10.95 | AF7: =IFERROR(AVERAGE(J127,K127),"*") -> 13.76 | AG7: =IFERROR(AVERAGE(L127,M127),"*") -> 14.195 | AH7: =IFERROR(AVERAGE(N127,O127),"*") -> 13.34 | AI7: 12.28 | AJ7: 11.29 | AK7: 10.52 | AL7: *
A8: Bulgaria | B8: 7.0968 | C8: 8.5771 | D8: 9.4258 | E8: 9.09315 | F8: 10.2771 | G8: 12.1536 | H8: 12.1383 | I8: 11.5656 | J8: 10.6964 | K8: 9.0142 | L8: * | N8: Bulgaria | O8: 7.4803 | P8: 8.6256 | Q8: 9.5025 | R8: 9.24485 | S8: 10.4382 | T8: 12.1536 | U8: 11.9312 | V8: 11.2793 | W8: 10.0496 | X8: 8.5183 | Y8: * | AA8: Bulgaria | AB8: 7.5979 | AC8: 9.00395 | AD8: 9.75815 | AE8: 9.3765 | AF8: 10.51485 | AG8: 12.4527 | AH8: 12.03855 | AI8: 11.4531 | AJ8: 10.05725 | AK8: 8.4518 | AL8: *
A9: Czech Republic | B9: 12.6985 | C9: 16.5004 | D9: 16.6395 | E9: 17.7698 | F9: 21.02645 | G9: 21.8594 | H9: 21.50175 | I9: 19.69995 | J9: 20.721 | K9: 21.1934 | L9: * | N9: Czech Republic | O9: 8.454 | P9: 11.2977 | Q9: 11.28645 | R9: 11.4131 | S9: 13.1894 | T9: 15.27785 | U9: 13.96075 | V9: 12.75065 | W9: 13.28715 | X9: 13.3783 | Y9: * | AA9: Czech Republic | AB9: 8.2922 | AC9: 11.3259 | AD9: 11.0627 | AE9: 10.9289 | AF9: 12.48685 | AG9: 14.79615 | AH9: 13.39025 | AI9: 12.171 | AJ9: 12.4804 | AK9: 12.4789 | AL9: *
A10: Denmark | B10: 12.04595 | C10: 14.5542 | D10: 11.3072 | E10: 13.25865 | F10: 14.66175 | G10: 13.08465 | H10: 12.0711 | I10: 9.78845 | J10: 9.48845 | K10: 7.9464 | L10: * | N10: Denmark | O10: 15.46955 | P10: 14.5542 | Q10: 11.3072 | R10: 13.25865 | S10: 14.66175 | T10: 13.08465 | U10: 12.0711 | V10: 9.78845 | W10: 9.48845 | X10: 7.9464 | Y10: * | AA10: Denmark | AB10: 17.7343 | AC10: 14.5542 | AD10: 11.3072 | AE10: 13.25865 | AF10: 14.66175 | AG10: 13.08465 | AH10: 12.0711 | AI10: 9.78845 | AJ10: 9.48845 | AK10: 7.9464 | AL10: *
A11: Germany (until 1990 former territory of the FRG) | B11: 17.72 | C11: 21.3 | D11: 20.385 | E11: 20.19 | F11: 21.895 | G11: 22.08 | H11: 23.12 | I11: 23.04 | J11: 22.745 | K11: 23.15 | L11: * | N11: Germany (until 1990 former territory of the FRG) | O11: 12.68 | P11: 14.73 | Q11: 12.785 | R11: 11.61 | S11: 12.68 | T11: 13.355 | U11: 14.1 | V11: 14.22 | W11: 14.195 | X11: 13.78 | Y11: * | AA11: Germany (until 1990 former territory of the FRG) | AB11: 11.9 | AC11: 13.345 | AD11: 11.34 | AE11: 10.94 | AF11: 12.01 | AG11: 12.65 | AH11: 13.13 | AI11: 13.115 | AJ11: 13.095 | AK11: 12.59 | AL11: *
A12: Estonia | B12: 9.0856 | C12: 9.1434 | D12: 8.807 | E12: 9.85045 | F12: 12.35 | G12: 13.42 | H12: 13.985 | I12: 12.54 | J12: 10.41 | K12: 9.9 | L12: * | N12: Estonia | O12: 6.1748 | P12: 7.88575 | Q12: 8.5093 | R12: 8.186 | S12: 9.28 | T12: 11.13 | U12: 10.92 | V12: 10.81 | W12: 8.965 | X12: 9.24 | Y12: * | AA12: Estonia | AB12: 6.1417 | AC12: 7.83335 | AD12: 8.47375 | AE12: 8.0851 | AF12: 8.76 | AG12: 10.7 | AH12: 10.255 | AI12: 10.145 | AJ12: 8.58 | AK12: 8.58 | AL12: *
A13: Ireland | B13: 26.55 | C13: 17.06 | D13: 16.195 | E13: 13.625 | F13: 14.86 | G13: 16.925 | H13: 18.66 | I13: 19.29 | J13: 18.96 | K13: 16.83 | L13: * | N13: Ireland | O13: 14.84 | P13: 14.595 | Q13: 14.615 | R13: 12.095 | S13: 13.025 | T13: 14.925 | U13: 15.885 | V13: 16.415 | W13: 16.065 | X13: 14.94 | Y13: * | AA13: Ireland | AB13: 12.78 | AC13: 13.91 | AD13: 13.8 | AE13: 11.285 | AF13: 12.165 | AG13: 13.86 | AH13: 14.8 | AI13: 15.07 | AJ13: 14.665 | AK13: 13.87 | AL13: *
A14: Greece | B14: * | C14: * | D14: * | E14: * | F14: * | G14: 34.44 | H14: 25.955 | I14: 22.995 | J14: 22.44 | K14: 15.05 | L14: * | N14: Greece | O14: * | P14: * | Q14: * | R14: * | S14: * | T14: 23.42 | U14: 18.81 | V14: 17.09 | W14: 15.975 | X14: 12.28 | Y14: * | AA14: Greece | AB14: * | AC14: * | AD14: * | AE14: * | AF14: * | AG14: 18 | AH14: 16.395 | AI14: 15.315 | AJ14: 13.64 | AK14: 11.92 | AL14: *
A15: Spain | B15: 16.652 | C15: 17.8105 | D15: 17.02905 | E15: 16.23455 | F15: 16.145 | G15: 21.815 | H15: 22.305 | I15: 24.32 | J15: 23.515 | K15: 19.11 | L15: * | N15: Spain | O15: 13.921 | P15: 14.7065 | Q15: 13.73185 | R15: 12.7487 | S15: 12.67 | T15: 17.82 | U15: 17.995 | V15: 18.995 | W15: 18.725 | X15: 14.9 | Y15: * | AA15: Spain | AB15: 11.385 | AC15: 12.519 | AD15: 11.32655 | AE15: 11.33595 | AF15: 12.835 | AG15: 14.6 | AH15: 15.39 | AI15: 15.015 | AJ15: 14.24 | AK15: 12.24 | AL15: *
A16: France | B16: 22.77 | C16: 24.9225 | D16: 26.27 | E16: 25.635 | F16: 27.83 | G16: 28.465 | H16: 30.655 | I16: 32.485 | J16: 31.22 | K16: 28.58 | L16: * | N16: France | O16: 12.2 | P16: 12.9995 | Q16: 13.43 | R16: 12.82 | S16: 14.185 | T16: 15.245 | U16: 16.265 | V16: 16.77 | W16: 15.87 | X16: 13.96 | Y16: * | AA16: France | AB16: 10.68 | AC16: 11.5915 | AD16: 11.785 | AE16: 11 | AF16: 12.245 | AG16: 13.42 | AH16: 13.78 | AI16: 14.12 | AJ16: 13.1 | AK16: 11.72 | AL16: *
A17: Croatia | B17: 6.18305 | C17: 6.1123 | D17: 7.3402 | E17: 8.6068 | F17: 8.43585 | G17: 9.37365 | H17: 10.47125 | I17: 11.3172 | J17: 12.25055 | K17: 11.4274 | L17: * | N17: Croatia | O17: 6.18305 | P17: 6.1123 | Q17: 7.3402 | R17: 8.6068 | S17: 8.43585 | T17: 9.53365 | U17: 10.36635 | V17: 10.43765 | W17: 10.35585 | X17: 9.5229 | Y17: * | AA17: Croatia | AB17: 6.18305 | AC17: 6.1123 | AD17: 7.3402 | AE17: 8.6068 | AF17: 8.43585 | AG17: 9.555 | AH17: 10.3268 | AI17: 9.83385 | AJ17: 9.8698 | AK17: 9.0163 | AL17: *
A18: Italy | B18: 13.977 | C18: 15.8525 | D18: 14.2895 | E18: 16.408 | F18: 18.785 | G18: 21.875 | H18: 22.55 | I18: 24.95 | J18: 23.625 | K18: 19.11 | L18: * | N18: Italy | O18: 11.349 | P18: 12.7925 | Q18: 11.9255 | R18: 12.1445 | S18: 13.935 | T18: 16.055 | U18: 16.455 | V18: 16.09 | W18: 15.11 | X18: 13.16 | Y18: * | AA18: Italy | AB18: 10.361 | AC18: 11.0985 | AD18: 11.374 | AE18: 10.3365 | AF18: 11.87 | AG18: 13.52 | AH18: 13.785 | AI18: 12.865 | AJ18: 12.155 | AK18: 11.08 | AL18: *
A19: Latvia | B19: 7.8182 | C19: 13.57075 | D19: 18.3626 | E19: 15.34355 | F19: 15.936 | G19: 18.0706 | H19: 17.138 | I19: 16.745 | J19: 16.785 | K19: 15.55 | L19: * | N19: Latvia | O19: 7.3322 | P19: 10.7381 | Q19: 11.39105 | R19: 9.0789 | S19: 9.7485 | T19: 11.79635 | U19: 11.11395 | V19: 10.695 | W19: 10.775 | X19: 9.25 | Y19: * | AA19: Latvia | AB19: 7.2894 | AC19: 10.58225 | AD19: 11.19275 | AE19: 8.97315 | AF19: 9.6424 | AG19: 11.77485 | AH19: 11.0498 | AI19: 10.56 | AJ19: 10.75 | AK19: 9.25 | AL19: *
A20: Lithuania | B20: 8.474 | C20: 12.4217 | D20: 15.29245 | E20: 15.13555 | F20: 16.20715 | G20: 18.62695 | H20: 19.8723 | I20: 18.2982 | J20: 17.415 | K20: 17.14 | L20: * | N20: Lithuania | O20: 5.5245 | P20: 8.37835 | Q20: 9.68865 | R20: 9.51125 | S20: 11.1822 | T20: 12.86635 | U20: 13.964 | V20: 12.15105 | W20: 9.86 | X20: 9.48 | Y20: * | AA20: Lithuania | AB20: 4.8674 | AC20: 7.543 | AD20: 8.783 | AE20: 8.55265 | AF20: 9.6472 | AG20: 11.6543 | AH20: 11.9584 | AI20: 9.97015 | AJ20: 10.01 | AK20: 9.48 | AL20: *
A21: Luxembourg | B21: 10.99 | C21: 14.835 | D21: 18.73 | E21: 13.195 | F21: 17.76 | G21: 16.17 | H21: 18.445 | I21: 16.75 | J21: 14.65 | K21: 12.9 | L21: * | N21: Luxembourg | O21: 8.72 | P21: 13.415 | Q21: 11.565 | R21: 11.1 | S21: 13.635 | T21: 14.645 | U21: 14.88 | V21: 13 | W21: 11.79 | X21: 10.92 | Y21: * | AA21: Luxembourg | AB21: 8.25 | AC21: 10.755 | AD21: 10.275 | AE21: 11.455 | AF21: 12.455 | AG21: 14.65 | AH21: 15.07 | AI21: 13.14 | AJ21: 11.785 | AK21: 10.96 | AL21: *
A22: Hungary | B22: 8.7996 | C22: 10.47675 | D22: 11.3228 | E22: 13.05745 | F22: 13.59775 | G22: 11.4732 | H22: 10.2346 | I22: 8.50485 | J22: 8.2364 | K22: 7.7334 | L22: * | N22: Hungary | O22: 8.8488 | P22: 10.0684 | Q22: 10.86655 | R22: 12.09895 | S22: 12.5576 | T22: 10.7081 | U22: 9.32205 | V22: 7.82835 | W22: 7.7085 | X22: 7.5286 | Y22: * | AA22: Hungary | AB22: 8.7367 | AC22: 10.1684 | AD22: 10.7496 | AE22: 11.90005 | AF22: 12.33055 | AG22: 10.5443 | AH22: 9.16315 | AI22: 7.8713 | AJ22: 7.62715 | AK22: 7.5314 | AL22: *
A23: Netherlands | B23: 21.145 | C23: 20.815 | D23: 20.455 | E23: 19.3 | F23: 20.735 | G23: 21.805 | H23: 22.525 | I23: 22.195 | J23: 21.95 | K23: 17.47 | L23: * | N23: Netherlands | O23: 12.345 | P23: 12.535 | Q23: 12.83 | R23: 11.705 | S23: 12.56 | T23: 13.63 | U23: 13.62 | V23: 12.96 | W23: 12.25 | X23: 10.41 | Y23: * | AA23: Netherlands | AB23: 11.06 | AC23: * | AD23: 11.345 | AE23: 10.155 | AF23: 11.375 | AG23: 12.125 | AH23: 12.31 | AI23: 11.195 | AJ23: 10.31 | AK23: 8.9 | AL23: *
A24: Austria | B24: 15.67 | C24: 15.305 | D24: 15.71 | E24: 15.23 | F24: 17.615 | G24: 18.975 | H24: 18.855 | I24: 18.51 | J24: 18.135 | K24: 17.78 | L24: * | N24: Austria | O24: 12.38 | P24: 12.215 | Q24: 12.8 | R24: 12.305 | S24: 14.525 | T24: 15.67 | U24: 15.695 | V24: 15.195 | W24: 14.75 | X24: 14.06 | Y24: * | AA24: Austria | AB24: 10.68 | AC24: 10.61 | AD24: 11.23 | AE24: 10.83 | AF24: 12.805 | AG24: 13.685 | AH24: 13.745 | AI24: 13.405 | AJ24: 12.765 | AK24: 11.94 | AL24: *
A25: Poland | B25: 11.7421 | C25: 13.68035 | D25: 12.19875 | E25: 13.2865 | F25: 13.6901 | G25: 14.68825 | H25: 14.17345 | I25: 14.35955 | J25: 14.0851 | K25: 12.8343 | L25: * | N25: Poland | O25: 9.1348 | P25: 10.59825 | Q25: 9.66375 | R25: 10.59285 | S25: 10.8818 | T25: 11.7945 | U25: 11.0529 | V25: 11.17395 | W25: 11.2767 | X25: 8.8423 | Y25: * | AA25: Poland | AB25: 8.3776 | AC25: 8.9132 | AD25: 8.8953 | AE25: 9.58345 | AF25: 10.02595 | AG25: 11.0753 | AH25: 10.71815 | AI25: 10.8349 | AJ25: 10.93985 | AK25: 8.1877 | AL25: *
A26: Portugal | B26: 22.0424 | C26: 21.4265 | D26: 20.7047 | E26: 20.512 | F26: 21.51 | G26: 22.63 | H26: 23.995 | I26: 25.555 | J26: 25.41 | K26: 23.5 | L26: * | N26: Portugal | O26: 17.2663 | P26: 16.592 | Q26: 15.70565 | R26: 16.037 | S26: 16.805 | T26: 17.715 | U26: 19.17 | V26: 21.045 | W26: 20.995 | X26: 19.38 | Y26: * | AA26: Portugal | AB26: 14.1428 | AC26: 15.07 | AD26: 13.7052 | AE26: 13.5945 | AF26: 14.445 | AG26: 15.4 | AH26: 17.11 | AI26: 19.03 | AJ26: 19.545 | AK26: 18.85 | AL26: *
A27: Romania | B27: 6.3416 | C27: 6.0532 | D27: 4.46905 | E27: 4.1242 | F27: 4.02575 | G27: 4.0122 | H27: 4.3605 | I27: 4.37525 | J27: 4.6386 | K27: 4.9627 | L27: * | N27: Romania | O27: 6.3128 | P27: 6.0471 | Q27: 4.4469 | R27: 4.1011 | S27: 4.06725 | T27: 3.9965 | U27: 4.34125 | V27: 4.3481 | W27: 4.5745 | X27: 4.916 | Y27: * | AA27: Romania | AB27: 6.3162 | AC27: 6.0358 | AD27: 4.41255 | AE27: 4.05625 | AF27: 4.0084 | AG27: 3.95495 | AH27: 4.2869 | AI27: 4.25355 | AJ27: 4.4271 | AK27: 4.7826 | AL27: *
A28: Slovenia | B28: 13.67 | C28: 17.455 | D28: 17.405 | E28: 15.7189 | F28: 18.365 | G28: 20.995 | H28: 15.985 | I28: 15.42 | J28: 14.62 | K28: 13.95 | L28: * | N28: Slovenia | O28: 10.99 | P28: 13.91 | Q28: 13.06 | R28: 13.447 | S28: 15.665 | T28: 16.445 | U28: 14.48 | V28: 13.405 | W28: 12.32 | X28: 11.84 | Y28: * | AA28: Slovenia | AB28: 10.44 | AC28: 13.01 | AD28: 12.645 | AE28: 12.8329 | AF28: 13.61 | AG28: 14.8 | AH28: 13.96 | AI28: 14.065 | AJ28: 11.87 | AK28: 10.73 | AL28: *
A29: Slovakia | B29: 18.9651 | C29: 22.2952 | D29: 23.2695 | E29: 22.601 | F29: 23.21 | G29: 23.19 | H29: 23.805 | I29: 23.78 | J29: 24.1 | K29: 23.41 | L29: * | N29: Slovakia | O29: 9.6748 | P29: 10.4227 | Q29: 10.942 | R29: 10.2945 | S29: 11.315 | T29: 11.92 | U29: 11.765 | V29: 11.88 | W29: 11.465 | X29: 10.65 | Y29: * | AA29: Slovakia | AB29: 9.5449 | AC29: 9.7444 | AD29: 10.963 | AE29: 10.197 | AF29: 11.905 | AG29: 11.41 | AH29: 12.33 | AI29: 12.67 | AJ29: 12.14 | AK29: 11.2 | AL29: *
A30: Sweden | B30: 20.93625 | C30: 22.2748 | D30: 23.9289 | E30: 29.10095 | F30: 31.62265 | G30: 34.8192 | H30: 29.9882 | I30: 29.8307 | J30: 31.59285 | K30: 28.5247 | L30: * | N30: Sweden | O30: 14.7961 | P30: 15.88145 | Q30: 14.75145 | R30: 16.92435 | S30: 18.17475 | T30: 18.202 | U30: 18.72885 | V30: 17.74405 | W30: 17.4557 | X30: 16.9224 | Y30: * | AA30: Sweden | AB30: 14.15165 | AC30: 15.04935 | AD30: 13.33595 | AE30: 15.41275 | AF30: 15.9676 | AG30: 16.21835 | AH30: 16.30065 | AI30: 14.98815 | AJ30: 14.9788 | AK30: 14.4349 | AL30: *
A31: United Kingdom | B31: 10.2289 | C31: 12.5905 | D31: 12.59455 | E31: 12.3499 | F31: 14.2886 | G31: 16.82535 | H31: 18.15585 | I31: 23.3875 | J31: 23.96435 | K31: 20.1394 | L31: * | N31: United Kingdom | O31: 9.4392 | P31: 11.5983 | Q31: 11.2793 | R31: 10.9467 | S31: 12.53715 | T31: 14.55065 | U31: 14.7912 | V31: 16.474 | W31: 17.2502 | X31: 14.6293 | Y31: * | AA31: United Kingdom | AB31: 8.1667 | AC31: 10.73355 | AD31: 9.95225 | AE31: 9.65325 | AF31: 10.9411 | AG31: 12.8333 | AH31: 13.2771 | AI31: 14.36975 | AJ31: 15.38745 | AK31: 13.4733 | AL31: *
V32: * | W32: * | X32: * | Y32: * | AI32: * | AJ32: * | AK32: * | AL32: *
A36: Baggrundsdata for level 1 priser
A37: Eurostat, tabel: | B37: =A39 -> Gas prices for domestic consumers - bi-annual data (from 2007 onwards) [nrg_pc_202]
A38: Opdateret: | B38: =B42 -> 2016-12-08T10:26:33.776
A39: Gas prices for domestic consumers - bi-annual data (from 2007 onwards) [nrg_pc_202]
A41: Last update | B41: 2016-11-07T16:45:30
A42: Extracted on | B42: 2016-12-08T10:26:33.776
A43: Source of data | B43: Eurostat
A45: PRODUCT | B45: Natural gas
A46: CONSOM | B46: Band D1 : Consumption < 20 GJ
A47: UNIT | B47: Gigajoules (gross calorific value = GCV)
A48: TAX | B48: Excluding taxes and levies
A49: CURRENCY | B49: Euro
A51: GEO/TIME | B51: 2007S1 | C51: 2007S2 | D51: 2008S1 | E51: 2008S2 | F51: 2009S1 | G51: 2009S2 | H51: 2010S1 | I51: 2010S2 | J51: 2011S1 | K51: 2011S2 | L51: 2012S1 | M51: 2012S2 | N51: 2013S1 | O51: 2013S2 | P51: 2014S1 | Q51: 2014S2 | R51: 2015S1 | S51: 2015S2 | T51: 2016S1
A52: European Union (28 countries) | B52: : | C52: 15.23 | D52: 16.02 | E52: 18.93 | F52: 17.36 | G52: 17.21 | H52: 15.82 | I52: 18.46 | J52: 17.35 | K52: 20.32 | L52: 18.75 | M52: 22.15 | N52: 19.71 | O52: 22.99 | P52: 21.43 | Q52: 24.52 | R52: 21.05 | S52: 24.11 | T52: 20.13
A53: Belgium | B53: : | C53: 17.44 | D53: 19.4 | E53: 22.88 | F53: 19.79 | G53: 17.72 | H53: 17.92 | I53: 18.35 | J53: 18.3 | K53: 21.6 | L53: 19.89 | M53: 22.95 | N53: 20.48 | O53: 19.52 | P53: 18.94 | Q53: 20.52 | R53: 18.17 | S53: 19.5 | T53: 15.84
A54: Bulgaria | B54: : | C54: 7.0968 | D54: 7.4957 | E54: 9.6585 | F54: 11.0287 | G54: 7.8229 | H54: 8.4109 | I54: 9.7754 | J54: 9.8834 | K54: 10.6708 | L54: 11.4736 | M54: 12.8336 | N54: 11.5094 | O54: 12.7672 | P54: 11.1719 | Q54: 11.9593 | R54: 11.3969 | S54: 9.9959 | T54: 9.0142
A55: Czech Republic | B55: : | C55: 12.6985 | D55: 15.3379 | E55: 17.6629 | F55: 16.7918 | G55: 16.4872 | H55: 17.1527 | I55: 18.3869 | J55: 20.1803 | K55: 21.8726 | L55: 21.8346 | M55: 21.8842 | N55: 22.2593 | O55: 20.7442 | P55: 19.6276 | Q55: 19.7723 | R55: 20.5556 | S55: 20.8864 | T55: 21.1934
A56: Denmark | B56: 11.2707 | C56: 12.8212 | D56: 14.3241 | E56: 14.7843 | F56: 10.7729 | G56: 11.8415 | H56: 13.1267 | I56: 13.3906 | J56: 14.7154 | K56: 14.6081 | L56: 13.4002 | M56: 12.7691 | N56: 12.2486 | O56: 11.8936 | P56: 10.1345 | Q56: 9.4424 | R56: 9.9152 | S56: 9.0617 | T56: 7.9464
A57: Germany (until 1990 former territory of the FRG) | B57: : | C57: 17.72 | D57: 19.63 | E57: 22.97 | F57: 21.07 | G57: 19.7 | H57: 18.97 | I57: 21.41 | J57: 21.63 | K57: 22.16 | L57: 21.94 | M57: 22.22 | N57: 22.61 | O57: 23.63 | P57: 23.59 | Q57: 22.49 | R57: 23.07 | S57: 22.42 | T57: 23.15
A58: Estonia | B58: : | C58: 9.0856 | D58: 8.9441 | E58: 9.3427 | F58: 9.3048 | G58: 8.3092 | H58: 8.4383 | I58: 11.2626 | J58: 11.57 | K58: 13.13 | L58: 12.8 | M58: 14.04 | N58: 14.9 | O58: 13.07 | P58: 12.98 | Q58: 12.1 | R58: 11.9 | S58: 8.92 | T58: 9.9
A59: Ireland | B59: : | C59: 26.55 | D59: 16.76 | E59: 17.36 | F59: 16.91 | G59: 15.48 | H59: 13.35 | I59: 13.9 | J59: 12.91 | K59: 16.81 | L59: 15.83 | M59: 18.02 | N59: 16.55 | O59: 20.77 | P59: 17.57 | Q59: 21.01 | R59: 17.27 | S59: 20.65 | T59: 16.83
A60: Greece | B60: : | C60: : | D60: : | E60: : | F60: : | G60: : | H60: : | I60: : | J60: : | K60: : | L60: : | M60: 34.44 | N60: 20.29 | O60: 31.62 | P60: 19.18 | Q60: 26.81 | R60: 18.05 | S60: 26.83 | T60: 15.05
A61: Spain | B61: : | C61: 16.652 | D61: 16.94 | E61: 18.681 | F61: 17.64 | G61: 16.4181 | H61: 16.3107 | I61: 16.1584 | J61: 16.12 | K61: 16.17 | L61: 19.1 | M61: 24.53 | N61: 20.01 | O61: 24.6 | P61: 21.26 | Q61: 27.38 | R61: 20.53 | S61: 26.5 | T61: 19.11
A62: France | B62: : | C62: 22.77 | D62: 22.1 | E62: 27.745 | F62: 24.21 | G62: 28.33 | H62: 23.75 | I62: 27.52 | J62: 25.54 | K62: 30.12 | L62: 25.87 | M62: 31.06 | N62: 28.02 | O62: 33.29 | P62: 30.28 | Q62: 34.69 | R62: 28.79 | S62: 33.65 | T62: 28.58
A63: Croatia | B63: 6.4383 | C63: 5.9278 | D63: 5.9103 | E63: 6.3143 | F63: 7.2634 | G63: 7.417 | H63: 8.6454 | I63: 8.5682 | J63: 8.4758 | K63: 8.3959 | L63: 8.5795 | M63: 10.1678 | N63: 10.4383 | O63: 10.5042 | P63: 10.6945 | Q63: 11.9399 | R63: 12.2874 | S63: 12.2137 | T63: 11.4274
A64: Italy | B64: 13.69 | C64: 14.264 | D64: 13.948 | E64: 17.757 | F64: 15.235 | G64: 13.344 | H64: 12.516 | I64: 20.3 | J64: 15.27 | K64: 22.3 | L64: 17.48 | M64: 26.27 | N64: 19.53 | O64: 25.57 | P64: 21.03 | Q64: 28.87 | R64: 19.92 | S64: 27.33 | T64: 19.11
A65: Latvia | B65: : | C65: 7.8182 | D65: 8.7616 | E65: 18.3799 | F65: 20.2039 | G65: 16.5213 | H65: 13.964 | I65: 16.7231 | J65: 15.6707 | K65: 16.2013 | L65: 17.4424 | M65: 18.6988 | N65: 17.2653 | O65: 17.0107 | P65: 16.88 | Q65: 16.61 | R65: 16.93 | S65: 16.64 | T65: 15.55
A66: Lithuania | B66: : | C66: 8.474 | D66: 11.998 | E66: 12.8454 | F66: 16.2928 | G66: 14.2921 | H66: 14.4417 | I66: 15.8294 | J66: 15.2514 | K66: 17.1629 | L66: 17.3367 | M66: 19.9172 | N66: 20.369 | O66: 19.3756 | P66: 19.2626 | Q66: 17.3338 | R66: 17.7 | S66: 17.13 | T66: 17.14
A67: Luxembourg | B67: : | C67: 10.99 | D67: 12.88 | E67: 16.79 | F67: 19.08 | G67: 18.38 | H67: 12.57 | I67: 13.82 | J67: 17.13 | K67: 18.39 | L67: 14.26 | M67: 18.08 | N67: 20.6 | O67: 16.29 | P67: 17.56 | Q67: 15.94 | R67: 14.7 | S67: 14.6 | T67: 12.9
A68: Hungary | B68: : | C68: 8.7996 | D68: 9.5277 | E68: 11.4258 | F68: 11.2107 | G68: 11.4349 | H68: 12.6955 | I68: 13.4194 | J68: 13.3042 | K68: 13.8913 | L68: 10.8496 | M68: 12.0968 | N68: 10.2278 | O68: 10.2414 | P68: 8.7582 | Q68: 8.2515 | R68: 8.3312 | S68: 8.1416 | T68: 7.7334
A69: Netherlands | B69: 21.46 | C69: 20.83 | D69: 19.7 | E69: 21.93 | F69: 20.77 | G69: 20.14 | H69: 17.89 | I69: 20.71 | J69: 18.17 | K69: 23.3 | L69: 19.17 | M69: 24.44 | N69: 18.94 | O69: 26.11 | P69: 20.59 | Q69: 23.8 | R69: 18.73 | S69: 25.17 | T69: 17.47
A70: Austria | B70: : | C70: 15.67 | D70: 15.13 | E70: 15.48 | F70: 16.02 | G70: 15.4 | H70: 15.39 | I70: 15.07 | J70: 17.26 | K70: 17.97 | L70: 18.92 | M70: 19.03 | N70: 19 | O70: 18.71 | P70: 18.69 | Q70: 18.33 | R70: 18.33 | S70: 17.94 | T70: 17.78
A71: Poland | B71: : | C71: 11.7421 | D71: 12.6079 | E71: 14.7528 | F71: 11.8108 | G71: 12.5867 | H71: 12.956 | I71: 13.617 | J71: 14.0483 | K71: 13.3319 | L71: 13.452 | M71: 15.9245 | N71: 15.0491 | O71: 13.2978 | P71: 14.116 | Q71: 14.6031 | R71: 14.6433 | S71: 13.5269 | T71: 12.8343
A72: Portugal | B72: : | C72: 22.0424 | D72: 21.447 | E72: 21.406 | F72: 20.87 | G72: 20.5394 | H72: 19.526 | I72: 21.498 | J72: 20.33 | K72: 22.69 | L72: 21.17 | M72: 24.09 | N72: 22.99 | O72: 25 | P72: 24.27 | Q72: 26.84 | R72: 25.46 | S72: 25.36 | T72: 23.5
A73: Romania | B73: : | C73: 6.3416 | D73: 5.9454 | E73: 6.161 | F73: 4.8556 | G73: 4.0825 | H73: 4.2014 | I73: 4.047 | J73: 4.1656 | K73: 3.8859 | L73: 3.9578 | M73: 4.0666 | N73: 4.2381 | O73: 4.4829 | P73: 4.4423 | Q73: 4.3082 | R73: 4.229 | S73: 5.0482 | T73: 4.9627
A74: Slovenia | B74: : | C74: 13.67 | D74: 14.97 | E74: 19.94 | F74: 17.87 | G74: 16.94 | H74: 15.535 | I74: 15.9028 | J74: 17.32 | K74: 19.41 | L74: 21.16 | M74: 20.83 | N74: 17.85 | O74: 14.12 | P74: 17.21 | Q74: 13.63 | R74: 15.2 | S74: 14.04 | T74: 13.95
A75: Slovakia | B75: : | C75: 18.9651 | D75: 21.7052 | E75: 22.8852 | F75: 23.348 | G75: 23.191 | H75: 22.674 | I75: 22.528 | J75: 22.94 | K75: 23.48 | L75: 23.32 | M75: 23.06 | N75: 23.43 | O75: 24.18 | P75: 23.54 | Q75: 24.02 | R75: 24.13 | S75: 24.07 | T75: 23.41
A76: Sweden | B76: 23.279 | C76: 18.5935 | D76: 18.1726 | E76: 26.377 | F76: 21.9892 | G76: 25.8686 | H76: 27.4731 | I76: 30.7288 | J76: 30.8118 | K76: 32.4335 | L76: 33.2024 | M76: 36.436 | N76: 31.0848 | O76: 28.8916 | P76: 28.9291 | Q76: 30.7323 | R76: 29.6785 | S76: 33.5072 | T76: 28.5247
A77: United Kingdom | B77: : | C77: 10.2289 | D77: 11.729 | E77: 13.452 | F77: 12.6314 | G77: 12.5577 | H77: 12.1231 | I77: 12.5767 | J77: 12.8527 | K77: 15.7245 | L77: 15.7012 | M77: 17.9495 | N77: 15.9138 | O77: 20.3979 | P77: 21.1131 | Q77: 25.6619 | R77: 22.0703 | S77: 25.8584 | T77: 20.1394
A79: Special value:
A80: : | B80: not available
A82: PRODUCT | B82: Natural gas
A83: CONSOM | B83: Band D2 : 20 GJ < Consumption < 200 GJ
A84: UNIT | B84: Gigajoules (gross calorific value = GCV)
A85: TAX | B85: Excluding taxes and levies
A86: CURRENCY | B86: Euro
A88: GEO/TIME | B88: 2007S1 | C88: 2007S2 | D88: 2008S1 | E88: 2008S2 | F88: 2009S1 | G88: 2009S2 | H88: 2010S1 | I88: 2010S2 | J88: 2011S1 | K88: 2011S2 | L88: 2012S1 | M88: 2012S2 | N88: 2013S1 | O88: 2013S2 | P88: 2014S1 | Q88: 2014S2 | R88: 2015S1 | S88: 2015S2 | T88: 2016S1
A89: European Union (28 countries) | B89: : | C89: 11.03 | D89: 11.66 | E89: 13.65 | F89: 12.62 | G89: 11.41 | H89: 11.05 | I89: 12.06 | J89: 11.91 | K89: 13.81 | L89: 13.49 | M89: 15.09 | N89: 14.03 | O89: 15.1 | P89: 14.33 | Q89: 15.42 | R89: 14.24 | S89: 15.08 | T89: 13
A90: Belgium | B90: : | C90: 11.14 | D90: 13.01 | E90: 16.37 | F90: 13.54 | G90: 11.45 | H90: 11.75 | I90: 13.3 | J90: 14.08 | K90: 16.29 | L90: 15.2 | M90: 16.24 | N90: 14.53 | O90: 14.53 | P90: 14.25 | Q90: 13.93 | R90: 13.27 | S90: 13.27 | T90: 11.53
A91: Bulgaria | B91: : | C91: 7.4803 | D91: 8.2012 | E91: 9.05 | F91: 10.9469 | G91: 8.0581 | H91: 8.508 | I91: 9.9817 | J91: 9.955 | K91: 10.9214 | L91: 11.4378 | M91: 12.8694 | N91: 11.8673 | O91: 11.9951 | P91: 11.356 | Q91: 11.2026 | R91: 11.0492 | S91: 9.05 | T91: 8.5183
A92: Czech Republic | B92: : | C92: 8.454 | D92: 10.2536 | E92: 12.3418 | F92: 11.5531 | G92: 11.0198 | H92: 10.8661 | I92: 11.9601 | J92: 12.604 | K92: 13.7748 | L92: 15.2595 | M92: 15.2962 | N92: 14.7132 | O92: 13.2083 | P92: 12.5856 | Q92: 12.9157 | R92: 13.1811 | S92: 13.3932 | T92: 13.3783
A93: Denmark | B93: 18.1179 | C93: 12.8212 | D93: 14.3241 | E93: 14.7843 | F93: 10.7729 | G93: 11.8415 | H93: 13.1267 | I93: 13.3906 | J93: 14.7154 | K93: 14.6081 | L93: 13.4002 | M93: 12.7691 | N93: 12.2486 | O93: 11.8936 | P93: 10.1345 | Q93: 9.4424 | R93: 9.9152 | S93: 9.0617 | T93: 7.9464
A94: Germany (until 1990 former territory of the FRG) | B94: : | C94: 12.68 | D94: 13.32 | E94: 16.14 | F94: 13.48 | G94: 12.09 | H94: 11.54 | I94: 11.68 | J94: 12.08 | K94: 13.28 | L94: 13.22 | M94: 13.49 | N94: 13.77 | O94: 14.43 | P94: 14.18 | Q94: 14.26 | R94: 14.13 | S94: 14.26 | T94: 13.78
A95: Estonia | B95: : | C95: 6.1748 | D95: 7.3897 | E95: 8.3818 | F95: 8.9926 | G95: 8.026 | H95: 7.7148 | I95: 8.6572 | J95: 9.07 | K95: 9.49 | L95: 10.92 | M95: 11.34 | N95: 11.44 | O95: 10.4 | P95: 10.73 | Q95: 10.89 | R95: 9.95 | S95: 7.98 | T95: 9.24
A96: Ireland | B96: : | C96: 14.84 | D96: 13.29 | E96: 15.9 | F96: 15.76 | G96: 13.47 | H96: 12.07 | I96: 12.12 | J96: 11.69 | K96: 14.36 | L96: 14.26 | M96: 15.59 | N96: 15.13 | O96: 16.64 | P96: 15.62 | Q96: 17.21 | R96: 15.43 | S96: 16.7 | T96: 14.94
A97: Greece | B97: : | C97: : | D97: : | E97: : | F97: : | G97: : | H97: : | I97: : | J97: : | K97: : | L97: : | M97: 23.42 | N97: 17.4 | O97: 20.22 | P97: 16.2 | Q97: 17.98 | R97: 15.13 | S97: 16.82 | T97: 12.28
A98: Spain | B98: : | C98: 13.921 | D98: 13.777 | E98: 15.636 | F98: 14.64 | G98: 12.8237 | H98: 12.7863 | I98: 12.7111 | J98: 12.62 | K98: 12.72 | L98: 15.57 | M98: 20.07 | N98: 16.16 | O98: 19.83 | P98: 16.62 | Q98: 21.37 | R98: 16.14 | S98: 21.31 | T98: 14.9
A99: France | B99: : | C99: 12.2 | D99: 12.29 | E99: 13.709 | F99: 13.01 | G99: 13.85 | H99: 12.25 | I99: 13.39 | J99: 13.43 | K99: 14.94 | L99: 14.7 | M99: 15.79 | N99: 15.69 | O99: 16.84 | P99: 16.14 | Q99: 17.4 | R99: 15.57 | S99: 16.17 | T99: 13.96
A100: Croatia | B100: 6.4383 | C100: 5.9278 | D100: 5.9103 | E100: 6.3143 | F100: 7.2634 | G100: 7.417 | H100: 8.6454 | I100: 8.5682 | J100: 8.4758 | K100: 8.3959 | L100: 8.5795 | M100: 10.4878 | N100: 10.3353 | O100: 10.3974 | P100: 10.3181 | Q100: 10.5572 | R100: 10.5018 | S100: 10.2099 | T100: 9.5229
A101: Italy | B101: 11.56 | C101: 11.138 | D101: 12.031 | E101: 13.554 | F101: 14.158 | G101: 9.693 | H101: 10.449 | I101: 13.84 | J101: 12.25 | K101: 15.62 | L101: 14.19 | M101: 17.92 | N101: 15.66 | O101: 17.25 | P101: 14.78 | Q101: 17.4 | R101: 14 | S101: 16.22 | T101: 13.16
A102: Latvia | B102: : | C102: 7.3322 | D102: 8.2749 | E102: 13.2013 | F102: 13.2097 | G102: 9.5724 | H102: 7.9209 | I102: 10.2369 | J102: 9.5891 | K102: 9.9079 | L102: 11.1986 | M102: 12.3941 | N102: 11.1389 | O102: 11.089 | P102: 10.65 | Q102: 10.74 | R102: 10.9 | S102: 10.65 | T102: 9.25
A103: Lithuania | B103: : | C103: 5.5245 | D103: 7.7517 | E103: 9.005 | F103: 9.9989 | G103: 9.3784 | H103: 8.6206 | I103: 10.4019 | J103: 9.9774 | K103: 12.387 | L103: 11.7064 | M103: 14.0263 | N103: 13.838 | O103: 14.09 | P103: 12.8418 | Q103: 11.4603 | R103: 9.71 | S103: 10.01 | T103: 9.48
A104: Luxembourg | B104: : | C104: 8.72 | D104: 14.1 | E104: 12.73 | F104: 12.19 | G104: 10.94 | H104: 10.6 | I104: 11.6 | J104: 12.72 | K104: 14.55 | L104: 14.36 | M104: 14.93 | N104: 15.66 | O104: 14.1 | P104: 13.29 | Q104: 12.71 | R104: 12.08 | S104: 11.5 | T104: 10.92
A105: Hungary | B105: : | C105: 8.8488 | D105: 9.3641 | E105: 10.7727 | F105: 11.1477 | G105: 10.5854 | H105: 11.8967 | I105: 12.3012 | J105: 12.4575 | K105: 12.6577 | L105: 10.3468 | M105: 11.0694 | N105: 9.457 | O105: 9.1871 | P105: 7.9894 | Q105: 7.6673 | R105: 7.7188 | S105: 7.6982 | T105: 7.5286
A106: Netherlands | B106: 12.54 | C106: 12.15 | D106: 11.82 | E106: 13.25 | F106: 14.41 | G106: 11.25 | H106: 11.24 | I106: 12.17 | J106: 11.43 | K106: 13.69 | L106: 12.55 | M106: 14.71 | N106: 12.79 | O106: 14.45 | P106: 12.6 | Q106: 13.32 | R106: 11.71 | S106: 12.79 | T106: 10.41
A107: Austria | B107: : | C107: 12.38 | D107: 11.88 | E107: 12.55 | F107: 13.13 | G107: 12.47 | H107: 12.54 | I107: 12.07 | J107: 14.22 | K107: 14.83 | L107: 15.6 | M107: 15.74 | N107: 15.84 | O107: 15.55 | P107: 15.39 | Q107: 15 | R107: 14.97 | S107: 14.53 | T107: 14.06
A108: Poland | B108: : | C108: 9.1348 | D108: 9.4774 | E108: 11.7191 | F108: 8.8525 | G108: 10.475 | H108: 9.6777 | I108: 11.508 | J108: 10.4635 | K108: 11.3001 | L108: 10.5836 | M108: 13.0054 | N108: 10.6129 | O108: 11.4929 | P108: 11.0456 | Q108: 11.3023 | R108: 11.3031 | S108: 11.2503 | T108: 8.8423
A109: Portugal | B109: : | C109: 17.2663 | D109: 16.539 | E109: 16.645 | F109: 15.68 | G109: 15.7313 | H109: 15.705 | I109: 16.369 | J109: 15.75 | K109: 17.86 | L109: 16.34 | M109: 19.09 | N109: 18.25 | O109: 20.09 | P109: 19.82 | Q109: 22.27 | R109: 20.93 | S109: 21.06 | T109: 19.38
A110: Romania | B110: : | C110: 6.3128 | D110: 5.9497 | E110: 6.1445 | F110: 4.8414 | G110: 4.0524 | H110: 4.1793 | I110: 4.0229 | J110: 4.1416 | K110: 3.9929 | L110: 3.9419 | M110: 4.0511 | N110: 4.2199 | O110: 4.4626 | P110: 4.44 | Q110: 4.2562 | R110: 4.1728 | S110: 4.9762 | T110: 4.916
A111: Slovenia | B111: : | C111: 10.99 | D111: 12.14 | E111: 15.68 | F111: 14.44 | G111: 11.68 | H111: 12.5607 | I111: 14.3333 | J111: 14.23 | K111: 17.1 | L111: 17.23 | M111: 15.66 | N111: 14.14 | O111: 14.82 | P111: 13.85 | Q111: 12.96 | R111: 12.55 | S111: 12.09 | T111: 11.84
A112: Slovakia | B112: : | C112: 9.6748 | D112: 9.9898 | E112: 10.8556 | F112: 10.781 | G112: 11.103 | H112: 10.177 | I112: 10.412 | J112: 10.78 | K112: 11.85 | L112: 11.93 | M112: 11.91 | N112: 11.54 | O112: 11.99 | P112: 11.75 | Q112: 12.01 | R112: 11.48 | S112: 11.45 | T112: 10.65
A113: Sweden | B113: 15.2092 | C113: 14.383 | D113: 14.7712 | E113: 16.9917 | F113: 14.1306 | G113: 15.3723 | H113: 16.4412 | I113: 17.4075 | J113: 18.3215 | K113: 18.028 | L113: 17.7821 | M113: 18.6219 | N113: 18.6441 | O113: 18.8136 | P113: 18.1097 | Q113: 17.3784 | R113: 16.9833 | S113: 17.9281 | T113: 16.9224
A114: United Kingdom | B114: : | C114: 9.4392 | D114: 10.4643 | E114: 12.7323 | F114: 11.2776 | G114: 11.281 | H114: 10.7288 | I114: 11.1646 | J114: 11.2404 | K114: 13.8339 | L114: 13.8161 | M114: 15.2852 | N114: 14.0333 | O114: 15.5491 | P114: 15.8653 | Q114: 17.0827 | R114: 16.8122 | S114: 17.6882 | T114: 14.6293
A116: Special value:
A117: : | B117: not available
A119: PRODUCT | B119: Natural gas
A120: CONSOM | B120: Band D3 : Consumption > 200 GJ
A121: UNIT | B121: Gigajoules (gross calorific value = GCV)
A122: TAX | B122: Excluding taxes and levies
A123: CURRENCY | B123: Euro
A125: GEO/TIME | B125: 2007S1 | C125: 2007S2 | D125: 2008S1 | E125: 2008S2 | F125: 2009S1 | G125: 2009S2 | H125: 2010S1 | I125: 2010S2 | J125: 2011S1 | K125: 2011S2 | L125: 2012S1 | M125: 2012S2 | N125: 2013S1 | O125: 2013S2 | P125: 2014S1 | Q125: 2014S2 | R125: 2015S1 | S125: 2015S2 | T125: 2016S1
A126: European Union (28 countries) | B126: : | C126: 9.88 | D126: 10.8 | E126: 12.22 | F126: 11.35 | G126: 10.24 | H126: 10.09 | I126: 10.64 | J126: 11 | K126: 12.21 | L126: 12.34 | M126: 13.16 | N126: 13.05 | O126: 13.05 | P126: 12.92 | Q126: 13.06 | R126: 12.86 | S126: 12.78 | T126: 11.6
A127: Belgium | B127: : | C127: 9.97 | D127: 12.23 | E127: 15.35 | F127: 12.57 | G127: 10.38 | H127: 10.66 | I127: 11.24 | J127: 12.72 | K127: 14.8 | L127: 13.19 | M127: 15.2 | N127: 13.51 | O127: 13.17 | P127: 12.66 | Q127: 11.9 | R127: 11.58 | S127: 11 | T127: 10.52
A128: Bulgaria | B128: : | C128: 7.5979 | D128: 8.3188 | E128: 9.6891 | F128: 11.2281 | G128: 8.2882 | H128: 8.6359 | I128: 10.1171 | J128: 10.047 | K128: 10.9827 | L128: 11.719 | M128: 13.1864 | N128: 12.1127 | O128: 11.9644 | P128: 11.6423 | Q128: 11.2639 | R128: 11.1361 | S128: 8.9784 | T128: 8.4518
A129: Czech Republic | B129: : | C129: 8.2922 | D129: 10.2627 | E129: 12.3891 | F129: 11.3397 | G129: 10.7857 | H129: 10.4553 | I129: 11.4025 | J129: 11.9 | K129: 13.0737 | L129: 14.7789 | M129: 14.8134 | N129: 13.8727 | O129: 12.9078 | P129: 12.1141 | Q129: 12.2279 | R129: 12.3808 | S129: 12.58 | T129: 12.4789
A130: Denmark | B130: 22.6474 | C130: 12.8212 | D130: 14.3241 | E130: 14.7843 | F130: 10.7729 | G130: 11.8415 | H130: 13.1267 | I130: 13.3906 | J130: 14.7154 | K130: 14.6081 | L130: 13.4002 | M130: 12.7691 | N130: 12.2486 | O130: 11.8936 | P130: 10.1345 | Q130: 9.4424 | R130: 9.9152 | S130: 9.0617 | T130: 7.9464
A131: Germany (until 1990 former territory of the FRG) | B131: : | C131: 11.9 | D131: 12.09 | E131: 14.6 | F131: 12.09 | G131: 10.59 | H131: 10.44 | I131: 11.44 | J131: 11.59 | K131: 12.43 | L131: 12.52 | M131: 12.78 | N131: 12.94 | O131: 13.32 | P131: 13.07 | Q131: 13.16 | R131: 13.13 | S131: 13.06 | T131: 12.59
A132: Estonia | B132: : | C132: 6.1417 | D132: 7.4274 | E132: 8.2393 | F132: 8.9688 | G132: 7.9787 | H132: 7.633 | I132: 8.5372 | J132: 8.95 | K132: 8.57 | L132: 10.32 | M132: 11.08 | N132: 11.05 | O132: 9.46 | P132: 10.23 | Q132: 10.06 | R132: 9.84 | S132: 7.32 | T132: 8.58
A133: Ireland | B133: : | C133: 12.78 | D133: 12.68 | E133: 15.14 | F133: 15.16 | G133: 12.44 | H133: 11.48 | I133: 11.09 | J133: 11.08 | K133: 13.25 | L133: 13.42 | M133: 14.3 | N133: 14.46 | O133: 15.14 | P133: 14.68 | Q133: 15.46 | R133: 14.47 | S133: 14.86 | T133: 13.87
A134: Greece | B134: : | C134: : | D134: : | E134: : | F134: : | G134: : | H134: : | I134: : | J134: : | K134: : | L134: : | M134: 18 | N134: 17.06 | O134: 15.73 | P134: 15.59 | Q134: 15.04 | R134: 14.89 | S134: 12.39 | T134: 11.92
A135: Spain | B135: : | C135: 11.385 | D135: 11.474 | E135: 13.564 | F135: 11.78 | G135: 10.8731 | H135: 10.6912 | I135: 11.9807 | J135: 11.82 | K135: 13.85 | L135: 13.45 | M135: 15.75 | N135: 15.16 | O135: 15.62 | P135: 14.43 | Q135: 15.6 | R135: 14.11 | S135: 14.37 | T135: 12.24
A136: France | B136: : | C136: 10.68 | D136: 11.12 | E136: 12.063 | F136: 11.87 | G136: 11.7 | H136: 10.73 | I136: 11.27 | J136: 11.9 | K136: 12.59 | L136: 13.45 | M136: 13.39 | N136: 13.88 | O136: 13.68 | P136: 14.07 | Q136: 14.17 | R136: 13.21 | S136: 12.99 | T136: 11.72
A137: Croatia | B137: 6.4383 | C137: 5.9278 | D137: 5.9103 | E137: 6.3143 | F137: 7.2634 | G137: 7.417 | H137: 8.6454 | I137: 8.5682 | J137: 8.4758 | K137: 8.3959 | L137: 8.5795 | M137: 10.5305 | N137: 10.3445 | O137: 10.3091 | P137: 9.7908 | Q137: 9.8769 | R137: 10.0494 | S137: 9.6902 | T137: 9.0163
A138: Italy | B138: 10.53 | C138: 10.192 | D138: 10.665 | E138: 11.532 | F138: 13.029 | G138: 9.719 | H138: 9.793 | I138: 10.88 | J138: 11.2 | K138: 12.54 | L138: 13 | M138: 14.04 | N138: 14.53 | O138: 13.04 | P138: 13.29 | Q138: 12.44 | R138: 12.2 | S138: 12.11 | T138: 11.08
A139: Latvia | B139: : | C139: 7.2894 | D139: 8.2462 | E139: 12.9183 | F139: 12.884 | G139: 9.5015 | H139: 7.8645 | I139: 10.0818 | J139: 9.4053 | K139: 9.8795 | L139: 11.1843 | M139: 12.3654 | N139: 11.096 | O139: 11.0036 | P139: 10.59 | Q139: 10.53 | R139: 10.87 | S139: 10.63 | T139: 9.25
A140: Lithuania | B140: : | C140: 4.8674 | D140: 7.5519 | E140: 7.5341 | F140: 9.5771 | G140: 7.9889 | H140: 7.8413 | I140: 9.264 | J140: 8.6538 | K140: 10.6406 | L140: 10.3047 | M140: 13.0039 | N140: 12.3899 | O140: 11.5269 | P140: 10.5566 | Q140: 9.3837 | R140: : | S140: 10.01 | T140: 9.48
A141: Luxembourg | B141: : | C141: 8.25 | D141: 9.77 | E141: 11.74 | F141: 11.2 | G141: 9.35 | H141: 10.99 | I141: 11.92 | J141: 11.59 | K141: 13.32 | L141: 14.39 | M141: 14.91 | N141: 15.79 | O141: 14.35 | P141: 13.24 | Q141: 13.04 | R141: 12.13 | S141: 11.44 | T141: 10.96
A142: Hungary | B142: : | C142: 8.7367 | D142: 9.2439 | E142: 11.0929 | F142: 10.8535 | G142: 10.6457 | H142: 12.0398 | I142: 11.7603 | J142: 12.4566 | K142: 12.2045 | L142: 10.0464 | M142: 11.0422 | N142: 9.3327 | O142: 8.9936 | P142: 8.0525 | Q142: 7.6901 | R142: 7.6719 | S142: 7.5824 | T142: 7.5314
A143: Netherlands | B143: 11.06 | C143: : | D143: : | E143: : | F143: 12.97 | G143: 9.72 | H143: 9.8 | I143: 10.51 | J143: 10.4 | K143: 12.35 | L143: 11.32 | M143: 12.93 | N143: 12.2 | O143: 12.42 | P143: 11.09 | Q143: 11.3 | R143: 10.33 | S143: 10.29 | T143: 8.9
A144: Austria | B144: : | C144: 10.68 | D144: 10.32 | E144: 10.9 | F144: 11.54 | G144: 10.92 | H144: 10.92 | I144: 10.74 | J144: 12.65 | K144: 12.96 | L144: 13.63 | M144: 13.74 | N144: 13.85 | O144: 13.64 | P144: 13.56 | Q144: 13.25 | R144: 12.97 | S144: 12.56 | T144: 11.94
A145: Poland | B145: : | C145: 8.3776 | D145: 8.9132 | E145: : | F145: 8.4861 | G145: 9.3045 | H145: 8.9855 | I145: 10.1814 | J145: 9.664 | K145: 10.3879 | L145: 10.2727 | M145: 11.8779 | N145: 10.2849 | O145: 11.1514 | P145: 10.8421 | Q145: 10.8277 | R145: 11.1027 | S145: 10.777 | T145: 8.1877
A146: Portugal | B146: : | C146: 14.1428 | D146: 14.856 | E146: 15.284 | F146: 13.33 | G146: 14.0804 | H146: 12.951 | I146: 14.238 | J146: 14.06 | K146: 14.83 | L146: 14.39 | M146: 16.41 | N146: 16.41 | O146: 17.81 | P146: 18.36 | Q146: 19.7 | R146: 20.11 | S146: 18.98 | T146: 18.85
A147: Romania | B147: : | C147: 6.3162 | D147: 5.9542 | E147: 6.1174 | F147: 4.8178 | G147: 4.0073 | H147: 4.1338 | I147: 3.9787 | J147: 4.089 | K147: 3.9278 | L147: 3.8941 | M147: 4.0158 | N147: 4.1629 | O147: 4.4109 | P147: 4.3594 | Q147: 4.1477 | R147: 4.0603 | S147: 4.7939 | T147: 4.7826
A148: Slovenia | B148: : | C148: 10.44 | D148: 11.28 | E148: 14.74 | F148: 14.26 | G148: 11.03 | H148: 12.2494 | I148: 13.4164 | J148: 12.27 | K148: 14.95 | L148: 14.45 | M148: 15.15 | N148: 14.06 | O148: 13.86 | P148: 12.98 | Q148: 15.15 | R148: 12.17 | S148: 11.57 | T148: 10.73
A149: Slovakia | B149: : | C149: 9.5449 | D149: 9.3427 | E149: 10.1461 | F149: 10.792 | G149: 11.134 | H149: 10.076 | I149: 10.318 | J149: 11.98 | K149: 11.83 | L149: 11.45 | M149: 11.37 | N149: 11.83 | O149: 12.83 | P149: 12.61 | Q149: 12.73 | R149: 12.23 | S149: 12.05 | T149: 11.2
A150: Sweden | B150: 14.1391 | C150: 14.1642 | D150: 14.063 | E150: 16.0357 | F150: 12.8996 | G150: 13.7723 | H150: 15.3573 | I150: 15.4682 | J150: 16.0787 | K150: 15.8565 | L150: 15.319 | M150: 17.1177 | N150: 17.0698 | O150: 15.5315 | P150: 15.7846 | Q150: 14.1917 | R150: 14.8045 | S150: 15.1531 | T150: 14.4349
A151: United Kingdom | B151: : | C151: 8.1667 | D151: 10.294 | E151: 11.1731 | F151: 10.1141 | G151: 9.7904 | H151: 9.7242 | I151: 9.5823 | J151: 9.9505 | K151: 11.9317 | L151: 12.3202 | M151: 13.3464 | N151: 13.046 | O151: 13.5082 | P151: 13.8806 | Q151: 14.8589 | R151: 15.3099 | S151: 15.465 | T151: 13.4733
A153: Special value:
A154: : | B154: not available

Sheet Level 2
A1: Gaspriser, forbrugere. Level 2 gaspriser for forskellige forbrugsintervaller
A3: Forbrugsinterval < 20 GJ | N3: Forbrugsinterval 20 GJ < 200 GJ | AA3: Forbrugsinterval >200 GJ
A5: EURO/GJ | B5: =+LEFT(B51,4)+0 -> 2007 | C5: =B5+1 -> 2008 | D5: =+C5+1 -> 2009 | E5: 2010 | F5: 2011 | G5: 2012 | H5: 2013 | I5: 2014 | J5: 2015 | K5: 2016 | L5: 2017 | N5: EURO/GJ | O5: =LEFT(B88,4)+0 -> 2007 | P5: =+O5+1 -> 2008 | Q5: =+P5+1 -> 2009 | R5: =+Q5+1 -> 2010 | S5: 2011 | T5: 2012 | U5: 2013 | V5: 2014 | W5: 2015 | X5: 2016 | Y5: 2017 | AA5: EURO/GJ | AB5: =LEFT(B125,4)+0 -> 2007 | AC5: =+AB5+1 -> 2008 | AD5: =+AC5+1 -> 2009 | AE5: 2010 | AF5: 2011 | AG5: 2012 | AH5: 2013 | AI5: 2014 | AJ5: 2015 | AK5: 2016 | AL5: 2017
A6: =A52 -> European Union (28 countries) | B6: =IFERROR(AVERAGE(B52,C52),"*") -> 16.9 | C6: =IFERROR(AVERAGE(D52,E52),"*") -> 18.875 | D6: =IFERROR(AVERAGE(F52,G52),"*") -> 18.74 | E6: =IFERROR(AVERAGE(H52,I52),"*") -> 18.72 | F6: =IFERROR(AVERAGE(J52,K52),"*") -> 20.645 | G6: =IFERROR(AVERAGE(L52,M52),"*") -> 22.23 | H6: =IFERROR(AVERAGE(N52,O52),"*") -> 23.235 | I6: =IFERROR(AVERAGE(P52,Q52),"*") -> 24.875 | J6: =IFERROR(AVERAGE(R52,S52),"*") -> 24.525 | K6: =IFERROR(AVERAGE(T52,U52),"*") -> 22.18 | L6: =IFERROR(AVERAGE(V52,W52),"*") -> * | N6: =A89 -> European Union (28 countries) | O6: =IFERROR(AVERAGE(B89,C89),"*") -> 12.23 | P6: =IFERROR(AVERAGE(D89,E89),"*") -> 13.835 | Q6: =IFERROR(AVERAGE(F89,G89),"*") -> 13.255 | R6: =IFERROR(AVERAGE(H89,I89),"*") -> 13.025 | S6: =IFERROR(AVERAGE(J89,K89),"*") -> 14.46 | T6: =IFERROR(AVERAGE(L89,M89),"*") -> 15.895 | U6: =IFERROR(AVERAGE(N89,O89),"*") -> 16.28 | V6: =IFERROR(AVERAGE(P89,Q89),"*") -> 16.605 | W6: =IFERROR(AVERAGE(R89,S89),"*") -> 16.45 | X6: =IFERROR(AVERAGE(T89,U89),"*") -> 14.93 | Y6: =IFERROR(AVERAGE(V89,W89),"*") -> * | AA6: =A126 -> European Union (28 countries) | AB6: =IFERROR(AVERAGE(B126,C126),"*") -> 10.96 | AC6: =IFERROR(AVERAGE(D126,E126),"*") -> 12.545 | AD6: =IFERROR(AVERAGE(F126,G126),"*") -> 11.94 | AE6: =IFERROR(AVERAGE(H126,I126),"*") -> 11.695 | AF6: =IFERROR(AVERAGE(J126,K126),"*") -> 13.06 | AG6: =IFERROR(AVERAGE(L126,M126),"*") -> 14.395 | AH6: =IFERROR(AVERAGE(N126,O126),"*") -> 14.76 | AI6: =IFERROR(AVERAGE(P126,Q126),"*") -> 14.765 | AJ6: =IFERROR(AVERAGE(R126,S126),"*") -> 14.645 | AK6: =IFERROR(AVERAGE(T126,U126),"*") -> 13.59 | AL6: =IFERROR(AVERAGE(V126,W126),"*") -> *
A7: =A53 -> Belgium | B7: =IFERROR(AVERAGE(B53,C53),"*") -> 17.77 | C7: =IFERROR(AVERAGE(D53,E53),"*") -> 21.49 | D7: =IFERROR(AVERAGE(F53,G53),"*") -> 19.15 | E7: =IFERROR(AVERAGE(H53,I53),"*") -> 18.98 | F7: =IFERROR(AVERAGE(J53,K53),"*") -> 21.055 | G7: =IFERROR(AVERAGE(L53,M53),"*") -> 22.5 | H7: =IFERROR(AVERAGE(N53,O53),"*") -> 20.91 | I7: 20.575 | J7: 19.555 | K7: 17.29 | L7: * | N7: =A90 -> Belgium | O7: =IFERROR(AVERAGE(B90,C90),"*") -> 11.48 | P7: =IFERROR(AVERAGE(D90,E90),"*") -> 15.11 | Q7: =IFERROR(AVERAGE(F90,G90),"*") -> 12.895 | R7: =IFERROR(AVERAGE(H90,I90),"*") -> 13.04 | S7: =IFERROR(AVERAGE(J90,K90),"*") -> 15.67 | T7: =IFERROR(AVERAGE(L90,M90),"*") -> 16.33 | U7: =IFERROR(AVERAGE(N90,O90),"*") -> 15.245 | V7: 15.03 | W7: 13.85 | X7: 12.6 | Y7: * | AA7: =A127 -> Belgium | AB7: =IFERROR(AVERAGE(B127,C127),"*") -> 10.3 | AC7: =IFERROR(AVERAGE(D127,E127),"*") -> 14.15 | AD7: =IFERROR(AVERAGE(F127,G127),"*") -> 11.855 | AE7: =IFERROR(AVERAGE(H127,I127),"*") -> 11.725 | AF7: =IFERROR(AVERAGE(J127,K127),"*") -> 14.355 | AG7: =IFERROR(AVERAGE(L127,M127),"*") -> 15.015 | AH7: =IFERROR(AVERAGE(N127,O127),"*") -> 13.935 | AI7: 13.17 | AJ7: 11.875 | AK7: 11.42 | AL7: *
A8: Bulgaria | B8: 7.0968 | C8: 8.5771 | D8: 9.4258 | E8: 9.09315 | F8: 10.2771 | G8: 12.1536 | H8: 12.1383 | I8: 11.5656 | J8: 10.6964 | K8: 9.0142 | L8: * | N8: Bulgaria | O8: 7.4803 | P8: 8.6256 | Q8: 9.5025 | R8: 9.24485 | S8: 10.4382 | T8: 12.1536 | U8: 11.9312 | V8: 11.2793 | W8: 10.0496 | X8: 8.5183 | Y8: * | AA8: Bulgaria | AB8: 7.5979 | AC8: 9.00395 | AD8: 9.75815 | AE8: 9.3765 | AF8: 10.51485 | AG8: 12.4527 | AH8: 12.03855 | AI8: 11.4531 | AJ8: 10.05725 | AK8: 8.4518 | AL8: *
A9: Czech Republic | B9: 12.6985 | C9: 16.5004 | D9: 16.6395 | E9: 17.7698 | F9: 21.02645 | G9: 21.8594 | H9: 21.50175 | I9: 19.69995 | J9: 20.721 | K9: 21.1934 | L9: * | N9: Czech Republic | O9: 8.454 | P9: 11.2977 | Q9: 11.28645 | R9: 11.4131 | S9: 13.1894 | T9: 15.27785 | U9: 13.96075 | V9: 12.75065 | W9: 13.28715 | X9: 13.3783 | Y9: * | AA9: Czech Republic | AB9: 8.2922 | AC9: 11.3259 | AD9: 11.0627 | AE9: 10.9289 | AF9: 12.48685 | AG9: 14.79615 | AH9: 13.39025 | AI9: 12.171 | AJ9: 12.4804 | AK9: 12.4789 | AL9: *
A10: Denmark | B10: 15.4687 | C10: 21.53325 | D10: 18.37585 | E10: 21.32475 | F10: 22.86835 | G10: 21.49915 | H10: 21.89015 | I10: 19.84215 | J10: 17.4041 | K10: 15.933 | L10: * | N10: Denmark | O10: 18.8923 | P10: 21.53325 | Q10: 18.37585 | R10: 21.32475 | S10: 22.86835 | T10: 21.49915 | U10: 21.89015 | V10: 19.84215 | W10: 17.4041 | X10: 15.933 | Y10: * | AA10: Denmark | AB10: 21.15705 | AC10: 21.53325 | AD10: 18.37585 | AE10: 21.32475 | AF10: 22.86835 | AG10: 21.49915 | AH10: 21.89015 | AI10: 19.84215 | AJ10: 17.4041 | AK10: 15.933 | AL10: *
A11: Germany (until 1990 former territory of the FRG) | B11: 21.83 | C11: 23.7 | D11: 22.745 | E11: 22.535 | F11: 24.225 | G11: 24.41 | H11: 25.45 | I11: 25.37 | J11: 25.075 | K11: 25.48 | L11: * | N11: Germany (until 1990 former territory of the FRG) | O11: 14.32 | P11: 16.38 | Q11: 14.435 | R11: 13.26 | S11: 14.33 | T11: 15.005 | U11: 15.75 | V11: 15.87 | W11: 15.845 | X11: 15.43 | Y11: * | AA11: Germany (until 1990 former territory of the FRG) | AB11: 13.53 | AC11: 14.995 | AD11: 12.99 | AE11: 12.59 | AF11: 13.66 | AG11: 14.3 | AH11: 14.78 | AI11: 14.765 | AJ11: 14.745 | AK11: 14.24 | AL11: *
A12: Estonia | B12: 9.0856 | C12: 9.4215 | D12: 9.1285 | E12: 10.49275 | F12: 12.975 | G12: 14.24 | H12: 14.605 | I12: 13.15 | J12: 11.105 | K12: 10.89 | L12: * | N12: Estonia | O12: 6.1748 | P12: 8.30675 | Q12: 8.84085 | R12: 8.82755 | S12: 9.91 | T12: 11.775 | U12: 11.58 | V12: 11.4 | W12: 9.73 | X12: 10.23 | Y12: * | AA12: Estonia | AB12: 6.1417 | AC12: 8.18415 | AD12: 8.792 | AE12: 8.7127 | AF12: 9.38 | AG12: 11.32 | AH12: 10.84 | AI12: 10.625 | AJ12: 9.255 | AK12: 9.57 | AL12: *
A13: Ireland | B13: 26.55 | C13: 17.06 | D13: 16.195 | E13: 14.07 | F13: 15.635 | G13: 17.75 | H13: 19.62 | I13: 20.325 | J13: 19.99 | K13: 17.86 | L13: * | N13: Ireland | O13: 14.84 | P13: 14.595 | Q13: 14.615 | R13: 12.54 | S13: 13.795 | T13: 15.745 | U13: 16.835 | V13: 17.455 | W13: 17.1 | X13: 15.96 | Y13: * | AA13: Ireland | AB13: 12.78 | AC13: 13.91 | AD13: 13.8 | AE13: 11.705 | AF13: 12.93 | AG13: 14.665 | AH13: 15.735 | AI13: 16.105 | AJ13: 15.7 | AK13: 14.9 | AL13: *
A14: Greece | B14: * | C14: * | D14: * | E14: * | F14: * | G14: 36.03 | H14: 27.58 | I14: 24.615 | J14: 24.085 | K14: 16.63 | L14: * | N14: Greece | O14: * | P14: * | Q14: * | R14: * | S14: * | T14: 25.01 | U14: 20.41 | V14: 18.705 | W14: 17.605 | X14: 13.88 | Y14: * | AA14: Greece | AB14: * | AC14: * | AD14: * | AE14: * | AF14: * | AG14: 19.59 | AH14: 17.98 | AI14: 16.935 | AJ14: 15.295 | AK14: 13.56 | AL14: *
A15: Spain | B15: 16.652 | C15: 17.8105 | D15: 17.02905 | E15: 16.23455 | F15: 16.145 | G15: 21.815 | H15: 22.955 | I15: 24.97 | J15: 24.165 | K15: 19.76 | L15: * | N15: Spain | O15: 13.921 | P15: 14.7065 | Q15: 13.73185 | R15: 12.7487 | S15: 12.67 | T15: 17.82 | U15: 18.645 | V15: 19.645 | W15: 19.375 | X15: 15.55 | Y15: * | AA15: Spain | AB15: 11.385 | AC15: 12.519 | AD15: 11.32655 | AE15: 11.33595 | AF15: 12.835 | AG15: 14.6 | AH15: 16.04 | AI15: 15.665 | AJ15: 14.89 | AK15: 12.89 | AL15: *
A16: France | B16: 22.77 | C16: 24.9225 | D16: 26.31 | E16: 26.225 | F16: 29.7 | G16: 30.295 | H16: 32.635 | I16: 34.83 | J16: 34.02 | K16: 31.62 | L16: * | N16: France | O16: 12.2 | P16: 12.9995 | Q16: 13.43 | R16: 13.005 | S16: 14.57 | T16: 15.645 | U16: 16.675 | V16: 17.39 | W16: 17.035 | X16: 15.44 | Y16: * | AA16: France | AB16: 10.68 | AC16: 11.5915 | AD16: 11.785 | AE16: 11.045 | AF16: 12.35 | AG16: 13.52 | AH16: 13.885 | AI16: 14.385 | AJ16: 13.845 | AK16: 12.8 | AL16: *
A17: Croatia | B17: 6.55645 | C17: 6.3007 | D17: 7.3402 | E17: 8.6068 | F17: 8.43585 | G17: 9.37365 | H17: 10.47125 | I17: 11.3172 | J17: 12.25055 | K17: 11.4274 | L17: * | N17: Croatia | O17: 6.55645 | P17: 6.3007 | Q17: 7.3402 | R17: 8.6068 | S17: 8.43585 | T17: 9.53365 | U17: 10.36635 | V17: 10.43765 | W17: 10.35585 | X17: 9.5229 | Y17: * | AA17: Croatia | AB17: 6.55645 | AC17: 6.3007 | AD17: 7.3402 | AE17: 8.6068 | AF17: 8.43585 | AG17: 9.555 | AH17: 10.3268 | AI17: 9.83385 | AJ17: 9.8698 | AK17: 9.0163 | AL17: *
A18: Italy | B18: 17.0345 | C18: 19.203 | D18: 17.665 | E18: 20.028 | F18: 22.375 | G18: 25.445 | H18: 26.09 | I18: 28.345 | J18: 27.045 | K18: 22.09 | L18: * | N18: Italy | O18: 14.725 | P18: 15.6005 | Q18: 14.957 | R18: 16.613 | S18: 18.5 | T18: 20.505 | U18: 20.95 | V18: 20.53 | W18: 19.605 | X18: 17.42 | Y18: * | AA18: Italy | AB18: 14.4535 | AC18: 14.731 | AD18: 15.464 | AE18: 15.238 | AF18: 16.75 | AG18: 18.37 | AH18: 18.51 | AI18: 17.85 | AJ18: 17.18 | AK18: 16.05 | AL18: *
A19: Latvia | B19: 7.8182 | C19: 13.59915 | D19: 18.37675 | E19: 15.37175 | F19: 16.1911 | G19: 18.5582 | H19: 17.62275 | I19: 17.225 | J19: 17.285 | K19: 16.03 | L19: * | N19: Latvia | O19: 7.3322 | P19: 10.7523 | Q19: 11.3981 | R19: 9.09305 | S19: 10.00365 | T19: 12.2696 | U19: 11.59155 | V19: 11.165 | W19: 11.255 | X19: 9.73 | Y19: * | AA19: Latvia | AB19: 7.2894 | AC19: 10.5964 | AD19: 11.20695 | AE19: 8.98725 | AF19: 9.8904 | AG19: 12.2481 | AH19: 11.5274 | AI19: 11.025 | AJ19: 11.24 | AK19: 9.73 | AL19: *
A20: Lithuania | B20: 8.474 | C20: 12.4217 | D20: 15.29245 | E20: 15.13555 | F20: 16.20715 | G20: 18.62695 | H20: 19.8723 | I20: 18.2982 | J20: 17.415 | K20: 17.14 | L20: * | N20: Lithuania | O20: 5.5245 | P20: 8.37835 | Q20: 9.68865 | R20: 9.51125 | S20: 11.1822 | T20: 12.86635 | U20: 13.964 | V20: 12.15105 | W20: 9.86 | X20: 9.48 | Y20: * | AA20: Lithuania | AB20: 4.8674 | AC20: 7.543 | AD20: 8.783 | AE20: 8.55265 | AF20: 9.6472 | AG20: 11.6543 | AH20: 11.9584 | AI20: 9.97015 | AJ20: 10.01 | AK20: 9.48 | AL20: *
A21: Luxembourg | B21: 13.87 | C21: 15.14 | D21: 19.29 | E21: 13.745 | F21: 18.25 | G21: 16.82 | H21: 19.035 | I21: 17.305 | J21: 15.225 | K21: 13.43 | L21: * | N21: Luxembourg | O21: 9.45 | P21: 13.895 | Q21: 12.27 | R21: 11.73 | S21: 14.175 | T21: 15.22 | U21: 15.455 | V21: 13.585 | W21: 12.445 | X21: 11.55 | Y21: * | AA21: Luxembourg | AB21: 9.01 | AC21: 11.37 | AD21: 11.23 | AE21: 12.065 | AF21: 13.21 | AG21: 15.205 | AH21: 15.615 | AI21: 13.72 | AJ21: 12.485 | AK21: 11.61 | AL21: *
A22: Hungary | B22: 8.7996 | C22: 10.47675 | D22: 11.3228 | E22: 13.05745 | F22: 13.59775 | G22: 11.70565 | H22: 10.2346 | I22: 8.50485 | J22: 8.2364 | K22: 7.7334 | L22: * | N22: Hungary | O22: 8.8488 | P22: 10.0684 | Q22: 10.86655 | R22: 12.09895 | S22: 12.5576 | T22: 10.9406 | U22: 9.32205 | V22: 7.82835 | W22: 7.70855 | X22: 7.5286 | Y22: * | AA22: Hungary | AB22: 8.7367 | AC22: 10.1684 | AD22: 10.7496 | AE22: 11.90005 | AF22: 12.33055 | AG22: 10.77675 | AH22: 9.16315 | AI22: 7.8713 | AJ22: 7.62715 | AK22: 7.5314 | AL22: *
A23: Netherlands | B23: 25.495 | C23: 25.12 | D23: 24.95 | E23: 23.935 | F23: 25.395 | G23: 26.545 | H23: 27.885 | I23: 27.715 | J23: 27.595 | K23: 24.95 | L23: * | N23: Netherlands | O23: 16.695 | P23: 16.975 | Q23: 17.32 | R23: 16.335 | S23: 17.22 | T23: 18.37 | U23: 18.98 | V23: 18.47 | W23: 17.895 | X23: 17.89 | Y23: * | AA23: Netherlands | AB23: 15.158 | AC23: * | AD23: 15.45 | AE23: 14.35 | AF23: 15.695 | AG23: 16.49 | AH23: 17.67 | AI23: 16.71 | AJ23: 15.96 | AK23: 16.37 | AL23: *
A24: Austria | B24: 17.44 | C24: 17.155 | D24: 17.865 | E24: 17.265 | F24: 19.835 | G24: 21.27 | H24: 21.08 | I24: 20.71 | J24: 20.14 | K24: 19.75 | L24: * | N24: Austria | O24: 14.13 | P24: 13.91 | Q24: 14.695 | R24: 14.165 | S24: 16.45 | T24: 17.61 | U24: 17.62 | V24: 17.1 | W24: 16.665 | X24: 15.97 | Y24: * | AA24: Austria | AB24: 12.42 | AC24: 12.265 | AD24: 13.015 | AE24: 12.59 | AF24: 14.64 | AG24: 15.535 | AH24: 15.585 | AI24: 15.225 | AJ24: 14.65 | AK24: 13.81 | AL24: *
A25: Poland | B25: 11.7421 | C25: 13.68035 | D25: 12.19875 | E25: 13.2865 | F25: 13.6901 | G25: 14.68825 | H25: 14.17345 | I25: 14.35955 | J25: 14.08635 | K25: 12.8343 | L25: * | N25: Poland | O25: 9.1348 | P25: 10.59825 | Q25: 9.66375 | R25: 10.59285 | S25: 10.8818 | T25: 11.7945 | U25: 11.0529 | V25: 11.17395 | W25: 11.2815 | X25: 8.8446 | Y25: * | AA25: Poland | AB25: * | AC25: 9.73655 | AD25: 8.8953 | AE25: 9.58345 | AF25: 10.02595 | AG25: 11.0753 | AH25: 10.71815 | AI25: 10.8349 | AJ25: 11.03905 | AK25: 8.2724 | AL25: *
A26: Portugal | B26: 22.0424 | C26: 21.4265 | D26: 20.7047 | E26: 20.572 | F26: 21.87 | G26: 22.99 | H26: 25.05 | I26: 27.1 | J26: 26.7 | K26: 24.87 | L26: * | N26: Portugal | O26: 17.2663 | P26: 16.592 | Q26: 15.70565 | R26: 16.106 | S26: 17.115 | T26: 17.97 | U26: 19.985 | V26: 22.265 | W26: 22.11 | X26: 20.61 | Y26: * | AA26: Portugal | AB26: 14.1428 | AC26: 15.07 | AD26: 13.7052 | AE26: 13.6455 | AF26: 14.765 | AG26: 15.63 | AH26: 17.85 | AI26: 20.17 | AJ26: 20.71 | AK26: 20.07 | AL26: *
A27: Romania | B27: 8.0821 | C27: 7.8423 | D27: 6.5905 | E27: 6.36005 | F27: 6.3148 | G27: 6.1283 | H27: 6.6603 | I27: 7.07745 | J27: 7.38965 | K27: 7.5342 | L27: * | N27: Romania | O27: 7.9877 | P27: 7.78985 | Q27: 6.5414 | R27: 6.32575 | S27: 6.2805 | T27: 6.09805 | U27: 6.62295 | V27: 7.02905 | W27: 7.2985 | X27: 7.4541 | Y27: * | AA27: Romania | AB27: 7.8322 | AC27: 7.65545 | AD27: 6.40195 | AE27: 6.19115 | AF27: 6.1285 | AG27: 5.96795 | AH27: 6.47925 | AI27: 6.81615 | AJ27: 6.94305 | AK27: 7.0982 | AL27: *
A28: Slovenia | B28: 14.46 | C28: 18.245 | D28: 18.195 | E28: 16.79745 | F28: 19.6 | G28: 22.23 | H28: 17.315 | I28: 16.82 | J28: 16.395 | K28: 15.76 | L28: * | N28: Slovenia | O28: 11.78 | P28: 14.695 | Q28: 13.85 | R28: 14.5256 | S28: 16.905 | T28: 17.685 | U28: 15.82 | V28: 14.81 | W28: 14.09 | X28: 13.65 | Y28: * | AA28: Slovenia | AB28: 11.22 | AC28: 13.795 | AD28: 13.435 | AE28: 13.91145 | AF28: 14.85 | AG28: 16.035 | AH28: 15.295 | AI28: 15.465 | AJ28: 13.65 | AK28: 12.54 | AL28: *
A29: Slovakia | B29: 18.9651 | C29: 22.2952 | D29: 23.2695 | E29: 22.601 | F29: 23.21 | G29: 23.19 | H29: 23.805 | I29: 23.78 | J29: 24.1 | K29: 23.41 | L29: * | N29: Slovakia | O29: 9.6748 | P29: 10.4227 | Q29: 10.942 | R29: 10.2945 | S29: 11.315 | T29: 11.92 | U29: 11.765 | V29: 11.88 | W29: 11.465 | X29: 10.65 | Y29: * | AA29: Slovakia | AB29: 9.5449 | AC29: 9.7444 | AD29: 10.963 | AE29: 10.197 | AF29: 11.905 | AG29: 11.41 | AH29: 12.33 | AI29: 12.67 | AJ29: 12.14 | AK29: 11.2 | AL29: *
A30: Sweden | B30: 26.40865 | C30: 27.9993 | D30: 29.33245 | E30: 35.12295 | F30: 39.5718 | G30: 43.7475 | H30: 38.4976 | I30: 37.8971 | J30: 39.74285 | K30: 36.685 | L30: * | N30: Sweden | O30: 20.26855 | P30: 21.60545 | Q30: 20.1551 | R30: 22.9463 | S30: 26.1239 | T30: 27.13145 | U30: 27.2382 | V30: 25.81045 | W30: 25.60625 | X30: 25.0826 | Y30: * | AA30: Sweden | AB30: 19.6241 | AC30: 20.7744 | AD30: 18.74 | AE30: 21.4347 | AF30: 23.91675 | AG30: 25.1466 | AH30: 24.8106 | AI30: 23.0546 | AJ30: 23.12935 | AK30: 22.5951 | AL30: *
A31: United Kingdom | B31: 10.2289 | C31: 12.5905 | D31: 12.59455 | E31: 12.3499 | F31: 14.2886 | G31: 16.82535 | H31: 18.15585 | I31: 23.3875 | J31: 23.96435 | K31: 20.1394 | L31: * | N31: United Kingdom | O31: 9.4392 | P31: 11.5983 | Q31: 11.2793 | R31: 10.9467 | S31: 12.53715 | T31: 14.55065 | U31: 14.7912 | V31: 16.474 | W31: 17.2502 | X31: 14.6293 | Y31: * | AA31: United Kingdom | AB31: 8.1667 | AC31: 10.73355 | AD31: 9.95225 | AE31: 9.65325 | AF31: 10.9411 | AG31: 12.8333 | AH31: 13.2771 | AI31: 14.36975 | AJ31: 15.38745 | AK31: 13.4733 | AL31: *
A36: Baggrundsdata for level 2 priser: Eurostat nrg_pc_203 - data hentet d. 7/7-2014
A37: Eurostat, tabel: | B37: =A39 -> Gas prices for domestic consumers - bi-annual data (from 2007 onwards) [nrg_pc_202]
A38: Opdateret: | B38: =B42 -> 2016-12-08T10:27:34.860
A39: Gas prices for domestic consumers - bi-annual data (from 2007 onwards) [nrg_pc_202]
A41: Last update | B41: 2016-11-07T16:45:30
A42: Extracted on | B42: 2016-12-08T10:27:34.860
A43: Source of data | B43: Eurostat
A45: PRODUCT | B45: Natural gas
A46: CONSOM | B46: Band D1 : Consumption < 20 GJ
A47: UNIT | B47: Gigajoules (gross calorific value = GCV)
A48: TAX | B48: Excluding VAT and other recoverable taxes and levies
A49: CURRENCY | B49: Euro
A51: GEO/TIME | B51: 2007S1 | C51: 2007S2 | D51: 2008S1 | E51: 2008S2 | F51: 2009S1 | G51: 2009S2 | H51: 2010S1 | I51: 2010S2 | J51: 2011S1 | K51: 2011S2 | L51: 2012S1 | M51: 2012S2 | N51: 2013S1 | O51: 2013S2 | P51: 2014S1 | Q51: 2014S2 | R51: 2015S1 | S51: 2015S2 | T51: 2016S1
A52: European Union (28 countries) | B52: : | C52: 16.9 | D52: 17.36 | E52: 20.39 | F52: 18.85 | G52: 18.63 | H52: 17.32 | I52: 20.12 | J52: 19.1 | K52: 22.19 | L52: 20.47 | M52: 23.99 | N52: 21.5 | O52: 24.97 | P52: 23.22 | Q52: 26.53 | R52: 22.86 | S52: 26.19 | T52: 22.18
A53: Belgium | B53: : | C53: 17.77 | D53: 19.74 | E53: 23.24 | F53: 20.18 | G53: 18.12 | H53: 18.31 | I53: 19.65 | J53: 20.05 | K53: 22.06 | L53: 21.4 | M53: 23.6 | N53: 21.21 | O53: 20.61 | P53: 19.82 | Q53: 21.33 | R53: 18.24 | S53: 20.87 | T53: 17.29
A54: Bulgaria | B54: : | C54: 7.0968 | D54: 7.4957 | E54: 9.6585 | F54: 11.0287 | G54: 7.8229 | H54: 8.4109 | I54: 9.7754 | J54: 9.8834 | K54: 10.6708 | L54: 11.4736 | M54: 12.8336 | N54: 11.5094 | O54: 12.7672 | P54: 11.1719 | Q54: 11.9593 | R54: 11.3969 | S54: 9.9959 | T54: 9.0142
A55: Czech Republic | B55: : | C55: 12.6985 | D55: 15.3379 | E55: 17.6629 | F55: 16.7918 | G55: 16.4872 | H55: 17.1527 | I55: 18.3869 | J55: 20.1803 | K55: 21.8726 | L55: 21.8346 | M55: 21.8842 | N55: 22.2593 | O55: 20.7442 | P55: 19.6276 | Q55: 19.7723 | R55: 20.5556 | S55: 20.8864 | T55: 21.1934
A56: Denmark | B56: 11.2707 | C56: 19.6667 | D56: 21.3018 | E56: 21.7647 | F56: 17.8394 | G56: 18.9123 | H56: 21.1983 | I56: 21.4512 | J56: 22.9153 | K56: 22.8214 | L56: 21.7755 | M56: 21.2228 | N56: 22.0686 | O56: 21.7117 | P56: 20.1778 | Q56: 19.5065 | R56: 17.8335 | S56: 16.9747 | T56: 15.933
A57: Germany (until 1990 former territory of the FRG) | B57: : | C57: 21.83 | D57: 22.03 | E57: 25.37 | F57: 23.43 | G57: 22.06 | H57: 21.33 | I57: 23.74 | J57: 23.96 | K57: 24.49 | L57: 24.27 | M57: 24.55 | N57: 24.94 | O57: 25.96 | P57: 25.92 | Q57: 24.82 | R57: 25.4 | S57: 24.75 | T57: 25.48
A58: Estonia | B58: : | C58: 9.0856 | D58: 9.2323 | E58: 9.6107 | F58: 9.5752 | G58: 8.6818 | H58: 9.0965 | I58: 11.889 | J58: 12.2 | K58: 13.75 | L58: 13.81 | M58: 14.67 | N58: 15.52 | O58: 13.69 | P58: 13.61 | Q58: 12.69 | R58: 12.62 | S58: 9.59 | T58: 10.89
A59: Ireland | B59: : | C59: 26.55 | D59: 16.76 | E59: 17.36 | F59: 16.91 | G59: 15.48 | H59: 13.46 | I59: 14.68 | J59: 13.68 | K59: 17.59 | L59: 16.6 | M59: 18.9 | N59: 17.43 | O59: 21.81 | P59: 18.61 | Q59: 22.04 | R59: 18.31 | S59: 21.67 | T59: 17.86
A60: Greece | B60: : | C60: : | D60: : | E60: : | F60: : | G60: : | H60: : | I60: : | J60: : | K60: : | L60: : | M60: 36.03 | N60: 21.84 | O60: 33.32 | P60: 20.76 | Q60: 28.47 | R60: 19.63 | S60: 28.54 | T60: 16.63
A61: Spain | B61: : | C61: 16.652 | D61: 16.94 | E61: 18.681 | F61: 17.64 | G61: 16.4181 | H61: 16.3107 | I61: 16.1584 | J61: 16.12 | K61: 16.17 | L61: 19.1 | M61: 24.53 | N61: 20.66 | O61: 25.25 | P61: 21.91 | Q61: 28.03 | R61: 21.18 | S61: 27.15 | T61: 19.76
A62: France | B62: : | C62: 22.77 | D62: 22.1 | E62: 27.745 | F62: 24.21 | G62: 28.41 | H62: 24.07 | I62: 28.38 | J62: 27.14 | K62: 32.26 | L62: 27.4 | M62: 33.19 | N62: 29.64 | O62: 35.63 | P62: 32.24 | Q62: 37.42 | R62: 31.19 | S62: 36.85 | T62: 31.62
A63: Croatia | B63: 6.8107 | C63: 6.3022 | D63: 6.2871 | E63: 6.3143 | F63: 7.2634 | G63: 7.417 | H63: 8.6454 | I63: 8.5682 | J63: 8.4758 | K63: 8.3959 | L63: 8.5795 | M63: 10.1678 | N63: 10.4383 | O63: 10.5042 | P63: 10.6945 | Q63: 11.9399 | R63: 12.2874 | S63: 12.2137 | T63: 11.4274
A64: Italy | B64: 16.8 | C64: 17.269 | D64: 16.848 | E64: 21.558 | F64: 18.884 | G64: 16.446 | H64: 15.936 | I64: 24.12 | J64: 18.59 | K64: 26.16 | L64: 20.83 | M64: 30.06 | N64: 22.8 | O64: 29.38 | P64: 24.07 | Q64: 32.62 | R64: 22.88 | S64: 31.21 | T64: 22.09
A65: Latvia | B65: : | C65: 7.8182 | D65: 8.7759 | E65: 18.4224 | F65: 20.2322 | G65: 16.5213 | H65: 13.9922 | I65: 16.7513 | J65: 15.699 | K65: 16.6832 | L65: 17.9293 | M65: 19.1871 | N65: 17.7508 | O65: 17.4947 | P65: 17.36 | Q65: 17.09 | R65: 17.43 | S65: 17.14 | T65: 16.03
A66: Lithuania | B66: : | C66: 8.474 | D66: 11.998 | E66: 12.8454 | F66: 16.2928 | G66: 14.2921 | H66: 14.4417 | I66: 15.8294 | J66: 15.2514 | K66: 17.1629 | L66: 17.3367 | M66: 19.9172 | N66: 20.369 | O66: 19.3756 | P66: 19.2626 | Q66: 17.3338 | R66: 17.7 | S66: 17.13 | T66: 17.14
A67: Luxembourg | B67: : | C67: 13.87 | D67: 13.04 | E67: 17.24 | F67: 19.56 | G67: 19.02 | H67: 13.12 | I67: 14.37 | J67: 17.62 | K67: 18.88 | L67: 15.1 | M67: 18.54 | N67: 21.14 | O67: 16.93 | P67: 18.06 | Q67: 16.55 | R67: 15.15 | S67: 15.3 | T67: 13.43
A68: Hungary | B68: : | C68: 8.7996 | D68: 9.5277 | E68: 11.4258 | F68: 11.2107 | G68: 11.4349 | H68: 12.6955 | I68: 13.4194 | J68: 13.3042 | K68: 13.8913 | L68: 11.0771 | M68: 12.3342 | N68: 10.2278 | O68: 10.2414 | P68: 8.7582 | Q68: 8.2515 | R68: 8.3312 | S68: 8.1416 | T68: 7.7334
A69: Netherlands | B69: 25.81 | C69: 25.18 | D69: 24.04 | E69: 26.2 | F69: 25.27 | G69: 24.63 | H69: 22.53 | I69: 25.34 | J69: 22.83 | K69: 27.96 | L69: 23.91 | M69: 29.18 | N69: 24.3 | O69: 31.47 | P69: 26.11 | Q69: 29.32 | R69: 24.38 | S69: 30.81 | T69: 24.95
A70: Austria | B70: : | C70: 17.44 | D70: 16.89 | E70: 17.42 | F70: 18.19 | G70: 17.54 | H70: 17.49 | I70: 17.04 | J70: 19.38 | K70: 20.29 | L70: 21.27 | M70: 21.27 | N70: 21.24 | O70: 20.92 | P70: 20.89 | Q70: 20.53 | R70: 20.36 | S70: 19.92 | T70: 19.75
A71: Poland | B71: : | C71: 11.7421 | D71: 12.6079 | E71: 14.7528 | F71: 11.8108 | G71: 12.5867 | H71: 12.956 | I71: 13.617 | J71: 14.0483 | K71: 13.3319 | L71: 13.452 | M71: 15.9245 | N71: 15.0491 | O71: 13.2978 | P71: 14.116 | Q71: 14.6031 | R71: 14.6458 | S71: 13.5269 | T71: 12.8343
A72: Portugal | B72: : | C72: 22.0424 | D72: 21.447 | E72: 21.406 | F72: 20.87 | G72: 20.5394 | H72: 19.526 | I72: 21.618 | J72: 20.62 | K72: 23.12 | L72: 21.58 | M72: 24.4 | N72: 23.85 | O72: 26.25 | P72: 25.84 | Q72: 28.36 | R72: 26.75 | S72: 26.65 | T72: 24.87
A73: Romania | B73: : | C73: 8.0821 | D73: 7.769 | E73: 7.9156 | F73: 6.8781 | G73: 6.3029 | H73: 6.4533 | I73: 6.2668 | J73: 6.4075 | K73: 6.2221 | L73: 6.0916 | M73: 6.165 | N73: 6.4152 | O73: 6.9054 | P73: 6.9602 | Q73: 7.1947 | R73: 7.0483 | S73: 7.731 | T73: 7.5342
A74: Slovenia | B74: : | C74: 14.46 | D74: 15.76 | E74: 20.73 | F74: 18.66 | G74: 17.73 | H74: 16.4549 | I74: 17.14 | J74: 18.55 | K74: 20.65 | L74: 22.39 | M74: 22.07 | N74: 19.18 | O74: 15.45 | P74: 18.55 | Q74: 15.09 | R74: 16.98 | S74: 15.81 | T74: 15.76
A75: Slovakia | B75: : | C75: 18.9651 | D75: 21.7052 | E75: 22.8852 | F75: 23.348 | G75: 23.191 | H75: 22.674 | I75: 22.528 | J75: 22.94 | K75: 23.48 | L75: 23.32 | M75: 23.06 | N75: 23.43 | O75: 24.18 | P75: 23.54 | Q75: 24.02 | R75: 24.13 | S75: 24.07 | T75: 23.41
A76: Sweden | B76: 28.7672 | C76: 24.0501 | D76: 24.0389 | E76: 31.9597 | F76: 27.2724 | G76: 31.3925 | H76: 33.34 | I76: 36.9059 | J76: 38.8389 | K76: 40.3047 | L76: 41.5024 | M76: 45.9926 | N76: 39.7112 | O76: 37.284 | P76: 37.1386 | Q76: 38.6556 | R76: 37.8393 | S76: 41.6464 | T76: 36.685
A77: United Kingdom | B77: : | C77: 10.2289 | D77: 11.729 | E77: 13.452 | F77: 12.6314 | G77: 12.5577 | H77: 12.1231 | I77: 12.5767 | J77: 12.8527 | K77: 15.7245 | L77: 15.7012 | M77: 17.9495 | N77: 15.9138 | O77: 20.3979 | P77: 21.1131 | Q77: 25.6619 | R77: 22.0703 | S77: 25.8584 | T77: 20.1394
A79: Special value:
A80: : | B80: not available
A82: PRODUCT | B82: Natural gas
A83: CONSOM | B83: Band D2 : 20 GJ < Consumption < 200 GJ
A84: UNIT | B84: Gigajoules (gross calorific value = GCV)
A85: TAX | B85: Excluding VAT and other recoverable taxes and levies
A86: CURRENCY | B86: Euro
A88: GEO/TIME | B88: 2007S1 | C88: 2007S2 | D88: 2008S1 | E88: 2008S2 | F88: 2009S1 | G88: 2009S2 | H88: 2010S1 | I88: 2010S2 | J88: 2011S1 | K88: 2011S2 | L88: 2012S1 | M88: 2012S2 | N88: 2013S1 | O88: 2013S2 | P88: 2014S1 | Q88: 2014S2 | R88: 2015S1 | S88: 2015S2 | T88: 2016S1
A89: European Union (28 countries) | B89: : | C89: 12.23 | D89: 12.8 | E89: 14.87 | F89: 13.91 | G89: 12.6 | H89: 12.48 | I89: 13.57 | J89: 13.46 | K89: 15.46 | L89: 15.05 | M89: 16.74 | N89: 15.7 | O89: 16.86 | P89: 16.01 | Q89: 17.2 | R89: 15.96 | S89: 16.94 | T89: 14.93
A90: Belgium | B90: : | C90: 11.48 | D90: 13.48 | E90: 16.74 | F90: 13.93 | G90: 11.86 | H90: 12.16 | I90: 13.92 | J90: 14.55 | K90: 16.79 | L90: 15.8 | M90: 16.86 | N90: 15.14 | O90: 15.35 | P90: 15.11 | Q90: 14.95 | R90: 13.43 | S90: 14.27 | T90: 12.6
A91: Bulgaria | B91: : | C91: 7.4803 | D91: 8.2012 | E91: 9.05 | F91: 10.9469 | G91: 8.0581 | H91: 8.508 | I91: 9.9817 | J91: 9.955 | K91: 10.9214 | L91: 11.4378 | M91: 12.8694 | N91: 11.8673 | O91: 11.9951 | P91: 11.356 | Q91: 11.2026 | R91: 11.0492 | S91: 9.05 | T91: 8.5183
A92: Czech Republic | B92: : | C92: 8.454 | D92: 10.2536 | E92: 12.3418 | F92: 11.5531 | G92: 11.0198 | H92: 10.8661 | I92: 11.9601 | J92: 12.604 | K92: 13.7748 | L92: 15.2595 | M92: 15.2962 | N92: 14.7132 | O92: 13.2083 | P92: 12.5856 | Q92: 12.9157 | R92: 13.1811 | S92: 13.3932 | T92: 13.3783
A93: Denmark | B93: 18.1179 | C93: 19.6667 | D93: 21.3018 | E93: 21.7647 | F93: 17.8394 | G93: 18.9123 | H93: 21.1983 | I93: 21.4512 | J93: 22.9153 | K93: 22.8214 | L93: 21.7755 | M93: 21.2228 | N93: 22.0686 | O93: 21.7117 | P93: 20.1778 | Q93: 19.5065 | R93: 17.8335 | S93: 16.9747 | T93: 15.933
A94: Germany (until 1990 former territory of the FRG) | B94: : | C94: 14.32 | D94: 14.97 | E94: 17.79 | F94: 15.13 | G94: 13.74 | H94: 13.19 | I94: 13.33 | J94: 13.73 | K94: 14.93 | L94: 14.87 | M94: 15.14 | N94: 15.42 | O94: 16.08 | P94: 15.83 | Q94: 15.91 | R94: 15.78 | S94: 15.91 | T94: 15.43
A95: Estonia | B95: : | C95: 6.1748 | D95: 7.8811 | E95: 8.7324 | F95: 9.2882 | G95: 8.3935 | H95: 8.3731 | I95: 9.282 | J95: 9.7 | K95: 10.12 | L95: 11.57 | M95: 11.98 | N95: 12.15 | O95: 11.01 | P95: 11.38 | Q95: 11.42 | R95: 10.56 | S95: 8.9 | T95: 10.23
A96: Ireland | B96: : | C96: 14.84 | D96: 13.29 | E96: 15.9 | F96: 15.76 | G96: 13.47 | H96: 12.19 | I96: 12.89 | J96: 12.46 | K96: 15.13 | L96: 15.03 | M96: 16.46 | N96: 15.99 | O96: 17.68 | P96: 16.67 | Q96: 18.24 | R96: 16.48 | S96: 17.72 | T96: 15.96
A97: Greece | B97: : | C97: : | D97: : | E97: : | F97: : | G97: : | H97: : | I97: : | J97: : | K97: : | L97: : | M97: 25.01 | N97: 18.98 | O97: 21.84 | P97: 17.79 | Q97: 19.62 | R97: 16.76 | S97: 18.45 | T97: 13.88
A98: Spain | B98: : | C98: 13.921 | D98: 13.777 | E98: 15.636 | F98: 14.64 | G98: 12.8237 | H98: 12.7863 | I98: 12.7111 | J98: 12.62 | K98: 12.72 | L98: 15.57 | M98: 20.07 | N98: 16.81 | O98: 20.48 | P98: 17.27 | Q98: 22.02 | R98: 16.79 | S98: 21.96 | T98: 15.55
A99: France | B99: : | C99: 12.2 | D99: 12.29 | E99: 13.709 | F99: 13.01 | G99: 13.85 | H99: 12.3 | I99: 13.71 | J99: 13.72 | K99: 15.42 | L99: 15.04 | M99: 16.25 | N99: 16.03 | O99: 17.32 | P99: 16.59 | Q99: 18.19 | R99: 16.6 | S99: 17.47 | T99: 15.44
A100: Croatia | B100: 6.8107 | C100: 6.3022 | D100: 6.2871 | E100: 6.3143 | F100: 7.2634 | G100: 7.417 | H100: 8.6454 | I100: 8.5682 | J100: 8.4758 | K100: 8.3959 | L100: 8.5795 | M100: 10.4878 | N100: 10.3353 | O100: 10.3974 | P100: 10.3181 | Q100: 10.5572 | R100: 10.5018 | S100: 10.2099 | T100: 9.5229
A101: Italy | B101: 15.15 | C101: 14.3 | D101: 14.552 | E101: 16.649 | F101: 17.542 | G101: 12.372 | H101: 14.736 | I101: 18.49 | J101: 16.64 | K101: 20.36 | L101: 18.42 | M101: 22.59 | N101: 19.97 | O101: 21.93 | P101: 19.04 | Q101: 22.02 | R101: 18.28 | S101: 20.93 | T101: 17.42
A102: Latvia | B102: : | C102: 7.3322 | D102: 8.2892 | E102: 13.2154 | F102: 13.2238 | G102: 9.5724 | H102: 7.9351 | I102: 10.251 | J102: 9.6033 | K102: 10.404 | L102: 11.6712 | M102: 12.868 | N102: 11.6101 | O102: 11.573 | P102: 11.12 | Q102: 11.21 | R102: 11.38 | S102: 11.13 | T102: 9.73
A103: Lithuania | B103: : | C103: 5.5245 | D103: 7.7517 | E103: 9.005 | F103: 9.9989 | G103: 9.3784 | H103: 8.6206 | I103: 10.4019 | J103: 9.9774 | K103: 12.387 | L103: 11.7064 | M103: 14.0263 | N103: 13.838 | O103: 14.09 | P103: 12.8418 | Q103: 11.4603 | R103: 9.71 | S103: 10.01 | T103: 9.48
A104: Luxembourg | B104: : | C104: 9.45 | D104: 14.46 | E104: 13.33 | F104: 12.77 | G104: 11.77 | H104: 11.23 | I104: 12.23 | J104: 13.27 | K104: 15.08 | L104: 14.99 | M104: 15.45 | N104: 16.23 | O104: 14.68 | P104: 13.83 | Q104: 13.34 | R104: 12.61 | S104: 12.28 | T104: 11.55
A105: Hungary | B105: : | C105: 8.8488 | D105: 9.3641 | E105: 10.7727 | F105: 11.1477 | G105: 10.5854 | H105: 11.8967 | I105: 12.3012 | J105: 12.4575 | K105: 12.6577 | L105: 10.5744 | M105: 11.3068 | N105: 9.457 | O105: 9.1871 | P105: 7.9894 | Q105: 7.6673 | R105: 7.7188 | S105: 7.6983 | T105: 7.5286
A106: Netherlands | B106: 16.89 | C106: 16.5 | D106: 16.27 | E106: 17.68 | F106: 18.9 | G106: 15.74 | H106: 15.87 | I106: 16.8 | J106: 16.09 | K106: 18.35 | L106: 17.29 | M106: 19.45 | N106: 18.15 | O106: 19.81 | P106: 18.11 | Q106: 18.83 | R106: 17.36 | S106: 18.43 | T106: 17.89
A107: Austria | B107: : | C107: 14.13 | D107: 13.56 | E107: 14.26 | F107: 15.03 | G107: 14.36 | H107: 14.41 | I107: 13.92 | J107: 16.14 | K107: 16.76 | L107: 17.55 | M107: 17.67 | N107: 17.77 | O107: 17.47 | P107: 17.31 | Q107: 16.89 | R107: 16.89 | S107: 16.44 | T107: 15.97
A108: Poland | B108: : | C108: 9.1348 | D108: 9.4774 | E108: 11.7191 | F108: 8.8525 | G108: 10.475 | H108: 9.6777 | I108: 11.508 | J108: 10.4635 | K108: 11.3001 | L108: 10.5836 | M108: 13.0054 | N108: 10.6129 | O108: 11.4929 | P108: 11.0456 | Q108: 11.3023 | R108: 11.3079 | S108: 11.2551 | T108: 8.8446
A109: Portugal | B109: : | C109: 17.2663 | D109: 16.539 | E109: 16.645 | F109: 15.68 | G109: 15.7313 | H109: 15.705 | I109: 16.507 | J109: 16 | K109: 18.23 | L109: 16.68 | M109: 19.26 | N109: 18.89 | O109: 21.08 | P109: 21.06 | Q109: 23.47 | R109: 22.04 | S109: 22.18 | T109: 20.61
A110: Romania | B110: : | C110: 7.9877 | D110: 7.7415 | E110: 7.8382 | F110: 6.8191 | G110: 6.2637 | H110: 6.4185 | I110: 6.233 | J110: 6.3692 | K110: 6.1918 | L110: 6.062 | M110: 6.1341 | N110: 6.3787 | O110: 6.8672 | P110: 6.9199 | Q110: 7.1382 | R110: 6.9763 | S110: 7.6207 | T110: 7.4541
A111: Slovenia | B111: : | C111: 11.78 | D111: 12.92 | E111: 16.47 | F111: 15.23 | G111: 12.47 | H111: 13.4807 | I111: 15.5705 | J111: 15.47 | K111: 18.34 | L111: 18.47 | M111: 16.9 | N111: 15.48 | O111: 16.16 | P111: 15.19 | Q111: 14.43 | R111: 14.32 | S111: 13.86 | T111: 13.65
A112: Slovakia | B112: : | C112: 9.6748 | D112: 9.9898 | E112: 10.8556 | F112: 10.781 | G112: 11.103 | H112: 10.177 | I112: 10.412 | J112: 10.78 | K112: 11.85 | L112: 11.93 | M112: 11.91 | N112: 11.54 | O112: 11.99 | P112: 11.75 | Q112: 12.01 | R112: 11.48 | S112: 11.45 | T112: 10.65
A113: Sweden | B113: 20.6975 | C113: 19.8396 | D113: 20.6375 | E113: 22.5734 | F113: 19.4139 | G113: 20.8963 | H113: 22.308 | I113: 23.5846 | J113: 26.3497 | K113: 25.8981 | L113: 26.0832 | M113: 28.1797 | N113: 27.2704 | O113: 27.206 | P113: 26.3181 | Q113: 25.3028 | R113: 25.1452 | S113: 26.0673 | T113: 25.0826
A114: United Kingdom | B114: : | C114: 9.4392 | D114: 10.4643 | E114: 12.7323 | F114: 11.2776 | G114: 11.281 | H114: 10.7288 | I114: 11.1646 | J114: 11.2404 | K114: 13.8339 | L114: 13.8161 | M114: 15.2852 | N114: 14.0333 | O114: 15.5491 | P114: 15.8653 | Q114: 17.0827 | R114: 16.8122 | S114: 17.6882 | T114: 14.6293
A116: Special value:
A117: : | B117: not available
A119: PRODUCT | B119: Natural gas
A120: CONSOM | B120: Band D3 : Consumption > 200 GJ
A121: UNIT | B121: Gigajoules (gross calorific value = GCV)
A122: TAX | B122: Excluding VAT and other recoverable taxes and levies
A123: CURRENCY | B123: Euro
A125: GEO/TIME | B125: 2007S1 | C125: 2007S2 | D125: 2008S1 | E125: 2008S2 | F125: 2009S1 | G125: 2009S2 | H125: 2010S1 | I125: 2010S2 | J125: 2011S1 | K125: 2011S2 | L125: 2012S1 | M125: 2012S2 | N125: 2013S1 | O125: 2013S2 | P125: 2014S1 | Q125: 2014S2 | R125: 2015S1 | S125: 2015S2 | T125: 2016S1
A126: European Union (28 countries) | B126: : | C126: 10.96 | D126: 11.9 | E126: 13.19 | F126: 12.52 | G126: 11.36 | H126: 11.41 | I126: 11.98 | J126: 12.44 | K126: 13.68 | L126: 13.98 | M126: 14.81 | N126: 14.8 | O126: 14.72 | P126: 14.67 | Q126: 14.86 | R126: 14.66 | S126: 14.63 | T126: 13.59
A127: Belgium | B127: : | C127: 10.3 | D127: 12.59 | E127: 15.71 | F127: 12.93 | G127: 10.78 | H127: 11.1 | I127: 12.35 | J127: 13.47 | K127: 15.24 | L127: 14.28 | M127: 15.75 | N127: 14.05 | O127: 13.82 | P127: 13.43 | Q127: 12.91 | R127: 11.92 | S127: 11.83 | T127: 11.42
A128: Bulgaria | B128: : | C128: 7.5979 | D128: 8.3188 | E128: 9.6891 | F128: 11.2281 | G128: 8.2882 | H128: 8.6359 | I128: 10.1171 | J128: 10.047 | K128: 10.9827 | L128: 11.719 | M128: 13.1864 | N128: 12.1127 | O128: 11.9644 | P128: 11.6423 | Q128: 11.2639 | R128: 11.1361 | S128: 8.9784 | T128: 8.4518
A129: Czech Republic | B129: : | C129: 8.2922 | D129: 10.2627 | E129: 12.3891 | F129: 11.3397 | G129: 10.7857 | H129: 10.4553 | I129: 11.4025 | J129: 11.9 | K129: 13.0737 | L129: 14.7789 | M129: 14.8134 | N129: 13.8727 | O129: 12.9078 | P129: 12.1141 | Q129: 12.2279 | R129: 12.3808 | S129: 12.58 | T129: 12.4789
A130: Denmark | B130: 22.6474 | C130: 19.6667 | D130: 21.3018 | E130: 21.7647 | F130: 17.8394 | G130: 18.9123 | H130: 21.1983 | I130: 21.4512 | J130: 22.9153 | K130: 22.8214 | L130: 21.7755 | M130: 21.2228 | N130: 22.0686 | O130: 21.7117 | P130: 20.1778 | Q130: 19.5065 | R130: 17.8335 | S130: 16.9747 | T130: 15.933
A131: Germany (until 1990 former territory of the FRG) | B131: : | C131: 13.53 | D131: 13.74 | E131: 16.25 | F131: 13.74 | G131: 12.24 | H131: 12.09 | I131: 13.09 | J131: 13.24 | K131: 14.08 | L131: 14.17 | M131: 14.43 | N131: 14.59 | O131: 14.97 | P131: 14.72 | Q131: 14.81 | R131: 14.78 | S131: 14.71 | T131: 14.24
A132: Estonia | B132: : | C132: 6.1417 | D132: 7.8588 | E132: 8.5095 | F132: 9.2378 | G132: 8.3462 | H132: 8.2619 | I132: 9.1635 | J132: 9.56 | K132: 9.2 | L132: 10.94 | M132: 11.7 | N132: 11.61 | O132: 10.07 | P132: 10.81 | Q132: 10.44 | R132: 10.52 | S132: 7.99 | T132: 9.57
A133: Ireland | B133: : | C133: 12.78 | D133: 12.68 | E133: 15.14 | F133: 15.16 | G133: 12.44 | H133: 11.56 | I133: 11.85 | J133: 11.84 | K133: 14.02 | L133: 14.2 | M133: 15.13 | N133: 15.29 | O133: 16.18 | P133: 15.72 | Q133: 16.49 | R133: 15.51 | S133: 15.89 | T133: 14.9
A134: Greece | B134: : | C134: : | D134: : | E134: : | F134: : | G134: : | H134: : | I134: : | J134: : | K134: : | L134: : | M134: 19.59 | N134: 18.65 | O134: 17.31 | P134: 17.18 | Q134: 16.69 | R134: 16.57 | S134: 14.02 | T134: 13.56
A135: Spain | B135: : | C135: 11.385 | D135: 11.474 | E135: 13.564 | F135: 11.78 | G135: 10.8731 | H135: 10.6912 | I135: 11.9807 | J135: 11.82 | K135: 13.85 | L135: 13.45 | M135: 15.75 | N135: 15.81 | O135: 16.27 | P135: 15.08 | Q135: 16.25 | R135: 14.76 | S135: 15.02 | T135: 12.89
A136: France | B136: : | C136: 10.68 | D136: 11.12 | E136: 12.063 | F136: 11.87 | G136: 11.7 | H136: 10.76 | I136: 11.33 | J136: 11.98 | K136: 12.72 | L136: 13.54 | M136: 13.5 | N136: 13.97 | O136: 13.8 | P136: 14.22 | Q136: 14.55 | R136: 13.89 | S136: 13.8 | T136: 12.8
A137: Croatia | B137: 6.8107 | C137: 6.3022 | D137: 6.2871 | E137: 6.3143 | F137: 7.2634 | G137: 7.417 | H137: 8.6454 | I137: 8.5682 | J137: 8.4758 | K137: 8.3959 | L137: 8.5795 | M137: 10.5305 | N137: 10.3445 | O137: 10.3091 | P137: 9.7908 | Q137: 9.8769 | R137: 10.0494 | S137: 9.6902 | T137: 9.0163
A138: Italy | B138: 14.77 | C138: 14.137 | D138: 14.71 | E138: 14.752 | F138: 17.305 | G138: 13.623 | H138: 14.746 | I138: 15.73 | J138: 15.97 | K138: 17.53 | L138: 17.78 | M138: 18.96 | N138: 19.52 | O138: 17.5 | P138: 18.25 | Q138: 17.45 | R138: 17.13 | S138: 17.23 | T138: 16.05
A139: Latvia | B139: : | C139: 7.2894 | D139: 8.2462 | E139: 12.9466 | F139: 12.9124 | G139: 9.5015 | H139: 7.8786 | I139: 10.0959 | J139: 9.4194 | K139: 10.3614 | L139: 11.6569 | M139: 12.8393 | N139: 11.5673 | O139: 11.4875 | P139: 11.06 | Q139: 10.99 | R139: 11.36 | S139: 11.12 | T139: 9.73
A140: Lithuania | B140: : | C140: 4.8674 | D140: 7.5519 | E140: 7.5341 | F140: 9.5771 | G140: 7.9889 | H140: 7.8413 | I140: 9.264 | J140: 8.6538 | K140: 10.6406 | L140: 10.3047 | M140: 13.0039 | N140: 12.3899 | O140: 11.5269 | P140: 10.5566 | Q140: 9.3837 | R140: : | S140: 10.01 | T140: 9.48
A141: Luxembourg | B141: : | C141: 9.01 | D141: 10.21 | E141: 12.53 | F141: 11.96 | G141: 10.5 | H141: 11.6 | I141: 12.53 | J141: 12.33 | K141: 14.09 | L141: 15.01 | M141: 15.4 | N141: 16.32 | O141: 14.91 | P141: 13.81 | Q141: 13.63 | R141: 12.67 | S141: 12.3 | T141: 11.61
A142: Hungary | B142: : | C142: 8.7367 | D142: 9.2439 | E142: 11.0929 | F142: 10.8535 | G142: 10.6457 | H142: 12.0398 | I142: 11.7603 | J142: 12.4566 | K142: 12.2045 | L142: 10.2739 | M142: 11.2796 | N142: 9.3327 | O142: 8.9936 | P142: 8.0525 | Q142: 7.6901 | R142: 7.6719 | S142: 7.5824 | T142: 7.5314
A143: Netherlands | B143: 15.158 | C143: : | D143: : | E143: : | F143: 17.25 | G143: 13.65 | H143: 14.17 | I143: 14.53 | J143: 14.99 | K143: 16.4 | L143: 15.93 | M143: 17.05 | N143: 17.56 | O143: 17.78 | P143: 16.61 | Q143: 16.81 | R143: 15.98 | S143: 15.94 | T143: 16.37
A144: Austria | B144: : | C144: 12.42 | D144: 11.96 | E144: 12.57 | F144: 13.33 | G144: 12.7 | H144: 12.68 | I144: 12.5 | J144: 14.48 | K144: 14.8 | L144: 15.49 | M144: 15.58 | N144: 15.7 | O144: 15.47 | P144: 15.39 | Q144: 15.06 | R144: 14.86 | S144: 14.44 | T144: 13.81
A145: Poland | B145: : | C145: : | D145: 8.9132 | E145: 10.5599 | F145: 8.4861 | G145: 9.3045 | H145: 8.9855 | I145: 10.1814 | J145: 9.664 | K145: 10.3879 | L145: 10.2727 | M145: 11.8779 | N145: 10.2849 | O145: 11.1514 | P145: 10.8421 | Q145: 10.8277 | R145: 11.1969 | S145: 10.8812 | T145: 8.2724
A146: Portugal | B146: : | C146: 14.1428 | D146: 14.856 | E146: 15.284 | F146: 13.33 | G146: 14.0804 | H146: 12.951 | I146: 14.34 | J146: 14.33 | K146: 15.2 | L146: 14.72 | M146: 16.54 | N146: 17.03 | O146: 18.67 | P146: 19.48 | Q146: 20.86 | R146: 21.31 | S146: 20.11 | T146: 20.07
A147: Romania | B147: : | C147: 7.8322 | D147: 7.6583 | E147: 7.6526 | F147: 6.6749 | G147: 6.129 | H147: 6.2826 | I147: 6.0997 | J147: 6.2304 | K147: 6.0266 | L147: 5.9299 | M147: 6.006 | N147: 6.2398 | O147: 6.7187 | P147: 6.7608 | Q147: 6.8715 | R147: 6.7088 | S147: 7.1773 | T147: 7.0982
A148: Slovenia | B148: : | C148: 11.22 | D148: 12.06 | E148: 15.53 | F148: 15.05 | G148: 11.82 | H148: 13.1694 | I148: 14.6535 | J148: 13.51 | K148: 16.19 | L148: 15.69 | M148: 16.38 | N148: 15.39 | O148: 15.2 | P148: 14.32 | Q148: 16.61 | R148: 13.95 | S148: 13.35 | T148: 12.54
A149: Slovakia | B149: : | C149: 9.5449 | D149: 9.3427 | E149: 10.1461 | F149: 10.792 | G149: 11.134 | H149: 10.076 | I149: 10.318 | J149: 11.98 | K149: 11.83 | L149: 11.45 | M149: 11.37 | N149: 11.83 | O149: 12.83 | P149: 12.61 | Q149: 12.73 | R149: 12.23 | S149: 12.05 | T149: 11.2
A150: Sweden | B150: 19.6274 | C150: 19.6208 | D150: 19.9304 | E150: 21.6184 | F150: 18.1828 | G150: 19.2972 | H150: 21.2241 | I150: 21.6453 | J150: 24.1058 | K150: 23.7277 | L150: 23.619 | M150: 26.6742 | N150: 25.6973 | O150: 23.9239 | P150: 23.9941 | Q150: 22.1151 | R150: 22.9664 | S150: 23.2923 | T150: 22.5951
A151: United Kingdom | B151: : | C151: 8.1667 | D151: 10.294 | E151: 11.1731 | F151: 10.1141 | G151: 9.7904 | H151: 9.7242 | I151: 9.5823 | J151: 9.9505 | K151: 11.9317 | L151: 12.3202 | M151: 13.3464 | N151: 13.046 | O151: 13.5082 | P151: 13.8806 | Q151: 14.8589 | R151: 15.3099 | S151: 15.465 | T151: 13.4733
A153: Special value:
A154: : | B154: not available

Sheet Level 3
A1: Gaspriser, forbrugere. Level 3 gaspriser for forskellige forbrugsintervaller
A3: Forbrugsinterval < 20 GJ | N3: Forbrugsinterval 20 GJ < 200 GJ | AA3: Forbrugsinterval >200 GJ
A5: EURO/GJ | B5: =+LEFT(B51,4)+0 -> 2007 | C5: =B5+1 -> 2008 | D5: =+C5+1 -> 2009 | E5: 2010 | F5: 2011 | G5: 2012 | H5: 2013 | I5: 2014 | J5: 2015 | K5: 2016 | L5: 2017 | N5: EURO/GJ | O5: =LEFT(B88,4)+0 -> 2007 | P5: =+O5+1 -> 2008 | Q5: =+P5+1 -> 2009 | R5: =+Q5+1 -> 2010 | S5: 2011 | T5: 2012 | U5: 2013 | V5: 2014 | W5: 2015 | X5: 2016 | Y5: 2017 | AA5: EURO/GJ | AB5: =LEFT(B125,4)+0 -> 2007 | AC5: =+AB5+1 -> 2008 | AD5: =+AC5+1 -> 2009 | AE5: 2010 | AF5: 2011 | AG5: 2012 | AH5: 2013 | AI5: 2014 | AJ5: 2015 | AK5: 2016 | AL5: 2017
A6: =A52 -> European Union (28 countries) | B6: =IFERROR(AVERAGE(B52,C52),"*") -> 19.39 | C6: =IFERROR(AVERAGE(D52,E52),"*") -> 21.575 | D6: =IFERROR(AVERAGE(F52,G52),"*") -> 21.43 | E6: =IFERROR(AVERAGE(H52,I52),"*") -> 21.59 | F6: =IFERROR(AVERAGE(J52,K52),"*") -> 23.805 | G6: =IFERROR(AVERAGE(L52,M52),"*") -> 25.585 | H6: =IFERROR(AVERAGE(N52,O52),"*") -> 26.76 | I6: =IFERROR(AVERAGE(P52,Q52),"*") -> 28.545 | J6: =IFERROR(AVERAGE(R52,S52),"*") -> 28.11 | K6: =IFERROR(AVERAGE(T52,U52),"*") -> 25.45 | L6: =IFERROR(AVERAGE(V52,W52),"*") -> * | N6: =A89 -> European Union (28 countries) | O6: =IFERROR(AVERAGE(B89,C89),"*") -> 14.21 | P6: =IFERROR(AVERAGE(D89,E89),"*") -> 16.04 | Q6: =IFERROR(AVERAGE(F89,G89),"*") -> 15.385 | R6: =IFERROR(AVERAGE(H89,I89),"*") -> 15.07 | S6: =IFERROR(AVERAGE(J89,K89),"*") -> 16.78 | T6: =IFERROR(AVERAGE(L89,M89),"*") -> 18.4 | U6: =IFERROR(AVERAGE(N89,O89),"*") -> 18.9 | V6: =IFERROR(AVERAGE(P89,Q89),"*") -> 19.235 | W6: =IFERROR(AVERAGE(R89,S89),"*") -> 19.025 | X6: =IFERROR(AVERAGE(T89,U89),"*") -> 17.26 | Y6: =IFERROR(AVERAGE(V89,W89),"*") -> * | AA6: =A126 -> European Union (28 countries) | AB6: =IFERROR(AVERAGE(B126,C126),"*") -> 12.75 | AC6: =IFERROR(AVERAGE(D126,E126),"*") -> 14.525 | AD6: =IFERROR(AVERAGE(F126,G126),"*") -> 13.875 | AE6: =IFERROR(AVERAGE(H126,I126),"*") -> 13.585 | AF6: =IFERROR(AVERAGE(J126,K126),"*") -> 15.225 | AG6: =IFERROR(AVERAGE(L126,M126),"*") -> 16.79 | AH6: =IFERROR(AVERAGE(N126,O126),"*") -> 17.255 | AI6: =IFERROR(AVERAGE(P126,Q126),"*") -> 17.25 | AJ6: =IFERROR(AVERAGE(R126,S126),"*") -> 17.07 | AK6: =IFERROR(AVERAGE(T126,U126),"*") -> 15.86 | AL6: =IFERROR(AVERAGE(V126,W126),"*") -> *
A7: =A53 -> Belgium | B7: =IFERROR(AVERAGE(B53,C53),"*") -> 21.48 | C7: =IFERROR(AVERAGE(D53,E53),"*") -> 26.005 | D7: =IFERROR(AVERAGE(F53,G53),"*") -> 23.18 | E7: =IFERROR(AVERAGE(H53,I53),"*") -> 22.945 | F7: =IFERROR(AVERAGE(J53,K53),"*") -> 25.485 | G7: =IFERROR(AVERAGE(L53,M53),"*") -> 27.28 | H7: =IFERROR(AVERAGE(N53,O53),"*") -> 25.26 | I7: 24.88 | J7: 23.63 | K7: 20.87 | L7: * | N7: =A90 -> Belgium | O7: =IFERROR(AVERAGE(B90,C90),"*") -> 13.89 | P7: =IFERROR(AVERAGE(D90,E90),"*") -> 18.25 | Q7: =IFERROR(AVERAGE(F90,G90),"*") -> 15.575 | R7: =IFERROR(AVERAGE(H90,I90),"*") -> 15.74 | S7: =IFERROR(AVERAGE(J90,K90),"*") -> 18.955 | T7: =IFERROR(AVERAGE(L90,M90),"*") -> 19.76 | U7: =IFERROR(AVERAGE(N90,O90),"*") -> 18.435 | V7: 18.165 | W7: 16.735 | X7: 15.19 | Y7: * | AA7: =A127 -> Belgium | AB7: =IFERROR(AVERAGE(B127,C127),"*") -> 12.48 | AC7: =IFERROR(AVERAGE(D127,E127),"*") -> 17.125 | AD7: =IFERROR(AVERAGE(F127,G127),"*") -> 14.35 | AE7: =IFERROR(AVERAGE(H127,I127),"*") -> 14.185 | AF7: =IFERROR(AVERAGE(J127,K127),"*") -> 17.355 | AG7: =IFERROR(AVERAGE(L127,M127),"*") -> 18.26 | AH7: =IFERROR(AVERAGE(N127,O127),"*") -> 16.855 | AI7: 15.9 | AJ7: 14.37 | AK7: 13.72 | AL7: *
A8: Bulgaria | B8: 8.5131 | C8: 10.2925 | D8: 11.3125 | E8: 10.9118 | F8: 12.33515 | G8: 14.5848 | H8: 14.56435 | I8: 13.87925 | J8: 12.83365 | K8: 10.8191 | L8: * | N8: Bulgaria | O8: 8.9784 | P8: 10.3538 | Q8: 11.40455 | R8: 11.0944 | S8: 12.5243 | T8: 14.5823 | U8: 14.3164 | V8: 13.5341 | W8: 12.059 | X8: 10.226 | Y8: * | AA8: Bulgaria | AB8: 9.1216 | AC8: 10.8038 | AD8: 11.71135 | AE8: 11.2523 | AF8: 12.61885 | AG8: 14.94015 | AH8: 14.4468 | AI8: 13.7463 | AJ8: 12.06925 | AK8: 10.1442 | AL8: *
A9: Czech Republic | B9: 15.1113 | C9: 19.63545 | D9: 19.80095 | E9: 21.32375 | F9: 25.2317 | G9: 26.2313 | H9: 26.0173 | I9: 23.83695 | J9: 25.0726 | K9: 25.6439 | L9: * | N9: Czech Republic | O9: 10.0601 | P9: 13.4442 | Q9: 13.43085 | R9: 13.69575 | S9: 15.82725 | T9: 18.33325 | U9: 16.89235 | V9: 15.42835 | W9: 16.0776 | X9: 16.1879 | Y9: * | AA9: Czech Republic | AB9: 9.8676 | AC9: 13.4777 | AD9: 13.16475 | AE9: 13.11465 | AF9: 14.98425 | AG9: 17.75555 | AH9: 16.20205 | AI9: 14.7269 | AJ9: 15.10115 | AK9: 15.0995 | AL9: *
A10: Denmark | B10: 17.92905 | C10: 26.91755 | D10: 22.9695 | E10: 26.6563 | F10: 28.6155 | G10: 26.8736 | H10: 27.36285 | I10: 24.8019 | J10: 21.7548 | K10: 19.9156 | L10: * | N10: Denmark | O10: 21.35265 | P10: 26.91755 | Q10: 22.9695 | R10: 26.6563 | S10: 28.6155 | T10: 26.8736 | U10: 27.36285 | V10: 24.8019 | W10: 21.7548 | X10: 19.9156 | Y10: * | AA10: Denmark | AB10: 23.6174 | AC10: 26.91755 | AD10: 22.9695 | AE10: 26.6563 | AF10: 28.6155 | AG10: 26.8736 | AH10: 27.36285 | AI10: 24.8019 | AJ10: 21.7548 | AK10: 19.9156 | AL10: *
A11: Germany (until 1990 former territory of the FRG) | B11: 25.98 | C11: 28.205 | D11: 27.065 | E11: 26.815 | F11: 28.825 | G11: 29.05 | H11: 30.275 | I11: 30.195 | J11: 29.835 | K11: 30.32 | L11: * | N11: Germany (until 1990 former territory of the FRG) | O11: 17.04 | P11: 19.49 | Q11: 17.175 | R11: 15.78 | S11: 17.055 | T11: 17.855 | U11: 18.74 | V11: 18.885 | W11: 18.855 | X11: 18.36 | Y11: * | AA11: Germany (until 1990 former territory of the FRG) | AB11: 16.1 | AC11: 17.845 | AD11: 15.46 | AE11: 14.985 | AF11: 16.255 | AG11: 17.015 | AH11: 17.585 | AI11: 17.57 | AJ11: 17.545 | AK11: 16.95 | AL11: *
A12: Estonia | B12: 10.7211 | C12: 11.11735 | D12: 10.85845 | E12: 12.5908 | F12: 15.575 | G12: 17.085 | H12: 17.525 | I12: 15.78 | J12: 13.33 | K12: 13.07 | L12: * | N12: Estonia | O12: 7.304 | P12: 9.8019 | Q12: 10.5163 | R12: 10.6033 | S12: 11.89 | T12: 14.13 | U12: 13.89 | V12: 13.675 | W12: 11.675 | X12: 12.28 | Y12: * | AA12: Estonia | AB12: 7.2478 | AC12: 9.6572 | AD12: 10.4581 | AE12: 10.45415 | AF12: 11.26 | AG12: 13.58 | AH12: 13.005 | AI12: 12.75 | AJ12: 11 | AK12: 11.48 | AL12: *
A13: Ireland | B13: 30.13 | C13: 19.36 | D13: 18.38 | E13: 15.95 | F13: 17.74 | G13: 20.145 | H13: 22.27 | I13: 23.065 | J13: 22.695 | K13: 20.27 | L13: * | N13: Ireland | O13: 16.85 | P13: 16.57 | Q13: 16.59 | R13: 14.21 | S13: 15.66 | T13: 17.87 | U13: 19.11 | V13: 19.81 | W13: 19.405 | X13: 18.12 | Y13: * | AA13: Ireland | AB13: 14.5 | AC13: 15.795 | AD13: 15.66 | AE13: 13.29 | AF13: 14.68 | AG13: 16.64 | AH13: 17.86 | AI13: 18.28 | AJ13: 17.825 | AK13: 16.91 | AL13: *
A14: Greece | B14: * | C14: * | D14: * | E14: * | F14: * | G14: 40.69 | H14: 31.145 | I14: 27.795 | J14: 27.2 | K14: 18.78 | L14: * | N14: Greece | O14: * | P14: * | Q14: * | R14: * | S14: * | T14: 28.25 | U14: 23.05 | V14: 21.125 | W14: 19.875 | X14: 15.68 | Y14: * | AA14: Greece | AB14: * | AC14: * | AD14: * | AE14: * | AF14: * | AG14: 22.12 | AH14: 20.305 | AI14: 19.125 | AJ14: 17.27 | AK14: 15.31 | AL14: *
A15: Spain | B15: 19.317 | C15: 20.6605 | D15: 19.7525 | E15: 18.99365 | F15: 19.05 | G15: 25.925 | H15: 27.775 | I15: 30.215 | J15: 29.24 | K15: 23.91 | L15: * | N15: Spain | O15: 16.148 | P15: 17.059 | Q15: 15.92775 | R15: 14.91565 | S15: 14.945 | T15: 21.175 | U15: 22.56 | V15: 23.77 | W15: 23.445 | X15: 18.82 | Y15: * | AA15: Spain | AB15: 13.206 | AC15: 14.522 | AD15: 13.1364 | AE15: 13.2695 | AF15: 15.15 | AG15: 17.345 | AH15: 19.41 | AI15: 18.955 | AJ15: 18.015 | AK15: 15.6 | AL15: *
A16: France | B16: 26.11 | C16: 28.1955 | D16: 29.725 | E16: 29.66 | F16: 33.47 | G16: 34.175 | H16: 36.855 | I16: 39.29 | J16: 38.335 | K16: 35.61 | L16: * | N16: France | O16: 14.32 | P16: 15.2575 | Q16: 15.745 | R16: 15.22 | S16: 17.03 | T16: 18.29 | U16: 19.535 | V16: 20.315 | W16: 19.905 | X16: 18.05 | Y16: * | AA16: France | AB16: 12.68 | AC16: 13.7665 | AD16: 14.01 | AE16: 13.13 | AF16: 14.66 | AG16: 16.03 | AH16: 16.52 | AI16: 17.09 | AJ16: 16.45 | AK16: 15.24 | AL16: *
A17: Croatia | B17: 7.90145 | C17: 7.64775 | D17: 8.9806 | E17: 10.58865 | F17: 10.37175 | G17: 11.67695 | H17: 13.0897 | I17: 14.14695 | J17: 15.3127 | K17: 14.2843 | L17: * | N17: Croatia | O17: 7.90145 | P17: 7.64775 | Q17: 8.9806 | R17: 10.58865 | S17: 10.37175 | T17: 11.87695 | U17: 12.95975 | V17: 13.0475 | W17: 12.9444 | X17: 11.9036 | Y17: * | AA17: Croatia | AB17: 7.90145 | AC17: 7.64775 | AD17: 8.9806 | AE17: 10.58865 | AF17: 10.37175 | AG17: 11.9036 | AH17: 12.90835 | AI17: 12.29185 | AJ17: 12.33825 | AK17: 11.2714 | AL17: *
A18: Italy | B18: 18.741 | C18: 21.1325 | D18: 19.4385 | E18: 23.1305 | F18: 25.79 | G18: 29.32 | H18: 29.985 | I18: 32.845 | J18: 31.305 | K18: 25.38 | L18: * | N18: Italy | O18: 17.6665 | P18: 18.729 | Q18: 17.941 | R18: 19.504 | S18: 21.795 | T18: 24.125 | U18: 24.73 | V18: 24.275 | W18: 23.2 | X18: 20.32 | Y18: * | AA18: Italy | AB18: 17.3495 | AC18: 17.6785 | AD18: 18.5585 | AE18: 18.216 | AF18: 19.985 | AG18: 22.13 | AH18: 22.4 | AI18: 21.705 | AJ18: 20.9 | AK18: 19.49 | AL18: *
A19: Latvia | B19: 9.2332 | C19: 14.28095 | D19: 20.21865 | E19: 16.9096 | F19: 18.96725 | G19: 22.54505 | H19: 21.32975 | I19: 20.835 | J19: 20.92 | K19: 19.4 | L19: * | N19: Latvia | O19: 8.6472 | P19: 11.2924 | Q19: 12.5316 | R19: 10.003 | S19: 11.71745 | T19: 14.9013 | U19: 14.0225 | V19: 13.505 | W19: 13.62 | X19: 11.78 | Y19: * | AA19: Latvia | AB19: 8.6043 | AC19: 11.12945 | AD19: 12.33335 | AE19: 9.8902 | AF19: 11.61135 | AG19: 14.87975 | AH19: 13.95125 | AI19: 13.34 | AJ19: 13.595 | AK19: 11.77 | AL19: *
A20: Lithuania | B20: 9.9993 | C20: 14.65765 | D20: 18.21165 | E20: 18.314 | F20: 19.6102 | G20: 22.53825 | H20: 24.0457 | I20: 22.14 | J20: 21.075 | K20: 20.74 | L20: * | N20: Lithuania | O20: 6.5189 | P20: 9.8864 | Q20: 11.54185 | R20: 11.5086 | S20: 13.53105 | T20: 15.5685 | U20: 16.8964 | V20: 14.70255 | W20: 11.935 | X20: 11.47 | Y20: * | AA20: Lithuania | AB20: 5.7435 | AC20: 8.90075 | AD20: 10.45705 | AE20: 10.34875 | AF20: 11.67315 | AG20: 13.9264 | AH20: 14.4694 | AI20: 12.06265 | AJ20: 12.12 | AK20: 11.47 | AL20: *
A21: Luxembourg | B21: 14.76 | C21: 16.12 | D21: 20.6 | E21: 14.705 | F21: 19.44 | G21: 18.01 | H21: 20.325 | I21: 18.45 | J21: 16.55 | K21: 14.6 | L21: * | N21: Luxembourg | O21: 10.12 | P21: 14.88 | Q21: 13.25 | R21: 12.6 | S21: 15.14 | T21: 16.275 | U21: 16.525 | V21: 14.525 | W21: 13.585 | X21: 12.62 | Y21: * | AA21: Luxembourg | AB21: 9.72 | AC21: 12.26 | AD21: 12.31 | AE21: 12.95 | AF21: 14.29 | AG21: 16.255 | AH21: 16.675 | AI21: 14.68 | AJ21: 13.64 | AK21: 12.7 | AL21: *
A22: Hungary | B22: 10.5596 | C22: 12.5721 | D22: 13.8732 | E22: 16.3218 | F22: 16.99725 | G22: 14.8662 | H22: 12.9979 | I22: 10.80115 | J22: 10.46025 | K22: 9.8214 | L22: * | N22: Hungary | O22: 10.6186 | P22: 12.0821 | Q22: 13.3045 | R22: 15.1237 | S22: 15.69695 | T22: 13.89455 | U22: 11.839 | V22: 9.94205 | W22: 9.78985 | X22: 9.5613 | Y22: * | AA22: Hungary | AB22: 10.484 | AC22: 12.2021 | AD22: 13.16575 | AE22: 14.87505 | AF22: 15.4132 | AG22: 13.6865 | AH22: 11.63725 | AI22: 9.9966 | AJ22: 9.6865 | AK22: 9.5649 | AL22: *
A23: Netherlands | B23: 30.345 | C23: 29.895 | D23: 29.69 | E23: 28.48 | F23: 30.22 | G23: 31.785 | H23: 33.745 | I23: 33.535 | J23: 33.395 | K23: 30.19 | L23: * | N23: Netherlands | O23: 19.865 | P23: 20.205 | Q23: 20.61 | R23: 19.44 | S23: 20.495 | T23: 22.01 | U23: 22.965 | V23: 22.35 | W23: 21.65 | X23: 21.65 | Y23: * | AA23: Netherlands | AB23: 18.038 | AC23: * | AD23: 18.39 | AE23: 17.08 | AF23: 18.68 | AG23: 19.755 | AH23: 21.38 | AI23: 20.225 | AJ23: 19.31 | AK23: 19.81 | AL23: *
A24: Austria | B24: 20.93 | C24: 20.58 | D24: 21.435 | E24: 20.72 | F24: 23.71 | G24: 25.525 | H24: 25.295 | I24: 24.845 | J24: 24.17 | K24: 23.72 | L24: * | N24: Austria | O24: 16.95 | P24: 16.69 | Q24: 17.63 | R24: 17 | S24: 19.66 | T24: 21.125 | U24: 21.14 | V24: 20.53 | W24: 20.015 | X24: 19.17 | Y24: * | AA24: Austria | AB24: 14.91 | AC24: 14.715 | AD24: 15.62 | AE24: 15.095 | AF24: 17.5 | AG24: 18.645 | AH24: 18.7 | AI24: 18.275 | AJ24: 17.58 | AK24: 16.58 | AL24: *
A25: Poland | B25: 14.3252 | C25: 16.6895 | D25: 14.8824 | E25: 16.21045 | F25: 16.83925 | G25: 18.06735 | H25: 17.43405 | I25: 17.66115 | J25: 17.3257 | K25: 15.7871 | L25: * | N25: Poland | O25: 11.146 | P25: 12.93005 | Q25: 11.79055 | R25: 12.92375 | S25: 13.38535 | T25: 14.508 | U25: 13.59605 | V25: 13.7431 | W25: 13.87535 | X25: 10.8795 | Y25: * | AA25: Poland | AB25: 10.2223 | AC25: 11.87675 | AD25: 10.85175 | AE25: 11.69395 | AF25: 12.33225 | AG25: 13.6226 | AH25: 13.1815 | AI25: 13.3264 | AJ25: 13.57825 | AK25: 10.1768 | AL25: *
A26: Portugal | B26: 23.1446 | C26: 22.498 | D26: 21.73805 | E26: 21.707 | F26: 23.9 | G26: 28.275 | H26: 30.815 | I26: 33.28 | J26: 32.84 | K26: 30.59 | L26: * | N26: Portugal | O26: 18.1295 | P26: 17.4215 | Q26: 16.6486 | R26: 16.9925 | S26: 18.73 | T26: 22.105 | U26: 24.58 | V26: 27.415 | W26: 27.195 | X26: 25.35 | Y26: * | AA26: Portugal | AB26: 14.8492 | AC26: 15.8235 | AD26: 14.39215 | AE26: 14.399 | AF26: 16.12 | AG26: 19.23 | AH26: 21.955 | AI26: 25.555 | AJ26: 25.475 | AK26: 24.69 | AL26: *
A27: Romania | B27: 9.6178 | C27: 9.33215 | D27: 7.8438 | E27: 7.7252 | F27: 7.8297 | G27: 7.5993 | H27: 8.25885 | I27: 8.7765 | J27: 9.16225 | K27: 9.3427 | L27: * | N27: Romania | O27: 9.5053 | P27: 9.2699 | Q27: 7.78395 | R27: 7.68345 | S27: 7.7884 | T27: 7.56225 | U27: 8.21365 | V27: 8.71565 | W27: 9.0509 | X27: 9.2426 | Y27: * | AA27: Romania | AB27: 9.3202 | AC27: 9.10995 | AD27: 7.61845 | AE27: 7.52 | AF27: 7.5987 | AG27: 7.3997 | AH27: 8.0349 | AI27: 8.4521 | AJ27: 8.6088 | AK27: 8.8021 | AL27: *
A28: Slovenia | B28: 17.36 | C28: 21.895 | D28: 21.83 | E28: 20.15695 | F28: 23.52 | G28: 26.68 | H28: 20.935 | I28: 20.53 | J28: 20 | K28: 19.22 | L28: * | N28: Slovenia | O28: 14.14 | P28: 17.64 | Q28: 16.62 | R28: 17.4307 | S28: 20.285 | T28: 21.22 | U28: 19.14 | V28: 18.075 | W28: 17.195 | X28: 16.65 | Y28: * | AA28: Slovenia | AB28: 13.47 | AC28: 16.56 | AD28: 16.125 | AE28: 16.69375 | AF28: 17.82 | AG28: 19.245 | AH28: 18.505 | AI28: 18.87 | AJ28: 16.645 | AK28: 15.3 | AL28: *
A29: Slovakia | B29: 22.5685 | C29: 26.5312 | D29: 27.6905 | E29: 26.8955 | F29: 27.85 | G29: 27.825 | H29: 28.565 | I29: 28.535 | J29: 28.915 | K29: 28.09 | L29: * | N29: Slovakia | O29: 11.5132 | P29: 12.40305 | Q29: 13.0205 | R29: 12.2505 | S29: 13.57 | T29: 14.305 | U29: 14.12 | V29: 14.26 | W29: 13.76 | X29: 12.78 | Y29: * | AA29: Slovakia | AB29: 11.3586 | AC29: 11.59575 | AD29: 13.046 | AE29: 12.134 | AF29: 14.29 | AG29: 13.69 | AH29: 14.795 | AI29: 15.205 | AJ29: 14.57 | AK29: 13.44 | AL29: *
A30: Sweden | B30: 33.0113 | C30: 34.9994 | D30: 36.66545 | E30: 43.90425 | F30: 49.4649 | G30: 54.6845 | H30: 48.12225 | I30: 47.37095 | J30: 49.6789 | K30: 45.8557 | L30: * | N30: Sweden | O30: 25.33635 | P30: 27.00735 | Q30: 25.1944 | R30: 28.6824 | S30: 32.65515 | T30: 33.9136 | U30: 34.04835 | V30: 32.2628 | W30: 32.00795 | X30: 31.3541 | Y30: * | AA30: Sweden | AB30: 24.5305 | AC30: 25.968 | AD30: 23.4249 | AE30: 26.7929 | AF30: 29.89635 | AG30: 31.43385 | AH30: 31.01325 | AI30: 28.8182 | AJ30: 28.91155 | AK30: 28.2442 | AL30: *
A31: United Kingdom | B31: 10.7405 | C31: 13.20345 | D31: 13.22695 | E31: 12.96595 | F31: 14.99725 | G31: 17.6586 | H31: 19.06275 | I31: 24.5492 | J31: 25.1636 | K31: 21.154 | L31: * | N31: United Kingdom | O31: 9.9104 | P31: 12.1362 | Q31: 11.8399 | R31: 11.49225 | S31: 13.16515 | T31: 15.2727 | U31: 15.53315 | V31: 17.2993 | W31: 18.1044 | X31: 15.3614 | Y31: * | AA31: United Kingdom | AB31: 8.5745 | AC31: 11.24125 | AD31: 10.4477 | AE31: 10.13335 | AF31: 11.4827 | AG31: 13.4751 | AH31: 13.9365 | AI31: 15.08315 | AJ31: 16.16575 | AK31: 14.1541 | AL31: *
A36: Baggrundsdata for level 3 priser:
A37: Eurostat, tabel: | B37: =A39 -> Gas prices for domestic consumers - bi-annual data (from 2007 onwards) [nrg_pc_202]
A38: Opdateret: | B38: =B42 -> 2016-12-08T10:28:22.239
A39: Gas prices for domestic consumers - bi-annual data (from 2007 onwards) [nrg_pc_202]
A41: Last update | B41: 2016-11-07T16:45:30
A42: Extracted on | B42: 2016-12-08T10:28:22.239
A43: Source of data | B43: Eurostat
A45: PRODUCT | B45: Natural gas
A46: CONSOM | B46: Band D1 : Consumption < 20 GJ
A47: UNIT | B47: Gigajoules (gross calorific value = GCV)
A48: TAX | B48: All taxes and levies included
A49: CURRENCY | B49: Euro
A51: GEO/TIME | B51: 2007S1 | C51: 2007S2 | D51: 2008S1 | E51: 2008S2 | F51: 2009S1 | G51: 2009S2 | H51: 2010S1 | I51: 2010S2 | J51: 2011S1 | K51: 2011S2 | L51: 2012S1 | M51: 2012S2 | N51: 2013S1 | O51: 2013S2 | P51: 2014S1 | Q51: 2014S2 | R51: 2015S1 | S51: 2015S2 | T51: 2016S1
A52: European Union (28 countries) | B52: : | C52: 19.39 | D52: 19.88 | E52: 23.27 | F52: 21.58 | G52: 21.28 | H52: 19.97 | I52: 23.21 | J52: 22.03 | K52: 25.58 | L52: 23.56 | M52: 27.61 | N52: 24.79 | O52: 28.73 | P52: 26.67 | Q52: 30.42 | R52: 26.21 | S52: 30.01 | T52: 25.45
A53: Belgium | B53: : | C53: 21.48 | D53: 23.88 | E53: 28.13 | F53: 24.44 | G53: 21.92 | H53: 22.17 | I53: 23.72 | J53: 24.26 | K53: 26.71 | L53: 26 | M53: 28.56 | N53: 25.66 | O53: 24.86 | P53: 23.96 | Q53: 25.8 | R53: 22.05 | S53: 25.21 | T53: 20.87
A54: Bulgaria | B54: : | C54: 8.5131 | D54: 8.9938 | E54: 11.5912 | F54: 13.2375 | G54: 9.3875 | H54: 10.0931 | I54: 11.7305 | J54: 11.8622 | K54: 12.8081 | L54: 13.7693 | M54: 15.4003 | N54: 13.8102 | O54: 15.3185 | P54: 13.4063 | Q54: 14.3522 | R54: 13.6722 | S54: 11.9951 | T54: 10.8191
A55: Czech Republic | B55: : | C55: 15.1113 | D55: 18.2522 | E55: 21.0187 | F55: 19.9823 | G55: 19.6196 | H55: 20.5834 | I55: 22.0641 | J55: 24.2165 | K55: 26.2469 | L55: 26.2014 | M55: 26.2612 | N55: 26.934 | O55: 25.1006 | P55: 23.7495 | Q55: 23.9244 | R55: 24.8725 | S55: 25.2727 | T55: 25.6439
A56: Denmark | B56: 11.2707 | C56: 24.5874 | D56: 26.6286 | E56: 27.2065 | F56: 22.2989 | G56: 23.6401 | H56: 26.4979 | I56: 26.8147 | J56: 28.6448 | K56: 28.5862 | L56: 27.2187 | M56: 26.5285 | N56: 27.5854 | O56: 27.1403 | P56: 25.2216 | Q56: 24.3822 | R56: 22.2915 | S56: 21.2181 | T56: 19.9156
A57: Germany (until 1990 former territory of the FRG) | B57: : | C57: 25.98 | D57: 26.22 | E57: 30.19 | F57: 27.88 | G57: 26.25 | H57: 25.38 | I57: 28.25 | J57: 28.51 | K57: 29.14 | L57: 28.88 | M57: 29.22 | N57: 29.65 | O57: 30.9 | P57: 30.85 | Q57: 29.54 | R57: 30.22 | S57: 29.45 | T57: 30.32
A58: Estonia | B58: : | C58: 10.7211 | D58: 10.8941 | E58: 11.3406 | F58: 11.2987 | G58: 10.4182 | H58: 10.9148 | I58: 14.2668 | J58: 14.64 | K58: 16.51 | L58: 16.57 | M58: 17.6 | N58: 18.62 | O58: 16.43 | P58: 16.33 | Q58: 15.23 | R58: 15.15 | S58: 11.51 | T58: 13.07
A59: Ireland | B59: : | C59: 30.13 | D59: 19.02 | E59: 19.7 | F59: 19.2 | G59: 17.56 | H59: 15.24 | I59: 16.66 | J59: 15.52 | K59: 19.96 | L59: 18.84 | M59: 21.45 | N59: 19.78 | O59: 24.76 | P59: 21.12 | Q59: 25.01 | R59: 20.79 | S59: 24.6 | T59: 20.27
A60: Greece | B60: : | C60: : | D60: : | E60: : | F60: : | G60: : | H60: : | I60: : | J60: : | K60: : | L60: : | M60: 40.69 | N60: 24.67 | O60: 37.62 | P60: 23.44 | Q60: 32.15 | R60: 22.17 | S60: 32.23 | T60: 18.78
A61: Spain | B61: : | C61: 19.317 | D61: 19.651 | E61: 21.67 | F61: 20.46 | G61: 19.045 | H61: 18.9204 | I61: 19.0669 | J61: 19.02 | K61: 19.08 | L61: 22.54 | M61: 29.31 | N61: 25 | O61: 30.55 | P61: 26.51 | Q61: 33.92 | R61: 25.63 | S61: 32.85 | T61: 23.91
A62: France | B62: : | C62: 26.11 | D62: 25.16 | E62: 31.231 | F62: 27.55 | G62: 31.9 | H62: 27.26 | I62: 32.06 | J62: 30.73 | K62: 36.21 | L62: 31.06 | M62: 37.29 | N62: 33.65 | O62: 40.06 | P62: 36.57 | Q62: 42.01 | R62: 35.37 | S62: 41.3 | T62: 35.61
A63: Croatia | B63: 8.1984 | C63: 7.6045 | D63: 7.5924 | E63: 7.7031 | F63: 8.8591 | G63: 9.1021 | H63: 10.6326 | I63: 10.5447 | J63: 10.4211 | K63: 10.3224 | L63: 10.6438 | M63: 12.7101 | N63: 13.0472 | O63: 13.1322 | P63: 13.3687 | Q63: 14.9252 | R63: 15.3593 | S63: 15.2661 | T63: 14.2843
A64: Italy | B64: 18.49 | C64: 18.992 | D64: 18.545 | E64: 23.72 | F64: 20.778 | G64: 18.099 | H64: 18.441 | I64: 27.82 | J64: 21.23 | K64: 30.35 | L64: 23.9 | M64: 34.74 | N64: 25.97 | O64: 34 | P64: 27.64 | Q64: 38.05 | R64: 26.22 | S64: 36.39 | T64: 25.38
A65: Latvia | B65: : | C65: 9.2332 | D65: 9.2198 | E65: 19.3421 | F65: 22.2568 | G65: 18.1805 | H65: 15.39 | I65: 18.4292 | J65: 17.5801 | K65: 20.3544 | L65: 21.8674 | M65: 23.2227 | N65: 21.478 | O65: 21.1815 | P65: 21 | Q65: 20.67 | R65: 21.09 | S65: 20.75 | T65: 19.4
A66: Lithuania | B66: : | C66: 9.9993 | D66: 14.1577 | E66: 15.1576 | F66: 19.2255 | G66: 17.1978 | H66: 17.4744 | I66: 19.1536 | J66: 18.4546 | K66: 20.7658 | L66: 20.9772 | M66: 24.0993 | N66: 24.6467 | O66: 23.4447 | P66: 23.3086 | Q66: 20.9714 | R66: 21.42 | S66: 20.73 | T66: 20.74
A67: Luxembourg | B67: : | C67: 14.76 | D67: 13.88 | E67: 18.36 | F67: 20.82 | G67: 20.38 | H67: 14.04 | I67: 15.37 | J67: 18.78 | K67: 20.1 | L67: 16.29 | M67: 19.73 | N67: 22.53 | O67: 18.12 | P67: 19.23 | Q67: 17.67 | R67: 16.47 | S67: 16.63 | T67: 14.6
A68: Hungary | B68: : | C68: 10.5596 | D68: 11.4332 | E68: 13.711 | F68: 13.4528 | G68: 14.2936 | H68: 15.8694 | I68: 16.7742 | J68: 16.6303 | K68: 17.3642 | L68: 14.068 | M68: 15.6644 | N68: 12.9892 | O68: 13.0066 | P68: 11.1229 | Q68: 10.4794 | R68: 10.5806 | S68: 10.3399 | T68: 9.8214
A69: Netherlands | B69: 30.72 | C69: 29.97 | D69: 28.61 | E69: 31.18 | F69: 30.07 | G69: 29.31 | H69: 26.8 | I69: 30.16 | J69: 27.17 | K69: 33.27 | L69: 28.45 | M69: 35.12 | N69: 29.41 | O69: 38.08 | P69: 31.59 | Q69: 35.48 | R69: 29.5 | S69: 37.29 | T69: 30.19
A70: Austria | B70: : | C70: 20.93 | D70: 20.26 | E70: 20.9 | F70: 21.82 | G70: 21.05 | H70: 20.99 | I70: 20.45 | J70: 23.13 | K70: 24.29 | L70: 25.52 | M70: 25.53 | N70: 25.49 | O70: 25.1 | P70: 25.05 | Q70: 24.64 | R70: 24.42 | S70: 23.92 | T70: 23.72
A71: Poland | B71: : | C71: 14.3252 | D71: 15.3804 | E71: 17.9986 | F71: 14.4094 | G71: 15.3554 | H71: 15.8071 | I71: 16.6138 | J71: 17.2789 | K71: 16.3996 | L71: 16.5466 | M71: 19.5881 | N71: 18.5109 | O71: 16.3572 | P71: 17.3612 | Q71: 17.9611 | R71: 18.0125 | S71: 16.6389 | T71: 15.7871
A72: Portugal | B72: : | C72: 23.1446 | D72: 22.52 | E72: 22.476 | F72: 21.91 | G72: 21.5661 | H72: 20.502 | I72: 22.912 | J72: 21.85 | K72: 25.95 | L72: 26.54 | M72: 30.01 | N72: 29.34 | O72: 32.29 | P72: 31.68 | Q72: 34.88 | R72: 32.9 | S72: 32.78 | T72: 30.59
A73: Romania | B73: : | C73: 9.6178 | D73: 9.2451 | E73: 9.4192 | F73: 8.1871 | G73: 7.5005 | H73: 7.6795 | I73: 7.7709 | J73: 7.9435 | K73: 7.7159 | L73: 7.5536 | M73: 7.645 | N73: 7.9546 | O73: 8.5631 | P73: 8.6314 | Q73: 8.9216 | R73: 8.739 | S73: 9.5855 | T73: 9.3427
A74: Slovenia | B74: : | C74: 17.36 | D74: 18.91 | E74: 24.88 | F74: 22.39 | G74: 21.27 | H74: 19.7459 | I74: 20.568 | J74: 22.26 | K74: 24.78 | L74: 26.87 | M74: 26.49 | N74: 23.02 | O74: 18.85 | P74: 22.64 | Q74: 18.42 | R74: 20.71 | S74: 19.29 | T74: 19.22
A75: Slovakia | B75: : | C75: 22.5685 | D75: 25.8292 | E75: 27.2332 | F75: 27.784 | G75: 27.597 | H75: 26.982 | I75: 26.809 | J75: 27.53 | K75: 28.17 | L75: 27.98 | M75: 27.67 | N75: 28.12 | O75: 29.01 | P75: 28.25 | Q75: 28.82 | R75: 28.95 | S75: 28.88 | T75: 28.09
A76: Sweden | B76: 35.9598 | C76: 30.0628 | D76: 30.0491 | E76: 39.9497 | F76: 34.0905 | G76: 39.2404 | H76: 41.675 | I76: 46.1335 | J76: 48.5495 | K76: 50.3803 | L76: 51.8783 | M76: 57.4907 | N76: 49.6387 | O76: 46.6058 | P76: 46.4224 | Q76: 48.3195 | R76: 47.3 | S76: 52.0578 | T76: 45.8557
A77: United Kingdom | B77: : | C77: 10.7405 | D77: 12.3148 | E77: 14.0921 | F77: 13.2691 | G77: 13.1848 | H77: 12.7265 | I77: 13.2054 | J77: 13.4861 | K77: 16.5084 | L77: 16.4796 | M77: 18.8376 | N77: 16.713 | O77: 21.4125 | P77: 22.1603 | Q77: 26.9381 | R77: 23.1766 | S77: 27.1506 | T77: 21.154
A79: Special value:
A80: : | B80: not available
A82: PRODUCT | B82: Natural gas
A83: CONSOM | B83: Band D2 : 20 GJ < Consumption < 200 GJ
A84: UNIT | B84: Gigajoules (gross calorific value = GCV)
A85: TAX | B85: All taxes and levies included
A86: CURRENCY | B86: Euro
A88: GEO/TIME | B88: 2007S1 | C88: 2007S2 | D88: 2008S1 | E88: 2008S2 | F88: 2009S1 | G88: 2009S2 | H88: 2010S1 | I88: 2010S2 | J88: 2011S1 | K88: 2011S2 | L88: 2012S1 | M88: 2012S2 | N88: 2013S1 | O88: 2013S2 | P88: 2014S1 | Q88: 2014S2 | R88: 2015S1 | S88: 2015S2 | T88: 2016S1
A89: European Union (28 countries) | B89: : | C89: 14.21 | D89: 14.86 | E89: 17.22 | F89: 16.17 | G89: 14.6 | H89: 14.41 | I89: 15.73 | J89: 15.58 | K89: 17.98 | L89: 17.36 | M89: 19.44 | N89: 18.18 | O89: 19.62 | P89: 18.5 | Q89: 19.97 | R89: 18.41 | S89: 19.64 | T89: 17.26
A90: Belgium | B90: : | C90: 13.89 | D90: 16.26 | E90: 20.24 | F90: 16.82 | G90: 14.33 | H90: 14.7 | I90: 16.78 | J90: 17.6 | K90: 20.31 | L90: 19.13 | M90: 20.39 | N90: 18.32 | O90: 18.55 | P90: 18.27 | Q90: 18.06 | R90: 16.23 | S90: 17.24 | T90: 15.19
A91: Bulgaria | B91: : | C91: 8.9784 | D91: 9.8476 | E91: 10.86 | F91: 13.1404 | G91: 9.6687 | H91: 10.2107 | I91: 11.9781 | J91: 11.944 | K91: 13.1046 | L91: 13.7233 | M91: 15.4413 | N91: 14.2397 | O91: 14.3931 | P91: 13.6261 | Q91: 13.4421 | R91: 13.258 | S91: 10.86 | T91: 10.226
A92: Czech Republic | B92: : | C92: 10.0601 | D92: 12.2018 | E92: 14.6866 | F92: 13.748 | G92: 13.1137 | H92: 13.0395 | I92: 14.352 | J92: 15.1247 | K92: 16.5298 | L92: 18.3111 | M92: 18.3554 | N92: 17.8029 | O92: 15.9818 | P92: 15.2285 | Q92: 15.6282 | R92: 15.9493 | S92: 16.2059 | T92: 16.1879
A93: Denmark | B93: 18.1179 | C93: 24.5874 | D93: 26.6286 | E93: 27.2065 | F93: 22.2989 | G93: 23.6401 | H93: 26.4979 | I93: 26.8147 | J93: 28.6448 | K93: 28.5862 | L93: 27.2187 | M93: 26.5285 | N93: 27.5854 | O93: 27.1403 | P93: 25.2216 | Q93: 24.3822 | R93: 22.2915 | S93: 21.2181 | T93: 19.9156
A94: Germany (until 1990 former territory of the FRG) | B94: : | C94: 17.04 | D94: 17.81 | E94: 21.17 | F94: 18 | G94: 16.35 | H94: 15.7 | I94: 15.86 | J94: 16.34 | K94: 17.77 | L94: 17.7 | M94: 18.01 | N94: 18.35 | O94: 19.13 | P94: 18.84 | Q94: 18.93 | R94: 18.78 | S94: 18.93 | T94: 18.36
A95: Estonia | B95: : | C95: 7.304 | D95: 9.2997 | E95: 10.3041 | F95: 10.9601 | G95: 10.0725 | H95: 10.068 | I95: 11.1386 | J95: 11.64 | K95: 12.14 | L95: 13.88 | M95: 14.38 | N95: 14.57 | O95: 13.21 | P95: 13.64 | Q95: 13.71 | R95: 12.67 | S95: 10.68 | T95: 12.28
A96: Ireland | B96: : | C96: 16.85 | D96: 15.09 | E96: 18.05 | F96: 17.89 | G96: 15.29 | H96: 13.79 | I96: 14.63 | J96: 14.14 | K96: 17.18 | L96: 17.06 | M96: 18.68 | N96: 18.15 | O96: 20.07 | P96: 18.92 | Q96: 20.7 | R96: 18.7 | S96: 20.11 | T96: 18.12
A97: Greece | B97: : | C97: : | D97: : | E97: : | F97: : | G97: : | H97: : | I97: : | J97: : | K97: : | L97: : | M97: 28.25 | N97: 21.44 | O97: 24.66 | P97: 20.09 | Q97: 22.16 | R97: 18.92 | S97: 20.83 | T97: 15.68
A98: Spain | B98: : | C98: 16.148 | D98: 15.981 | E98: 18.137 | F98: 16.98 | G98: 14.8755 | H98: 14.8321 | I98: 14.9992 | J98: 14.89 | K98: 15 | L98: 18.37 | M98: 23.98 | N98: 20.34 | O98: 24.78 | P98: 20.9 | Q98: 26.64 | R98: 20.32 | S98: 26.57 | T98: 18.82
A99: France | B99: : | C99: 14.32 | D99: 14.46 | E99: 16.055 | F99: 15.29 | G99: 16.2 | H99: 14.46 | I99: 15.98 | J99: 16.11 | K99: 17.95 | L99: 17.63 | M99: 18.95 | N99: 18.83 | O99: 20.24 | P99: 19.47 | Q99: 21.16 | R99: 19.46 | S99: 20.35 | T99: 18.05
A100: Croatia | B100: 8.1984 | C100: 7.6045 | D100: 7.5924 | E100: 7.7031 | F100: 8.8591 | G100: 9.1021 | H100: 10.6326 | I100: 10.5447 | J100: 10.4211 | K100: 10.3224 | L100: 10.6438 | M100: 13.1101 | N100: 12.9191 | O100: 13.0004 | P100: 12.8979 | Q100: 13.1971 | R100: 13.1265 | S100: 12.7623 | T100: 11.9036
A101: Italy | B101: 18.18 | C101: 17.153 | D101: 17.468 | E101: 19.99 | F101: 21.041 | G101: 14.841 | H101: 17.148 | I101: 21.86 | J101: 19.27 | K101: 24.32 | L101: 21.36 | M101: 26.89 | N101: 23.17 | O101: 26.29 | P101: 22.14 | Q101: 26.41 | R101: 21.27 | S101: 25.13 | T101: 20.32
A102: Latvia | B102: : | C102: 8.6472 | D102: 8.7044 | E102: 13.8804 | F102: 14.5406 | G102: 10.5226 | H102: 8.7257 | I102: 11.2803 | J102: 10.7489 | K102: 12.686 | L102: 14.2346 | M102: 15.568 | N102: 14.0521 | O102: 13.9929 | P102: 13.45 | Q102: 13.56 | R102: 13.77 | S102: 13.47 | T102: 11.78
A103: Lithuania | B103: : | C103: 6.5189 | D103: 9.147 | E103: 10.6258 | F103: 11.7987 | G103: 11.285 | H103: 10.4309 | I103: 12.5863 | J103: 12.0743 | K103: 14.9878 | L103: 14.1653 | M103: 16.9717 | N103: 16.7458 | O103: 17.047 | P103: 15.5381 | Q103: 13.867 | R103: 11.75 | S103: 12.12 | T103: 11.47
A104: Luxembourg | B104: : | C104: 10.12 | D104: 15.48 | E104: 14.28 | F104: 13.68 | G104: 12.82 | H104: 12.07 | I104: 13.13 | J104: 14.19 | K104: 16.09 | L104: 16.06 | M104: 16.49 | N104: 17.34 | O104: 15.71 | P104: 14.78 | Q104: 14.27 | R104: 13.77 | S104: 13.4 | T104: 12.62
A105: Hungary | B105: : | C105: 10.6186 | D105: 11.2369 | E105: 12.9273 | F105: 13.3772 | G105: 13.2318 | H105: 14.8709 | I105: 15.3765 | J105: 15.5718 | K105: 15.8221 | L105: 13.4294 | M105: 14.3597 | N105: 12.0104 | O105: 11.6676 | P105: 10.1466 | Q105: 9.7375 | R105: 9.8029 | S105: 9.7768 | T105: 9.5613
A106: Netherlands | B106: 20.1 | C106: 19.63 | D106: 19.37 | E106: 21.04 | F106: 22.49 | G106: 18.73 | H106: 18.89 | I106: 19.99 | J106: 19.15 | K106: 21.84 | L106: 20.57 | M106: 23.45 | N106: 21.96 | O106: 23.97 | P106: 21.91 | Q106: 22.79 | R106: 21 | S106: 22.3 | T106: 21.65
A107: Austria | B107: : | C107: 16.95 | D107: 16.27 | E107: 17.11 | F107: 18.03 | G107: 17.23 | H107: 17.29 | I107: 16.71 | J107: 19.29 | K107: 20.03 | L107: 21.05 | M107: 21.2 | N107: 21.32 | O107: 20.96 | P107: 20.78 | Q107: 20.28 | R107: 20.28 | S107: 19.75 | T107: 19.17
A108: Poland | B108: : | C108: 11.146 | D108: 11.5625 | E108: 14.2976 | F108: 10.8009 | G108: 12.7802 | H108: 11.8066 | I108: 14.0409 | J108: 12.8719 | K108: 13.8988 | L108: 13.0187 | M108: 15.9973 | N108: 13.0548 | O108: 14.1373 | P108: 13.5867 | Q108: 13.8995 | R108: 13.9067 | S108: 13.844 | T108: 10.8795
A109: Portugal | B109: : | C109: 18.1295 | D109: 17.366 | E109: 17.477 | F109: 16.78 | G109: 16.5172 | H109: 16.491 | I109: 17.494 | J109: 16.95 | K109: 20.51 | L109: 20.52 | M109: 23.69 | N109: 23.23 | O109: 25.93 | P109: 25.96 | Q109: 28.87 | R109: 27.11 | S109: 27.28 | T109: 25.35
A110: Romania | B110: : | C110: 9.5053 | D110: 9.2123 | E110: 9.3275 | F110: 8.1139 | G110: 7.454 | H110: 7.638 | I110: 7.7289 | J110: 7.8981 | K110: 7.6787 | L110: 7.5171 | M110: 7.6074 | N110: 7.9114 | O110: 8.5159 | P110: 8.5798 | Q110: 8.8515 | R110: 8.6513 | S110: 9.4505 | T110: 9.2426
A111: Slovenia | B111: : | C111: 14.14 | D111: 15.51 | E111: 19.77 | F111: 18.28 | G111: 14.96 | H111: 16.1768 | I111: 18.6846 | J111: 18.56 | K111: 22.01 | L111: 22.16 | M111: 20.28 | N111: 18.57 | O111: 19.71 | P111: 18.54 | Q111: 17.61 | R111: 17.48 | S111: 16.91 | T111: 16.65
A112: Slovakia | B112: : | C112: 11.5132 | D112: 11.888 | E112: 12.9181 | F112: 12.829 | G112: 13.212 | H112: 12.111 | I112: 12.39 | J112: 12.93 | K112: 14.21 | L112: 14.32 | M112: 14.29 | N112: 13.85 | O112: 14.39 | P112: 14.1 | Q112: 14.42 | R112: 13.78 | S112: 13.74 | T112: 12.78
A113: Sweden | B113: 25.8724 | C113: 24.8003 | D113: 25.7977 | E113: 28.217 | F113: 24.268 | G113: 26.1208 | H113: 27.8848 | I113: 29.48 | J113: 32.9372 | K113: 32.3731 | L113: 32.6035 | M113: 35.2237 | N113: 34.088 | O113: 34.0087 | P113: 32.8982 | Q113: 31.6274 | R113: 31.4312 | S113: 32.5847 | T113: 31.3541
A114: United Kingdom | B114: : | C114: 9.9104 | D114: 10.9869 | E114: 13.2855 | F114: 11.837 | G114: 11.8428 | H114: 11.2621 | I114: 11.7224 | J114: 11.8047 | K114: 14.5256 | L114: 14.4972 | M114: 16.0482 | N114: 14.7385 | O114: 16.3278 | P114: 16.6567 | Q114: 17.9419 | R114: 17.6453 | S114: 18.5635 | T114: 15.3614
A116: Special value:
A117: : | B117: not available
A119: PRODUCT | B119: Natural gas
A120: CONSOM | B120: Band D3 : Consumption > 200 GJ
A121: UNIT | B121: Gigajoules (gross calorific value = GCV)
A122: TAX | B122: All taxes and levies included
A123: CURRENCY | B123: Euro
A125: GEO/TIME | B125: 2007S1 | C125: 2007S2 | D125: 2008S1 | E125: 2008S2 | F125: 2009S1 | G125: 2009S2 | H125: 2010S1 | I125: 2010S2 | J125: 2011S1 | K125: 2011S2 | L125: 2012S1 | M125: 2012S2 | N125: 2013S1 | O125: 2013S2 | P125: 2014S1 | Q125: 2014S2 | R125: 2015S1 | S125: 2015S2 | T125: 2016S1
A126: European Union (28 countries) | B126: : | C126: 12.75 | D126: 13.78 | E126: 15.27 | F126: 14.56 | G126: 13.19 | H126: 13.23 | I126: 13.94 | J126: 14.47 | K126: 15.98 | L126: 16.29 | M126: 17.29 | N126: 17.29 | O126: 17.22 | P126: 17.15 | Q126: 17.35 | R126: 17.09 | S126: 17.05 | T126: 15.86
